Workbook

Sheet Version Control
C1: Version Control | AI1: Other Calculators
A6: Last Update Released | E6: 2019-11-17
A7: Version Number | E7: 19
B9: Date Released | C9: Version Number | D9: Summary of Change | E9: Details | F9: Supporting Documents | G9: Location | H9: Changed By | I9: Approved By
B10: 2019-11-17 | C10: 19 | D10: Policy Change Functional Fixes | E10: * Overdraft repayment changes * Changes to how after-tax addbacks is treated for display | H10: M025250 | I10: F009978
B11: 2019-11-05 | C11: 18 | D11: Policy Change | E11: * Amend gross income to exlcude rental property costs and interest | H11: M025250 | I11: F009978
B12: 2019-10-21 | C12: 17 | D12: Redesign | E12: Full redesign of workbook toimprove usability | H12: M025250 | I12: F009978
B13: 2019-09-30 | C13: 16 | D13: Policy Changes | E13: * Casual Income over 48 weeks * Remove drop-down on Casual Name * Clarification of "holiday" expenses * MCAR updated in line with policy change | H13: M025250 | I13: F009978
B14: 2019-08-20 | C14: 15.1 | D14: Functional Fix | E14: STSL Calculator reverted to manual entry | H14: M025250 | I14: F009978
B15: 2019-08-17 | C15: 15 | D15: Policy Changes | E15: * Changes in line with policy changes effective 17/8/19 Including: - Expansion of expense categories - HEM determination on Total Gross Income - Allowance of Margin Loan repayment calculation - Instruction for business and tax debts | H15: M025250 | I15: F009978
B16: 2019-07-16 | C16: 14 | D16: Policy Changes | E16: * MCAR and Buffer updated in line with policy change | H16: M025250 | I16: F009978
B17: 2019-07-08 | C17: 13 | D17: Functional Fixes Policy Changes | E17: * Re-word Self employed Heading "B" to remove confusion * Updated Government Study Loan rates * Update title of GSL to align to government wording * Update GSL income fill * Customer Declared functionality - Borrow Capac * Net monthly calculation App 4 - Borrow Capac * Apps 3 - 6 name in Monthly Income not showing * Amend SE worksheet to allow for 2019 finanicals | H17: M025250 | I17: F009978
B18: 2019-06-21 | C18: 12.2 | D18: Functional Fixes | E18: * Customer Declared Expenses functionality * Comment Generator not always displaying comments * Manually entered income to generate comment * SE worksheet wording refresh * Improved navigation for negative gearing / rental input * Feed taxable income to Government Study Loans sheet * Amend GSL calculation | H18: M025250 | I18: F009978
B19: 2019-06-17 | C19: 12.1 | D19: Functional Fixes | E19: * Formatting of IO period for New Loans * CasualCalc - Printing and verifying multiple jobs - Printing Compile Error | H19: M025250 | I19: F009978
B20: 2019-06-15 | C20: 12 | D20: Policy Update Functional Fixes | E20: Policy Update * Credit Card repayments assessed at 3.8% Functional Fixes * Rental Income not feeding for 6th applicant * Net income not displaying for applicant 4 * Family employee comments not generating * Self Employed Comments not generating correctly * Negative Gearing for Applicatn 3 not completing correctly * Income fields displaying ############## * Negative Gearing added to Total Income comment | H20: M025250 | I20: F009978
B21: 2019-06-12 | C21: 11.7 | D21: Policy Correction | E21: * Re-alignment of Net Income bands for HEM calculation | H21: M025250 | I21: F009978
B22: 2019-06-11 | C22: 11.6 | D22: Functional Fix | E22: * Correction of HEM formulation | H22: M025250 | I22: F009978
B23: 2019-06-07 | C23: 11.5 | D23: Functional Fixes | E23: * Error when names are numerical * Rental Income feed fixed | H23: M025250 | I23: F009978
B24: 2019-06-06 | C24: 11.4 | D24: Functional Fixes | E24: * Rental Input "Input" formula * Rental Input - Notes added to Concentration Risk Heading * Investment Income Verification - Wording change to align to policy "Other Taxable Income" | H24: M025250 | I24: F009978
B25: 2019-06-04 | C25: 11.3 | D25: Functionality Fixes | E25: * Interest Deduction Calculation Fix | H25: M025250 | I25: F009978
B26: 2019-06-03 | C26: 11.2 | D26: Functionality Fixes | E26: CasualCalc Usability | H26: M025250 | I26: F009978
B27: 2019-06-03 | C27: 11.1 | D27: Functionality Fixes | E27: * Comment Generator | H27: M025250 | I27: F009978
B28: 2019-06-03 | C28: 11 | D28: Policy Update | E28: • Align HEM calculation to 19E3 changes: o Update HEM values as per Melbourne Institute November 2018 figures o Update locations to Rest of Australia and Remote o Introduce extrapolated HEM calculation for income greater than final band • Apply tax to investment incomes – rent, interest, dividends, other taxable • Improve income assessment capability to verify and collate multiple sources of income • Create Comment Generation for applicants with multiple sources of income | H28: M025250 | I28: F009978
B29: 2018-12-08 | C29: 9 | D29: Policy Updates | E29: •Remove Credit Card Cross Sell Functionality •Include new postcodes 3218 and 2818 •Update Negative Gearing to specify “Actual Rate” for allowable home loans. | H29: M025250 | I29: F009978
B30: 2018-07-28 | C30: 8 | D30: HEM Update | E30: * Update HEM values as per Melbourne Institute March 2018 Figures * Amend Assess Sheet print function * Update tax rates to 2018-19 rates * Update HECS/HELP rates to 2018-19 rates * Add FY18 as option on SE worksheet | H30: M025250 | I30: F009978
B31: 2018-05-11 | C31: 7 | D31: Policy Change | E31: • Update HEM values as per Melbourne Institute December 2017 figures. • Include option for APRA TR Pipeline. | H31: M025250 | I31: F009978
B32: 2018-02-17 | C32: 6 | D32: Updates for APRA TR | E32: • Amend Customer Declared Expense Fields | H32: M025250 | I32: F009978
B33: 2018-02-02 | C33: 5 | D33: Policy Updates | E33: • Updated HEM Values | H33: M025250 | I33: F00978
B34: 2017-12-11 | C34: 4 | D34: Functional Fix | E34: Amend Credit Card Formula | H34: M025250 | I34: M025250
B35: 2017-12-11 | C35: 4 | D35: Policy Updates | E35: • Casual Policy Changes • Bonus Income functionality | H35: M025250 | I35: F009978
B36: 2017-11-24 | C36: 3 | D36: Policy Update | E36: • Functionality Fixes. • Updated Tax Rates and Medicare Levy • Updated HEM values • UDA-Compliance changes | H36: M025250 | I36: F009978
B37: 2017-09-30 | C37: 2 | D37: Policy Update | E37: Amend postcode 3336 to Vic Metro for HEM calculations Amend HEM formula to ensure figures are presented when required | H37: M025250 | I37: F009978
B38: 2017-09-19 | C38: 1.2 | D38: Functionality Fixes | E38: 1) Improvements to allow for use on Excel 2007 2) Amend Credit Card Cross sell formula to stop Credit Limit being shown when servicing fails. | H38: M025250 | I38: F009978
B39: 2017-09-09 | C39: 1.1 | D39: Functionality Fixes | E39: 1) Remove print restrictions. Allow users to print to desired printer. Introduced caution message "To meet Westpac's environmental commitments, please only print to paper if required. Do you wish to continue with this selection?" to allow users to cancel print to paper if necessary. 2) Fix HEM pre-fills a. Allow HEM value to populate if user has not entered Customer Declared expenses. b. Allow HEM value to populate if applicant is married to another applicant, and has no income. 3) Amend interest rate for Bridging Calc. Still loading at old rate. Updated to 5.84 and changed formula to refer to Change Page in all instances. 4) Fix “CasualCalc” Print button. Create and attach code to print. 5) Change working on SE Calc from “Primary Applicant” and “Secondary Applicant” to “First SE Applicant” and “Second SE Applicant” Pop-up message advising worksheet only to be used for SE applicants. 6) Fix formula generation for salary sacrifice with taxable YTD figure. Code referenced incorrect formula. Amended to refer to correct formula. 7) Changed comment on existing loans repayments to read: Repayment will be calculated on the higher of actual rate plus buffer or MCAR, over the remaining PIF term 8) Added comments “Servicing on CDE heading to define CDE as Customer Declared Expenses. 9) Fixed Casual Income tax and Medicare Levy calculations, to match output from Assess. 10) Adjust all forms (pop-up windows) to allow for enlarged text settings on computer. 11) Open New Loan Term field to allow the ability to free-type. Limited to a loan term greater than 0 and less than, or equal to 30 or EAL. 12) Amended the comment on “Married to applicant” to read – “Enter Married/defacto applicants….” | H39: M025250 | I39: F009978
B40: 2017-08-27 | C40: 1 | D40: Release of new Layout | E40: * Full rebuild of Assess and B.Cap worksheets. * Existing loan repayments formulas updated in line with APRA Serviceabilty Changes * Introduction of Servicing on CDE adn HEM as seperate fields * Update of CCXS calculation t remove buffer allowance, in line with APRA Serviceability Changes * Update SE worksheet to allow "pre-fill into Assess and B. Cap * SE Calc print to PDF set naming convention * SE Calc to transfer verified income to Assess and Borrow Capac. | F40: APRA Serviceability Changes BRD, Assess Change Document 18/8/17 | H40: M025250 | I40: F009978

Sheet Serviceability Calculator
G1: Serviceability Assesment Calculator | AI1: Other Calculators
CD2: App1 | CG2: App2 | CJ2: App3 | CM2: App4 | CP2: App5 | CS2: App6
CD3: ="'PAYG YTD Calc - "&CD2&" Job 1'!" -> 'PAYG YTD Calc - App1 Job 1'! | CE3: =5 - COUNTIF(B39:BF40,"Enter Name") -> 0 | CG3: PAYG Job 1 | CH3: =5 - COUNTIF(B100:BF101,"Enter Name") -> 0 | CJ3: PAYG Job Count | CK3: =5 - COUNTIF(B161:BF162,"Enter Name") -> 0 | CM3: PAYG Job 1 | CN3: =5 - COUNTIF(B222:BF223,"Enter Name") -> 0 | CP3: PAYG Job 1 | CQ3: =5 - COUNTIF(B283:BF284,"Enter Name") -> 0 | CS3: PAYG Job 1 | CT3: =5 - COUNTIF(B344:BF345,"Enter Name") -> 0
CD4: PAYG Job 2 | CG4: PAYG Job 2 | CM4: PAYG Job 2 | CP4: PAYG Job 2 | CS4: PAYG Job 2
CD5: PAYG Job 3 | CG5: PAYG Job 3 | CM5: PAYG Job 3 | CP5: PAYG Job 3 | CS5: PAYG Job 3
CD6: PAYG Job 4 | CG6: PAYG Job 4 | CM6: PAYG Job 4 | CP6: PAYG Job 4 | CS6: PAYG Job 4
B7: Serviceability Assesment Calculator | CD7: PAYG Job 5 | CG7: PAYG Job 5 | CM7: PAYG Job 5 | CP7: PAYG Job 5 | CS7: PAYG Job 5
CD8: Cas Job 1 | CG8: Cas Job 1 | CM8: Cas Job 1 | CP8: Cas Job 1 | CS8: Cas Job 1
CD9: Cas Job 2 | CG9: Cas Job 2 | CM9: Cas Job 2 | CP9: Cas Job 2 | CS9: Cas Job 2
B10: Version | L10: Release date | V10: Eff.Tax/M-Care date | AG10: Eff.HELP date | AQ10: Eff. HEM date | BA10: Assesment date | BK10: User ID | CD10: Cas Job 3 | CG10: Cas Job 3 | CM10: Cas Job 3 | CP10: Cas Job 3 | CS10: Cas Job 3
CD11: Cas Job 4 | CG11: Cas Job 4 | CM11: Cas Job 4 | CP11: Cas Job 4 | CS11: Cas Job 4
B12: ='Version Control'!E7 -> 19 | L12: ='Version Control'!E6 -> 2019-11-17 | V12: ='Change Page'!D17 -> 2019-07-01 | AG12: ='Change Page'!C35 -> 2019-07-01 | AQ12: ='HEM Working'!B1 -> 2019-08-17 | BA12: =TODAY() -> 2019-11-19 | BK12: =username() -> M025250 | CD12: Cas Job 5 | CG12: Cas Job 5 | CM12: Cas Job 5 | CP12: Cas Job 5 | CS12: Cas Job 5
CD13: SE Job | CE13: ='Self Employed - App1'!SE_GrossIncome>0 -> FALSE | CG13: SE Job | CH13: ='Self Employed - App2'!SE_GrossIncome>0 -> FALSE | CJ13: SE Job | CK13: ='Self Employed - App3'!SE_GrossIncome>0 -> FALSE | CM13: SE Job | CN13: ='Self Employed - App4'!SE_GrossIncome>0 -> FALSE | CP13: SE Job | CQ13: ='Self Employed - App5'!SE_GrossIncome>0 -> FALSE | CS13: SE Job | CT13: ='Self Employed - App6'!SE_GrossIncome>0 -> FALSE
BW14: 75 | BX14: 76 | BY14: 77 | BZ14: 78 | CA14: 79 | CB14: 80 | CC14: 81 | CD14: Other | CE14: =SUM(Assess_App1NetInterest,Assess_App1NetDividends,Assess_App1OtherTaxed)>0 -> FALSE | CG14: Other | CH14: =SUM(Assess_App2NetInterest,Assess_App2NetDividends,Assess_App2OtherTaxed)>0 -> FALSE | CJ14: Other | CK14: =SUM(Assess_App3NetInterest,Assess_App3NetDividends,Assess_App3OtherTaxed)>0 -> FALSE | CM14: Other | CN14: =SUM(Assess_App4NetInterest,Assess_App4NetDividends,Assess_App4OtherTaxed)>0 -> FALSE | CP14: Other | CQ14: =SUM(Assess_App5NetInterest,Assess_App5NetDividends,Assess_App5OtherTaxed)>0 -> FALSE | CS14: Other | CT14: =SUM(Assess_App1NetInterest,Assess_App1NetDividends,Assess_App1OtherTaxed)>0 -> FALSE | CU14: 99
B15: Applicant information
CD17: =SUM(RITD_App1,RITD_App2,RITD_App3,RITD_App4,RITD_App5,RITD_App6)>0 -> FALSE
B19: Application number | N19: Enter Number
CD21: Casual Job Count | CE21: =5 - COUNTIF(B49:BF50,"Enter Name") -> 0 | CG21: Casual Job Count | CH21: =5 - COUNTIF(B110:BF111,"Enter Name") -> 0 | CJ21: Casual Job Count | CK21: =5 - COUNTIF(B171:BF172,"Enter Name") -> 0 | CM21: Casual Job Count | CN21: =5 - COUNTIF(B232:BF233,"Enter Name") -> 0 | CP21: Casual Job Count | CQ21: =5 - COUNTIF(B293:BF294,"Enter Name") -> 0 | CS21: Casual Job Count | CT21: =5 - COUNTIF(B354:BF355,"Enter Name") -> 0
B23: Applicant 1
W24: Joint with Spouse | AQ24: Comparable Declared expenses | AZ24: Non-Comparable Declared Expenses
B25: Name | N25: Marital status | AD25: Dependants | AL25: Postcode | BL25: HEM
AQ27: =SUM('Declared Expenses - App1'!CDE_Comparable) -> 0 | AZ27: =SUM('Declared Expenses - App1'!CDE_NonComparable) -> 0 | BL27: ='Change Page'!J46 -> 
N30: No. of Married Applicants is Odd | Z30: No of Dependants must be the same
B33: Monthly income
B37: PAYG Verifications
B39: ='PAYG YTD Calc - App1 Job1'!PAYG_EmployName -> Enter name | N39: ='PAYG YTD Calc - App1 Job2'!PAYG_EmployName -> Enter name | Z39: ='PAYG YTD Calc - App1 Job3'!PAYG_EmployName -> Enter name | AL39: ='PAYG YTD Calc - App1 Job4'!PAYG_EmployName -> Enter name | AX39: ='PAYG YTD Calc - App1 Job5'!PAYG_EmployName -> Enter name | BH39: `
B42: Self Employed Verification
B44: Self Employed
B47: Casual Verification
B49: ='Casual Calc - App1 Job1'!CAS_EmployName -> Enter name | N49: ='Casual Calc - App1 Job2'!CAS_EmployName -> Enter name | Z49: ='Casual Calc - App1 Job3'!CAS_EmployName -> Enter name | AL49: ='Casual Calc - App1 Job4'!CAS_EmployName -> Enter name | AX49: ='Casual Calc - App1 Job5'!CAS_EmployName -> Enter name | BH49: `
B54: Actual Net PM | M54: Values displayed below are for reference and input into the system, and are unshaded.
B56: Net base | N56: Investment Income | Z56: Interest | AW56: Limit Bonus Income?
B58: =ROUND((CALCS_App1Net*CalcsPage!E4+CalcsPage!AP4)/12,0) -> 0 | Z58: =ROUND(((CALCS_App1Net*CalcsPage!E8)/InterestShade)/12,0) -> 0 | AW58: Yes
B61: Non-base | N61: Social Security | Z61: Dividends | AM61: Total Gross Income
B63: =ROUND(((CALCS_App1Net*CalcsPage!E5)/NonBaseShade)/12,0) -> 0 | Z63: =((CALCS_App1Net*CalcsPage!E9)/DividendShade)/12 -> 0 | AM63: =CALCS_App1Gross -> 0
AW65: Total Shaded Net Income for Servicing
B66: Bonuses | N66: Other Untaxed | Z66: Other Taxed
B68: =IF(AND(Assess_App1BonusLimit="Yes",CALCS_App1BonusCheck=TRUE),2500,ROUND(((CALCS_App1Net*CalcsPage!E6)/BonusShade)/12,0)) -> 0 | Z68: =((CALCS_App1Net*CalcsPage!E10)/OtherShade)/12 -> 0 | AW68: =IF(AND(Assess_App1BonusLimit="Yes",CALCS_App1BonusCheck=TRUE),((CALCS_App1BasicNet-(CALCS_App1NetBonus*BonusShade))/12)+(2500*0.8),CALCS_App1BasicNet/12) -> 0 | BG68: Figure adjusted to use $2,500 bonus income
B72: Rental Income
B74: Rental Income: | N74: Negative Gearing:
B76: =SUM(Rent_App1Net) -> 0 | N76: =SUM(RITD_App1) -> 0
B84: Applicant 2
W85: Joint with Spouse | AQ85: Comparable Declared expenses | AZ85: Non-Comparable Declared Expenses
B86: Name | N86: Marital status | AD86: Dependants | AL86: Postcode | BL86: HEM
AQ88: =SUM('Declared Expenses - App2'!CDE_Comparable) -> 0 | AZ88: =SUM('Declared Expenses - App2'!CDE_NonComparable) -> 0 | BL88: ='Change Page'!J47 -> 
N91: No. of Married Applicants is Odd | Z91: No of Dependants must be the same
B94: Monthly income
B98: PAYG Verifications
B100: ='PAYG YTD Calc - App2 Job1'!PAYG_EmployName -> Enter name | N100: ='PAYG YTD Calc - App2 Job2'!PAYG_EmployName -> Enter name | Z100: ='PAYG YTD Calc - App2 Job3'!PAYG_EmployName -> Enter name | AL100: ='PAYG YTD Calc - App2 Job4'!PAYG_EmployName -> Enter name | AX100: ='PAYG YTD Calc - App2 Job5'!PAYG_EmployName -> Enter name
B103: Self Employed Verification
B105: Self Employed
B108: Casual Verification
B110: ='Casual Calc - App2 Job1'!CAS_EmployName -> Enter name | N110: ='Casual Calc - App2 Job2'!CAS_EmployName -> Enter name | Z110: ='Casual Calc - App2 Job3'!CAS_EmployName -> Enter name | AL110: ='Casual Calc - App2 Job4'!CAS_EmployName -> Enter name | AX110: ='Casual Calc - App2 Job5'!CAS_EmployName -> Enter name
B115: Actual Net PM | M115: Values displayed below are for reference and input into the system, and are unshaded.
B117: Net base | N117: Investment Income | Z117: Interest | AW117: Limit Bonus Income?
B119: =(CALCS_App2Net*CalcsPage!H4+CalcsPage!AQ4)/12 -> 0 | Z119: =((CALCS_App2Net*CalcsPage!H8)/InterestShade)/12 -> 0 | AW119: Yes
B122: Non-base | N122: Social Security | Z122: Dividends | AM122: Total Gross Income
B124: =((CALCS_App2Net*CalcsPage!H5)/NonBaseShade)/12 -> 0 | Z124: =((CALCS_App2Net*CalcsPage!H9)/DividendShade)/12 -> 0 | AM124: =CALCS_App2Gross -> 0
AW126: Total Shaded Net Income for Servicing
B127: Bonuses | N127: Other Untaxed | Z127: Other Taxed
B129: =IF(AND(Assess_App2BonusLimit="Yes",CALCS_App2BonusCheck=TRUE),2500,ROUND(((CALCS_App2Net*CalcsPage!H6)/BonusShade)/12,0)) -> 0 | Z129: =((CALCS_App2Net*CalcsPage!H10)/OtherShade)/12 -> 0 | AW129: =IF(AND(Assess_App2BonusLimit="Yes",CALCS_App2BonusCheck=TRUE),((CALCS_App2BasicNet-(CALCS_App2NetBonus*BonusShade))/12)+(2500*0.8),CALCS_App2BasicNet/12) -> 0 | BG129: Figure adjusted to use $2,500 bonus income
B133: Rental income
B135: Rental Income: | N135: Negative Gearing:
B137: =SUM(Rent_App2Net) -> 0 | N137: =SUM(RITD_App2) -> 0
B145: Applicant 3
W146: Joint with Spouse | AQ146: Comparable Declared expenses | AZ146: Non-Comparable Declared Expenses
B147: Name | N147: Marital status | AD147: Dependants | AL147: Postcode | BL147: HEM
AQ149: =SUM('Declared Expenses - App3'!CDE_Comparable) -> 0 | AZ149: =SUM('Declared Expenses - App3'!CDE_NonComparable) -> 0 | BL149: ='Change Page'!J48 -> 
N152: No. of Married Applicants is Odd | Z152: No of Dependants must be the same
B155: Monthly income
B159: PAYG Verifications
B161: ='PAYG YTD Calc - App3 Job1'!PAYG_EmployName -> Enter name | N161: ='PAYG YTD Calc - App3 Job2'!PAYG_EmployName -> Enter name | Z161: ='PAYG YTD Calc - App3 Job3'!PAYG_EmployName -> Enter name | AL161: ='PAYG YTD Calc - App3 Job4'!PAYG_EmployName -> Enter name | AX161: ='PAYG YTD Calc - App3 Job5'!PAYG_EmployName -> Enter name
B164: Self Employed Verification
B166: Self Employed
B169: Casual Verification
B171: ='Casual Calc - App3 Job1'!CAS_EmployName -> Enter name | N171: ='Casual Calc - App3 Job2'!CAS_EmployName -> Enter name | Z171: ='Casual Calc - App3 Job3'!CAS_EmployName -> Enter name | AL171: ='Casual Calc - App3 Job4'!CAS_EmployName -> Enter name | AX171: ='Casual Calc - App3 Job5'!CAS_EmployName -> Enter name
B176: Actual Net PM | M176: Values displayed below are for reference and input into the system, and are unshaded.
B178: Net base | N178: Investment Income | Z178: Interest | AW178: Limit Bonus Income?
B180: =(CALCS_App3Net*CalcsPage!K4+CalcsPage!AR4)/12 -> 0 | Z180: =((CALCS_App3Net*CalcsPage!K8)/InterestShade)/12 -> 0 | AW180: Yes
B183: Non-base | N183: Social Security | Z183: Dividends | AM183: Total Gross Income
B185: =((CALCS_App3Net*CalcsPage!K5)/NonBaseShade)/12 -> 0 | Z185: =((CALCS_App3Net*CalcsPage!K9)/DividendShade)/12 -> 0 | AM185: =CALCS_App3Gross -> 0
AW187: Total Shaded Net Income for Servicing
B188: Bonuses | N188: Other Untaxed | Z188: Other Taxed
B190: =IF(AND(Assess_App3BonusLimit="Yes",CALCS_App3BonusCheck=TRUE),2500,ROUND(((CALCS_App3Net*CalcsPage!K6)/BonusShade)/12,0)) -> 0 | Z190: =((CALCS_App3Net*CalcsPage!K10)/DividendShade)/12 -> 0 | AW190: =IF(AND(Assess_App3BonusLimit="Yes",CALCS_App3BonusCheck=TRUE),((CALCS_App3BasicNet-(CALCS_App3NetBonus*BonusShade))/12)+(2500*0.8),CALCS_App3BasicNet/12) -> 0 | BG190: Figure adjusted to use $2,500 bonus income
B194: Rental income
B196: Rental Income: | N196: Negative Gearing:
B198: =SUM(Rent_App3Net) -> 0 | N198: =SUM(RITD_App3) -> 0
B206: Applicant 4
W207: Joint with Spouse | AQ207: Comparable Declared expenses | AZ207: Non-Comparable Declared Expenses
B208: Name | N208: Marital status | AD208: Dependants | AL208: Postcode | BL208: HEM
AQ210: =SUM('Declared Expenses - App4'!CDE_Comparable) -> 0 | AZ210: =SUM('Declared Expenses - App4'!CDE_NonComparable) -> 0 | BL210: ='Change Page'!J49 -> 
N213: No. of Married Applicants is Odd | Z213: No of Dependants must be the same
B216: Monthly income
B220: PAYG Verifications
B222: ='PAYG YTD Calc - App4 Job1'!PAYG_EmployName -> Enter name | N222: ='PAYG YTD Calc - App4 Job2'!PAYG_EmployName -> Enter name | Z222: ='PAYG YTD Calc - App4 Job3'!PAYG_EmployName -> Enter name | AL222: ='PAYG YTD Calc - App4 Job4'!PAYG_EmployName -> Enter name | AX222: ='PAYG YTD Calc - App4 Job5'!PAYG_EmployName -> Enter name
B225: Self Employed Verification
B227: Self Employed
B230: Casual Verification
B232: ='Casual Calc - App4 Job1'!CAS_EmployName -> Enter name | N232: ='Casual Calc - App4 Job2'!CAS_EmployName -> Enter name | Z232: ='Casual Calc - App4 Job3'!CAS_EmployName -> Enter name | AL232: ='Casual Calc - App4 Job4'!CAS_EmployName -> Enter name | AX232: ='Casual Calc - App4 Job5'!CAS_EmployName -> Enter name
B237: Actual Net PM | M237: Values displayed below are for reference and input into the system, and are unshaded.
B239: Net base | N239: Investment Income | Z239: Interest | AW239: Limit Bonus Income?
B241: =(CALCS_App4Net*CalcsPage!N4+CalcsPage!AS4)/12 -> 0 | Z241: =((CALCS_App4Net*CalcsPage!N8)/InterestShade)/12 -> 0 | AW241: Yes
B244: Non-base | N244: Social Security | Z244: Dividends | AM244: Total Gross Income
B246: =((CALCS_App4Net*CalcsPage!N5)/NonBaseShade)/12 -> 0 | Z246: =((CALCS_App4Net*CalcsPage!N9)/DividendShade)/12 -> 0 | AM246: =CALCS_App4Gross -> 0
AW248: Total Shaded Net Income for Servicing
B249: Bonuses | N249: Other Untaxed | Z249: Other Taxed
B251: =IF(AND(Assess_App4BonusLimit="Yes",CALCS_App4BonusCheck=TRUE),2500,ROUND(((CALCS_App4Net*CalcsPage!N6)/BonusShade)/12,0)) -> 0 | Z251: =((CALCS_App4Net*CalcsPage!N10)/OtherShade)/12 -> 0 | AW251: =IF(AND(Assess_App4BonusLimit="Yes",CALCS_App4BonusCheck=TRUE),((CALCS_App4BasicNet-(CALCS_App4NetBonus*BonusShade))/12)+(2500*0.8),CALCS_App4BasicNet/12) -> 0 | BG251: Figure adjusted to use $2,500 bonus income
B255: Rental income
B257: Rental Income: | N257: Negative Gearing:
B259: =SUM(Rent_App4Net) -> 0 | N259: =SUM(RITD_App4) -> 0
B267: Applicant 5
W268: Joint with Spouse | AQ268: Comparable Declared expenses | AZ268: Non-Comparable Declared Expenses
B269: Name | N269: Marital status | AD269: Dependants | AL269: Postcode | BL269: HEM
AQ271: =SUM('Declared Expenses - App5'!CDE_Comparable) -> 0 | AZ271: =SUM('Declared Expenses - App5'!CDE_NonComparable) -> 0 | BL271: ='Change Page'!J50 -> 
N274: No. of Married Applicants is Odd | Z274: No of Dependants must be the same
B277: Monthly income
B281: PAYG Verifications
B283: ='PAYG YTD Calc - App5 Job1'!PAYG_EmployName -> Enter name | N283: ='PAYG YTD Calc - App5 Job2'!PAYG_EmployName -> Enter name | Z283: ='PAYG YTD Calc - App5 Job3'!PAYG_EmployName -> Enter name | AL283: ='PAYG YTD Calc - App5 Job4'!PAYG_EmployName -> Enter name | AX283: ='PAYG YTD Calc - App5 Job5'!PAYG_EmployName -> Enter name
B286: Self Employed Verification
B288: Self Employed
B291: Casual Verification
B293: ='Casual Calc - App5 Job1'!CAS_EmployName -> Enter name | N293: ='Casual Calc - App5 Job2'!CAS_EmployName -> Enter name | Z293: ='Casual Calc - App5 Job3'!CAS_EmployName -> Enter name | AL293: ='Casual Calc - App5 Job4'!CAS_EmployName -> Enter name | AX293: ='Casual Calc - App5 Job5'!CAS_EmployName -> Enter name
B298: Actual Net PM | M298: Values displayed below are for reference and input into the system, and are unshaded.
B300: Net base | N300: Investment Income | Z300: Interest | AW300: Limit Bonus Income?
B302: =(CALCS_App5Net*CalcsPage!Q4+CalcsPage!AT4)/12 -> 0 | Z302: =((CALCS_App5Net*CalcsPage!Q8)/InterestShade)/12 -> 0 | AW302: Yes
B305: Non-base | N305: Social Security | Z305: Dividends | AM305: Total Gross Income
B307: =((CALCS_App5Net*CalcsPage!Q5)/NonBaseShade)/12 -> 0 | Z307: =((CALCS_App5Net*CalcsPage!Q9)/DividendShade)/12 -> 0 | AM307: =CALCS_App5Gross -> 0
AW309: Total Shaded Net Income for Servicing
B310: Bonuses | N310: Other Untaxed | Z310: Other Taxed
B312: =IF(AND(Assess_App5BonusLimit="Yes",CALCS_App5BonusCheck=TRUE),2500,ROUND(((CALCS_App5Net*CalcsPage!Q6)/BonusShade)/12,0)) -> 0 | Z312: =((CALCS_App5Net*CalcsPage!Q10)/OtherShade)/12 -> 0 | AW312: =IF(AND(Assess_App5BonusLimit="Yes",CALCS_App5BonusCheck=TRUE),((CALCS_App5BasicNet-(CALCS_App5NetBonus*BonusShade))/12)+(2500*0.8),CALCS_App5BasicNet/12) -> 0 | BG312: Figure adjusted to use $2,500 bonus income
B316: Rental income
B318: Rental Income: | N318: Negative Gearing:
B320: =SUM(Rent_App5Net) -> 0 | N320: =SUM(RITD_App5) -> 0
B328: Applicant 6
W329: Joint with Spouse | AQ329: Comparable Declared expenses | AZ329: Non-Comparable Declared Expenses
B330: Name | N330: Marital status | AD330: Dependants | AL330: Postcode | BL330: HEM
AQ332: =SUM('Declared Expenses - App6'!CDE_Comparable) -> 0 | AZ332: =SUM('Declared Expenses - App6'!CDE_NonComparable) -> 0 | BL332: ='Change Page'!J51 -> 
N335: No. of Married Applicants is Odd | Z335: No of Dependants must be the same
B338: Monthly income
B342: PAYG Verifications
B344: ='PAYG YTD Calc - App6 Job1'!PAYG_EmployName -> Enter name | N344: ='PAYG YTD Calc - App6 Job2'!PAYG_EmployName -> Enter name | Z344: ='PAYG YTD Calc - App6 Job3'!PAYG_EmployName -> Enter name | AL344: ='PAYG YTD Calc - App6 Job4'!PAYG_EmployName -> Enter name | AX344: ='PAYG YTD Calc - App6 Job5'!PAYG_EmployName -> Enter name
B347: Self Employed Verification
B349: Self Employed
B352: Casual Verification
B354: ='Casual Calc - App6 Job1'!CAS_EmployName -> Enter name | N354: ='Casual Calc - App6 Job2'!CAS_EmployName -> Enter name | Z354: ='Casual Calc - App6 Job3'!CAS_EmployName -> Enter name | AL354: ='Casual Calc - App6 Job4'!CAS_EmployName -> Enter name | AX354: ='Casual Calc - App6 Job5'!CAS_EmployName -> Enter name
B359: Actual Net PM | M359: Values displayed below are for reference and input into the system, and are unshaded.
B361: Net base | N361: Investment Income | Z361: Interest | AW361: Limit Bonus Income?
B363: =(CALCS_App6Net*CalcsPage!T4+CalcsPage!AU4)/12 -> 0 | Z363: =((CALCS_App6Net*CalcsPage!T8)/InterestShade)/12 -> 0 | AW363: Yes
B366: Non-base | N366: Social Security | Z366: Dividends | AM366: Total Gross Income
B368: =((CALCS_App6Net*CalcsPage!T5)/NonBaseShade)/12 -> 0 | Z368: =((CALCS_App6Net*CalcsPage!T9)/DividendShade)/12 -> 0 | AM368: =CALCS_App6Gross -> 0
AW370: Total Shaded Net Income for Servicing
B371: Bonuses | N371: Other Untaxed | Z371: Other Taxed
B373: =IF(AND(Assess_App6BonusLimit="Yes",CALCS_App6BonusCheck=TRUE),2500,ROUND(((CALCS_App6Net*CalcsPage!T6)/BonusShade)/12,0)) -> 0 | Z373: =((CALCS_App6Net*CalcsPage!T10)/OtherShade)/12 -> 0 | AW373: =IF(AND(Assess_App6BonusLimit="Yes",CALCS_App6BonusCheck=TRUE),((CALCS_App6BasicNet-(CALCS_App6NetBonus*BonusShade))/12)+(2500*0.8),CALCS_App6BasicNet/12) -> 0 | BG373: Figure adjusted to use $2,500 bonus income
B377: Rental income
B379: Do you have rental income? | N379: Apply negative gearing?
B381: =SUM(Rent_App6Net) -> 0 | N381: =SUM(RITD_App6) -> 0
BC385: =COUNTA(Assess_App1Name,Assess_App2Name,Assess_App3Name,Assess_App4Name,Assess_App5Name,Assess_App6Name) -> 0
B389: Rental income summary
B391: Are any of the SECURITY properties located in a CONCENTRATION RISK or PRESTIGE postcode? | AX391: No
B394: Rental property address | AX394: Monthly rent
B396: =IFERROR(INDEX('Rental Income'!$B$26:$B$65,SMALL(IF(('Rental Income'!$B$26:$B$65<>"")+('Rental Income'!$DH$26:$DL$65="Complete")=2,ROW('Rental Income'!$B$26:$B$65)-ROW('Rental Income'!$B$26)+1),'Rental Income'!BW72),1),"") ->  | AX396: =IFERROR(INDEX('Rental Income'!$BP$26:$BP$65,SMALL(IF(('Rental Income'!$B$26:$B$65<>"")+('Rental Income'!$DH$26:$DL$65="Complete")=2,ROW('Rental Income'!$B$26:$B$65)-ROW('Rental Income'!$B$26)+1),'Rental Income'!BW72),1),"") -> 
B398: =IFERROR(INDEX('Rental Income'!$B$26:$B$65,SMALL(IF(('Rental Income'!$B$26:$B$65<>"")+('Rental Income'!$DH$26:$DL$65="Complete")=2,ROW('Rental Income'!$B$26:$B$65)-ROW('Rental Income'!$B$26)+1),'Rental Income'!BW73),1),"") ->  | AX398: =IFERROR(INDEX('Rental Income'!$BP$26:$BP$65,SMALL(IF(('Rental Income'!$B$26:$B$65<>"")+('Rental Income'!$DH$26:$DL$65="Complete")=2,ROW('Rental Income'!$B$26:$B$65)-ROW('Rental Income'!$B$26)+1),'Rental Income'!BW73),1),"") -> 
B400: =IFERROR(INDEX('Rental Income'!$B$26:$B$65,SMALL(IF(('Rental Income'!$B$26:$B$65<>"")+('Rental Income'!$DH$26:$DL$65="Complete")=2,ROW('Rental Income'!$B$26:$B$65)-ROW('Rental Income'!$B$26)+1),'Rental Income'!BW74),1),"") ->  | AX400: =IFERROR(INDEX('Rental Income'!$BP$26:$BP$65,SMALL(IF(('Rental Income'!$B$26:$B$65<>"")+('Rental Income'!$DH$26:$DL$65="Complete")=2,ROW('Rental Income'!$B$26:$B$65)-ROW('Rental Income'!$B$26)+1),'Rental Income'!BW74),1),"") -> 
B402: =IFERROR(INDEX('Rental Income'!$B$26:$B$65,SMALL(IF(('Rental Income'!$B$26:$B$65<>"")+('Rental Income'!$DH$26:$DL$65="Complete")=2,ROW('Rental Income'!$B$26:$B$65)-ROW('Rental Income'!$B$26)+1),'Rental Income'!BW75),1),"") ->  | AX402: =IFERROR(INDEX('Rental Income'!$BP$26:$BP$65,SMALL(IF(('Rental Income'!$B$26:$B$65<>"")+('Rental Income'!$DH$26:$DL$65="Complete")=2,ROW('Rental Income'!$B$26:$B$65)-ROW('Rental Income'!$B$26)+1),'Rental Income'!BW75),1),"") -> 
B404: =IFERROR(INDEX('Rental Income'!$B$26:$B$65,SMALL(IF(('Rental Income'!$B$26:$B$65<>"")+('Rental Income'!$DH$26:$DL$65="Complete")=2,ROW('Rental Income'!$B$26:$B$65)-ROW('Rental Income'!$B$26)+1),'Rental Income'!BW76),1),"") ->  | AX404: =IFERROR(INDEX('Rental Income'!$BP$26:$BP$65,SMALL(IF(('Rental Income'!$B$26:$B$65<>"")+('Rental Income'!$DH$26:$DL$65="Complete")=2,ROW('Rental Income'!$B$26:$B$65)-ROW('Rental Income'!$B$26)+1),'Rental Income'!BW76),1),"") -> 
B406: =IFERROR(INDEX('Rental Income'!$B$26:$B$65,SMALL(IF(('Rental Income'!$B$26:$B$65<>"")+('Rental Income'!$DH$26:$DL$65="Complete")=2,ROW('Rental Income'!$B$26:$B$65)-ROW('Rental Income'!$B$26)+1),'Rental Income'!BW77),1),"") ->  | AX406: =IFERROR(INDEX('Rental Income'!$BP$26:$BP$65,SMALL(IF(('Rental Income'!$B$26:$B$65<>"")+('Rental Income'!$DH$26:$DL$65="Complete")=2,ROW('Rental Income'!$B$26:$B$65)-ROW('Rental Income'!$B$26)+1),'Rental Income'!BW77),1),"") -> 
B408: =IFERROR(INDEX('Rental Income'!$B$26:$B$65,SMALL(IF(('Rental Income'!$B$26:$B$65<>"")+('Rental Income'!$DH$26:$DL$65="Complete")=2,ROW('Rental Income'!$B$26:$B$65)-ROW('Rental Income'!$B$26)+1),'Rental Income'!BW78),1),"") ->  | AX408: =IFERROR(INDEX('Rental Income'!$BP$26:$BP$65,SMALL(IF(('Rental Income'!$B$26:$B$65<>"")+('Rental Income'!$DH$26:$DL$65="Complete")=2,ROW('Rental Income'!$B$26:$B$65)-ROW('Rental Income'!$B$26)+1),'Rental Income'!BW78),1),"") -> 
B410: =IFERROR(INDEX('Rental Income'!$B$26:$B$65,SMALL(IF(('Rental Income'!$B$26:$B$65<>"")+('Rental Income'!$DH$26:$DL$65="Complete")=2,ROW('Rental Income'!$B$26:$B$65)-ROW('Rental Income'!$B$26)+1),'Rental Income'!BW79),1),"") ->  | AX410: =IFERROR(INDEX('Rental Income'!$BP$26:$BP$65,SMALL(IF(('Rental Income'!$B$26:$B$65<>"")+('Rental Income'!$DH$26:$DL$65="Complete")=2,ROW('Rental Income'!$B$26:$B$65)-ROW('Rental Income'!$B$26)+1),'Rental Income'!BW79),1),"") -> 
B412: =IFERROR(INDEX('Rental Income'!$B$26:$B$65,SMALL(IF(('Rental Income'!$B$26:$B$65<>"")+('Rental Income'!$DH$26:$DL$65="Complete")=2,ROW('Rental Income'!$B$26:$B$65)-ROW('Rental Income'!$B$26)+1),'Rental Income'!BW80),1),"") ->  | AX412: =IFERROR(INDEX('Rental Income'!$BP$26:$BP$65,SMALL(IF(('Rental Income'!$B$26:$B$65<>"")+('Rental Income'!$DH$26:$DL$65="Complete")=2,ROW('Rental Income'!$B$26:$B$65)-ROW('Rental Income'!$B$26)+1),'Rental Income'!BW80),1),"") -> 
B414: =IFERROR(INDEX('Rental Income'!$B$26:$B$65,SMALL(IF(('Rental Income'!$B$26:$B$65<>"")+('Rental Income'!$DH$26:$DL$65="Complete")=2,ROW('Rental Income'!$B$26:$B$65)-ROW('Rental Income'!$B$26)+1),'Rental Income'!BW81),1),"") ->  | AX414: =IFERROR(INDEX('Rental Income'!$BP$26:$BP$65,SMALL(IF(('Rental Income'!$B$26:$B$65<>"")+('Rental Income'!$DH$26:$DL$65="Complete")=2,ROW('Rental Income'!$B$26:$B$65)-ROW('Rental Income'!$B$26)+1),'Rental Income'!BW81),1),"") -> 
B416: =IFERROR(INDEX('Rental Income'!$B$26:$B$65,SMALL(IF(('Rental Income'!$B$26:$B$65<>"")+('Rental Income'!$DH$26:$DL$65="Complete")=2,ROW('Rental Income'!$B$26:$B$65)-ROW('Rental Income'!$B$26)+1),'Rental Income'!BW82),1),"") ->  | AX416: =IFERROR(INDEX('Rental Income'!$BP$26:$BP$65,SMALL(IF(('Rental Income'!$B$26:$B$65<>"")+('Rental Income'!$DH$26:$DL$65="Complete")=2,ROW('Rental Income'!$B$26:$B$65)-ROW('Rental Income'!$B$26)+1),'Rental Income'!BW82),1),"") -> 
B418: =IFERROR(INDEX('Rental Income'!$B$26:$B$65,SMALL(IF(('Rental Income'!$B$26:$B$65<>"")+('Rental Income'!$DH$26:$DL$65="Complete")=2,ROW('Rental Income'!$B$26:$B$65)-ROW('Rental Income'!$B$26)+1),'Rental Income'!BW83),1),"") ->  | AX418: =IFERROR(INDEX('Rental Income'!$BP$26:$BP$65,SMALL(IF(('Rental Income'!$B$26:$B$65<>"")+('Rental Income'!$DH$26:$DL$65="Complete")=2,ROW('Rental Income'!$B$26:$B$65)-ROW('Rental Income'!$B$26)+1),'Rental Income'!BW83),1),"") -> 
B420: =IFERROR(INDEX('Rental Income'!$B$26:$B$65,SMALL(IF(('Rental Income'!$B$26:$B$65<>"")+('Rental Income'!$DH$26:$DL$65="Complete")=2,ROW('Rental Income'!$B$26:$B$65)-ROW('Rental Income'!$B$26)+1),'Rental Income'!BW84),1),"") ->  | AX420: =IFERROR(INDEX('Rental Income'!$BP$26:$BP$65,SMALL(IF(('Rental Income'!$B$26:$B$65<>"")+('Rental Income'!$DH$26:$DL$65="Complete")=2,ROW('Rental Income'!$B$26:$B$65)-ROW('Rental Income'!$B$26)+1),'Rental Income'!BW84),1),"") -> 
B422: =IFERROR(INDEX('Rental Income'!$B$26:$B$65,SMALL(IF(('Rental Income'!$B$26:$B$65<>"")+('Rental Income'!$DH$26:$DL$65="Complete")=2,ROW('Rental Income'!$B$26:$B$65)-ROW('Rental Income'!$B$26)+1),'Rental Income'!BW85),1),"") ->  | AX422: =IFERROR(INDEX('Rental Income'!$BP$26:$BP$65,SMALL(IF(('Rental Income'!$B$26:$B$65<>"")+('Rental Income'!$DH$26:$DL$65="Complete")=2,ROW('Rental Income'!$B$26:$B$65)-ROW('Rental Income'!$B$26)+1),'Rental Income'!BW85),1),"") -> 
B424: =IFERROR(INDEX('Rental Income'!$B$26:$B$65,SMALL(IF(('Rental Income'!$B$26:$B$65<>"")+('Rental Income'!$DH$26:$DL$65="Complete")=2,ROW('Rental Income'!$B$26:$B$65)-ROW('Rental Income'!$B$26)+1),'Rental Income'!BW86),1),"") ->  | AX424: =IFERROR(INDEX('Rental Income'!$BP$26:$BP$65,SMALL(IF(('Rental Income'!$B$26:$B$65<>"")+('Rental Income'!$DH$26:$DL$65="Complete")=2,ROW('Rental Income'!$B$26:$B$65)-ROW('Rental Income'!$B$26)+1),'Rental Income'!BW86),1),"") -> 
B426: =IFERROR(INDEX('Rental Income'!$B$26:$B$65,SMALL(IF(('Rental Income'!$B$26:$B$65<>"")+('Rental Income'!$DH$26:$DL$65="Complete")=2,ROW('Rental Income'!$B$26:$B$65)-ROW('Rental Income'!$B$26)+1),'Rental Income'!BW87),1),"") ->  | AX426: =IFERROR(INDEX('Rental Income'!$BP$26:$BP$65,SMALL(IF(('Rental Income'!$B$26:$B$65<>"")+('Rental Income'!$DH$26:$DL$65="Complete")=2,ROW('Rental Income'!$B$26:$B$65)-ROW('Rental Income'!$B$26)+1),'Rental Income'!BW87),1),"") -> 
B428: =IFERROR(INDEX('Rental Income'!$B$26:$B$65,SMALL(IF(('Rental Income'!$B$26:$B$65<>"")+('Rental Income'!$DH$26:$DL$65="Complete")=2,ROW('Rental Income'!$B$26:$B$65)-ROW('Rental Income'!$B$26)+1),'Rental Income'!BW88),1),"") ->  | AX428: =IFERROR(INDEX('Rental Income'!$BP$26:$BP$65,SMALL(IF(('Rental Income'!$B$26:$B$65<>"")+('Rental Income'!$DH$26:$DL$65="Complete")=2,ROW('Rental Income'!$B$26:$B$65)-ROW('Rental Income'!$B$26)+1),'Rental Income'!BW88),1),"") -> 
B430: =IFERROR(INDEX('Rental Income'!$B$26:$B$65,SMALL(IF(('Rental Income'!$B$26:$B$65<>"")+('Rental Income'!$DH$26:$DL$65="Complete")=2,ROW('Rental Income'!$B$26:$B$65)-ROW('Rental Income'!$B$26)+1),'Rental Income'!BW89),1),"") ->  | AX430: =IFERROR(INDEX('Rental Income'!$BP$26:$BP$65,SMALL(IF(('Rental Income'!$B$26:$B$65<>"")+('Rental Income'!$DH$26:$DL$65="Complete")=2,ROW('Rental Income'!$B$26:$B$65)-ROW('Rental Income'!$B$26)+1),'Rental Income'!BW89),1),"") -> 
B432: =IFERROR(INDEX('Rental Income'!$B$26:$B$65,SMALL(IF(('Rental Income'!$B$26:$B$65<>"")+('Rental Income'!$DH$26:$DL$65="Complete")=2,ROW('Rental Income'!$B$26:$B$65)-ROW('Rental Income'!$B$26)+1),'Rental Income'!BW90),1),"") ->  | AX432: =IFERROR(INDEX('Rental Income'!$BP$26:$BP$65,SMALL(IF(('Rental Income'!$B$26:$B$65<>"")+('Rental Income'!$DH$26:$DL$65="Complete")=2,ROW('Rental Income'!$B$26:$B$65)-ROW('Rental Income'!$B$26)+1),'Rental Income'!BW90),1),"") -> 
B434: =IFERROR(INDEX('Rental Income'!$B$26:$B$65,SMALL(IF(('Rental Income'!$B$26:$B$65<>"")+('Rental Income'!$DH$26:$DL$65="Complete")=2,ROW('Rental Income'!$B$26:$B$65)-ROW('Rental Income'!$B$26)+1),'Rental Income'!BW91),1),"") ->  | AX434: =IFERROR(INDEX('Rental Income'!$BP$26:$BP$65,SMALL(IF(('Rental Income'!$B$26:$B$65<>"")+('Rental Income'!$DH$26:$DL$65="Complete")=2,ROW('Rental Income'!$B$26:$B$65)-ROW('Rental Income'!$B$26)+1),'Rental Income'!BW91),1),"") -> 
AX437: Scaling | BJ437: =VLOOKUP(Assess_RentShade,'Change Page'!M8:N9,2,FALSE) -> 0.8
AX440: Discounted rent | BJ440: =SUM('Rental Income'!CC26:DF65)*Assess_RentShading -> 0
B443: Monthly outgoings
B446: New loans | N446: Do you require a Bridging Loan?
Z447: Is it ICAP or IO?
B449: Buffer | N449: No | Z449: IO
B451: =Buffer -> 0.025
N453: New loan amount | Y453: Final Rate | AF453: MCAR | AM453: Term (or EAL flag) | AV453: IO term | BC453: Monthly fee | BJ453: Repayments
AF455: =Benchmark -> 0.0535 | AM455: 1 | BJ455: =IF(Assess_ICAP="ICAP",0,CD455) -> 0 | BX455: Bridging IO | CD455: =IFERROR(ROUNDDOWN(N455*(MAX(Y455+Buffer,Benchmark)/365)*31+BC455,0),"Error") -> 0
AF457: =Benchmark -> 0.0535 | AM457: 30 | BJ457: =IFERROR(ROUNDDOWN(IF(AM457="EAL",PMT((MAX(Y457+$B$451,AF457)/12),(20)*12,-N457)+BC457,IF(AM457=AV457,PMT((MAX(Y457+$B$451,AF457)/12),(AM457)*12,-N457)+BC457,PMT((MAX(Y457+$B$451,AF457)/12),(AM457-AV457)*12,-N457)+BC457)),0),"") -> 0
AF459: =Benchmark -> 0.0535 | AM459: 30 | BJ459: =IFERROR(ROUNDDOWN(IF(AM459="EAL",PMT((MAX(Y459+$B$451,AF459)/12),(20)*12,-N459)+BC459,IF(AM459=AV459,PMT((MAX(Y459+$B$451,AF459)/12),(AM459)*12,-N459)+BC459,PMT((MAX(Y459+$B$451,AF459)/12),(AM459-AV459)*12,-N459)+BC459)),0),"") -> 0
AF461: =Benchmark -> 0.0535 | AM461: 30 | BJ461: =IFERROR(ROUNDDOWN(IF(AM461="EAL",PMT((MAX(Y461+$B$451,AF461)/12),(20)*12,-N461)+BC461,IF(AM461=AV461,PMT((MAX(Y461+$B$451,AF461)/12),(AM461)*12,-N461)+BC461,PMT((MAX(Y461+$B$451,AF461)/12),(AM461-AV461)*12,-N461)+BC461)),0),"") -> 0
AF463: =Benchmark -> 0.0535 | AM463: 30 | BJ463: =IFERROR(ROUNDDOWN(IF(AM463="EAL",PMT((MAX(Y463+$B$451,AF463)/12),(20)*12,-N463)+BC463,IF(AM463=AV463,PMT((MAX(Y463+$B$451,AF463)/12),(AM463)*12,-N463)+BC463,PMT((MAX(Y463+$B$451,AF463)/12),(AM463-AV463)*12,-N463)+BC463)),0),"") -> 0
AF465: =Benchmark -> 0.0535 | AM465: 30 | BJ465: =IFERROR(ROUNDDOWN(IF(AM465="EAL",PMT((MAX(Y465+$B$451,AF465)/12),(20)*12,-N465)+BC465,IF(AM465=AV465,PMT((MAX(Y465+$B$451,AF465)/12),(AM465)*12,-N465)+BC465,PMT((MAX(Y465+$B$451,AF465)/12),(AM465-AV465)*12,-N465)+BC465)),0),"") -> 0
AF467: =Benchmark -> 0.0535 | AM467: 30 | BJ467: =IFERROR(ROUNDDOWN(IF(AM467="EAL",PMT((MAX(Y467+$B$451,AF467)/12),(20)*12,-N467)+BC467,IF(AM467=AV467,PMT((MAX(Y467+$B$451,AF467)/12),(AM467)*12,-N467)+BC467,PMT((MAX(Y467+$B$451,AF467)/12),(AM467-AV467)*12,-N467)+BC467)),0),"") -> 0
AF469: =Benchmark -> 0.0535 | AM469: 30 | BJ469: =IFERROR(ROUNDDOWN(IF(AM469="EAL",PMT((MAX(Y469+$B$451,AF469)/12),(20)*12,-N469)+BC469,IF(AM469=AV469,PMT((MAX(Y469+$B$451,AF469)/12),(AM469)*12,-N469)+BC469,PMT((MAX(Y469+$B$451,AF469)/12),(AM469-AV469)*12,-N469)+BC469)),0),"") -> 0
AF471: =Benchmark -> 0.0535 | AM471: 30 | BJ471: =IFERROR(ROUNDDOWN(IF(AM471="EAL",PMT((MAX(Y471+$B$451,AF471)/12),(20)*12,-N471)+BC471,IF(AM471=AV471,PMT((MAX(Y471+$B$451,AF471)/12),(AM471)*12,-N471)+BC471,PMT((MAX(Y471+$B$451,AF471)/12),(AM471-AV471)*12,-N471)+BC471)),0),"") -> 0
AF473: =Benchmark -> 0.0535 | AM473: 30 | BJ473: =IFERROR(ROUNDDOWN(IF(AM473="EAL",PMT((MAX(Y473+$B$451,AF473)/12),(20)*12,-N473)+BC473,IF(AM473=AV473,PMT((MAX(Y473+$B$451,AF473)/12),(AM473)*12,-N473)+BC473,PMT((MAX(Y473+$B$451,AF473)/12),(AM473-AV473)*12,-N473)+BC473)),0),"") -> 0
AF475: =Benchmark -> 0.0535 | AM475: 30 | BJ475: =IFERROR(ROUNDDOWN(IF(AM475="EAL",PMT((MAX(Y475+$B$451,AF475)/12),(20)*12,-N475)+BC475,IF(AM475=AV475,PMT((MAX(Y475+$B$451,AF475)/12),(AM475)*12,-N475)+BC475,PMT((MAX(Y475+$B$451,AF475)/12),(AM475-AV475)*12,-N475)+BC475)),0),"") -> 0
AF477: =Benchmark -> 0.0535 | AM477: 30 | BJ477: =IFERROR(ROUNDDOWN(IF(AM477="EAL",PMT((MAX(Y477+$B$451,AF477)/12),(20)*12,-N477)+BC477,IF(AM477=AV477,PMT((MAX(Y477+$B$451,AF477)/12),(AM477)*12,-N477)+BC477,PMT((MAX(Y477+$B$451,AF477)/12),(AM477-AV477)*12,-N477)+BC477)),0),"") -> 0
... 63 more rows

Sheet Other Calcs - Bridging (hidden)
A1: ` | G1: Serviceability Assesment Calculator | AI1: Other Calculators
BY3: ICAP used? | BZ3: =IF(AND(AE44<=0.7,CA3=1,AA31<>0),1,0) -> 0 | CA3: =IF(AE31="yes",1,0) -> 0
BY4: Factor | BZ4: =IF(AA31>12,"",IF(AA31=0,0,VLOOKUP(AA31,IntFactor,3,0))) -> 0
B5: Extra Calculators
BY6: =IF(AND(AA31>12,BZ3=1),0,1) -> 1 | CN6: =IF(AC31>12,"Max: 12 months!","") -> 
B7: Bridging Loan | L7: Area Conversion | V7: Guarantee Calc | AF7: STSL Repay. | AP7: LVR | AZ7: 2RM | BJ7: HEM
BU9: 73
B10: Existing Lending | T10: The Bridging Period | AO10: The Residual Mortgage | BI10: Interest rate: | BY10: =SUM(AY15,AY172,BY19) -> 0 | BZ10: =IF(BY10=BY20+BS12,"correct","error") -> correct | CB10: Month | CC10: Int rate | CD10: IntFactors
CB11: 1 | CC11: =$BI$12 -> 0.0557 | CD11: =CB11*CC11/12 -> 0.004641666667
B12: Current Security held by Westpac: | T12: Costs to Purchase a New House: | AO12: Selling the Old House: | BI12: 0.0557 | CB12: 2 | CC12: =$BI$12 -> 0.0557 | CD12: =CB12*CC12/12 -> 0.009283333333
CB13: 3 | CC13: =$BI$12 -> 0.0557 | CD13: =CB13*CC13/12 -> 0.013925
CB14: 4 | CC14: =$BI$12+1% -> 0.0657 | CD14: =SUM(3*CC$14/12,(CB14-3)*CC14/12) -> 0.0219
B15: Security 1 | T15: Contract Price | AO15: Sale Price | CB15: 5 | CC15: =$BI$12+1% -> 0.0657 | CD15: =SUM(3*CC$14/12,(CB15-3)*CC15/12) -> 0.027375
CB16: 6 | CC16: 0.0657 | CD16: 0.03285
CB17: 7 | CC17: 0.0657 | CD17: 0.038325
B18: Security 2 | T18: Purchase Costs | AO18: Agent's Fees | CB18: 8 | CC18: 0.0657 | CD18: 0.0438
BY19: =IF(BY6=0,"",BY20-SUM(AY21)) -> 0 | BZ19: Residual Debt | CB19: 9 | CC19: 0.0657 | CD19: 0.049275
BY20: =AE38 -> 0 | BZ20: Peak Bridging | CB20: 10 | CC20: 0.0657 | CD20: 0.05475
B21: Security 3 | T21: Any Extra Funds | AO21: Maximum Bridging Loan Amount | AY21: =IF(BI12="","Enter Interest Rate Above",IF(AY15="","",IF(BY20<BY22,BY20,IF(BZ3=0,BY28,IF(BY22<BY24,BY22,BY24))))) ->  | CB21: 11 | CC21: 0.0657 | CD21: 0.060225
BY22: =IF(AY15="","",FLOOR(BY27*0.9,1000)) ->  | BZ22: GOE Max Bridging Amt | CB22: 12 | CC22: 0.0657 | CD22: 0.0657
AE23: =SUM(AE15,AE18,AE21) -> 0 | BY23: =IF(BY6=0,"",CEILING(BY22*BZ4,1000)) ->  | BZ23: GOE ICAPint
B24: Current Lending secured by the Above Properties: | T24: Any Extra Contribution: | AO24: Max ICAP Interest | AY24: =IF(BI12="","Enter Interest Rate Above",IF(AND(CA3=1,BZ3=1),IF(AY15=BY22,BY23,BY25),0)) -> 0 | BY24: =IF(BY6=0,"",FLOOR(BY28/(1+BZ4),1000)) -> 0 | BZ24: Clearing MBLA
BY25: =IF(BY6=0,"",CEILING(BY24*BZ4,1000)) -> 0 | BZ25: Clearing ICAPint
B26: Loan 1* | T26: Cash Contribution
AO27: Residual Loan Amount | AY27: =IF(BI12="","Enter Interest Rate Above",AY38) ->  | BY27: =AY15 -> 0 | BZ27: Sale Price
BY28: =AY15-AY18 -> 0 | BZ28: Net Sale Proceeds
B29: Loan 2* | T29: How Long Will the Bridging Period Last? | AE29: If ICAP available, do you want it??
T31: In months: | AD31: =IF(AND(AC31>12,BZ3=1),0,1) -> 1
B32: Loan 3*
B35: * These must be cleared with this application
B38: Starting Loans | L38: =IF(SUM(L26,L29,L32)=0,0,SUM(L26,L29,L32)) -> 0 | T38: Peak Debt | AE38: =SUM(AE23,L38)-AE26 -> 0 | AP38: End Debt | AY38: =IF(AY15="","",IF(BY19<0,0,BY19)) -> 
B41: Starting Security | L41: =SUM(L15,L18,L21) -> 0 | T41: Peak Security | AE41: =SUM(AE15,L41) -> 0 | AP41: End Security | AY41: =AE15 -> 0
B44: Starting LVR | L44: =IF(ISERROR(L38/L41),"-",(L38/L41)) -> - | T44: Peak LVR | AE44: =IF(AE41>0,AE38/AE41,"-") -> - | AP44: End LVR | AY44: =IF(ISERROR(AY38/AY41),"-",AY38/AY41) -> -
T47: =IF(AE15=0,"",IF(AA31>12,P54,IF(AE44>0.95,P54,IF(AE44>0.8,P53,IF(AE44>0.7,P52,P51))))) -> 
P51: Bridging with ICAP Available
P52: Bridging (no ICAP) Available
P53: Bridging with MI may be available
P54: Deal is outside Policy

Sheet Other Calcs - Area Conversion (hidden)
G1: Serviceability Assesment Calculator | AI1: Other Calculators
B5: Extra Calculators
B7: Bridging Loan | L7: Area Conversion | V7: Guarantee Calc | AF7: STSL Repay. | AP7: LVR | AZ7: 2RM | BJ7: HEM
BU9: 73
C10: Acres | N10: TO | Q10: Hectares
Q12: =C12*0.4047 -> 0
C15: Hectares | N15: TO | Q15: Acres
Q17: =C17*2.4709661 -> 0
C20: Acres | N20: TO | Q20: Sq Metres
Q22: =C22*4047 -> 0
C25: Mile | N25: TO | Q25: Km
Q27: =C27*1.6093 -> 0
C30: Sq Metres | N30: TO | Q30: Squares
Q32: =C32/9 -> 0
C35: Squares | N35: TO | Q35: Sq Metres
Q37: =C37*9 -> 0
C40: Sq Metres | N40: TO | Q40: Hectares
Q42: =SUM((C42/4047)/2.470966) -> 0

Sheet Other Calcs - Guarantee (hidden)
G1: Serviceability Assesment Calculator | AI1: Other Calculators
B5: Extra Calculators
B7: Bridging Loan | L7: Area Conversion | V7: Guarantee Calc | AF7: STSL Repay. | AP7: LVR | AZ7: 2RM | BJ7: HEM
BU9: 73
B10: NON GUARANTEE | AH10: NON GUARANTEE
B12: PROPERTY A | AH12: PROPERTY B
B15: Market Value | AH15: Market Value
B18: Lending Value @ | Q18: 0.8 | W18: =W15*Q18 -> 0 | AH18: Lending Value @ | AW18: 0.8 | BC18: =BC15*AW18 -> 0
B21: Remaining liabilities | AH21: Remaining liabilities
B24: Lending Value available | W24: =W18-W21 -> 0 | AH24: Lending Value available | BC24: =BC18-BC21 -> 0
B28: GUARANTEE | AH28: GUARANTEE
B30: PROPERTY A | AH30: PROPERTY B
B33: Market Value | AH33: Market Value
B36: Lending Value @ | Q36: 0.8 | W36: =W33*Q36 -> 0 | AH36: Lending Value @ | AW36: 0.8 | BC36: =BC33*AW36 -> 0
B39: Remaining liabilities | AH39: Remaining liabilities
B42: Lending Value available | W42: =W36-W39 -> 0 | AH42: Lending Value available | BC42: =BC36-BC39 -> 0
B46: Note: No single guarantee is to represent more than 50% of the value of the guarantor's security
B49: NEW LOAN AMOUNT REQUESTED
B52: Minus remaining LV in non guarantee properties | AX52: =W24+BC24 -> 0
B55: LIMITED GUARANTEE AMOUNT* | AX55: =AX49-AX52 -> 0
B57: If unsupported gurarantee use same figure
B60: * NB - If your limited guarantee amount is greater than the Lending Value available from guarantee property refer to MLR/Credit to contact the Broker. If two guarantee properties being used as security, attempt to split the limited guarantee amount 50/50 or as close as possible (depending on lending value available).

Sheet Other Calcs - STSL Repay (hidden)
G1: Serviceability Assesment Calculator | AI1: Other Calculators
B5: Extra Calculators
B7: Bridging Loan | L7: Area Conversion | V7: Guarantee Calc | AF7: STSL Repay. | AP7: LVR | AZ7: 2RM | BJ7: HEM
BU9: 73
B10: Use this tool to calculate the liability repayment for all government study loans: HELP/VSL/SFSS/SSL/ABSTUDY SSL/TSL Click "Load Applicant" to import the income used to calculate.
B15: Select applicant from the drop-down list and enter TAXABLE income
B18: Applicant | AL18: Application Number | BD18: ='Serviceability Calculator'!Assess_AppNum -> Enter Number
J21: Enter Taxable income for the Financial Year $ | AB21: Rate to be applied to HELP repayment income % | AV21: Monthly Repayment
AB24: =LOOKUP(J24,'Change Page'!$A$37:$A$55,'Change Page'!$C$37:$C$55) -> 0 | AV24: =AB24*J24/12 -> 0
B27: Team Member Name:
V28: =username() -> M025250 | AL28: Date: | BD28: =NOW() -> 2019-11-19T16:18:20.780

Sheet Other Calcs - LVR (hidden)
G1: Serviceability Assesment Calculator | AI1: Other Calculators
B5: Extra Calculators
B7: Bridging Loan | L7: Area Conversion | V7: Guarantee Calc | AF7: STSL Repay. | AP7: LVR | AZ7: 2RM | BJ7: HEM
BU9: 73
B10: LVR CALCULATOR - to determine LVR | S10: LOAN AMOUNT CALCULATOR - to determine loan amount
F14: LOANS | L14: SECURITY | S14: LVR - required
B16: 1
S17: LOAN REQUESTED
B19: 2 | Y19: LOANS | AE19: SECURITY
R21: 1
B22: 3
R24: 2
B25: 4
R27: 3
B28: 5
R30: 4
B31: TOTAL | F31: =SUM(F16,F19,F22,F25,F28) -> 0 | L31: =SUM(L16,L19,L22,L25,L28) -> 0
R33: 5
B34: LVR | F34: =IFERROR(F31/L31,0) -> 0
R36: TOTAL | Y36: =SUM(Y21,Y24,Y27,Y30,Y33) -> 0 | AE36: =SUM(AE21,AE24,AE27,AE30,AE33) -> 0
S39: MAX. LOAN AMOUNT | AE39: =(AE36*AE14)-Y36 -> 0
S42: DIFFERENCE | AE42: =AE17-AE39 -> 0

Sheet Other Calcs - 2RM (hidden)
G1: Serviceability Assesment Calculator | AI1: Other Calculators
B5: Extra Calculators
B7: Bridging Loan | L7: Area Conversion | V7: Guarantee Calc | AF7: STSL Repay. | AP7: LVR | AZ7: 2RM | BJ7: HEM
BU9: 73
C10: TOTAL MARKET VALUE
C13: LVR % | Y13: =(Y10*Q13) -> 0
C16: LOAN/S O/S | Y16: =Q16 -> 0
C19: 20% BUFFER | Y19: =((Q16/100)*20) -> 0
C22: LENDING VALUE AVAILABLE | Y22: =(Y13-Y16-Y19) -> 0
C25: SECURITY VALUE AVAILABLE | Y25: =IF(ISERROR((Y22)/Q13),0,(Y22)/Q13) -> 0
C27: (to be entered in Security Value on Serviceability Spreadsheet)
C28: Value on Serviceability Spreadsheet)

Sheet Other Calcs - HEM (hidden)
G1: Serviceability Assesment Calculator | AI1: Other Calculators
B5: Extra Calculators
B7: Bridging Loan | L7: Area Conversion | V7: Guarantee Calc | AF7: STSL Repay. | AP7: LVR | AZ7: 2RM | BJ7: HEM
BU9: 73
B10: Effective Date | G10: ='HEM Working'!B1 -> 2019-08-17
C11: Table 1 (Single) | K11: Annual Income
C12: Location, Dependents | G12: Gross Income | K12: ='HEM Working'!G4 -> $21000 or less | P12: ='HEM Working'!H4 -> $21001 to $32000 | T12: ='HEM Working'!I4 -> $32001 to $42000 | X12: ='HEM Working'!J4 -> $42001 to $53000 | AB12: ='HEM Working'!K4 -> $53001 to $63000 | AF12: ='HEM Working'!L4 -> $63001 to $85000 | AJ12: ='HEM Working'!M4 -> $85001 to $106000 | AN12: ='HEM Working'!N4 -> $106001 to $127000 | AR12: ='HEM Working'!O4 -> $127001 to $148000 | AV12: ='HEM Working'!P4 -> $148001 to $169000 | AZ12: ='HEM Working'!Q4 -> $169001 to $211000 | BD12: ='HEM Working'!R4 -> $211001 to $264000 | BH12: ='HEM Working'!S4 -> $264001 to $317000 | BL12: ='HEM Working'!T4 -> $317001 to $347000 | BP12: ='HEM Working'!U4 -> $347001 to $377000 | BT12: ='HEM Working'!V4 -> $377001 to $407000 | BX12: ='HEM Working'!W4 -> $407001 to $437000 | CB12: ='HEM Working'!X4 -> $437001 to $467000 | CF12: ='HEM Working'!Y4 -> $467001 to $497000 | CJ12: ='HEM Working'!Z4 -> $497001 to $528000 | CN12: ='HEM Working'!AA4 -> $528001 or more
C14: Rest of Australia 0 | K14: ='HEM Working'!G5 -> 1076 | P14: ='HEM Working'!H5 -> 1143 | T14: ='HEM Working'!I5 -> 1205 | X14: ='HEM Working'!J5 -> 1294 | AB14: ='HEM Working'!K5 -> 1457 | AF14: ='HEM Working'!L5 -> 1668 | AJ14: ='HEM Working'!M5 -> 1979 | AN14: ='HEM Working'!N5 -> 2206 | AR14: ='HEM Working'!O5 -> 2614 | AV14: ='HEM Working'!P5 -> 2775 | AZ14: ='HEM Working'!Q5 -> 2922 | BD14: ='HEM Working'!R5 -> 3354 | BH14: ='HEM Working'!S5 -> 3930 | BL14: ='HEM Working'!T5 -> 4090 | BP14: ='HEM Working'!U5 -> 4090 | BT14: ='HEM Working'!V5 -> 4090 | BX14: ='HEM Working'!W5 -> 4090 | CB14: ='HEM Working'!X5 -> 4090 | CF14: ='HEM Working'!Y5 -> 4090 | CJ14: ='HEM Working'!Z5 -> 4090 | CN14: Apply new dynamic calculation
C15: Rest of Australia 1 | K15: ='HEM Working'!G6 -> 1543 | P15: ='HEM Working'!L6 -> 2072 | T15: ='HEM Working'!M6 -> 2384 | X15: ='HEM Working'!N6 -> 2613 | AB15: ='HEM Working'!O6 -> 3024 | AF15: ='HEM Working'!P6 -> 3185 | AJ15: ='HEM Working'!M6 -> 2384 | AN15: ='HEM Working'!N6 -> 2613 | AR15: ='HEM Working'!O6 -> 3024 | AV15: ='HEM Working'!P6 -> 3185 | AZ15: ='HEM Working'!Q6 -> 3334 | BD15: ='HEM Working'!R6 -> 3768 | BH15: ='HEM Working'!S6 -> 4348 | BL15: ='HEM Working'!T6 -> 4509 | BP15: ='HEM Working'!U6 -> 4509 | BT15: ='HEM Working'!V6 -> 4509 | BX15: ='HEM Working'!W6 -> 4509 | CB15: ='HEM Working'!X6 -> 4509 | CF15: ='HEM Working'!Y6 -> 4509 | CJ15: ='HEM Working'!Z6 -> 4509
C16: Rest of Australia 2 | K16: ='HEM Working'!G7 -> 1926 | P16: ='HEM Working'!L7 -> 2452 | T16: ='HEM Working'!M7 -> 2764 | X16: ='HEM Working'!N7 -> 2991 | AB16: ='HEM Working'!O7 -> 3401 | AF16: ='HEM Working'!P7 -> 3562 | AJ16: ='HEM Working'!M7 -> 2764 | AN16: ='HEM Working'!N7 -> 2991 | AR16: ='HEM Working'!O7 -> 3401 | AV16: ='HEM Working'!P7 -> 3562 | AZ16: ='HEM Working'!Q7 -> 3709 | BD16: ='HEM Working'!R7 -> 4143 | BH16: ='HEM Working'!S7 -> 4719 | BL16: ='HEM Working'!T7 -> 4880 | BP16: ='HEM Working'!U7 -> 4880 | BT16: ='HEM Working'!V7 -> 4880 | BX16: ='HEM Working'!W7 -> 4880 | CB16: ='HEM Working'!X7 -> 4880 | CF16: ='HEM Working'!Y7 -> 4880 | CJ16: ='HEM Working'!Z7 -> 4880
C17: Rest of Australia 3 | K17: ='HEM Working'!G8 -> 2374 | P17: ='HEM Working'!L8 -> 2838 | T17: ='HEM Working'!M8 -> 3149 | X17: ='HEM Working'!N8 -> 3376 | AB17: ='HEM Working'!O8 -> 3785 | AF17: ='HEM Working'!P8 -> 3946 | AJ17: ='HEM Working'!M8 -> 3149 | AN17: ='HEM Working'!N8 -> 3376 | AR17: ='HEM Working'!O8 -> 3785 | AV17: ='HEM Working'!P8 -> 3946 | AZ17: ='HEM Working'!Q8 -> 4093 | BD17: ='HEM Working'!R8 -> 4526 | BH17: ='HEM Working'!S8 -> 5102 | BL17: ='HEM Working'!T8 -> 5262 | BP17: ='HEM Working'!U8 -> 5262 | BT17: ='HEM Working'!V8 -> 5262 | BX17: ='HEM Working'!W8 -> 5262 | CB17: ='HEM Working'!X8 -> 5262 | CF17: ='HEM Working'!Y8 -> 5262 | CJ17: ='HEM Working'!Z8 -> 5262
C18: Rest of Australia 4 | K18: ='HEM Working'!G9 -> 2822 | P18: ='HEM Working'!L9 -> 3224 | T18: ='HEM Working'!M9 -> 3534 | X18: ='HEM Working'!N9 -> 3761 | AB18: ='HEM Working'!O9 -> 4169 | AF18: ='HEM Working'!P9 -> 4330 | AJ18: ='HEM Working'!M9 -> 3534 | AN18: ='HEM Working'!N9 -> 3761 | AR18: ='HEM Working'!O9 -> 4169 | AV18: ='HEM Working'!P9 -> 4330 | AZ18: ='HEM Working'!Q9 -> 4477 | BD18: ='HEM Working'!R9 -> 4909 | BH18: ='HEM Working'!S9 -> 5485 | BL18: ='HEM Working'!T9 -> 5644 | BP18: ='HEM Working'!U9 -> 5644 | BT18: ='HEM Working'!V9 -> 5644 | BX18: ='HEM Working'!W9 -> 5644 | CB18: ='HEM Working'!X9 -> 5644 | CF18: ='HEM Working'!Y9 -> 5644 | CJ18: ='HEM Working'!Z9 -> 5644
C19: Rest of Australia 5 | K19: ='HEM Working'!G10 -> 3270 | P19: ='HEM Working'!L10 -> 3610 | T19: ='HEM Working'!M10 -> 3919 | X19: ='HEM Working'!N10 -> 4146 | AB19: ='HEM Working'!O10 -> 4553 | AF19: ='HEM Working'!P10 -> 4714 | AJ19: ='HEM Working'!M10 -> 3919 | AN19: ='HEM Working'!N10 -> 4146 | AR19: ='HEM Working'!O10 -> 4553 | AV19: ='HEM Working'!P10 -> 4714 | AZ19: ='HEM Working'!Q10 -> 4861 | BD19: ='HEM Working'!R10 -> 5292 | BH19: ='HEM Working'!S10 -> 5868 | BL19: ='HEM Working'!T10 -> 6026 | BP19: ='HEM Working'!U10 -> 6026 | BT19: ='HEM Working'!V10 -> 6026 | BX19: ='HEM Working'!W10 -> 6026 | CB19: ='HEM Working'!X10 -> 6026 | CF19: ='HEM Working'!Y10 -> 6026 | CJ19: ='HEM Working'!Z10 -> 6026
C20: Rest of Australia 6 | K20: ='HEM Working'!G11 -> 3718 | P20: ='HEM Working'!L11 -> 3996 | T20: ='HEM Working'!M11 -> 4304 | X20: ='HEM Working'!N11 -> 4531 | AB20: ='HEM Working'!O11 -> 4937 | AF20: ='HEM Working'!P11 -> 5098 | AJ20: ='HEM Working'!M11 -> 4304 | AN20: ='HEM Working'!N11 -> 4531 | AR20: ='HEM Working'!O11 -> 4937 | AV20: ='HEM Working'!P11 -> 5098 | AZ20: ='HEM Working'!Q11 -> 5245 | BD20: ='HEM Working'!R11 -> 5675 | BH20: ='HEM Working'!S11 -> 6251 | BL20: ='HEM Working'!T11 -> 6408 | BP20: ='HEM Working'!U11 -> 6408 | BT20: ='HEM Working'!V11 -> 6408 | BX20: ='HEM Working'!W11 -> 6408 | CB20: ='HEM Working'!X11 -> 6408 | CF20: ='HEM Working'!Y11 -> 6408 | CJ20: ='HEM Working'!Z11 -> 6408
C21: Rest of Australia 7 | K21: ='HEM Working'!G12 -> 4166 | P21: ='HEM Working'!L12 -> 4382 | T21: ='HEM Working'!M12 -> 4689 | X21: ='HEM Working'!N12 -> 4916 | AB21: ='HEM Working'!O12 -> 5321 | AF21: ='HEM Working'!P12 -> 5482 | AJ21: ='HEM Working'!M12 -> 4689 | AN21: ='HEM Working'!N12 -> 4916 | AR21: ='HEM Working'!O12 -> 5321 | AV21: ='HEM Working'!P12 -> 5482 | AZ21: ='HEM Working'!Q12 -> 5629 | BD21: ='HEM Working'!R12 -> 6058 | BH21: ='HEM Working'!S12 -> 6634 | BL21: ='HEM Working'!T12 -> 6790 | BP21: ='HEM Working'!U12 -> 6790 | BT21: ='HEM Working'!V12 -> 6790 | BX21: ='HEM Working'!W12 -> 6790 | CB21: ='HEM Working'!X12 -> 6790 | CF21: ='HEM Working'!Y12 -> 6790 | CJ21: ='HEM Working'!Z12 -> 6790
C22: Rest of Australia 8 | K22: ='HEM Working'!G13 -> 4614 | P22: ='HEM Working'!L13 -> 4768 | T22: ='HEM Working'!M13 -> 5074 | X22: ='HEM Working'!N13 -> 5301 | AB22: ='HEM Working'!O13 -> 5705 | AF22: ='HEM Working'!P13 -> 5866 | AJ22: ='HEM Working'!M13 -> 5074 | AN22: ='HEM Working'!N13 -> 5301 | AR22: ='HEM Working'!O13 -> 5705 | AV22: ='HEM Working'!P13 -> 5866 | AZ22: ='HEM Working'!Q13 -> 6013 | BD22: ='HEM Working'!R13 -> 6441 | BH22: ='HEM Working'!S13 -> 7017 | BL22: ='HEM Working'!T13 -> 7172 | BP22: ='HEM Working'!U13 -> 7172 | BT22: ='HEM Working'!V13 -> 7172 | BX22: ='HEM Working'!W13 -> 7172 | CB22: ='HEM Working'!X13 -> 7172 | CF22: ='HEM Working'!Y13 -> 7172 | CJ22: ='HEM Working'!Z13 -> 7172
C23: Rest of Australia 9 | K23: ='HEM Working'!G14 -> 5062 | P23: ='HEM Working'!L14 -> 5154 | T23: ='HEM Working'!M14 -> 5459 | X23: ='HEM Working'!N14 -> 5686 | AB23: ='HEM Working'!O14 -> 6089 | AF23: ='HEM Working'!P14 -> 6250 | AJ23: ='HEM Working'!M14 -> 5459 | AN23: ='HEM Working'!N14 -> 5686 | AR23: ='HEM Working'!O14 -> 6089 | AV23: ='HEM Working'!P14 -> 6250 | AZ23: ='HEM Working'!Q14 -> 6397 | BD23: ='HEM Working'!R14 -> 6824 | BH23: ='HEM Working'!S14 -> 7400 | BL23: ='HEM Working'!T14 -> 7554 | BP23: ='HEM Working'!U14 -> 7554 | BT23: ='HEM Working'!V14 -> 7554 | BX23: ='HEM Working'!W14 -> 7554 | CB23: ='HEM Working'!X14 -> 7554 | CF23: ='HEM Working'!Y14 -> 7554 | CJ23: ='HEM Working'!Z14 -> 7554
C24: Rest of Australia 10+ | K24: ='HEM Working'!G15 -> 5510 | P24: ='HEM Working'!L15 -> 5540 | T24: ='HEM Working'!M15 -> 5844 | X24: ='HEM Working'!N15 -> 6071 | AB24: ='HEM Working'!O15 -> 6473 | AF24: ='HEM Working'!P15 -> 6634 | AJ24: ='HEM Working'!M15 -> 5844 | AN24: ='HEM Working'!N15 -> 6071 | AR24: ='HEM Working'!O15 -> 6473 | AV24: ='HEM Working'!P15 -> 6634 | AZ24: ='HEM Working'!Q15 -> 6781 | BD24: ='HEM Working'!R15 -> 7207 | BH24: ='HEM Working'!S15 -> 7783 | BL24: ='HEM Working'!T15 -> 7936 | BP24: ='HEM Working'!U15 -> 7936 | BT24: ='HEM Working'!V15 -> 7936 | BX24: ='HEM Working'!W15 -> 7936 | CB24: ='HEM Working'!X15 -> 7936 | CF24: ='HEM Working'!Y15 -> 7936 | CJ24: ='HEM Working'!Z15 -> 7936
C25: Remote Locations 0 | K25: ='HEM Working'!G16 -> 1237 | P25: ='HEM Working'!L16 -> 1918 | T25: ='HEM Working'!M16 -> 2276 | X25: ='HEM Working'!N16 -> 2537 | AB25: ='HEM Working'!O16 -> 3006 | AF25: ='HEM Working'!P16 -> 3191 | AJ25: ='HEM Working'!M16 -> 2276 | AN25: ='HEM Working'!N16 -> 2537 | AR25: ='HEM Working'!O16 -> 3006 | AV25: ='HEM Working'!P16 -> 3191 | AZ25: ='HEM Working'!Q16 -> 3360 | BD25: ='HEM Working'!R16 -> 3857 | BH25: ='HEM Working'!S16 -> 4520 | BL25: ='HEM Working'!T16 -> 4704 | BP25: ='HEM Working'!U16 -> 4704 | BT25: ='HEM Working'!V16 -> 4704 | BX25: ='HEM Working'!W16 -> 4704 | CB25: ='HEM Working'!X16 -> 4704 | CF25: ='HEM Working'!Y16 -> 4704 | CJ25: ='HEM Working'!Z16 -> 4704 | CN25: Apply new dynamic calculation
C26: Remote Locations 1 | K26: ='HEM Working'!G17 -> 1774 | P26: ='HEM Working'!L17 -> 2383 | T26: ='HEM Working'!M17 -> 2742 | X26: ='HEM Working'!N17 -> 3005 | AB26: ='HEM Working'!O17 -> 3478 | AF26: ='HEM Working'!P17 -> 3663 | AJ26: ='HEM Working'!M17 -> 2742 | AN26: ='HEM Working'!N17 -> 3005 | AR26: ='HEM Working'!O17 -> 3478 | AV26: ='HEM Working'!P17 -> 3663 | AZ26: ='HEM Working'!Q17 -> 3834 | BD26: ='HEM Working'!R17 -> 4333 | BH26: ='HEM Working'!S17 -> 5000 | BL26: ='HEM Working'!T17 -> 5185 | BP26: ='HEM Working'!U17 -> 5185 | BT26: ='HEM Working'!V17 -> 5185 | BX26: ='HEM Working'!W17 -> 5185 | CB26: ='HEM Working'!X17 -> 5185 | CF26: ='HEM Working'!Y17 -> 5185 | CJ26: ='HEM Working'!Z17 -> 5185
C27: Remote Locations 2 | K27: ='HEM Working'!G18 -> 2215 | P27: ='HEM Working'!L18 -> 2820 | T27: ='HEM Working'!M18 -> 3179 | X27: ='HEM Working'!N18 -> 3440 | AB27: ='HEM Working'!O18 -> 3911 | AF27: ='HEM Working'!P18 -> 4096 | AJ27: ='HEM Working'!M18 -> 3179 | AN27: ='HEM Working'!N18 -> 3440 | AR27: ='HEM Working'!O18 -> 3911 | AV27: ='HEM Working'!P18 -> 4096 | AZ27: ='HEM Working'!Q18 -> 4265 | BD27: ='HEM Working'!R18 -> 4764 | BH27: ='HEM Working'!S18 -> 5427 | BL27: ='HEM Working'!T18 -> 5612 | BP27: ='HEM Working'!U18 -> 5612 | BT27: ='HEM Working'!V18 -> 5612 | BX27: ='HEM Working'!W18 -> 5612 | CB27: ='HEM Working'!X18 -> 5612 | CF27: ='HEM Working'!Y18 -> 5612 | CJ27: ='HEM Working'!Z18 -> 5612
C28: Remote Locations 3 | K28: ='HEM Working'!G19 -> 2730 | P28: ='HEM Working'!L19 -> 3264 | T28: ='HEM Working'!M19 -> 3621 | X28: ='HEM Working'!N19 -> 3882 | AB28: ='HEM Working'!O19 -> 4353 | AF28: ='HEM Working'!P19 -> 4538 | AJ28: ='HEM Working'!M19 -> 3621 | AN28: ='HEM Working'!N19 -> 3882 | AR28: ='HEM Working'!O19 -> 4353 | AV28: ='HEM Working'!P19 -> 4538 | AZ28: ='HEM Working'!Q19 -> 4707 | BD28: ='HEM Working'!R19 -> 5205 | BH28: ='HEM Working'!S19 -> 5867 | BL28: ='HEM Working'!T19 -> 6051 | BP28: ='HEM Working'!U19 -> 6051 | BT28: ='HEM Working'!V19 -> 6051 | BX28: ='HEM Working'!W19 -> 6051 | CB28: ='HEM Working'!X19 -> 6051 | CF28: ='HEM Working'!Y19 -> 6051 | CJ28: ='HEM Working'!Z19 -> 6051
C29: Remote Locations 4 | K29: ='HEM Working'!G20 -> 3245 | P29: ='HEM Working'!L20 -> 3708 | T29: ='HEM Working'!M20 -> 4064 | X29: ='HEM Working'!N20 -> 4325 | AB29: ='HEM Working'!O20 -> 4794 | AF29: ='HEM Working'!P20 -> 4980 | AJ29: ='HEM Working'!M20 -> 4064 | AN29: ='HEM Working'!N20 -> 4325 | AR29: ='HEM Working'!O20 -> 4794 | AV29: ='HEM Working'!P20 -> 4980 | AZ29: ='HEM Working'!Q20 -> 5149 | BD29: ='HEM Working'!R20 -> 5645 | BH29: ='HEM Working'!S20 -> 6308 | BL29: ='HEM Working'!T20 -> 6491 | BP29: ='HEM Working'!U20 -> 6491 | BT29: ='HEM Working'!V20 -> 6491 | BX29: ='HEM Working'!W20 -> 6491 | CB29: ='HEM Working'!X20 -> 6491 | CF29: ='HEM Working'!Y20 -> 6491 | CJ29: ='HEM Working'!Z20 -> 6491
C30: Remote Locations 5 | K30: ='HEM Working'!G21 -> 3761 | P30: ='HEM Working'!L21 -> 4152 | T30: ='HEM Working'!M21 -> 4507 | X30: ='HEM Working'!N21 -> 4768 | AB30: ='HEM Working'!O21 -> 5236 | AF30: ='HEM Working'!P21 -> 5421 | AJ30: ='HEM Working'!M21 -> 4507 | AN30: ='HEM Working'!N21 -> 4768 | AR30: ='HEM Working'!O21 -> 5236 | AV30: ='HEM Working'!P21 -> 5421 | AZ30: ='HEM Working'!Q21 -> 5590 | BD30: ='HEM Working'!R21 -> 6086 | BH30: ='HEM Working'!S21 -> 6748 | BL30: ='HEM Working'!T21 -> 6930 | BP30: ='HEM Working'!U21 -> 6930 | BT30: ='HEM Working'!V21 -> 6930 | BX30: ='HEM Working'!W21 -> 6930 | CB30: ='HEM Working'!X21 -> 6930 | CF30: ='HEM Working'!Y21 -> 6930 | CJ30: ='HEM Working'!Z21 -> 6930
C31: Remote Locations 6 | K31: ='HEM Working'!G22 -> 4276 | P31: ='HEM Working'!L22 -> 4595 | T31: ='HEM Working'!M22 -> 4950 | X31: ='HEM Working'!N22 -> 5211 | AB31: ='HEM Working'!O22 -> 5678 | AF31: ='HEM Working'!P22 -> 5863 | AJ31: ='HEM Working'!M22 -> 4950 | AN31: ='HEM Working'!N22 -> 5211 | AR31: ='HEM Working'!O22 -> 5678 | AV31: ='HEM Working'!P22 -> 5863 | AZ31: ='HEM Working'!Q22 -> 6032 | BD31: ='HEM Working'!R22 -> 6526 | BH31: ='HEM Working'!S22 -> 7189 | BL31: ='HEM Working'!T22 -> 7369 | BP31: ='HEM Working'!U22 -> 7369 | BT31: ='HEM Working'!V22 -> 7369 | BX31: ='HEM Working'!W22 -> 7369 | CB31: ='HEM Working'!X22 -> 7369 | CF31: ='HEM Working'!Y22 -> 7369 | CJ31: ='HEM Working'!Z22 -> 7369
C32: Remote Locations 7 | K32: ='HEM Working'!G23 -> 4791 | P32: ='HEM Working'!L23 -> 5039 | T32: ='HEM Working'!M23 -> 5392 | X32: ='HEM Working'!N23 -> 5653 | AB32: ='HEM Working'!O23 -> 6119 | AF32: ='HEM Working'!P23 -> 6304 | AJ32: ='HEM Working'!M23 -> 5392 | AN32: ='HEM Working'!N23 -> 5653 | AR32: ='HEM Working'!O23 -> 6119 | AV32: ='HEM Working'!P23 -> 6304 | AZ32: ='HEM Working'!Q23 -> 6473 | BD32: ='HEM Working'!R23 -> 6967 | BH32: ='HEM Working'!S23 -> 7629 | BL32: ='HEM Working'!T23 -> 7809 | BP32: ='HEM Working'!U23 -> 7809 | BT32: ='HEM Working'!V23 -> 7809 | BX32: ='HEM Working'!W23 -> 7809 | CB32: ='HEM Working'!X23 -> 7809 | CF32: ='HEM Working'!Y23 -> 7809 | CJ32: ='HEM Working'!Z23 -> 7809
C33: Remote Locations 8 | K33: ='HEM Working'!G24 -> 5306 | P33: ='HEM Working'!L24 -> 5483 | T33: ='HEM Working'!M24 -> 5835 | X33: ='HEM Working'!N24 -> 6096 | AB33: ='HEM Working'!O24 -> 6561 | AF33: ='HEM Working'!P24 -> 6746 | AJ33: ='HEM Working'!M24 -> 5835 | AN33: ='HEM Working'!N24 -> 6096 | AR33: ='HEM Working'!O24 -> 6561 | AV33: ='HEM Working'!P24 -> 6746 | AZ33: ='HEM Working'!Q24 -> 6915 | BD33: ='HEM Working'!R24 -> 7407 | BH33: ='HEM Working'!S24 -> 8070 | BL33: ='HEM Working'!T24 -> 8248 | BP33: ='HEM Working'!U24 -> 8248 | BT33: ='HEM Working'!V24 -> 8248 | BX33: ='HEM Working'!W24 -> 8248 | CB33: ='HEM Working'!X24 -> 8248 | CF33: ='HEM Working'!Y24 -> 8248 | CJ33: ='HEM Working'!Z24 -> 8248
C34: Remote Locations 9 | K34: ='HEM Working'!G25 -> 5821 | P34: ='HEM Working'!L25 -> 5927 | T34: ='HEM Working'!M25 -> 6278 | X34: ='HEM Working'!N25 -> 6539 | AB34: ='HEM Working'!O25 -> 7002 | AF34: ='HEM Working'!P25 -> 7188 | AJ34: ='HEM Working'!M25 -> 6278 | AN34: ='HEM Working'!N25 -> 6539 | AR34: ='HEM Working'!O25 -> 7002 | AV34: ='HEM Working'!P25 -> 7188 | AZ34: ='HEM Working'!Q25 -> 7357 | BD34: ='HEM Working'!R25 -> 7848 | BH34: ='HEM Working'!S25 -> 8510 | BL34: ='HEM Working'!T25 -> 8687 | BP34: ='HEM Working'!U25 -> 8687 | BT34: ='HEM Working'!V25 -> 8687 | BX34: ='HEM Working'!W25 -> 8687 | CB34: ='HEM Working'!X25 -> 8687 | CF34: ='HEM Working'!Y25 -> 8687 | CJ34: ='HEM Working'!Z25 -> 8687
C35: Remote Locations 10+ | K35: ='HEM Working'!G26 -> 6337 | P35: ='HEM Working'!L26 -> 6371 | T35: ='HEM Working'!M26 -> 6721 | X35: ='HEM Working'!N26 -> 6982 | AB35: ='HEM Working'!O26 -> 7444 | AF35: ='HEM Working'!P26 -> 7629 | AJ35: ='HEM Working'!M26 -> 6721 | AN35: ='HEM Working'!N26 -> 6982 | AR35: ='HEM Working'!O26 -> 7444 | AV35: ='HEM Working'!P26 -> 7629 | AZ35: ='HEM Working'!Q26 -> 7798 | BD35: ='HEM Working'!R26 -> 8288 | BH35: ='HEM Working'!S26 -> 8950 | BL35: ='HEM Working'!T26 -> 9126 | BP35: ='HEM Working'!U26 -> 9126 | BT35: ='HEM Working'!V26 -> 9126 | BX35: ='HEM Working'!W26 -> 9126 | CB35: ='HEM Working'!X26 -> 9126 | CF35: ='HEM Working'!Y26 -> 9126 | CJ35: ='HEM Working'!Z26 -> 9126
C37: Table 1 (Joint) | K37: Annual Income
C38: Location, Dependents | G38: Gross Income | K38: ='HEM Working'!G29 -> $21000 or less | P38: ='HEM Working'!H29 -> $21001 to $32000 | T38: ='HEM Working'!I29 -> $32001 to $42000 | X38: ='HEM Working'!J29 -> $42001 to $53000 | AB38: ='HEM Working'!K29 -> $53001 to $63000 | AF38: ='HEM Working'!L29 -> $63001 to $85000 | AJ38: ='HEM Working'!M29 -> $85001 to $106000 | AN38: ='HEM Working'!N29 -> $106001 to $127000 | AR38: ='HEM Working'!O29 -> $127001 to $148000 | AV38: ='HEM Working'!P29 -> $148001 to $169000 | AZ38: ='HEM Working'!Q29 -> $169001 to $211000 | BD38: ='HEM Working'!R29 -> $211001 to $264000 | BH38: ='HEM Working'!S29 -> $264001 to $317000 | BL38: ='HEM Working'!T29 -> $317001 to $347000 | BP38: ='HEM Working'!U29 -> $347001 to $377000 | BT38: ='HEM Working'!V29 -> $377001 to $407000 | BX38: ='HEM Working'!W29 -> $407001 to $437000 | CB38: ='HEM Working'!X29 -> $437001 to $467000 | CF38: ='HEM Working'!Y29 -> $467001 to $497000 | CJ38: ='HEM Working'!Z29 -> $497001 to $528000 | CN38: ='HEM Working'!AA29 -> $528001 or more
C40: Rest of Australia 0 | K40: ='HEM Working'!G30 -> 2095 | P40: ='HEM Working'!H30 -> 2095 | T40: ='HEM Working'!I30 -> 2157 | X40: ='HEM Working'!J30 -> 2247 | AB40: ='HEM Working'!K30 -> 2410 | AF40: ='HEM Working'!L30 -> 2620 | AJ40: ='HEM Working'!M30 -> 2931 | AN40: ='HEM Working'!N30 -> 3158 | AR40: ='HEM Working'!O30 -> 3567 | AV40: ='HEM Working'!P30 -> 3727 | AZ40: ='HEM Working'!Q30 -> 3874 | BD40: ='HEM Working'!R30 -> 4307 | BH40: ='HEM Working'!S30 -> 4882 | BL40: ='HEM Working'!T30 -> 5043 | BP40: ='HEM Working'!U30 -> 5043 | BT40: ='HEM Working'!V30 -> 5043 | BX40: ='HEM Working'!W30 -> 5043 | CB40: ='HEM Working'!X30 -> 5043 | CF40: ='HEM Working'!Y30 -> 5043 | CJ40: ='HEM Working'!Z30 -> 5043 | CN40: Apply new dynamic calculation
C41: Rest of Australia 1 | K41: ='HEM Working'!G31 -> 2479 | P41: ='HEM Working'!H31 -> 2479 | T41: ='HEM Working'!I31 -> 2479 | X41: ='HEM Working'!J31 -> 2568 | AB41: ='HEM Working'!K31 -> 2731 | AF41: ='HEM Working'!L31 -> 2942 | AJ41: ='HEM Working'!M31 -> 3252 | AN41: ='HEM Working'!N31 -> 3479 | AR41: ='HEM Working'!O31 -> 3888 | AV41: ='HEM Working'!P31 -> 4048 | AZ41: ='HEM Working'!Q31 -> 4196 | BD41: ='HEM Working'!R31 -> 4628 | BH41: ='HEM Working'!S31 -> 5203 | BL41: ='HEM Working'!T31 -> 5364 | BP41: ='HEM Working'!U31 -> 5364 | BT41: ='HEM Working'!V31 -> 5364 | BX41: ='HEM Working'!W31 -> 5364 | CB41: ='HEM Working'!X31 -> 5364 | CF41: ='HEM Working'!Y31 -> 5364 | CJ41: ='HEM Working'!Z31 -> 5364
C42: Rest of Australia 2 | K42: ='HEM Working'!G32 -> 2723 | P42: ='HEM Working'!H32 -> 2723 | T42: ='HEM Working'!I32 -> 2723 | X42: ='HEM Working'!J32 -> 2812 | AB42: ='HEM Working'!K32 -> 2974 | AF42: ='HEM Working'!L32 -> 3183 | AJ42: ='HEM Working'!M32 -> 3492 | AN42: ='HEM Working'!N32 -> 3717 | AR42: ='HEM Working'!O32 -> 4123 | AV42: ='HEM Working'!P32 -> 4282 | AZ42: ='HEM Working'!Q32 -> 4429 | BD42: ='HEM Working'!R32 -> 4858 | BH42: ='HEM Working'!S32 -> 5430 | BL42: ='HEM Working'!T32 -> 5589 | BP42: ='HEM Working'!U32 -> 5589 | BT42: ='HEM Working'!V32 -> 5589 | BX42: ='HEM Working'!W32 -> 5589 | CB42: ='HEM Working'!X32 -> 5589 | CF42: ='HEM Working'!Y32 -> 5589 | CJ42: ='HEM Working'!Z32 -> 5589
C43: Rest of Australia 3 | K43: ='HEM Working'!G33 -> 3088 | P43: ='HEM Working'!H33 -> 3088 | T43: ='HEM Working'!I33 -> 3088 | X43: ='HEM Working'!J33 -> 3088 | AB43: ='HEM Working'!K33 -> 3251 | AF43: ='HEM Working'!L33 -> 3462 | AJ43: ='HEM Working'!M33 -> 3773 | AN43: ='HEM Working'!N33 -> 4000 | AR43: ='HEM Working'!O33 -> 4409 | AV43: ='HEM Working'!P33 -> 4570 | AZ43: ='HEM Working'!Q33 -> 4717 | BD43: ='HEM Working'!R33 -> 5150 | BH43: ='HEM Working'!S33 -> 5726 | BL43: ='HEM Working'!T33 -> 5886 | BP43: ='HEM Working'!U33 -> 5886 | BT43: ='HEM Working'!V33 -> 5886 | BX43: ='HEM Working'!W33 -> 5886 | CB43: ='HEM Working'!X33 -> 5886 | CF43: ='HEM Working'!Y33 -> 5886 | CJ43: ='HEM Working'!Z33 -> 5886
C44: Rest of Australia 4 | K44: ='HEM Working'!G34 -> 3453 | P44: ='HEM Working'!H34 -> 3453 | T44: ='HEM Working'!I34 -> 3453 | X44: ='HEM Working'!J34 -> 3364 | AB44: ='HEM Working'!K34 -> 3528 | AF44: ='HEM Working'!L34 -> 3741 | AJ44: ='HEM Working'!M34 -> 4054 | AN44: ='HEM Working'!N34 -> 4283 | AR44: ='HEM Working'!O34 -> 4695 | AV44: ='HEM Working'!P34 -> 4858 | AZ44: ='HEM Working'!Q34 -> 5005 | BD44: ='HEM Working'!R34 -> 5442 | BH44: ='HEM Working'!S34 -> 6022 | BL44: ='HEM Working'!T34 -> 6183 | BP44: ='HEM Working'!U34 -> 6183 | BT44: ='HEM Working'!V34 -> 6183 | BX44: ='HEM Working'!W34 -> 6183 | CB44: ='HEM Working'!X34 -> 6183 | CF44: ='HEM Working'!Y34 -> 6183 | CJ44: ='HEM Working'!Z34 -> 6183
C45: Rest of Australia 5 | K45: ='HEM Working'!G35 -> 3818 | P45: ='HEM Working'!H35 -> 3818 | T45: ='HEM Working'!I35 -> 3818 | X45: ='HEM Working'!J35 -> 3640 | AB45: ='HEM Working'!K35 -> 3805 | AF45: ='HEM Working'!L35 -> 4020 | AJ45: ='HEM Working'!M35 -> 4335 | AN45: ='HEM Working'!N35 -> 4566 | AR45: ='HEM Working'!O35 -> 4981 | AV45: ='HEM Working'!P35 -> 5146 | AZ45: ='HEM Working'!Q35 -> 5293 | BD45: ='HEM Working'!R35 -> 5734 | BH45: ='HEM Working'!S35 -> 6318 | BL45: ='HEM Working'!T35 -> 6480 | BP45: ='HEM Working'!U35 -> 6480 | BT45: ='HEM Working'!V35 -> 6480 | BX45: ='HEM Working'!W35 -> 6480 | CB45: ='HEM Working'!X35 -> 6480 | CF45: ='HEM Working'!Y35 -> 6480 | CJ45: ='HEM Working'!Z35 -> 6480
C46: Rest of Australia 6 | K46: ='HEM Working'!G36 -> 4183 | P46: ='HEM Working'!H36 -> 4183 | T46: ='HEM Working'!I36 -> 4183 | X46: ='HEM Working'!J36 -> 3916 | AB46: ='HEM Working'!K36 -> 4082 | AF46: ='HEM Working'!L36 -> 4299 | AJ46: ='HEM Working'!M36 -> 4616 | AN46: ='HEM Working'!N36 -> 4849 | AR46: ='HEM Working'!O36 -> 5267 | AV46: ='HEM Working'!P36 -> 5434 | AZ46: ='HEM Working'!Q36 -> 5581 | BD46: ='HEM Working'!R36 -> 6026 | BH46: ='HEM Working'!S36 -> 6614 | BL46: ='HEM Working'!T36 -> 6777 | BP46: ='HEM Working'!U36 -> 6777 | BT46: ='HEM Working'!V36 -> 6777 | BX46: ='HEM Working'!W36 -> 6777 | CB46: ='HEM Working'!X36 -> 6777 | CF46: ='HEM Working'!Y36 -> 6777 | CJ46: ='HEM Working'!Z36 -> 6777
C47: Rest of Australia 7 | K47: ='HEM Working'!G37 -> 4548 | P47: ='HEM Working'!H37 -> 4548 | T47: ='HEM Working'!I37 -> 4548 | X47: ='HEM Working'!J37 -> 4192 | AB47: ='HEM Working'!K37 -> 4359 | AF47: ='HEM Working'!L37 -> 4578 | AJ47: ='HEM Working'!M37 -> 4897 | AN47: ='HEM Working'!N37 -> 5132 | AR47: ='HEM Working'!O37 -> 5553 | AV47: ='HEM Working'!P37 -> 5722 | AZ47: ='HEM Working'!Q37 -> 5869 | BD47: ='HEM Working'!R37 -> 6318 | BH47: ='HEM Working'!S37 -> 6910 | BL47: ='HEM Working'!T37 -> 7074 | BP47: ='HEM Working'!U37 -> 7074 | BT47: ='HEM Working'!V37 -> 7074 | BX47: ='HEM Working'!W37 -> 7074 | CB47: ='HEM Working'!X37 -> 7074 | CF47: ='HEM Working'!Y37 -> 7074 | CJ47: ='HEM Working'!Z37 -> 7074
C48: Rest of Australia 8 | K48: ='HEM Working'!G38 -> 4913 | P48: ='HEM Working'!H38 -> 4913 | T48: ='HEM Working'!I38 -> 4913 | X48: ='HEM Working'!J38 -> 4468 | AB48: ='HEM Working'!K38 -> 4636 | AF48: ='HEM Working'!L38 -> 4857 | AJ48: ='HEM Working'!M38 -> 5178 | AN48: ='HEM Working'!N38 -> 5415 | AR48: ='HEM Working'!O38 -> 5839 | AV48: ='HEM Working'!P38 -> 6010 | AZ48: ='HEM Working'!Q38 -> 6157 | BD48: ='HEM Working'!R38 -> 6610 | BH48: ='HEM Working'!S38 -> 7206 | BL48: ='HEM Working'!T38 -> 7371 | BP48: ='HEM Working'!U38 -> 7371 | BT48: ='HEM Working'!V38 -> 7371 | BX48: ='HEM Working'!W38 -> 7371 | CB48: ='HEM Working'!X38 -> 7371 | CF48: ='HEM Working'!Y38 -> 7371 | CJ48: ='HEM Working'!Z38 -> 7371
C49: Rest of Australia 9 | K49: ='HEM Working'!G39 -> 5278 | P49: ='HEM Working'!H39 -> 5278 | T49: ='HEM Working'!I39 -> 5278 | X49: ='HEM Working'!J39 -> 4744 | AB49: ='HEM Working'!K39 -> 4913 | AF49: ='HEM Working'!L39 -> 5136 | AJ49: ='HEM Working'!M39 -> 5459 | AN49: ='HEM Working'!N39 -> 5698 | AR49: ='HEM Working'!O39 -> 6125 | AV49: ='HEM Working'!P39 -> 6298 | AZ49: ='HEM Working'!Q39 -> 6445 | BD49: ='HEM Working'!R39 -> 6902 | BH49: ='HEM Working'!S39 -> 7502 | BL49: ='HEM Working'!T39 -> 7668 | BP49: ='HEM Working'!U39 -> 7668 | BT49: ='HEM Working'!V39 -> 7668 | BX49: ='HEM Working'!W39 -> 7668 | CB49: ='HEM Working'!X39 -> 7668 | CF49: ='HEM Working'!Y39 -> 7668 | CJ49: ='HEM Working'!Z39 -> 7668
C50: Rest of Australia 10+ | K50: ='HEM Working'!G40 -> 5643 | P50: ='HEM Working'!H40 -> 5643 | T50: ='HEM Working'!I40 -> 5643 | X50: ='HEM Working'!J40 -> 5020 | AB50: ='HEM Working'!K40 -> 5190 | AF50: ='HEM Working'!L40 -> 5415 | AJ50: ='HEM Working'!M40 -> 5740 | AN50: ='HEM Working'!N40 -> 5981 | AR50: ='HEM Working'!O40 -> 6411 | AV50: ='HEM Working'!P40 -> 6586 | AZ50: ='HEM Working'!Q40 -> 6733 | BD50: ='HEM Working'!R40 -> 7194 | BH50: ='HEM Working'!S40 -> 7798 | BL50: ='HEM Working'!T40 -> 7965 | BP50: ='HEM Working'!U40 -> 7965 | BT50: ='HEM Working'!V40 -> 7965 | BX50: ='HEM Working'!W40 -> 7965 | CB50: ='HEM Working'!X40 -> 7965 | CF50: ='HEM Working'!Y40 -> 7965 | CJ50: ='HEM Working'!Z40 -> 7965
C51: Remote Locations 0 | K51: ='HEM Working'!G41 -> 2409 | P51: ='HEM Working'!H41 -> 2409 | T51: ='HEM Working'!I41 -> 2481 | X51: ='HEM Working'!J41 -> 2584 | AB51: ='HEM Working'!K41 -> 2772 | AF51: ='HEM Working'!L41 -> 3013 | AJ51: ='HEM Working'!M41 -> 3371 | AN51: ='HEM Working'!N41 -> 3632 | AR51: ='HEM Working'!O41 -> 4102 | AV51: ='HEM Working'!P41 -> 4286 | AZ51: ='HEM Working'!Q41 -> 4455 | BD51: ='HEM Working'!R41 -> 4953 | BH51: ='HEM Working'!S41 -> 5614 | BL51: ='HEM Working'!T41 -> 5799 | BP51: ='HEM Working'!U41 -> 5799 | BT51: ='HEM Working'!V41 -> 5799 | BX51: ='HEM Working'!W41 -> 5799 | CB51: ='HEM Working'!X41 -> 5799 | CF51: ='HEM Working'!Y41 -> 5799 | CJ51: ='HEM Working'!Z41 -> 5799 | CN51: Apply new dynamic calculation
C52: Remote Locations 1 | K52: ='HEM Working'!G42 -> 2851 | P52: ='HEM Working'!H42 -> 2851 | T52: ='HEM Working'!I42 -> 2851 | X52: ='HEM Working'!J42 -> 2953 | AB52: ='HEM Working'!K42 -> 3141 | AF52: ='HEM Working'!L42 -> 3383 | AJ52: ='HEM Working'!M42 -> 3740 | AN52: ='HEM Working'!N42 -> 4001 | AR52: ='HEM Working'!O42 -> 4471 | AV52: ='HEM Working'!P42 -> 4655 | AZ52: ='HEM Working'!Q42 -> 4825 | BD52: ='HEM Working'!R42 -> 5322 | BH52: ='HEM Working'!S42 -> 5983 | BL52: ='HEM Working'!T42 -> 6169 | BP52: ='HEM Working'!U42 -> 6169 | BT52: ='HEM Working'!V42 -> 6169 | BX52: ='HEM Working'!W42 -> 6169 | CB52: ='HEM Working'!X42 -> 6169 | CF52: ='HEM Working'!Y42 -> 6169 | CJ52: ='HEM Working'!Z42 -> 6169
C53: Remote Locations 2 | K53: ='HEM Working'!G43 -> 3131 | P53: ='HEM Working'!H43 -> 3131 | T53: ='HEM Working'!I43 -> 3131 | X53: ='HEM Working'!J43 -> 3234 | AB53: ='HEM Working'!K43 -> 3420 | AF53: ='HEM Working'!L43 -> 3660 | AJ53: ='HEM Working'!M43 -> 4016 | AN53: ='HEM Working'!N43 -> 4275 | AR53: ='HEM Working'!O43 -> 4741 | AV53: ='HEM Working'!P43 -> 4924 | AZ53: ='HEM Working'!Q43 -> 5093 | BD53: ='HEM Working'!R43 -> 5587 | BH53: ='HEM Working'!S43 -> 6245 | BL53: ='HEM Working'!T43 -> 6427 | BP53: ='HEM Working'!U43 -> 6427 | BT53: ='HEM Working'!V43 -> 6427 | BX53: ='HEM Working'!W43 -> 6427 | CB53: ='HEM Working'!X43 -> 6427 | CF53: ='HEM Working'!Y43 -> 6427 | CJ53: ='HEM Working'!Z43 -> 6427
C54: Remote Locations 3 | K54: ='HEM Working'!G44 -> 3551 | P54: ='HEM Working'!H44 -> 3551 | T54: ='HEM Working'!I44 -> 3551 | X54: ='HEM Working'!J44 -> 3551 | AB54: ='HEM Working'!K44 -> 3739 | AF54: ='HEM Working'!L44 -> 3981 | AJ54: ='HEM Working'!M44 -> 4339 | AN54: ='HEM Working'!N44 -> 4600 | AR54: ='HEM Working'!O44 -> 5070 | AV54: ='HEM Working'!P44 -> 5256 | AZ54: ='HEM Working'!Q44 -> 5425 | BD54: ='HEM Working'!R44 -> 5923 | BH54: ='HEM Working'!S44 -> 6585 | BL54: ='HEM Working'!T44 -> 6769 | BP54: ='HEM Working'!U44 -> 6769 | BT54: ='HEM Working'!V44 -> 6769 | BX54: ='HEM Working'!W44 -> 6769 | CB54: ='HEM Working'!X44 -> 6769 | CF54: ='HEM Working'!Y44 -> 6769 | CJ54: ='HEM Working'!Z44 -> 6769
C55: Remote Locations 4 | K55: ='HEM Working'!G45 -> 3971 | P55: ='HEM Working'!H45 -> 3971 | T55: ='HEM Working'!I45 -> 3971 | X55: ='HEM Working'!J45 -> 3869 | AB55: ='HEM Working'!K45 -> 4057 | AF55: ='HEM Working'!L45 -> 4302 | AJ55: ='HEM Working'!M45 -> 4662 | AN55: ='HEM Working'!N45 -> 4925 | AR55: ='HEM Working'!O45 -> 5399 | AV55: ='HEM Working'!P45 -> 5587 | AZ55: ='HEM Working'!Q45 -> 5756 | BD55: ='HEM Working'!R45 -> 6258 | BH55: ='HEM Working'!S45 -> 6925 | BL55: ='HEM Working'!T45 -> 7110 | BP55: ='HEM Working'!U45 -> 7110 | BT55: ='HEM Working'!V45 -> 7110 | BX55: ='HEM Working'!W45 -> 7110 | CB55: ='HEM Working'!X45 -> 7110 | CF55: ='HEM Working'!Y45 -> 7110 | CJ55: ='HEM Working'!Z45 -> 7110
C56: Remote Locations 5 | K56: ='HEM Working'!G46 -> 4391 | P56: ='HEM Working'!H46 -> 4391 | T56: ='HEM Working'!I46 -> 4391 | X56: ='HEM Working'!J46 -> 4186 | AB56: ='HEM Working'!K46 -> 4376 | AF56: ='HEM Working'!L46 -> 4623 | AJ56: ='HEM Working'!M46 -> 4985 | AN56: ='HEM Working'!N46 -> 5251 | AR56: ='HEM Working'!O46 -> 5728 | AV56: ='HEM Working'!P46 -> 5918 | AZ56: ='HEM Working'!Q46 -> 6087 | BD56: ='HEM Working'!R46 -> 6594 | BH56: ='HEM Working'!S46 -> 7266 | BL56: ='HEM Working'!T46 -> 7452 | BP56: ='HEM Working'!U46 -> 7452 | BT56: ='HEM Working'!V46 -> 7452 | BX56: ='HEM Working'!W46 -> 7452 | CB56: ='HEM Working'!X46 -> 7452 | CF56: ='HEM Working'!Y46 -> 7452 | CJ56: ='HEM Working'!Z46 -> 7452
C57: Remote Locations 6 | K57: ='HEM Working'!G47 -> 4810 | P57: ='HEM Working'!H47 -> 4810 | T57: ='HEM Working'!I47 -> 4810 | X57: ='HEM Working'!J47 -> 4503 | AB57: ='HEM Working'!K47 -> 4694 | AF57: ='HEM Working'!L47 -> 4944 | AJ57: ='HEM Working'!M47 -> 5308 | AN57: ='HEM Working'!N47 -> 5576 | AR57: ='HEM Working'!O47 -> 6057 | AV57: ='HEM Working'!P47 -> 6249 | AZ57: ='HEM Working'!Q47 -> 6418 | BD57: ='HEM Working'!R47 -> 6930 | BH57: ='HEM Working'!S47 -> 7606 | BL57: ='HEM Working'!T47 -> 7794 | BP57: ='HEM Working'!U47 -> 7794 | BT57: ='HEM Working'!V47 -> 7794 | BX57: ='HEM Working'!W47 -> 7794 | CB57: ='HEM Working'!X47 -> 7794 | CF57: ='HEM Working'!Y47 -> 7794 | CJ57: ='HEM Working'!Z47 -> 7794
C58: Remote Locations 7 | K58: ='HEM Working'!G48 -> 5230 | P58: ='HEM Working'!H48 -> 5230 | T58: ='HEM Working'!I48 -> 5230 | X58: ='HEM Working'!J48 -> 4821 | AB58: ='HEM Working'!K48 -> 5013 | AF58: ='HEM Working'!L48 -> 5265 | AJ58: ='HEM Working'!M48 -> 5632 | AN58: ='HEM Working'!N48 -> 5902 | AR58: ='HEM Working'!O48 -> 6386 | AV58: ='HEM Working'!P48 -> 6580 | AZ58: ='HEM Working'!Q48 -> 6749 | BD58: ='HEM Working'!R48 -> 7266 | BH58: ='HEM Working'!S48 -> 7947 | BL58: ='HEM Working'!T48 -> 8135 | BP58: ='HEM Working'!U48 -> 8135 | BT58: ='HEM Working'!V48 -> 8135 | BX58: ='HEM Working'!W48 -> 8135 | CB58: ='HEM Working'!X48 -> 8135 | CF58: ='HEM Working'!Y48 -> 8135 | CJ58: ='HEM Working'!Z48 -> 8135
C59: Remote Locations 8 | K59: ='HEM Working'!G49 -> 5650 | P59: ='HEM Working'!H49 -> 5650 | T59: ='HEM Working'!I49 -> 5650 | X59: ='HEM Working'!J49 -> 5138 | AB59: ='HEM Working'!K49 -> 5331 | AF59: ='HEM Working'!L49 -> 5586 | AJ59: ='HEM Working'!M49 -> 5955 | AN59: ='HEM Working'!N49 -> 6227 | AR59: ='HEM Working'!O49 -> 6715 | AV59: ='HEM Working'!P49 -> 6912 | AZ59: ='HEM Working'!Q49 -> 7081 | BD59: ='HEM Working'!R49 -> 7602 | BH59: ='HEM Working'!S49 -> 8287 | BL59: ='HEM Working'!T49 -> 8477 | BP59: ='HEM Working'!U49 -> 8477 | BT59: ='HEM Working'!V49 -> 8477 | BX59: ='HEM Working'!W49 -> 8477 | CB59: ='HEM Working'!X49 -> 8477 | CF59: ='HEM Working'!Y49 -> 8477 | CJ59: ='HEM Working'!Z49 -> 8477
C60: Remote Locations 9 | K60: ='HEM Working'!G50 -> 6070 | P60: ='HEM Working'!H50 -> 6070 | T60: ='HEM Working'!I50 -> 6070 | X60: ='HEM Working'!J50 -> 5456 | AB60: ='HEM Working'!K50 -> 5650 | AF60: ='HEM Working'!L50 -> 5906 | AJ60: ='HEM Working'!M50 -> 6278 | AN60: ='HEM Working'!N50 -> 6553 | AR60: ='HEM Working'!O50 -> 7044 | AV60: ='HEM Working'!P50 -> 7243 | AZ60: ='HEM Working'!Q50 -> 7412 | BD60: ='HEM Working'!R50 -> 7937 | BH60: ='HEM Working'!S50 -> 8627 | BL60: ='HEM Working'!T50 -> 8818 | BP60: ='HEM Working'!U50 -> 8818 | BT60: ='HEM Working'!V50 -> 8818 | BX60: ='HEM Working'!W50 -> 8818 | CB60: ='HEM Working'!X50 -> 8818 | CF60: ='HEM Working'!Y50 -> 8818 | CJ60: ='HEM Working'!Z50 -> 8818
C61: Remote Locations 10+ | K61: ='HEM Working'!G51 -> 6489 | P61: ='HEM Working'!H51 -> 6489 | T61: ='HEM Working'!I51 -> 6489 | X61: ='HEM Working'!J51 -> 5773 | AB61: ='HEM Working'!K51 -> 5969 | AF61: ='HEM Working'!L51 -> 6227 | AJ61: ='HEM Working'!M51 -> 6601 | AN61: ='HEM Working'!N51 -> 6878 | AR61: ='HEM Working'!O51 -> 7373 | AV61: ='HEM Working'!P51 -> 7574 | AZ61: ='HEM Working'!Q51 -> 7743 | BD61: ='HEM Working'!R51 -> 8273 | BH61: ='HEM Working'!S51 -> 8968 | BL61: ='HEM Working'!T51 -> 9160 | BP61: ='HEM Working'!U51 -> 9160 | BT61: ='HEM Working'!V51 -> 9160 | BX61: ='HEM Working'!W51 -> 9160 | CB61: ='HEM Working'!X51 -> 9160 | CF61: ='HEM Working'!Y51 -> 9160 | CJ61: ='HEM Working'!Z51 -> 9160
C63: Table 1 (Joint Spouse) | K63: Annual Income
C64: Location, Dependents | G64: Gross Income | K64: ='HEM Working'!G54 -> $21000 or less | P64: ='HEM Working'!H54 -> $21001 to $32000 | T64: ='HEM Working'!I54 -> $32001 to $42000 | X64: ='HEM Working'!J54 -> $42001 to $53000 | AB64: ='HEM Working'!K54 -> $53001 to $63000 | AF64: ='HEM Working'!L54 -> $63001 to $85000 | AJ64: ='HEM Working'!M54 -> $85001 to $106000 | AN64: ='HEM Working'!N54 -> $106001 to $127000 | AR64: ='HEM Working'!O54 -> $127001 to $148000 | AV64: ='HEM Working'!P54 -> $148001 to $169000 | AZ64: ='HEM Working'!Q54 -> $169001 to $211000 | BD64: ='HEM Working'!R54 -> $211001 to $264000 | BH64: ='HEM Working'!S54 -> $264001 to $317000 | BL64: ='HEM Working'!T54 -> $317001 to $347000 | BP64: ='HEM Working'!U54 -> $347001 to $377000 | BT64: ='HEM Working'!V54 -> $377001 to $407000 | BX64: ='HEM Working'!W54 -> $407001 to $437000 | CB64: ='HEM Working'!X54 -> $437001 to $467000 | CF64: ='HEM Working'!Y54 -> $467001 to $497000 | CJ64: ='HEM Working'!Z54 -> $497001 to $528000 | CN64: ='HEM Working'!AA54 -> $528001 or more
C66: Rest of Australia 0 | K66: ='HEM Working'!G55 -> 1048 | P66: ='HEM Working'!H55 -> 1048 | T66: ='HEM Working'!I55 -> 1079 | X66: ='HEM Working'!J55 -> 1124 | AB66: ='HEM Working'!K55 -> 1205 | AF66: ='HEM Working'!L55 -> 1310 | AJ66: ='HEM Working'!M55 -> 1466 | AN66: ='HEM Working'!N55 -> 1579 | AR66: ='HEM Working'!O55 -> 1784 | AV66: ='HEM Working'!P55 -> 1864 | AZ66: ='HEM Working'!Q55 -> 1937 | BD66: ='HEM Working'!R55 -> 2154 | BH66: ='HEM Working'!S55 -> 2441 | BL66: ='HEM Working'!T55 -> 2522 | BP66: ='HEM Working'!U55 -> 2522 | BT66: ='HEM Working'!V55 -> 2522 | BX66: ='HEM Working'!W55 -> 2522 | CB66: ='HEM Working'!X55 -> 2522 | CF66: ='HEM Working'!Y55 -> 2522 | CJ66: ='HEM Working'!Z55 -> 2522 | CN66: Apply new dynamic calculation
C67: Rest of Australia 1 | K67: ='HEM Working'!G56 -> 1240 | P67: ='HEM Working'!H56 -> 1240 | T67: ='HEM Working'!I56 -> 1240 | X67: ='HEM Working'!J56 -> 1284 | AB67: ='HEM Working'!K56 -> 1366 | AF67: ='HEM Working'!L56 -> 1471 | AJ67: ='HEM Working'!M56 -> 1626 | AN67: ='HEM Working'!N56 -> 1740 | AR67: ='HEM Working'!O56 -> 1944 | AV67: ='HEM Working'!P56 -> 2024 | AZ67: ='HEM Working'!Q56 -> 2098 | BD67: ='HEM Working'!R56 -> 2314 | BH67: ='HEM Working'!S56 -> 2602 | BL67: ='HEM Working'!T56 -> 2682 | BP67: ='HEM Working'!U56 -> 2682 | BT67: ='HEM Working'!V56 -> 2682 | BX67: ='HEM Working'!W56 -> 2682 | CB67: ='HEM Working'!X56 -> 2682 | CF67: ='HEM Working'!Y56 -> 2682 | CJ67: ='HEM Working'!Z56 -> 2682
C68: Rest of Australia 2 | K68: ='HEM Working'!G57 -> 1362 | P68: ='HEM Working'!H57 -> 1362 | T68: ='HEM Working'!I57 -> 1362 | X68: ='HEM Working'!J57 -> 1406 | AB68: ='HEM Working'!K57 -> 1487 | AF68: ='HEM Working'!L57 -> 1592 | AJ68: ='HEM Working'!M57 -> 1746 | AN68: ='HEM Working'!N57 -> 1859 | AR68: ='HEM Working'!O57 -> 2062 | AV68: ='HEM Working'!P57 -> 2141 | AZ68: ='HEM Working'!Q57 -> 2215 | BD68: ='HEM Working'!R57 -> 2429 | BH68: ='HEM Working'!S57 -> 2715 | BL68: ='HEM Working'!T57 -> 2795 | BP68: ='HEM Working'!U57 -> 2795 | BT68: ='HEM Working'!V57 -> 2795 | BX68: ='HEM Working'!W57 -> 2795 | CB68: ='HEM Working'!X57 -> 2795 | CF68: ='HEM Working'!Y57 -> 2795 | CJ68: ='HEM Working'!Z57 -> 2795
C69: Rest of Australia 3 | K69: ='HEM Working'!G58 -> 1544 | P69: ='HEM Working'!H58 -> 1544 | T69: ='HEM Working'!I58 -> 1544 | X69: ='HEM Working'!J58 -> 1544 | AB69: ='HEM Working'!K58 -> 1626 | AF69: ='HEM Working'!L58 -> 1731 | AJ69: ='HEM Working'!M58 -> 1887 | AN69: ='HEM Working'!N58 -> 2000 | AR69: ='HEM Working'!O58 -> 2205 | AV69: ='HEM Working'!P58 -> 2285 | AZ69: ='HEM Working'!Q58 -> 2359 | BD69: ='HEM Working'!R58 -> 2575 | BH69: ='HEM Working'!S58 -> 2863 | BL69: ='HEM Working'!T58 -> 2943 | BP69: ='HEM Working'!U58 -> 2943 | BT69: ='HEM Working'!V58 -> 2943 | BX69: ='HEM Working'!W58 -> 2943 | CB69: ='HEM Working'!X58 -> 2943 | CF69: ='HEM Working'!Y58 -> 2943 | CJ69: ='HEM Working'!Z58 -> 2943
C70: Rest of Australia 4 | K70: ='HEM Working'!G59 -> 1727 | P70: ='HEM Working'!H59 -> 1727 | T70: ='HEM Working'!I59 -> 1727 | X70: ='HEM Working'!J59 -> 1682 | AB70: ='HEM Working'!K59 -> 1764 | AF70: ='HEM Working'!L59 -> 1871 | AJ70: ='HEM Working'!M59 -> 2027 | AN70: ='HEM Working'!N59 -> 2142 | AR70: ='HEM Working'!O59 -> 2348 | AV70: ='HEM Working'!P59 -> 2429 | AZ70: ='HEM Working'!Q59 -> 2503 | BD70: ='HEM Working'!R59 -> 2721 | BH70: ='HEM Working'!S59 -> 3011 | BL70: ='HEM Working'!T59 -> 3092 | BP70: ='HEM Working'!U59 -> 3092 | BT70: ='HEM Working'!V59 -> 3092 | BX70: ='HEM Working'!W59 -> 3092 | CB70: ='HEM Working'!X59 -> 3092 | CF70: ='HEM Working'!Y59 -> 3092 | CJ70: ='HEM Working'!Z59 -> 3092
C71: Rest of Australia 5 | K71: ='HEM Working'!G60 -> 1909 | P71: ='HEM Working'!H60 -> 1909 | T71: ='HEM Working'!I60 -> 1909 | X71: ='HEM Working'!J60 -> 1820 | AB71: ='HEM Working'!K60 -> 1903 | AF71: ='HEM Working'!L60 -> 2010 | AJ71: ='HEM Working'!M60 -> 2168 | AN71: ='HEM Working'!N60 -> 2283 | AR71: ='HEM Working'!O60 -> 2491 | AV71: ='HEM Working'!P60 -> 2573 | AZ71: ='HEM Working'!Q60 -> 2647 | BD71: ='HEM Working'!R60 -> 2867 | BH71: ='HEM Working'!S60 -> 3159 | BL71: ='HEM Working'!T60 -> 3240 | BP71: ='HEM Working'!U60 -> 3240 | BT71: ='HEM Working'!V60 -> 3240 | BX71: ='HEM Working'!W60 -> 3240 | CB71: ='HEM Working'!X60 -> 3240 | CF71: ='HEM Working'!Y60 -> 3240 | CJ71: ='HEM Working'!Z60 -> 3240
C72: Rest of Australia 6 | K72: ='HEM Working'!G61 -> 2092 | P72: ='HEM Working'!H61 -> 2092 | T72: ='HEM Working'!I61 -> 2092 | X72: ='HEM Working'!J61 -> 1958 | AB72: ='HEM Working'!K61 -> 2041 | AF72: ='HEM Working'!L61 -> 2150 | AJ72: ='HEM Working'!M61 -> 2308 | AN72: ='HEM Working'!N61 -> 2425 | AR72: ='HEM Working'!O61 -> 2634 | AV72: ='HEM Working'!P61 -> 2717 | AZ72: ='HEM Working'!Q61 -> 2791 | BD72: ='HEM Working'!R61 -> 3013 | BH72: ='HEM Working'!S61 -> 3307 | BL72: ='HEM Working'!T61 -> 3389 | BP72: ='HEM Working'!U61 -> 3389 | BT72: ='HEM Working'!V61 -> 3389 | BX72: ='HEM Working'!W61 -> 3389 | CB72: ='HEM Working'!X61 -> 3389 | CF72: ='HEM Working'!Y61 -> 3389 | CJ72: ='HEM Working'!Z61 -> 3389
C73: Rest of Australia 7 | K73: ='HEM Working'!G62 -> 2274 | P73: ='HEM Working'!H62 -> 2274 | T73: ='HEM Working'!I62 -> 2274 | X73: ='HEM Working'!J62 -> 2096 | AB73: ='HEM Working'!K62 -> 2180 | AF73: ='HEM Working'!L62 -> 2289 | AJ73: ='HEM Working'!M62 -> 2449 | AN73: ='HEM Working'!N62 -> 2566 | AR73: ='HEM Working'!O62 -> 2777 | AV73: ='HEM Working'!P62 -> 2861 | AZ73: ='HEM Working'!Q62 -> 2935 | BD73: ='HEM Working'!R62 -> 3159 | BH73: ='HEM Working'!S62 -> 3455 | BL73: ='HEM Working'!T62 -> 3537 | BP73: ='HEM Working'!U62 -> 3537 | BT73: ='HEM Working'!V62 -> 3537 | BX73: ='HEM Working'!W62 -> 3537 | CB73: ='HEM Working'!X62 -> 3537 | CF73: ='HEM Working'!Y62 -> 3537 | CJ73: ='HEM Working'!Z62 -> 3537
C74: Rest of Australia 8 | K74: ='HEM Working'!G63 -> 2457 | P74: ='HEM Working'!H63 -> 2457 | T74: ='HEM Working'!I63 -> 2457 | X74: ='HEM Working'!J63 -> 2234 | AB74: ='HEM Working'!K63 -> 2318 | AF74: ='HEM Working'!L63 -> 2429 | AJ74: ='HEM Working'!M63 -> 2589 | AN74: ='HEM Working'!N63 -> 2708 | AR74: ='HEM Working'!O63 -> 2920 | AV74: ='HEM Working'!P63 -> 3005 | AZ74: ='HEM Working'!Q63 -> 3079 | BD74: ='HEM Working'!R63 -> 3305 | BH74: ='HEM Working'!S63 -> 3603 | BL74: ='HEM Working'!T63 -> 3686 | BP74: ='HEM Working'!U63 -> 3686 | BT74: ='HEM Working'!V63 -> 3686 | BX74: ='HEM Working'!W63 -> 3686 | CB74: ='HEM Working'!X63 -> 3686 | CF74: ='HEM Working'!Y63 -> 3686 | CJ74: ='HEM Working'!Z63 -> 3686
C75: Rest of Australia 9 | K75: ='HEM Working'!G64 -> 2639 | P75: ='HEM Working'!H64 -> 2639 | T75: ='HEM Working'!I64 -> 2639 | X75: ='HEM Working'!J64 -> 2372 | AB75: ='HEM Working'!K64 -> 2457 | AF75: ='HEM Working'!L64 -> 2568 | AJ75: ='HEM Working'!M64 -> 2730 | AN75: ='HEM Working'!N64 -> 2849 | AR75: ='HEM Working'!O64 -> 3063 | AV75: ='HEM Working'!P64 -> 3149 | AZ75: ='HEM Working'!Q64 -> 3223 | BD75: ='HEM Working'!R64 -> 3451 | BH75: ='HEM Working'!S64 -> 3751 | BL75: ='HEM Working'!T64 -> 3834 | BP75: ='HEM Working'!U64 -> 3834 | BT75: ='HEM Working'!V64 -> 3834 | BX75: ='HEM Working'!W64 -> 3834 | CB75: ='HEM Working'!X64 -> 3834 | CF75: ='HEM Working'!Y64 -> 3834 | CJ75: ='HEM Working'!Z64 -> 3834
C76: Rest of Australia 10+ | K76: ='HEM Working'!G65 -> 2822 | P76: ='HEM Working'!H65 -> 2822 | T76: ='HEM Working'!I65 -> 2822 | X76: ='HEM Working'!J65 -> 2510 | AB76: ='HEM Working'!K65 -> 2595 | AF76: ='HEM Working'!L65 -> 2708 | AJ76: ='HEM Working'!M65 -> 2870 | AN76: ='HEM Working'!N65 -> 2991 | AR76: ='HEM Working'!O65 -> 3206 | AV76: ='HEM Working'!P65 -> 3293 | AZ76: ='HEM Working'!Q65 -> 3367 | BD76: ='HEM Working'!R65 -> 3597 | BH76: ='HEM Working'!S65 -> 3899 | BL76: ='HEM Working'!T65 -> 3983 | BP76: ='HEM Working'!U65 -> 3983 | BT76: ='HEM Working'!V65 -> 3983 | BX76: ='HEM Working'!W65 -> 3983 | CB76: ='HEM Working'!X65 -> 3983 | CF76: ='HEM Working'!Y65 -> 3983 | CJ76: ='HEM Working'!Z65 -> 3983
C77: Remote Locations 0 | K77: ='HEM Working'!G66 -> 1205 | P77: ='HEM Working'!H66 -> 1205 | T77: ='HEM Working'!I66 -> 1240 | X77: ='HEM Working'!J66 -> 1292 | AB77: ='HEM Working'!K66 -> 1386 | AF77: ='HEM Working'!L66 -> 1507 | AJ77: ='HEM Working'!M66 -> 1685 | AN77: ='HEM Working'!N66 -> 1816 | AR77: ='HEM Working'!O66 -> 2051 | AV77: ='HEM Working'!P66 -> 2143 | AZ77: ='HEM Working'!Q66 -> 2228 | BD77: ='HEM Working'!R66 -> 2477 | BH77: ='HEM Working'!S66 -> 2807 | BL77: ='HEM Working'!T66 -> 2900 | BP77: ='HEM Working'!U66 -> 2900 | BT77: ='HEM Working'!V66 -> 2900 | BX77: ='HEM Working'!W66 -> 2900 | CB77: ='HEM Working'!X66 -> 2900 | CF77: ='HEM Working'!Y66 -> 2900 | CJ77: ='HEM Working'!Z66 -> 2900 | CN77: Apply new dynamic calculation
C78: Remote Locations 1 | K78: ='HEM Working'!G67 -> 1425 | P78: ='HEM Working'!H67 -> 1425 | T78: ='HEM Working'!I67 -> 1425 | X78: ='HEM Working'!J67 -> 1477 | AB78: ='HEM Working'!K67 -> 1570 | AF78: ='HEM Working'!L67 -> 1692 | AJ78: ='HEM Working'!M67 -> 1870 | AN78: ='HEM Working'!N67 -> 2000 | AR78: ='HEM Working'!O67 -> 2236 | AV78: ='HEM Working'!P67 -> 2328 | AZ78: ='HEM Working'!Q67 -> 2413 | BD78: ='HEM Working'!R67 -> 2661 | BH78: ='HEM Working'!S67 -> 2992 | BL78: ='HEM Working'!T67 -> 3084 | BP78: ='HEM Working'!U67 -> 3084 | BT78: ='HEM Working'!V67 -> 3084 | BX78: ='HEM Working'!W67 -> 3084 | CB78: ='HEM Working'!X67 -> 3084 | CF78: ='HEM Working'!Y67 -> 3084 | CJ78: ='HEM Working'!Z67 -> 3084
C79: Remote Locations 2 | K79: ='HEM Working'!G68 -> 1566 | P79: ='HEM Working'!H68 -> 1566 | T79: ='HEM Working'!I68 -> 1566 | X79: ='HEM Working'!J68 -> 1617 | AB79: ='HEM Working'!K68 -> 1710 | AF79: ='HEM Working'!L68 -> 1830 | AJ79: ='HEM Working'!M68 -> 2008 | AN79: ='HEM Working'!N68 -> 2137 | AR79: ='HEM Working'!O68 -> 2371 | AV79: ='HEM Working'!P68 -> 2462 | AZ79: ='HEM Working'!Q68 -> 2547 | BD79: ='HEM Working'!R68 -> 2793 | BH79: ='HEM Working'!S68 -> 3122 | BL79: ='HEM Working'!T68 -> 3214 | BP79: ='HEM Working'!U68 -> 3214 | BT79: ='HEM Working'!V68 -> 3214 | BX79: ='HEM Working'!W68 -> 3214 | CB79: ='HEM Working'!X68 -> 3214 | CF79: ='HEM Working'!Y68 -> 3214 | CJ79: ='HEM Working'!Z68 -> 3214
C80: Remote Locations 3 | K80: ='HEM Working'!G69 -> 1776 | P80: ='HEM Working'!H69 -> 1776 | T80: ='HEM Working'!I69 -> 1776 | X80: ='HEM Working'!J69 -> 1776 | AB80: ='HEM Working'!K69 -> 1869 | AF80: ='HEM Working'!L69 -> 1991 | AJ80: ='HEM Working'!M69 -> 2169 | AN80: ='HEM Working'!N69 -> 2300 | AR80: ='HEM Working'!O69 -> 2535 | AV80: ='HEM Working'!P69 -> 2628 | AZ80: ='HEM Working'!Q69 -> 2712 | BD80: ='HEM Working'!R69 -> 2961 | BH80: ='HEM Working'!S69 -> 3292 | BL80: ='HEM Working'!T69 -> 3384 | BP80: ='HEM Working'!U69 -> 3384 | BT80: ='HEM Working'!V69 -> 3384 | BX80: ='HEM Working'!W69 -> 3384 | CB80: ='HEM Working'!X69 -> 3384 | CF80: ='HEM Working'!Y69 -> 3384 | CJ80: ='HEM Working'!Z69 -> 3384
C81: Remote Locations 4 | K81: ='HEM Working'!G70 -> 1985 | P81: ='HEM Working'!H70 -> 1985 | T81: ='HEM Working'!I70 -> 1985 | X81: ='HEM Working'!J70 -> 1934 | AB81: ='HEM Working'!K70 -> 2029 | AF81: ='HEM Working'!L70 -> 2151 | AJ81: ='HEM Working'!M70 -> 2331 | AN81: ='HEM Working'!N70 -> 2463 | AR81: ='HEM Working'!O70 -> 2700 | AV81: ='HEM Working'!P70 -> 2793 | AZ81: ='HEM Working'!Q70 -> 2878 | BD81: ='HEM Working'!R70 -> 3129 | BH81: ='HEM Working'!S70 -> 3463 | BL81: ='HEM Working'!T70 -> 3555 | BP81: ='HEM Working'!U70 -> 3555 | BT81: ='HEM Working'!V70 -> 3555 | BX81: ='HEM Working'!W70 -> 3555 | CB81: ='HEM Working'!X70 -> 3555 | CF81: ='HEM Working'!Y70 -> 3555 | CJ81: ='HEM Working'!Z70 -> 3555
C82: Remote Locations 5 | K82: ='HEM Working'!G71 -> 2195 | P82: ='HEM Working'!H71 -> 2195 | T82: ='HEM Working'!I71 -> 2195 | X82: ='HEM Working'!J71 -> 2093 | AB82: ='HEM Working'!K71 -> 2188 | AF82: ='HEM Working'!L71 -> 2312 | AJ82: ='HEM Working'!M71 -> 2493 | AN82: ='HEM Working'!N71 -> 2625 | AR82: ='HEM Working'!O71 -> 2864 | AV82: ='HEM Working'!P71 -> 2959 | AZ82: ='HEM Working'!Q71 -> 3043 | BD82: ='HEM Working'!R71 -> 3297 | BH82: ='HEM Working'!S71 -> 3633 | BL82: ='HEM Working'!T71 -> 3726 | BP82: ='HEM Working'!U71 -> 3726 | BT82: ='HEM Working'!V71 -> 3726 | BX82: ='HEM Working'!W71 -> 3726 | CB82: ='HEM Working'!X71 -> 3726 | CF82: ='HEM Working'!Y71 -> 3726 | CJ82: ='HEM Working'!Z71 -> 3726
C83: Remote Locations 6 | K83: ='HEM Working'!G72 -> 2405 | P83: ='HEM Working'!H72 -> 2405 | T83: ='HEM Working'!I72 -> 2405 | X83: ='HEM Working'!J72 -> 2252 | AB83: ='HEM Working'!K72 -> 2347 | AF83: ='HEM Working'!L72 -> 2472 | AJ83: ='HEM Working'!M72 -> 2654 | AN83: ='HEM Working'!N72 -> 2788 | AR83: ='HEM Working'!O72 -> 3029 | AV83: ='HEM Working'!P72 -> 3125 | AZ83: ='HEM Working'!Q72 -> 3209 | BD83: ='HEM Working'!R72 -> 3465 | BH83: ='HEM Working'!S72 -> 3803 | BL83: ='HEM Working'!T72 -> 3897 | BP83: ='HEM Working'!U72 -> 3897 | BT83: ='HEM Working'!V72 -> 3897 | BX83: ='HEM Working'!W72 -> 3897 | CB83: ='HEM Working'!X72 -> 3897 | CF83: ='HEM Working'!Y72 -> 3897 | CJ83: ='HEM Working'!Z72 -> 3897
C84: Remote Locations 7 | K84: ='HEM Working'!G73 -> 2615 | P84: ='HEM Working'!H73 -> 2615 | T84: ='HEM Working'!I73 -> 2615 | X84: ='HEM Working'!J73 -> 2410 | AB84: ='HEM Working'!K73 -> 2506 | AF84: ='HEM Working'!L73 -> 2632 | AJ84: ='HEM Working'!M73 -> 2816 | AN84: ='HEM Working'!N73 -> 2951 | AR84: ='HEM Working'!O73 -> 3193 | AV84: ='HEM Working'!P73 -> 3290 | AZ84: ='HEM Working'!Q73 -> 3375 | BD84: ='HEM Working'!R73 -> 3633 | BH84: ='HEM Working'!S73 -> 3973 | BL84: ='HEM Working'!T73 -> 4068 | BP84: ='HEM Working'!U73 -> 4068 | BT84: ='HEM Working'!V73 -> 4068 | BX84: ='HEM Working'!W73 -> 4068 | CB84: ='HEM Working'!X73 -> 4068 | CF84: ='HEM Working'!Y73 -> 4068 | CJ84: ='HEM Working'!Z73 -> 4068
C85: Remote Locations 8 | K85: ='HEM Working'!G74 -> 2825 | P85: ='HEM Working'!H74 -> 2825 | T85: ='HEM Working'!I74 -> 2825 | X85: ='HEM Working'!J74 -> 2569 | AB85: ='HEM Working'!K74 -> 2666 | AF85: ='HEM Working'!L74 -> 2793 | AJ85: ='HEM Working'!M74 -> 2977 | AN85: ='HEM Working'!N74 -> 3114 | AR85: ='HEM Working'!O74 -> 3357 | AV85: ='HEM Working'!P74 -> 3456 | AZ85: ='HEM Working'!Q74 -> 3540 | BD85: ='HEM Working'!R74 -> 3801 | BH85: ='HEM Working'!S74 -> 4143 | BL85: ='HEM Working'!T74 -> 4238 | BP85: ='HEM Working'!U74 -> 4238 | BT85: ='HEM Working'!V74 -> 4238 | BX85: ='HEM Working'!W74 -> 4238 | CB85: ='HEM Working'!X74 -> 4238 | CF85: ='HEM Working'!Y74 -> 4238 | CJ85: ='HEM Working'!Z74 -> 4238
C86: Remote Locations 9 | K86: ='HEM Working'!G75 -> 3035 | P86: ='HEM Working'!H75 -> 3035 | T86: ='HEM Working'!I75 -> 3035 | X86: ='HEM Working'!J75 -> 2728 | AB86: ='HEM Working'!K75 -> 2825 | AF86: ='HEM Working'!L75 -> 2953 | AJ86: ='HEM Working'!M75 -> 3139 | AN86: ='HEM Working'!N75 -> 3276 | AR86: ='HEM Working'!O75 -> 3522 | AV86: ='HEM Working'!P75 -> 3621 | AZ86: ='HEM Working'!Q75 -> 3706 | BD86: ='HEM Working'!R75 -> 3969 | BH86: ='HEM Working'!S75 -> 4314 | BL86: ='HEM Working'!T75 -> 4409 | BP86: ='HEM Working'!U75 -> 4409 | BT86: ='HEM Working'!V75 -> 4409 | BX86: ='HEM Working'!W75 -> 4409 | CB86: ='HEM Working'!X75 -> 4409 | CF86: ='HEM Working'!Y75 -> 4409 | CJ86: ='HEM Working'!Z75 -> 4409
C87: Remote Locations 10+ | K87: ='HEM Working'!G76 -> 3245 | P87: ='HEM Working'!H76 -> 3245 | T87: ='HEM Working'!I76 -> 3245 | X87: ='HEM Working'!J76 -> 2887 | AB87: ='HEM Working'!K76 -> 2984 | AF87: ='HEM Working'!L76 -> 3114 | AJ87: ='HEM Working'!M76 -> 3301 | AN87: ='HEM Working'!N76 -> 3439 | AR87: ='HEM Working'!O76 -> 3686 | AV87: ='HEM Working'!P76 -> 3787 | AZ87: ='HEM Working'!Q76 -> 3871 | BD87: ='HEM Working'!R76 -> 4137 | BH87: ='HEM Working'!S76 -> 4484 | BL87: ='HEM Working'!T76 -> 4580 | BP87: ='HEM Working'!U76 -> 4580 | BT87: ='HEM Working'!V76 -> 4580 | BX87: ='HEM Working'!W76 -> 4580 | CB87: ='HEM Working'!X76 -> 4580 | CF87: ='HEM Working'!Y76 -> 4580 | CJ87: ='HEM Working'!Z76 -> 4580

Sheet Existing Mortgages (hidden)
AA1: 1 | AD1: =COUNTIF(AD19:AD703,"Yes") -> 0
BC3: Select | BE3: Select
B4: Existing Mortgage Information | BC4: IO | BE4: Term
BC5: ICAP | BE5: No Term
BC6: N/A | BE6: N/A
B7: Product information | AA7: 1
AD9: BIO | AK9: BIO | AR9: =IFERROR(ROUNDDOWN(MAX(N19,N22)*(MAX(N25+Buffer,Benchmark)/365*31)+N40,0),"Error") -> 0
B10: Is the loan a Reverse Mortgage / Bridging Loan? | N10: Select | AD10: BICAP | AK10: BICAP | AR10: 0
AD11: LOC No Term | AK11: LOC No Term | AR11: =IFERROR(ROUNDDOWN(PMT((MAX(N25+Buffer,Benchmark)/12),240,-MAX(N19,N22))+N40,0),"Error") -> 0
AD12: LOC Term | AK12: LOC Term | AR12: =IFERROR(ROUNDDOWN(PMT((MAX(N25+Buffer,Benchmark)/12),EXIST_LoanMonths1,-MAX(N19,N22))+N40,0),"Error") -> Error
B13: If the loan is a "line of credit", is there a contracted term? | N13: Select | AD13: Expired | AK13: Expired | AR13: =MAX(N19,N22) -> 0
AD14: HLIO | AK14: HLIO | AR14: =IFERROR(ROUNDDOWN(PMT((MAX(N25+Buffer,Benchmark)/12),N31-N37,-MAX(N19,N22))+N40,0),"Error") -> Error
AD15: Bullet | AK15: Bullet | AR15: =IFERROR(ROUNDDOWN(PMT(MAX(N25+Buffer,Benchmark)/12,N31,-MAX(N19,N22))+N40,0),"Error") -> Error | BK15: EXIST_LoanExp1 | BL15: EXIST_LoanMonths1 | BM15: EXIST_IOEXP1 | BN15: EXIST_IOMonths1
B16: Loan information | BK16: EXIST_LoanExp2 | BL16: EXIST_LoanMonths2 | BM16: EXIST_IOEXP2 | BN16: EXIST_IOMonths2
AD17: =IF(AND(OR(N10="N/A",N10="Select"),OR(N13="N/A",N13="Select")),IF(N31<=0,AR13,IF(N31=N37,AR15,AR14)),IF(AND(AND(N10<>"N/A",N10<>"Select"),AND(N13<>"N/A",N13<>"Select")),0,AD18)) -> 0 | BK17: EXIST_LoanExp3 | BL17: EXIST_LoanMonths3 | BM17: EXIST_IOEXP3 | BN17: EXIST_IOMonths3
AD18: =IF(OR(N10="Select",N10="N/A"),IF(N13="Term",AR12,AR11),IF(N10="IO",AR9,AR10)) -> 0 | BK18: EXIST_LoanExp4 | BL18: EXIST_LoanMonths4 | BM18: EXIST_IOEXP4 | BN18: EXIST_IOMonths4
B19: Current loan limit | AD19: =IF(MAX(N19,N22)<>0,"Yes","No") -> No | BK19: EXIST_LoanExp5 | BL19: EXIST_LoanMonths5 | BM19: EXIST_IOEXP5 | BN19: EXIST_IOMonths5
BK20: EXIST_LoanExp6 | BL20: EXIST_LoanMonths6 | BM20: EXIST_IOEXP6 | BN20: EXIST_IOMonths6
BK21: EXIST_LoanExp7 | BL21: EXIST_LoanMonths7 | BM21: EXIST_IOEXP7 | BN21: EXIST_IOMonths7
B22: Current loan balance | BK22: EXIST_LoanExp8 | BL22: EXIST_LoanMonths8 | BM22: EXIST_IOEXP8 | BN22: EXIST_IOMonths8
BK23: EXIST_LoanExp9 | BL23: EXIST_LoanMonths9 | BM23: EXIST_IOEXP9 | BN23: EXIST_IOMonths9
BK24: EXIST_LoanExp10 | BL24: EXIST_LoanMonths10 | BM24: EXIST_IOEXP10 | BN24: EXIST_IOMonths10
B25: Current rate | BK25: EXIST_LoanExp11 | BL25: EXIST_LoanMonths11 | BM25: EXIST_IOEXP11 | BN25: EXIST_IOMonths11
BK26: EXIST_LoanExp12 | BL26: EXIST_LoanMonths12 | BM26: EXIST_IOEXP12 | BN26: EXIST_IOMonths12
BK27: EXIST_LoanExp13 | BL27: EXIST_LoanMonths13 | BM27: EXIST_IOEXP13 | BN27: EXIST_IOMonths13
B28: Loan Expiry Date | J28: OR | BK28: EXIST_LoanExp14 | BL28: EXIST_LoanMonths14 | BM28: EXIST_IOEXP14 | BN28: EXIST_IOMonths14
BK29: EXIST_LoanExp15 | BL29: EXIST_LoanMonths15 | BM29: EXIST_IOEXP15 | BN29: EXIST_IOMonths15
BK30: EXIST_LoanExp16 | BL30: EXIST_LoanMonths16 | BM30: EXIST_IOEXP16 | BN30: EXIST_IOMonths16
B31: Total remaining term (in months) | BK31: EXIST_LoanExp17 | BL31: EXIST_LoanMonths17 | BM31: EXIST_IOEXP17 | BN31: EXIST_IOMonths17
BK32: EXIST_LoanExp18 | BL32: EXIST_LoanMonths18 | BM32: EXIST_IOEXP18 | BN32: EXIST_IOMonths18
BK33: EXIST_LoanExp19 | BL33: EXIST_LoanMonths19 | BM33: EXIST_IOEXP19 | BN33: EXIST_IOMonths19
B34: IO Expiry Date | J34: OR | BK34: EXIST_LoanExp20 | BL34: EXIST_LoanMonths20 | BM34: EXIST_IOEXP20 | BN34: EXIST_IOMonths20
B37: Remaining IO (in months)
B40: What is the monthly fee?
B43: Product information | AA43: 2
AD45: BIO | AK45: BIO | AR45: =IFERROR(ROUNDDOWN(MAX(N55,N58)*(MAX(N61+Buffer,Benchmark)/365*31)+N76,0),"Error") -> 0
B46: Is the loan a Reverse Mortgage / Bridging Loan? | N46: Select | AD46: BICAP | AK46: BICAP | AR46: 0
AD47: LOC No Term | AK47: LOC No Term | AR47: =IFERROR(ROUNDDOWN(PMT((MAX(N61+Buffer,Benchmark)/12),240,-MAX(N55,N58))+N76,0),"Error") -> 0
AD48: LOC Term | AK48: LOC Term | AR48: =IFERROR(ROUNDDOWN(PMT((MAX(N61+Buffer,Benchmark)/12),EXIST_LoanMonths2,-MAX(N55,N58))+N76,0),"Error") -> Error
B49: Is the loan a line of credit | N49: Select | AD49: Expired | AK49: Expired | AR49: =MAX(N55,N58) -> 0
AD50: HLIO | AK50: HLIO | AR50: =IFERROR(ROUNDDOWN(PMT((MAX(N61+Buffer,Benchmark)/12),N67-N73,-MAX(N55,N58))+N76,0),"Error") -> Error
AD51: Bullet | AK51: Bullet | AR51: =IFERROR(ROUNDDOWN(PMT(MAX(N61+Buffer,Benchmark)/12,N67,-MAX(N55,N58))+N76,0),"Error") -> Error
B52: Loan information
AD53: =IF(AND(OR(N46="N/A",N46="Select"),OR(N49="N/A",N49="Select")),IF(N67<=0,AR49,IF(N67=N73,AR51,AR50)),IF(AND(AND(N46<>"N/A",N46<>"Select"),AND(N49<>"N/A",N49<>"Select")),0,AD54)) -> 0
AD54: =IF(OR(N46="Select",N46="N/A"),IF(N49="Term",AR48,AR47),IF(N46="IO",AR45,AR46)) -> 0
B55: Current loan limit | AD55: =IF(MAX(N55,N58)<>0,"Yes","No") -> No
B58: Current loan balance
B61: Current rate
B64: Loan Expiry Date | J64: OR
B67: Total remaining term (in months)
B70: IO Expiry Date | J70: OR
B73: Remaining IO (in months)
B76: What is the monthly fee?
B79: Product information | AA79: 3
AD81: BIO | AK81: BIO | AR81: =IFERROR(ROUNDDOWN(MAX(N91,N94)*(MAX(N97+Buffer,Benchmark)/365*31)+N112,0),"Error") -> 0
B82: Is the loan a Reverse Mortgage / Bridging Loan? | N82: Select | AD82: BICAP | AK82: BICAP | AR82: 0
AD83: LOC No Term | AK83: LOC No Term | AR83: =IFERROR(ROUNDDOWN(PMT((MAX(N97+Buffer,Benchmark)/12),240,-MAX(N91,N94))+N112,0),"Error") -> 0
AD84: LOC Term | AK84: LOC Term | AR84: =IFERROR(ROUNDDOWN(PMT((MAX(N97+Buffer,Benchmark)/12),EXIST_LoanMonths3,-MAX(N91,N94))+N112,0),"Error") -> Error
B85: Is the loan a line of credit | N85: Select | AD85: Expired | AK85: Expired | AR85: =MAX(N91,N94) -> 0
AD86: HLIO | AK86: HLIO | AR86: =IFERROR(ROUNDDOWN(PMT((MAX(N97+Buffer,Benchmark)/12),N103-N109,-MAX(N91,N94))+N112,0),"Error") -> Error
AD87: Bullet | AK87: Bullet | AR87: =IFERROR(ROUNDDOWN(PMT(MAX(N97+Buffer,Benchmark)/12,N103,-MAX(N91,N94))+N112,0),"Error") -> Error
B88: Loan information
AD89: =IF(AND(OR(N82="N/A",N82="Select"),OR(N85="N/A",N85="Select")),IF(N103<=0,AR85,IF(N103=N109,AR87,AR86)),IF(AND(AND(N82<>"N/A",N82<>"Select"),AND(N85<>"N/A",N85<>"Select")),0,AD90)) -> 0
AD90: =IF(OR(N82="Select",N82="N/A"),IF(N85="Term",AR84,AR83),IF(N82="IO",AR81,AR82)) -> 0
B91: Current loan limit | AD91: =IF(MAX(N91,N94)<>0,"Yes","No") -> No
B94: Current loan balance
B97: Current rate
B100: Loan Expiry Date | J100: OR
B103: Total remaining term (in months)
B106: IO Expiry Date | J106: OR
B109: Remaining IO (in months)
B112: What is the monthly fee?
B115: Product information | AA115: 4
AD117: BIO | AK117: BIO | AR117: =IFERROR(ROUNDDOWN(MAX(N127,N130)*(MAX(N133+Buffer,Benchmark)/365*31)+N148,0),"Error") -> 0
B118: Is the loan a Reverse Mortgage / Bridging Loan? | N118: Select | AD118: BICAP | AK118: BICAP | AR118: 0
AD119: LOC No Term | AK119: LOC No Term | AR119: =IFERROR(ROUNDDOWN(PMT((MAX(N133+Buffer,Benchmark)/12),240,-MAX(N127,N130))+N148,0),"Error") -> 0
AD120: LOC Term | AK120: LOC Term | AR120: =IFERROR(ROUNDDOWN(PMT((MAX(N133+Buffer,Benchmark)/12),EXIST_LoanMonths4,-MAX(N127,N130))+N148,0),"Error") -> Error
B121: Is the loan a line of credit | N121: Select | AD121: Expired | AK121: Expired | AR121: =MAX(N127,N130) -> 0
AD122: HLIO | AK122: HLIO | AR122: =IFERROR(ROUNDDOWN(PMT((MAX(N133+Buffer,Benchmark)/12),N139-N145,-MAX(N127,N130))+N148,0),"Error") -> Error
AD123: Bullet | AK123: Bullet | AR123: =IFERROR(ROUNDDOWN(PMT(MAX(N133+Buffer,Benchmark)/12,N139,-MAX(N127,N130))+N148,0),"Error") -> Error
B124: Loan information
AD125: =IF(AND(OR(N118="N/A",N118="Select"),OR(N121="N/A",N121="Select")),IF(N139<=0,AR121,IF(N139=N145,AR123,AR122)),IF(AND(AND(N118<>"N/A",N118<>"Select"),AND(N121<>"N/A",N121<>"Select")),0,AD126)) -> 0
AD126: =IF(OR(N118="Select",N118="N/A"),IF(N121="Term",AR120,AR119),IF(N118="IO",AR117,AR118)) -> 0
B127: Current loan limit | AD127: =IF(MAX(N127,N130)<>0,"Yes","No") -> No
B130: Current loan balance
B133: Current rate
B136: Loan Expiry Date | J136: OR
B139: Total remaining term (in months)
B142: IO Expiry Date | J142: OR
B145: Remaining IO (in months)
B148: What is the monthly fee?
B151: Product information | AA151: 5
AD153: BIO | AK153: BIO | AR153: =IFERROR(ROUNDDOWN(MAX(N163,N166)*(MAX(N169+Buffer,Benchmark)/365*31)+N184,0),"Error") -> 0
B154: Is the loan a Reverse Mortgage / Bridging Loan? | N154: Select | AD154: BICAP | AK154: BICAP | AR154: 0
AD155: LOC No Term | AK155: LOC No Term | AR155: =IFERROR(ROUNDDOWN(PMT((MAX(N169+Buffer,Benchmark)/12),240,-MAX(N163,N166))+N184,0),"Error") -> 0
AD156: LOC Term | AK156: LOC Term | AR156: =IFERROR(ROUNDDOWN(PMT((MAX(N169+Buffer,Benchmark)/12),EXIST_LoanMonths5,-MAX(N163,N166))+N184,0),"Error") -> Error
B157: Is the loan a line of credit | N157: Select | AD157: Expired | AK157: Expired | AR157: =MAX(N163,N166) -> 0
AD158: HLIO | AK158: HLIO | AR158: =IFERROR(ROUNDDOWN(PMT((MAX(N169+Buffer,Benchmark)/12),N175-N181,-MAX(N163,N166))+N184,0),"Error") -> Error
AD159: Bullet | AK159: Bullet | AR159: =IFERROR(ROUNDDOWN(PMT(MAX(N169+Buffer,Benchmark)/12,N175,-MAX(N163,N166))+N184,0),"Error") -> Error
B160: Loan information
AD161: =IF(AND(OR(N154="N/A",N154="Select"),OR(N157="N/A",N157="Select")),IF(N175<=0,AR157,IF(N175=N181,AR159,AR158)),IF(AND(AND(N154<>"N/A",N154<>"Select"),AND(N157<>"N/A",N157<>"Select")),0,AD162)) -> 0
AD162: =IF(OR(N154="Select",N154="N/A"),IF(N157="Term",AR156,AR155),IF(N154="IO",AR153,AR154)) -> 0
B163: Current loan limit | AD163: =IF(MAX(N163,N166)<>0,"Yes","No") -> No
B166: Current loan balance
B169: Current rate
B172: Loan Expiry Date | J172: OR
B175: Total remaining term (in months)
B178: IO Expiry Date | J178: OR
B181: Remaining IO (in months)
B184: What is the monthly fee?
B187: Product information | AA187: 6
AD189: BIO | AK189: BIO | AR189: =IFERROR(ROUNDDOWN(MAX(N199,N202)*(MAX(N205+Buffer,Benchmark)/365*31)+N220,0),"Error") -> 0
B190: Is the loan a Reverse Mortgage / Bridging Loan? | N190: Select | AD190: BICAP | AK190: BICAP | AR190: 0
AD191: LOC No Term | AK191: LOC No Term | AR191: =IFERROR(ROUNDDOWN(PMT((MAX(N205+Buffer,Benchmark)/12),240,-MAX(N199,N202))+N220,0),"Error") -> 0
AD192: LOC Term | AK192: LOC Term | AR192: =IFERROR(ROUNDDOWN(PMT((MAX(N205+Buffer,Benchmark)/12),EXIST_LoanMonths6,-MAX(N199,N202))+N220,0),"Error") -> Error
B193: Is the loan a line of credit | N193: Select | AD193: Expired | AK193: Expired | AR193: =MAX(N199,N202) -> 0
AD194: HLIO | AK194: HLIO | AR194: =IFERROR(ROUNDDOWN(PMT((MAX(N205+Buffer,Benchmark)/12),N211-N217,-MAX(N199,N202))+N220,0),"Error") -> Error
AD195: Bullet | AK195: Bullet | AR195: =IFERROR(ROUNDDOWN(PMT(MAX(N205+Buffer,Benchmark)/12,N211,-MAX(N199,N202))+N220,0),"Error") -> Error
B196: Loan information
AD197: =IF(AND(OR(N190="N/A",N190="Select"),OR(N193="N/A",N193="Select")),IF(N211<=0,AR193,IF(N211=N217,AR195,AR194)),IF(AND(AND(N190<>"N/A",N190<>"Select"),AND(N193<>"N/A",N193<>"Select")),0,AD198)) -> 0
AD198: =IF(OR(N190="Select",N190="N/A"),IF(N193="Term",AR192,AR191),IF(N190="IO",AR189,AR190)) -> 0
B199: Current loan limit | AD199: =IF(MAX(N199,N202)<>0,"Yes","No") -> No
B202: Current loan balance
B205: Current rate
B208: Loan Expiry Date | J208: OR
B211: Total remaining term (in months)
B214: IO Expiry Date | J214: OR
B217: Remaining IO (in months)
B220: What is the monthly fee?
B223: Product information | AA223: 7
AD225: BIO | AK225: BIO | AR225: =IFERROR(ROUNDDOWN(MAX(N235,N238)*(MAX(N241+Buffer,Benchmark)/365*31)+N256,0),"Error") -> 0
B226: Is the loan a Reverse Mortgage / Bridging Loan? | N226: Select | AD226: BICAP | AK226: BICAP | AR226: 0
AD227: LOC No Term | AK227: LOC No Term | AR227: =IFERROR(ROUNDDOWN(PMT((MAX(N241+Buffer,Benchmark)/12),240,-MAX(N235,N238))+N256,0),"Error") -> 0
AD228: LOC Term | AK228: LOC Term | AR228: =IFERROR(ROUNDDOWN(PMT((MAX(N241+Buffer,Benchmark)/12),EXIST_LoanMonths7,-MAX(N235,N238))+N256,0),"Error") -> Error
B229: Is the loan a line of credit | N229: Select | AD229: Expired | AK229: Expired | AR229: =MAX(N235,N238) -> 0
AD230: HLIO | AK230: HLIO | AR230: =IFERROR(ROUNDDOWN(PMT((MAX(N241+Buffer,Benchmark)/12),N247-N253,-MAX(N235,N238))+N256,0),"Error") -> Error
AD231: Bullet | AK231: Bullet | AR231: =IFERROR(ROUNDDOWN(PMT(MAX(N241+Buffer,Benchmark)/12,N247,-MAX(N235,N238))+N256,0),"Error") -> Error
B232: Loan information
AD233: =IF(AND(OR(N226="N/A",N226="Select"),OR(N229="N/A",N229="Select")),IF(N247<=0,AR229,IF(N247=N253,AR231,AR230)),IF(AND(AND(N226<>"N/A",N226<>"Select"),AND(N229<>"N/A",N229<>"Select")),0,AD234)) -> 0
AD234: =IF(OR(N226="Select",N226="N/A"),IF(N229="Term",AR228,AR227),IF(N226="IO",AR225,AR226)) -> 0
B235: Current loan limit | AD235: =IF(MAX(N235,N238)<>0,"Yes","No") -> No
B238: Current loan balance
B241: Current rate
B244: Loan Expiry Date | J244: OR
B247: Total remaining term (in months)
B250: IO Expiry Date | J250: OR
B253: Remaining IO (in months)
B256: What is the monthly fee?
B259: Product information | AA259: 8
AD261: BIO | AK261: BIO | AR261: =IFERROR(ROUNDDOWN(MAX(N271,N274)*(MAX(N277+Buffer,Benchmark)/365*31)+N292,0),"Error") -> 0
B262: Is the loan a Reverse Mortgage / Bridging Loan? | N262: Select | AD262: BICAP | AK262: BICAP | AR262: 0
AD263: LOC No Term | AK263: LOC No Term | AR263: =IFERROR(ROUNDDOWN(PMT((MAX(N277+Buffer,Benchmark)/12),240,-MAX(N271,N274))+N292,0),"Error") -> 0
AD264: LOC Term | AK264: LOC Term | AR264: =IFERROR(ROUNDDOWN(PMT((MAX(N277+Buffer,Benchmark)/12),EXIST_LoanMonths8,-MAX(N271,N274))+N292,0),"Error") -> Error
B265: Is the loan a line of credit | N265: Select | AD265: Expired | AK265: Expired | AR265: =MAX(N271,N274) -> 0
AD266: HLIO | AK266: HLIO | AR266: =IFERROR(ROUNDDOWN(PMT((MAX(N277+Buffer,Benchmark)/12),N283-N289,-MAX(N271,N274))+N292,0),"Error") -> Error
AD267: Bullet | AK267: Bullet | AR267: =IFERROR(ROUNDDOWN(PMT(MAX(N277+Buffer,Benchmark)/12,N283,-MAX(N271,N274))+N292,0),"Error") -> Error
B268: Loan information
AD269: =IF(AND(OR(N262="N/A",N262="Select"),OR(N265="N/A",N265="Select")),IF(N283<=0,AR265,IF(N283=N289,AR267,AR266)),IF(AND(AND(N262<>"N/A",N262<>"Select"),AND(N265<>"N/A",N265<>"Select")),0,AD270)) -> 0
AD270: =IF(OR(N262="Select",N262="N/A"),IF(N265="Term",AR264,AR263),IF(N262="IO",AR261,AR262)) -> 0
B271: Current loan limit | AD271: =IF(MAX(N271,N274)<>0,"Yes","No") -> No
B274: Current loan balance
B277: Current rate
B280: Loan Expiry Date | J280: OR
B283: Total remaining term (in months)
B286: IO Expiry Date | J286: OR
B289: Remaining IO (in months)
B292: What is the monthly fee?
B295: Product information | AA295: 9
AD297: BIO | AK297: BIO | AR297: =IFERROR(ROUNDDOWN(MAX(N307,N310)*(MAX(N313+Buffer,Benchmark)/365*31)+N328,0),"Error") -> 0
B298: Is the loan a Reverse Mortgage / Bridging Loan? | N298: Select | AD298: BICAP | AK298: BICAP | AR298: 0
AD299: LOC No Term | AK299: LOC No Term | AR299: =IFERROR(ROUNDDOWN(PMT((MAX(N313+Buffer,Benchmark)/12),240,-MAX(N307,N310))+N328,0),"Error") -> 0
AD300: LOC Term | AK300: LOC Term | AR300: =IFERROR(ROUNDDOWN(PMT((MAX(N313+Buffer,Benchmark)/12),EXIST_LoanMonths9,-MAX(N307,N310))+N328,0),"Error") -> Error
B301: Is the loan a line of credit | N301: Select | AD301: Expired | AK301: Expired | AR301: =MAX(N307,N310) -> 0
AD302: HLIO | AK302: HLIO | AR302: =IFERROR(ROUNDDOWN(PMT((MAX(N313+Buffer,Benchmark)/12),N319-N325,-MAX(N307,N310))+N328,0),"Error") -> Error
AD303: Bullet | AK303: Bullet | AR303: =IFERROR(ROUNDDOWN(PMT(MAX(N313+Buffer,Benchmark)/12,N319,-MAX(N307,N310))+N328,0),"Error") -> Error
B304: Loan information
AD305: =IF(AND(OR(N298="N/A",N298="Select"),OR(N301="N/A",N301="Select")),IF(N319<=0,AR301,IF(N319=N325,AR303,AR302)),IF(AND(AND(N298<>"N/A",N298<>"Select"),AND(N301<>"N/A",N301<>"Select")),0,AD306)) -> 0
AD306: =IF(OR(N298="Select",N298="N/A"),IF(N301="Term",AR300,AR299),IF(N298="IO",AR297,AR298)) -> 0
B307: Current loan limit | AD307: =IF(MAX(N307,N310)<>0,"Yes","No") -> No
B310: Current loan balance
B313: Current rate
B316: Loan Expiry Date | J316: OR
B319: Total remaining term (in months)
B322: IO Expiry Date | J322: OR
B325: Remaining IO (in months)
B328: What is the monthly fee?
B331: Product information | AA331: 10
AD333: BIO | AK333: BIO | AR333: =IFERROR(ROUNDDOWN(MAX(N343,N346)*(MAX(N349+Buffer,Benchmark)/365*31)+N364,0),"Error") -> 0
B334: Is the loan a Reverse Mortgage / Bridging Loan? | N334: Select | AD334: BICAP | AK334: BICAP | AR334: 0
AD335: LOC No Term | AK335: LOC No Term | AR335: =IFERROR(ROUNDDOWN(PMT((MAX(N349+Buffer,Benchmark)/12),240,-MAX(N343,N346))+N364,0),"Error") -> 0
AD336: LOC Term | AK336: LOC Term | AR336: =IFERROR(ROUNDDOWN(PMT((MAX(N349+Buffer,Benchmark)/12),EXIST_LoanMonths10,-MAX(N343,N346))+N364,0),"Error") -> Error
B337: Is the loan a line of credit | N337: Select | AD337: Expired | AK337: Expired | AR337: =MAX(N343,N346) -> 0
AD338: HLIO | AK338: HLIO | AR338: =IFERROR(ROUNDDOWN(PMT((MAX(N349+Buffer,Benchmark)/12),N355-N361,-MAX(N343,N346))+N364,0),"Error") -> Error
AD339: Bullet | AK339: Bullet | AR339: =IFERROR(ROUNDDOWN(PMT(MAX(N349+Buffer,Benchmark)/12,N355,-MAX(N343,N346))+N364,0),"Error") -> Error
B340: Loan information
AD341: =IF(AND(OR(N334="N/A",N334="Select"),OR(N337="N/A",N337="Select")),IF(N355<=0,AR337,IF(N355=N361,AR339,AR338)),IF(AND(AND(N334<>"N/A",N334<>"Select"),AND(N337<>"N/A",N337<>"Select")),0,AD342)) -> 0
AD342: =IF(OR(N334="Select",N334="N/A"),IF(N337="Term",AR336,AR335),IF(N334="IO",AR333,AR334)) -> 0
B343: Current loan limit | AD343: =IF(MAX(N343,N346)<>0,"Yes","No") -> No
B346: Current loan balance
B349: Current rate
... 195 more rows

Sheet Change Page (hidden)
A1: Henderson's Poverty Index (HPI) Table as at 16/07/2011 | E1: Debt Repayent Calculation Rates | G1: Lookup | L1: Income Shading
A2: Dependants | B2: Table 1 | C2: Table 2 | E2: Floor | F2: 0.0535 | L2: Base | N2: 1
A3: 0 | B3: 1297 | C3: 1885 | E3: Buffer | F3: 0.025 | L3: Non-Base | N3: 0.8
A4: =SUM(A3+1) -> 1 | B4: 1781 | C4: 2344 | E4: Credit Cards | F4: 3.8 | G4: Credit | H4: Yes | L4: Bonus | N4: 0.8
A5: =SUM(A4+1) -> 2 | B5: 2239 | C5: 2802 | D5: =(C5-C4)*NonBaseShade -> 1900-12-31T09:36:00 | E5: Store Cards | F5: 3.8 | G5: Store | H5: No | L5: Interest | N5: 0.8
A6: 3 | B6: 2698 | C6: =IFERROR(SUM(Y6,Y12,Y19,Y26,Y33,Y40,AH4,AH8,AH13,AH18,AH23,AH28,AQ5),0) -> 0 | D6: =IF(C6<C5,0,(C6-C5)*BonusShade) -> 00:00:00 | E6: Charge Cards | F6: 3.8 | G6: Charge | H6: No | L6: Dividends | N6: 0.8
A7: =SUM(A6+1) -> 4 | B7: 3156 | C7: 3713 | E7: Margin Loans | F7: 1 | G7: Margin | H7: Yes | L7: Other | N7: 0.8
A8: 5 | B8: 3456 | C8: 4013 | E8: Overdrafts | F8: 3.8 | G8: Overdraft | H8: Yes | L8: Standard Rent | M8: No | N8: 0.8
A9: 6 | B9: 3756 | C9: 4313 | E9: Other | F9: 3.8 | G9: Other | H9: No | L9: Special Rent | M9: Yes | N9: 0.6
A10: 7 | B10: 4056 | C10: 4613 | E10: Pipeline | F10: 3 | G10: Pipeline | H10: No
A11: 8 | B11: 4356 | C11: 4913
A12: 9 | B12: 4656 | C12: 5213
A13: 10 | B13: 4956 | C13: 5513
C14: =SUM(D4:D9,C10) -> 1913-08-18T09:36:00
A17: Income Tax Thresholds as at | D17: 2019-07-01 | E17: Notional Rent Value
A18: Min | B18: Max | C18: Max (Previous Bracket) | D18: Rate (%) per dollar | E18: Amount | F18: Per
A19: 0 | B19: 18200 | C19: 0 | D19: 0 | E19: 650 | F19: Applicant
A20: 18201 | B20: 37000 | C20: =(B20-B19)*D19 -> 0 | D20: 0.19
A21: 37001 | B21: 90000 | C21: =(B20-B19)*D20 -> 3572 | D21: 0.325 | E21: LVR Calculator | F21: 80
A22: 90001 | B22: 180000 | C22: =((B21-B20)*D21)+C21 -> 20797 | D22: 0.37
A23: 180001 | C23: =((B22-B21)*D22)+C22 -> 54097 | D23: 0.45
C24: =IFERROR(SUM(C7:C10)+C22,0) -> 37449 | P24: =IFERROR(SUM(P7:P10)+P22,0) -> 00:00:00 | S24: =IFERROR(SUM(S7:S10)+S22,0) -> 00:00:00
A25: ="" -> 
A27: Medicare Thresholds as at | D27: 2019-07-01
A28: Min | B28: Max | C28: Max (Previous Bracket) | D28: Rate (%) per dollar
A29: 0 | B29: 21980 | C29: 0 | D29: 0
A30: 21981 | B30: 27475 | C30: 0 | D30: 0.1
A31: 27476 | C31: =(A31-A30)*D30 -> 549.5 | D31: 0.02
E34: Married to Another App
A35: HECS/TSL Thresholds as at | C35: 2019-07-01
A36: Min | B36: Max | C36: Rate (%) per dollar | E36: New Assess | K36: Data Error
A37: 0 | B37: 45880 | C37: 0 | F37: Type | G37: Marital Status | H37: Num. Dependants | J37: Income Band | K37: JointSpouse | L37: Kid Check | N37: Single | O37: Single
A38: 45881 | B38: 52973 | C38: 0.01 | E38: Applicant 1 | F38: =IF('Serviceability Calculator'!Assess_App1Postcode="","",IF(IFERROR(VLOOKUP(INT('Serviceability Calculator'!Assess_App1Postcode),PostCodes!$A:$B,2,FALSE),1)=1,"ROA","Remote")) ->  | G38: =IF(AND('Serviceability Calculator'!Assess_App1Marital<>"Single",'Serviceability Calculator'!Assess_App1Joint="Yes"),$O$38,IF(AND('Serviceability Calculator'!Assess_App1Marital<>"Single",OR('Serviceability Calculator'!Assess_App1Joint="No",'Serviceability Calculator'!Assess_App1Joint="")),$O$39,$O$37)) -> JointOthers | H38: ='Serviceability Calculator'!Assess_App1Dependants -> 0 | J38: =VLOOKUP(H54,HEM_Bands,2) -> A | K38: =IF(G38="JointSpouse",IF(G39="JointSpouse",FALSE,TRUE),FALSE) -> FALSE | L38: =IF(G38="JointSpouse",IF((AND(G39="JointSpouse",H38=H39)),FALSE,TRUE),FALSE) -> FALSE | N38: Married to Another App | O38: JointSpouse
A39: 52974 | B39: 56151 | C39: 0.02 | E39: Applicant 2 | F39: =IF('Serviceability Calculator'!Assess_App2Postcode="","",IF(IFERROR(VLOOKUP(INT('Serviceability Calculator'!Assess_App2Postcode),PostCodes!$A:$B,2,FALSE),1)=1,"ROA","Remote")) ->  | G39: =IF(AND('Serviceability Calculator'!Assess_App2Marital<>"Single",'Serviceability Calculator'!Assess_App2Joint="Yes"),$O$38,IF(AND('Serviceability Calculator'!Assess_App2Marital<>"Single",OR('Serviceability Calculator'!Assess_App2Joint="No",'Serviceability Calculator'!Assess_App2Joint="")),$O$39,$O$37)) -> JointOthers | H39: ='Serviceability Calculator'!Assess_App2Dependants -> 0 | J39: A | K39: =IF(G39="JointSpouse",IF(OR(G38="JointSpouse",G40="JointSpouse"),FALSE,TRUE),FALSE) -> FALSE | L39: =IF(G39="JointSpouse",IF(OR(AND(G38="JointSpouse",H39=H38),AND(G40="JointSpouse",H39=H40)),FALSE,TRUE),FALSE) -> FALSE | M39: Married Check | N39: Married, but not to App's | O39: JointOthers
A40: 56152 | B40: 59521 | C40: 0.025 | E40: Applicant 3 | F40: =IF('Serviceability Calculator'!Assess_App3Postcode="","",IF(IFERROR(VLOOKUP(INT('Serviceability Calculator'!Assess_App3Postcode),PostCodes!$A:$B,2,FALSE),1)=1,"ROA","Remote")) ->  | G40: =IF(AND('Serviceability Calculator'!Assess_App3Marital<>"Single",'Serviceability Calculator'!Assess_App3Joint="Yes"),$O$38,IF(AND('Serviceability Calculator'!Assess_App3Marital<>"Single",OR('Serviceability Calculator'!Assess_App3Joint="No",'Serviceability Calculator'!Assess_App3Joint="")),$O$39,$O$37)) -> JointOthers | H40: ='Serviceability Calculator'!Assess_App3Dependants -> 0 | J40: A | K40: =IF(G40="JointSpouse",IF(OR(G39="JointSpouse",G41="JointSpouse"),FALSE,TRUE),FALSE) -> FALSE | L40: =IF(G40="JointSpouse",IF(OR(AND(G39="JointSpouse",H40=H39),AND(G41="JointSpouse",H40=H41)),FALSE,TRUE),FALSE) -> FALSE | M40: =IF(ISEVEN(COUNTIF(G38:G43,"JointSpouse")),TRUE,FALSE) -> TRUE
A41: 59522 | B41: 63092 | C41: 0.03 | E41: Applicant 4 | F41: =IF('Serviceability Calculator'!Assess_App4Postcode="","",IF(IFERROR(VLOOKUP(INT('Serviceability Calculator'!Assess_App4Postcode),PostCodes!$A:$B,2,FALSE),1)=1,"ROA","Remote")) ->  | G41: =IF(AND('Serviceability Calculator'!Assess_App4Marital<>"Single",'Serviceability Calculator'!Assess_App4Joint="Yes"),$O$38,IF(AND('Serviceability Calculator'!Assess_App4Marital<>"Single",OR('Serviceability Calculator'!Assess_App4Joint="No",'Serviceability Calculator'!Assess_App4Joint="")),$O$39,$O$37)) -> JointOthers | H41: ='Serviceability Calculator'!Assess_App4Dependants -> 0 | J41: A | K41: =IF(G41="JointSpouse",IF(OR(G40="JointSpouse",G42="JointSpouse"),FALSE,TRUE),FALSE) -> FALSE | L41: =IF(G41="JointSpouse",IF(OR(AND(G40="JointSpouse",H41=H40),AND(G42="JointSpouse",H41=H42)),FALSE,TRUE),FALSE) -> FALSE
A42: 63093 | B42: 66877 | C42: 0.035 | E42: Applicant 5 | F42: =IF('Serviceability Calculator'!Assess_App5Postcode="","",IF(IFERROR(VLOOKUP(INT('Serviceability Calculator'!Assess_App5Postcode),PostCodes!$A:$B,2,FALSE),1)=1,"ROA","Remote")) ->  | G42: =IF(AND('Serviceability Calculator'!Assess_App5Marital<>"Single",'Serviceability Calculator'!Assess_App5Joint="Yes"),$O$38,IF(AND('Serviceability Calculator'!Assess_App5Marital<>"Single",OR('Serviceability Calculator'!Assess_App5Joint="No",'Serviceability Calculator'!Assess_App5Joint="")),$O$39,$O$37)) -> JointOthers | H42: ='Serviceability Calculator'!Assess_App5Dependants -> 0 | J42: A | K42: =IF(G42="JointSpouse",IF(OR(G41="JointSpouse",G43="JointSpouse"),FALSE,TRUE),FALSE) -> FALSE | L42: =IF(G42="JointSpouse",IF(OR(AND(G41="JointSpouse",H42=H41),AND(G43="JointSpouse",H42=H43)),FALSE,TRUE),FALSE) -> FALSE | M42: Kid Check
A43: 66878 | B43: 70890 | C43: 0.04 | E43: Applicant 6 | F43: =IF('Serviceability Calculator'!Assess_App6Postcode="","",IF(IFERROR(VLOOKUP(INT('Serviceability Calculator'!Assess_App6Postcode),PostCodes!$A:$B,2,FALSE),1)=1,"ROA","Remote")) ->  | G43: =IF(AND('Serviceability Calculator'!Assess_App6Marital<>"Single",'Serviceability Calculator'!Assess_App6Joint="Yes"),$O$38,IF(AND('Serviceability Calculator'!Assess_App6Marital<>"Single",OR('Serviceability Calculator'!Assess_App6Joint="No",'Serviceability Calculator'!Assess_App6Joint="")),$O$39,$O$37)) -> JointOthers | H43: ='Serviceability Calculator'!Assess_App6Dependants -> 0 | J43: A | K43: =IF(G43="JointSpouse",IF(G42="JointSpouse",FALSE,TRUE),FALSE) -> FALSE | L43: =IF(AND(G43="JointSpouse",OR(AND(G43="JointSpouse",G42="JointSpouse",H43=H42),AND(G43="JointSpouse",G42="JointSpouse",H43=G42))=FALSE),TRUE) -> FALSE | M43: =IF(L38:L43=TRUE,TRUE,FALSE) -> FALSE | O43: No of Dependants must be the same
A44: 70891 | B44: 75144 | C44: 0.045
A45: 75145 | B45: 79652 | C45: 0.05 | F45: ID | J45: HEM Value | K45: Income | L45: Band Difference | M45: 2nd Band | N45: Extrapolated HEM
A46: 79653 | B46: 84432 | C46: 0.055 | E46: Applicant 1 | F46: =F38&"_"&G38&"_"&H38&"_"&J38 -> _JointOthers_0_A | J46: =IFERROR(IF(N46>0, N46, VLOOKUP(F46,HEM_Lookup,2,FALSE)),"") ->  | K46: =H54 -> 0 | L46: =IF(J38="U", VLOOKUP(MID(F46,1,LEN(F46)-2),'HEM Working'!$D$5:$AB$76,25,FALSE),0) -> 0 | M46: =IF(J38="U", VLOOKUP(MID(F46,1,LEN(F46)-2),'HEM Working'!$D$5:$AA$76,16,FALSE),0) -> 0 | N46: =IF(J38="U", ROUND((K46/HEM_Midpoint)*'Change Page'!L46+M46,0), 0) -> 0
A47: 84433 | B47: 89498 | C47: 0.06 | E47: Applicant 2 | F47: _JointOthers_0_A | K47: 0 | L47: =IF(J39="U", VLOOKUP(MID(F47,1,LEN(F47)-2),'HEM Working'!$D$5:$AB$76,25,FALSE),0) -> 0 | M47: =IF(J39="U", VLOOKUP(MID(F47,1,LEN(F47)-2),'HEM Working'!$D$5:$AA$76,16,FALSE),0) -> 0 | N47: =IF(J39="U", ROUND((K47/HEM_Midpoint)*'Change Page'!L47+M47,0), 0) -> 0
A48: 89499 | B48: 94868 | C48: 0.065 | E48: Applicant 3 | F48: _JointOthers_0_A | K48: 0 | L48: =IF(J40="U", VLOOKUP(MID(F48,1,LEN(F48)-2),'HEM Working'!$D$5:$AB$76,25,FALSE),0) -> 0 | M48: =IF(J40="U", VLOOKUP(MID(F48,1,LEN(F48)-2),'HEM Working'!$D$5:$AA$76,16,FALSE),0) -> 0 | N48: =IF(J40="U", ROUND((K48/HEM_Midpoint)*'Change Page'!L48+M48,0), 0) -> 0
A49: 94869 | B49: 100560 | C49: 0.07 | E49: Applicant 4 | F49: _JointOthers_0_A | K49: 0 | L49: =IF(J41="U", VLOOKUP(MID(F49,1,LEN(F49)-2),'HEM Working'!$D$5:$AB$76,25,FALSE),0) -> 0 | M49: =IF(J41="U", VLOOKUP(MID(F49,1,LEN(F49)-2),'HEM Working'!$D$5:$AA$76,16,FALSE),0) -> 0 | N49: =IF(J41="U", ROUND((K49/HEM_Midpoint)*'Change Page'!L49+M49,0), 0) -> 0
A50: 100561 | B50: 106593 | C50: 0.075 | E50: Applicant 5 | F50: _JointOthers_0_A | K50: 0 | L50: =IF(J42="U", VLOOKUP(MID(F50,1,LEN(F50)-2),'HEM Working'!$D$5:$AB$76,25,FALSE),0) -> 0 | M50: =IF(J42="U", VLOOKUP(MID(F50,1,LEN(F50)-2),'HEM Working'!$D$5:$AA$76,16,FALSE),0) -> 0 | N50: =IF(J42="U", ROUND((K50/HEM_Midpoint)*'Change Page'!L50+M50,0), 0) -> 0
A51: 106594 | B51: 112989 | C51: 0.08 | E51: Applicant 6 | F51: _JointOthers_0_A | K51: 0 | L51: =IF(J43="U", VLOOKUP(MID(F51,1,LEN(F51)-2),'HEM Working'!$D$5:$AB$76,25,FALSE),0) -> 0 | M51: =IF(J43="U", VLOOKUP(MID(F51,1,LEN(F51)-2),'HEM Working'!$D$5:$AA$76,16,FALSE),0) -> 0 | N51: =IF(J43="U", ROUND((K51/HEM_Midpoint)*'Change Page'!L51+M51,0), 0) -> 0
A52: 112990 | B52: 119769 | C52: 0.085
A53: 119770 | B53: 126955 | C53: 0.09 | G53: Income1 | H53: Income2
A54: 126956 | B54: 134572 | C54: 0.095 | E54: Applicant 1 | F54: =IF(AND('Serviceability Calculator'!Assess_App1Marital<>"Single",'Serviceability Calculator'!Assess_App1Joint="Yes"),'Change Page'!$E$62,"") ->  | G54: ='Serviceability Calculator'!Assess_App1TotalGross -> 0 | H54: =IF(F54=$E$34,SUMIF($F$54:$F$59,$E$34,$G$54:$G$59),G54) -> 0
A55: 134573 | C55: 0.1 | E55: Applicant 2 | F55: =IF(AND('Serviceability Calculator'!Assess_App2Marital<>"Single",'Serviceability Calculator'!Assess_App2Joint="Yes"),'Change Page'!$E$62,"") ->  | G55: ='Serviceability Calculator'!Assess_App2TotalGross -> 0 | H55: 0 | K55: =28741*12 -> 344892 | L55: =K46-K55 -> -344892
E56: Applicant 3 | F56: =IF(AND('Serviceability Calculator'!Assess_App3Marital<>"Single",'Serviceability Calculator'!Assess_App3Joint="Yes"),'Change Page'!$E$62,"") ->  | G56: ='Serviceability Calculator'!Assess_App3TotalGross -> 0 | H56: 0
E57: Applicant 4 | F57: =IF(AND('Serviceability Calculator'!Assess_App4Marital<>"Single",'Serviceability Calculator'!Assess_App4Joint="Yes"),'Change Page'!$E$62,"") ->  | G57: ='Serviceability Calculator'!Assess_App4TotalGross -> 0 | H57: 0
A58: Payslip Age | B58: 8 | C58: weekly | E58: Applicant 5 | F58: =IF(AND('Serviceability Calculator'!Assess_App5Marital<>"Single",'Serviceability Calculator'!Assess_App5Joint="Yes"),'Change Page'!$E$62,"") ->  | G58: ='Serviceability Calculator'!Assess_App5TotalGross -> 0 | H58: 0
B59: =B58*VLOOKUP(C58,Reference!K6:M13,3,FALSE) -> 56 | C59: days | E59: Applicant 6 | F59: =IF(AND('Serviceability Calculator'!Assess_App6Marital<>"Single",'Serviceability Calculator'!Assess_App6Joint="Yes"),'Change Page'!$E$62,"") ->  | G59: ='Serviceability Calculator'!Assess_App6totalGross -> 0 | H59: 0
E62: Married to Another App

Sheet Calculations (hidden)
B2: Income Threshold | C2: Equivalent Net income thresholds >? | D2: Income | E2: Tax | F2: Medicare | G2: Threshold | K2: Income Threshold >? | L2: Tax rate | M2: Tax constant
B3: =B19 -> 0 | C3: =C19 -> 0 | D3: =G28 ->  | E3: 0 | F3: 0 | G3: =IF(AND($G$28>=C19,$G$28<C20),1,0) ->  | K3: =B3 -> 0 | L3: 0 | M3: 0
B4: =J19 -> 18201 | C4: =C20 -> 18200.81 | D4: =(G28-K4*L4)/(1-L4) ->  | E4: =(G15-K4)*L4 ->  | F4: 0 | G4: =IF(AND($G$28>=C20,$G$28<C21),1,0) ->  | K4: ='Change Page'!A20 -> 18201 | L4: ='Change Page'!D20 -> 0.19 | M4: =(K4-K3)*L3+M3 -> 0
B5: 21981 | C5: 21262.51 | D5: =(G28-K4*L4-K12*L12)/(1-L4-L12) ->  | E5: =(G15-K4)*L4 ->  | F5: =(G15-K13)*L13 ->  | G5: =IF(AND($G$28>=C21,$G$28<C22),1,0) ->  | K5: ='Change Page'!A21 -> 37001 | L5: ='Change Page'!D21 -> 0.325 | M5: =(K5-K4)*L4+M4 -> 3572
B6: 27476 | C6: 25164.04 | D6: =(G28-K4*L4)/(1-L4-L13) ->  | E6: =(G15-K4)*L4 ->  | F6: =G15*$L$14 ->  | G6: =IF(AND($G$28>=C22,$G$28<C23),1,0) ->  | K6: ='Change Page'!A22 -> 90001 | L6: ='Change Page'!D22 -> 0.37 | M6: =(K6-K5)*L5+M5 -> 20797
B7: 37001 | C7: 32688.655 | D7: =(G28-K5*L5+M5)/(1-L5-$L$13) ->  | E7: =(G15-K5)*L5+M5 ->  | F7: =MAX(F4:F6) ->  | G7: =IF(AND($G$28>=C23,$G$28<C24),1,0) ->  | K7: ='Change Page'!A23 -> 180001 | L7: ='Change Page'!D23 -> 0.45 | M7: =(K7-K6)*L6+M6 -> 54097 | R7: =MAX(R4:R6) -> 0
B8: 90001 | C8: 67403.61 | D8: =(G28-K6*L6+M6)/(1-L6-$L$13) ->  | E8: =(G15-K5)*L5+M5 ->  | F8: =G15*$L$14 ->  | G8: =IF(AND($G$28>=C23,$G$28<C24),1,0) -> 
B9: 180001 | C9: 122303.53 | D9: =(G28-K7*L7+M7)/(1-L7-$L$13) ->  | E9: =(G15-K6)*L6+M6 ->  | F9: =G15*$L$14 ->  | G9: =IF(AND($G$28>=C24,$G$28<C25),1,0) -> 
K10: Medicare
K11: Income Threshold | L11: Tax rate
D12: Tax | G12: =SUMPRODUCT(E3:E10,G3:G10) ->  | K12: 0 | L12: 0
D13: Medicare | G13: =SUMPRODUCT(F3:F10,G3:G10) ->  | K13: ='Change Page'!A30 -> 21981 | L13: ='Change Page'!D30 -> 0.1
K14: ='Change Page'!A31 -> 27476 | L14: ='Change Page'!D31 -> 0.02
C15: =SUM(D4:D10,C11) ->  | D15: Income | G15: =SUMPRODUCT(D3:D10,G3:G10) -> 
B18: Income Threshold | C18: Equivalent Net income thresholds >? | D18: Tax | E18: Medicare
B19: 0 | C19: 0 | D19: 0 | E19: 0 | G19: 1 | H19: ='Change Page'!A20 -> 18201 | I19: =RANK(H19,$H$19:$H$24,1) -> 1 | J19: =INDEX($G$19:$I$24,MATCH(G19,$I$19:$I$24,0),2) -> 18201
B20: =J19 -> 18201 | C20: =B20-D20-E20 -> 18200.81 | D20: =IF(B20<'Change Page'!$B$19,0,VLOOKUP(B20,'Change Page'!$A$19:$D$23,3)+(((B20)-(VLOOKUP(B20,'Change Page'!$A$19:$D$23,1)-1))*VLOOKUP(B20,'Change Page'!$A$19:$D$23,4))) -> 0.19 | E20: =IF(B20<'Change Page'!$B$29,0,IF(B20>'Change Page'!$A$31,(B20)*VLOOKUP(B20,'Change Page'!$A$29:$D$31,4),VLOOKUP(B20,'Change Page'!$A$29:$D$31,3)+(((B20)-(VLOOKUP(B20,'Change Page'!$A$29:$D$31,1)-1))*VLOOKUP(B20,'Change Page'!$A$29:$D$31,4)))) -> 0 | G20: 2 | H20: ='Change Page'!A21 -> 37001 | I20: 4 | J20: 21981
B21: 21981 | C21: 21262.51 | D21: =IF(B21<'Change Page'!$B$19,0,VLOOKUP(B21,'Change Page'!$A$19:$D$23,3)+(((B21)-(VLOOKUP(B21,'Change Page'!$A$19:$D$23,1)-1))*VLOOKUP(B21,'Change Page'!$A$19:$D$23,4))) -> 718.39 | E21: =IF(B21<'Change Page'!$B$29,0,IF(B21>'Change Page'!$A$31,(B21)*VLOOKUP(B21,'Change Page'!$A$29:$D$31,4),VLOOKUP(B21,'Change Page'!$A$29:$D$31,3)+(((B21)-(VLOOKUP(B21,'Change Page'!$A$29:$D$31,1)-1))*VLOOKUP(B21,'Change Page'!$A$29:$D$31,4)))) -> 0.1 | G21: 3 | H21: ='Change Page'!A22 -> 90001 | I21: 5 | J21: =INDEX($G$19:$I$24,MATCH(G21,$I$19:$I$24,0),2) -> 27476
B22: 27476 | C22: 25164.04 | D22: =IF(B22<'Change Page'!$B$19,0,VLOOKUP(B22,'Change Page'!$A$19:$D$23,3)+(((B22)-(VLOOKUP(B22,'Change Page'!$A$19:$D$23,1)-1))*VLOOKUP(B22,'Change Page'!$A$19:$D$23,4))) -> 1762.44 | E22: =IF(B22<'Change Page'!$B$29,0,IF(B22>'Change Page'!$A$31,(B22)*VLOOKUP(B22,'Change Page'!$A$29:$D$31,4),VLOOKUP(B22,'Change Page'!$A$29:$D$31,3)+(((B22)-(VLOOKUP(B22,'Change Page'!$A$29:$D$31,1)-1))*VLOOKUP(B22,'Change Page'!$A$29:$D$31,4)))) -> 549.52 | G22: 4 | H22: ='Change Page'!A23 -> 180001 | I22: 6 | J22: 37001
B23: 37001 | C23: 32688.655 | D23: =IF(B23<'Change Page'!$B$19,0,VLOOKUP(B23,'Change Page'!$A$19:$D$23,3)+(((B23)-(VLOOKUP(B23,'Change Page'!$A$19:$D$23,1)-1))*VLOOKUP(B23,'Change Page'!$A$19:$D$23,4))) -> 3572.325 | E23: =IF(B23<'Change Page'!$B$29,0,IF(B23>'Change Page'!$A$31,(B23)*VLOOKUP(B23,'Change Page'!$A$29:$D$31,4),VLOOKUP(B23,'Change Page'!$A$29:$D$31,3)+(((B23)-(VLOOKUP(B23,'Change Page'!$A$29:$D$31,1)-1))*VLOOKUP(B23,'Change Page'!$A$29:$D$31,4)))) -> 740.02 | G23: 5 | H23: ='Change Page'!A30 -> 21981 | I23: 2 | J23: 90001
B24: 90001 | C24: 67403.61 | D24: =IF(B24<'Change Page'!$B$19,0,VLOOKUP(B24,'Change Page'!$A$19:$D$23,3)+(((B24)-(VLOOKUP(B24,'Change Page'!$A$19:$D$23,1)-1))*VLOOKUP(B24,'Change Page'!$A$19:$D$23,4))) -> 20797.37 | E24: =IF(B24<'Change Page'!$B$29,0,IF(B24>'Change Page'!$A$31,(B24)*VLOOKUP(B24,'Change Page'!$A$29:$D$31,4),VLOOKUP(B24,'Change Page'!$A$29:$D$31,3)+(((B24)-(VLOOKUP(B24,'Change Page'!$A$29:$D$31,1)-1))*VLOOKUP(B24,'Change Page'!$A$29:$D$31,4)))) -> 1800.02 | G24: 6 | H24: ='Change Page'!A31 -> 27476 | I24: 3 | J24: 180001 | R24: =IFERROR(SUM(R7:R11)+R22,0) -> 0
B25: 180001 | C25: 122303.53 | D25: =IF(B25<'Change Page'!$B$19,0,VLOOKUP(B25,'Change Page'!$A$19:$D$23,3)+(((B25)-(VLOOKUP(B25,'Change Page'!$A$19:$D$23,1)-1))*VLOOKUP(B25,'Change Page'!$A$19:$D$23,4))) -> 54097.45 | E25: =IF(B25<'Change Page'!$B$29,0,IF(B25>'Change Page'!$A$31,(B25)*VLOOKUP(B25,'Change Page'!$A$29:$D$31,4),VLOOKUP(B25,'Change Page'!$A$29:$D$31,3)+(((B25)-(VLOOKUP(B25,'Change Page'!$A$29:$D$31,1)-1))*VLOOKUP(B25,'Change Page'!$A$29:$D$31,4)))) -> 3600.02
B27: Casual Income Calculator
D28: Annual Net Income | G28: =MIN('Casual Calc - App1 Job1'!CZ41,'Casual Calc - App1 Job1'!CZ42) -> 

Sheet CalcsPage (hidden)
C1: ="'Other Taxable Income - "&C2&"'!" -> 'Other Taxable Income - App1'! | F1: ="'Other Taxable Income - "&F2&"'!" -> 'Other Taxable Income - App2'! | I1: ="'Other Taxable Income - "&I2&"'!" -> 'Other Taxable Income - App3'! | L1: ="'Other Taxable Income - "&L2&"'!" -> 'Other Taxable Income - App4'! | O1: ="'Other Taxable Income - "&O2&"'!" -> 'Other Taxable Income - App5'! | R1: ="'Other Taxable Income - "&R2&"'!" -> 'Other Taxable Income - App6'! | W1: PAYG YTD Calc | X1: ="'"&$W$1&" - "&X2&" "&$W$2&"'!" -> 'PAYG YTD Calc - App1 Job1'! | Y1: 'PAYG YTD Calc - App2 Job1'! | Z1: 'PAYG YTD Calc - App3 Job1'! | AA1: 'PAYG YTD Calc - App4 Job1'! | AB1: 'PAYG YTD Calc - App5 Job1'! | AC1: 'PAYG YTD Calc - App6 Job1'! | AF1: Casual Calc | AG1: ="'"&$AF$1&" - "&AG2&" "&$AF$2&"'!" -> 'Casual Calc - App1 Job1'! | AH1: 'Casual Calc - App2 Job1'! | AI1: 'Casual Calc - App3 Job1'! | AJ1: 'Casual Calc - App4 Job1'! | AK1: 'Casual Calc - App5 Job1'! | AL1: 'Casual Calc - App6 Job1'! | AO1: Self Employed | AP1: ="'"&$AO$1&" - "&AP2&"'!" -> 'Self Employed - App1'! | AQ1: 'Self Employed - App2'! | AR1: 'Self Employed - App3'! | AS1: 'Self Employed - App4'! | AT1: 'Self Employed - App5'! | AU1: 'Self Employed - App6'!
C2: App1 | D2: Shaded | E2: % | F2: App2 | G2: Shaded | H2: % | I2: App3 | J2: Shaded | K2: % | L2: App4 | M2: Shaded | N2: % | O2: App5 | P2: Shaded | Q2: % | R2: App6 | S2: Shaded | T2: % | W2: Job1 | X2: App1 | Y2: App2 | Z2: App3 | AA2: App4 | AB2: App5 | AC2: App6 | AF2: Job1 | AG2: App1 | AH2: App2 | AI2: App3 | AJ2: App4 | AK2: App5 | AL2: App6 | AP2: App1 | AQ2: App2 | AR2: App3 | AS2: App4 | AT2: App5 | AU2: App6
V3: PAYG_EmployName | W3: Employer | X3: =INDIRECT(X1&$V$3) -> Enter name | Y3: Enter name | Z3: Enter name | AA3: Enter name | AB3: Enter name | AC3: Enter name | AE3: CAS_EmployName | AF3: Employer | AG3: =INDIRECT(AG1&$AE$3) -> Enter name | AH3: Enter name | AI3: Enter name | AJ3: Enter name | AK3: Enter name | AL3: Enter name | AN3: SE_GrossIncome | AO3: Gross Income | AP3: =INDIRECT(AP1&$AN$3) -> 0 | AQ3: 0 | AR3: 0 | AS3: 0 | AT3: 0 | AU3: 0
B4: Gross Base | C4: =IFERROR(SUM(X4,X11,X18,X25,X32,AG4,AG9,AG14,AG19,AG24,AP5),0) -> 0 | D4: =C4*BaseShade -> 0 | E4: =IFERROR(D4/$C$17,0) -> 0 | F4: =IFERROR(SUM(Y4,Y11,Y18,Y25,Y32,AH4,AH9,AH14,AH19,AH24,AQ5),0) -> 0 | G4: =F4*BaseShade -> 0 | H4: =IFERROR(G4/$F$17,0) -> 0 | I4: =IFERROR(SUM(Z4,Z11,Z18,Z25,Z32,AI4,AI9,AI14,AI19,AI24,AR5),0) -> 0 | J4: =I4*BaseShade -> 0 | K4: =IFERROR(J4/$I$17,0) -> 0 | L4: =IFERROR(SUM(AA4,AA11,AA18,AA25,AA32,AJ4,AJ9,AJ14,AJ19,AJ24,AS5),0) -> 0 | M4: =L4*BaseShade -> 0 | N4: =IFERROR(M4/$L$17,0) -> 0 | O4: =IFERROR(SUM(AB4,AB11,AB18,AB25,AB32,AK4,AK9,AK14,AK19,AK24,AT5),0) -> 0 | P4: =O4*BaseShade -> 0 | Q4: =IFERROR(P4/$O$17,0) -> 0 | R4: =IFERROR(SUM(AC4,AC11,AC18,AC25,AC32,AL4,AL9,AL14,AL19,AL24,AU5),0) -> 0 | S4: =R4*BaseShade -> 0 | T4: =IFERROR(S4/$R$17,0) -> 0 | V4: PAYG_ServAnnualBase | W4: Gross Base | X4: =INDIRECT(X1&$V$4) -> Error | Y4: Error | Z4: Error | AA4: Error | AB4: Error | AC4: Error | AE4: CAS_ServGross | AF4: Gross Base | AG4: =INDIRECT(AG1&$AE$4) -> 0 | AH4: 0 | AI4: 0 | AJ4: 0 | AK4: 0 | AL4: 0 | AN4: SE_Addbacks | AO4: AT Addbacks | AP4: =INDIRECT(AP1&$AN$4) -> 0 | AQ4: 0 | AR4: 0 | AS4: 0 | AT4: 0 | AU4: 0
B5: Gross Non-Base | C5: =IFERROR(IF(X37>0,SUM(X5,X12,X19,X26,X33,AG4,AG9,AG14,AG19,AG24,AP5),0),0) -> 0 | D5: =IF(C5>C4,(C5-C4)*NonBaseShade,"0") -> 0 | E5: =IFERROR(D5/$C$17,0) -> 0 | F5: =IFERROR(IF(Y37>0,SUM(Y5,Y12,Y19,Y26,Y33,AH4,AH9,AH14,AH19,AH24,AQ5),0),0) -> 0 | G5: =IF(F5>F4,(F5-F4)*NonBaseShade,"0") -> 0 | H5: =IFERROR(G5/$F$17,0) -> 0 | I5: =IFERROR(IF(Z37>0,SUM(Z5,Z12,Z19,Z26,Z33,AI4,AI9,AI14,AI19,AI24,AR5),0),0) -> 0 | J5: =IF(I5>I4,(I5-I4)*NonBaseShade,"0") -> 0 | K5: =IFERROR(J5/$I$17,0) -> 0 | L5: =IFERROR(IF(AA37>0,SUM(AA5,AA12,AA19,AA26,AA33,AJ4,AJ9,AJ14,AJ19,AJ24,AS5),0),0) -> 0 | M5: =IF(L5>L4,(L5-L4)*NonBaseShade,"0") -> 0 | N5: =IFERROR(M5/$L$17,0) -> 0 | O5: =IFERROR(IF(AB37>0,SUM(AB5,AB12,AB19,AB26,AB33,AK4,AK9,AK14,AK19,AK24,AT5),0),0) -> 0 | P5: =IF(O5>O4,(O5-O4)*NonBaseShade,"0") -> 0 | Q5: =IFERROR(P5/$O$17,0) -> 0 | R5: =IFERROR(IF(AC37>0,SUM(AC5,AC12,AC19,AC26,AC33,AL4,AL9,AL14,AL19,AL24,AU5),0),0) -> 0 | S5: =IF(R5>R4,(R5-R4)*NonBaseShade,"0") -> 0 | T5: =IFERROR(S5/$R$17,0) -> 0 | V5: PAYG_ServAnnualNonBase | W5: Gross Non-Base | X5: =IF(INDIRECT(X1&$V$5)<X4,X4,INDIRECT(X1&$V$5)) -> Error | Y5: =IF(INDIRECT(Y1&$V$5)<Y4,Y4,INDIRECT(Y1&$V$5)) -> Error | Z5: Error | AA5: Error | AB5: Error | AC5: Error | AN5: SE_TaxableIncome | AO5: Taxable | AP5: =INDIRECT(AP1&$AN$5) -> 0 | AQ5: 0 | AR5: 0 | AS5: 0 | AT5: 0 | AU5: 0
B6: Gross Bonus | C6: =IFERROR(IF(X38>0,SUM(X6,X13,X20,X27,X34,AG4,AG9,AG14,AG19,AG24,AP5),0),0) -> 0 | D6: =IF(C6<C5,0,(C6-C5)*BonusShade) -> 0 | E6: =IFERROR(D6/$C$17,0) -> 0 | F6: =IFERROR(IF(Y38>0,SUM(Y6,Y13,Y20,Y27,Y34,AH4,AH9,AH14,AH19,AH24,AQ5),0),0) -> 0 | G6: =IF(F6<F5,0,(F6-F5)*BonusShade) -> 0 | H6: =IFERROR(G6/$F$17,0) -> 0 | I6: =IFERROR(IF(Z38>0,SUM(Z6,Z13,Z20,Z27,Z34,AI4,AI9,AI14,AI19,AI24,AR5),0),0) -> 0 | J6: =IF(I6<I5,0,(I6-I5)*BonusShade) -> 0 | K6: =IFERROR(J6/$I$17,0) -> 0 | L6: =IFERROR(IF(AA38>0,SUM(AA6,AA13,AA20,AA27,AA34,AJ4,AJ9,AJ14,AJ19,AJ24,AS5),0),0) -> 0 | M6: =IF(L6<L5,0,(L6-L5)*BonusShade) -> 0 | N6: =IFERROR(M6/$L$17,0) -> 0 | O6: =IFERROR(IF(AB38>0,SUM(AB6,AB13,AB20,AB27,AB34,AK4,AK9,AK14,AK19,AK24,AT5),0),0) -> 0 | P6: =IF(O6<O5,0,(O6-O5)*BonusShade) -> 0 | Q6: =IFERROR(P6/$O$17,0) -> 0 | R6: =IFERROR(IF(AC38>0,SUM(AC6,AC13,AC20,AC27,AC34,AL4,AL9,AL14,AL19,AL24,AU5),0),0) -> 0 | S6: =IF(R6<R5,0,(R6-R5)*BonusShade) -> 0 | T6: =IFERROR(S6/$R$17,0) -> 0 | V6: PAYG_ServAnnualBonus | W6: Gross Total | X6: =IF(INDIRECT(X1&$V$6)<X5,X5,INDIRECT(X1&$V$6)) -> Error | Y6: =IF(INDIRECT(Y1&$V$6)<Y5,Y5,INDIRECT(Y1&$V$6)) -> Error | Z6: Error | AA6: Error | AB6: Error | AC6: Error | AG6: ="'"&$AF$1&" - "&AG7&" "&$AF$7&"'!" -> 'Casual Calc - App1 Job2'! | AH6: 'Casual Calc - App2 Job2'! | AI6: 'Casual Calc - App3 Job2'! | AJ6: 'Casual Calc - App4 Job2'! | AK6: 'Casual Calc - App5 Job2'! | AL6: 'Casual Calc - App6 Job2'!
B7: PAYG | C7: =MAX(C4:C6) -> 0 | F7: =MAX(F4:F6) -> 0 | I7: =MAX(I4:I6) -> 0 | L7: =MAX(L4:L6) -> 0 | O7: =MAX(O4:O6) -> 0 | R7: =MAX(R4:R6) -> 0 | AF7: Job2 | AG7: App1 | AH7: App2 | AI7: App3 | AJ7: App4 | AK7: App5 | AL7: App6
A8: OTHER_Interest | B8: Gross Interest | C8: =INDIRECT($C$1&A8) -> 0 | D8: =C8*InterestShade -> 0 | E8: =IFERROR(D8/$C$17,0) -> 0 | F8: =INDIRECT($F$1&A8) -> 0 | G8: =F8*InterestShade -> 0 | H8: =IFERROR(G8/$F$17,0) -> 0 | I8: =INDIRECT($I$1&A8) -> 0 | J8: =I8*InterestShade -> 0 | K8: =IFERROR(J8/$I$17,0) -> 0 | L8: =INDIRECT($L$1&A8) -> 0 | M8: =L8*InterestShade -> 0 | N8: =IFERROR(M8/$L$17,0) -> 0 | O8: =INDIRECT($O$1&A8) -> 0 | P8: =O8*InterestShade -> 0 | Q8: =IFERROR(P8/$O$17,0) -> 0 | R8: =INDIRECT($R$1&A8) -> 0 | S8: =R8*InterestShade -> 0 | T8: =IFERROR(S8/$R$17,0) -> 0 | X8: ="'"&$W$1&" - "&X9&" "&$W$9&"'!" -> 'PAYG YTD Calc - App1 Job2'! | Y8: 'PAYG YTD Calc - App2 Job2'! | Z8: 'PAYG YTD Calc - App3 Job2'! | AA8: 'PAYG YTD Calc - App4 Job2'! | AB8: 'PAYG YTD Calc - App5 Job2'! | AC8: 'PAYG YTD Calc - App6 Job2'! | AF8: Employer | AG8: =INDIRECT(AG6&$AE$3) -> Enter name | AH8: Enter name | AI8: Enter name | AJ8: Enter name | AK8: Enter name | AL8: Enter name
A9: OTHER_Dividends | B9: Gross Dividends | C9: =INDIRECT($C$1&A9) -> 0 | D9: =C9*DividendShade -> 0 | E9: =IFERROR(D9/$C$17,0) -> 0 | F9: =INDIRECT($F$1&A9) -> 0 | G9: =F9*DividendShade -> 0 | H9: =IFERROR(G9/$F$17,0) -> 0 | I9: =INDIRECT($I$1&A9) -> 0 | J9: =I9*DividendShade -> 0 | K9: =IFERROR(J9/$I$17,0) -> 0 | L9: =INDIRECT($L$1&A9) -> 0 | M9: =L9*DividendShade -> 0 | N9: =IFERROR(M9/$L$17,0) -> 0 | O9: =INDIRECT($O$1&A9) -> 0 | P9: =O9*DividendShade -> 0 | Q9: =IFERROR(P9/$O$17,0) -> 0 | R9: =INDIRECT($R$1&A9) -> 0 | S9: =R9*DividendShade -> 0 | T9: =IFERROR(S9/$R$17,0) -> 0 | W9: Job2 | X9: App1 | Y9: App2 | Z9: App3 | AA9: App4 | AB9: App5 | AC9: App6 | AF9: Gross Base | AG9: =INDIRECT(AG6&$AE$4) -> 0 | AH9: 0 | AI9: 0 | AJ9: 0 | AK9: 0 | AL9: 0
A10: OTHER_Other | B10: Gross Other | C10: =INDIRECT($C$1&A10) -> 0 | D10: =C10*OtherShade -> 0 | E10: =IFERROR(D10/$C$17,0) -> 0 | F10: =INDIRECT($F$1&A10) -> 0 | G10: =F10*OtherShade -> 0 | H10: =IFERROR(G10/$F$17,0) -> 0 | I10: =INDIRECT($I$1&A10) -> 0 | J10: =I10*OtherShade -> 0 | K10: =IFERROR(J10/$I$17,0) -> 0 | L10: =INDIRECT($L$1&A10) -> 0 | M10: =L10*OtherShade -> 0 | N10: =IFERROR(M10/$L$17,0) -> 0 | O10: =INDIRECT($O$1&A10) -> 0 | P10: =O10*OtherShade -> 0 | Q10: =IFERROR(P10/$O$17,0) -> 0 | R10: =INDIRECT($R$1&A10) -> 0 | S10: =R10*OtherShade -> 0 | T10: =IFERROR(S10/$R$17,0) -> 0 | W10: Employer | X10: =INDIRECT(X8&$V$3) -> Enter name | Y10: Enter name | Z10: Enter name | AA10: Enter name | AB10: Enter name | AC10: Enter name
B11: Gross Rent | C11: =SUM(Rent_App1GrossTotal) -> 0 | D11: =SUM(Rent_App1ShadedTotal)-C14 -> 0 | E11: =IFERROR(D11/$C$17,0) -> 0 | F11: =SUM(Rent_App2GrossTotal) -> 0 | G11: =SUM(Rent_App2ShadedTotal)-F14 -> 0 | H11: =IFERROR(G11/$F$17,0) -> 0 | I11: =SUM(Rent_App3GrossTotal) -> 0 | J11: =SUM(Rent_App3ShadedTotal)-I14 -> 0 | K11: =IFERROR(J11/$I$17,0) -> 0 | L11: =SUM(Rent_App4GrossTotal) -> 0 | M11: =SUM(Rent_App4ShadedTotal)-L14 -> 0 | N11: =IFERROR(M11/$L$17,0) -> 0 | O11: =SUM(Rent_App5GrossTotal) -> 0 | P11: =SUM(Rent_App5ShadedTotal)-O14 -> 0 | Q11: =IFERROR(P11/$O$17,0) -> 0 | R11: =SUM(Rent_App6GrossTotal) -> 0 | S11: =SUM(Rent_App6ShadedTotal)-R14 -> 0 | T11: =IFERROR(S11/$R$17,0) -> 0 | W11: Gross Base | X11: =INDIRECT(X8&$V$4) -> Error | Y11: Error | Z11: Error | AA11: Error | AB11: Error | AC11: Error | AG11: ="'"&$AF$1&" - "&AG12&" "&$AF$12&"'!" -> 'Casual Calc - App1 Job3'! | AH11: 'Casual Calc - App2 Job3'! | AI11: 'Casual Calc - App3 Job3'! | AJ11: 'Casual Calc - App4 Job3'! | AK11: 'Casual Calc - App5 Job3'! | AL11: 'Casual Calc - App6 Job3'!
W12: Gross Non-Base | X12: =IF(INDIRECT(X8&$V$5)<X11,X11,INDIRECT(X8&$V$5)) -> Error | Y12: =IF(INDIRECT(Y8&$V$5)<Y11,Y11,INDIRECT(Y8&$V$5)) -> Error | Z12: Error | AA12: Error | AB12: Error | AC12: Error | AF12: Job3 | AG12: App1 | AH12: App2 | AI12: App3 | AJ12: App4 | AK12: App5 | AL12: App6
B13: RITD | C13: =SUM(RITD_App1) -> 0 | F13: =SUM(RITD_App2) -> 0 | I13: =SUM(RITD_App3) -> 0 | L13: =SUM(RITD_App4) -> 0 | O13: =SUM(RITD_App5) -> 0 | R13: =SUM(RITD_App6) -> 0 | W13: Gross Total | X13: =IF(INDIRECT(X8&$V$6)<X12,X12,INDIRECT(X8&$V$6)) -> Error | Y13: =IF(INDIRECT(Y8&$V$6)<Y12,Y12,INDIRECT(Y8&$V$6)) -> Error | Z13: Error | AA13: Error | AB13: Error | AC13: Error | AF13: Employer | AG13: =INDIRECT(AG11&$AE$3) -> Enter name | AH13: Enter name | AI13: Enter name | AJ13: Enter name | AK13: Enter name | AL13: Enter name
B14: IPC | C14: ='Declared Expenses - App1'!CDE_InvestmentCosts*12 -> 0 | F14: ='Declared Expenses - App2'!CDE_InvestmentCosts*12 -> 0 | I14: ='Declared Expenses - App3'!CDE_InvestmentCosts*12 -> 0 | L14: ='Declared Expenses - App4'!CDE_InvestmentCosts*12 -> 0 | O14: ='Declared Expenses - App5'!CDE_InvestmentCosts*12 -> 0 | R14: ='Declared Expenses - App6'!CDE_InvestmentCosts*12 -> 0 | AF14: Gross Base | AG14: =INDIRECT(AG11&$AE$4) -> 0 | AH14: 0 | AI14: 0 | AJ14: 0 | AK14: 0 | AL14: 0
B15: Total Deductions | C15: =SUM(C13:C14) -> 0 | F15: =SUM(F13:F14) -> 0 | I15: =SUM(I13:I14) -> 0 | L15: =SUM(L13:L14) -> 0 | O15: =SUM(O13:O14) -> 0 | R15: =SUM(R13:R14) -> 0 | X15: ="'"&$W$1&" - "&X16&" "&$W$16&"'!" -> 'PAYG YTD Calc - App1 Job3'! | Y15: 'PAYG YTD Calc - App2 Job3'! | Z15: 'PAYG YTD Calc - App3 Job3'! | AA15: 'PAYG YTD Calc - App4 Job3'! | AB15: 'PAYG YTD Calc - App5 Job3'! | AC15: 'PAYG YTD Calc - App6 Job3'!
W16: Job3 | X16: App1 | Y16: App2 | Z16: App3 | AA16: App4 | AB16: App5 | AC16: App6 | AG16: ="'"&$AF$1&" - "&AG17&" "&$AF$17&"'!" -> 'Casual Calc - App1 Job4'! | AH16: 'Casual Calc - App2 Job4'! | AI16: 'Casual Calc - App3 Job4'! | AJ16: 'Casual Calc - App4 Job4'! | AK16: 'Casual Calc - App5 Job4'! | AL16: 'Casual Calc - App6 Job4'!
B17: Assessed Gross Income | C17: =SUM(D4:D10,D11) -> 0 | F17: =SUM(G4:G10,G11) -> 0 | I17: =SUM(J4:J10,J11) -> 0 | L17: =SUM(M4:M10,M11) -> 0 | O17: =SUM(P4:P10,P11) -> 0 | R17: =SUM(S4:S10,S11) -> 0 | W17: Employer | X17: =INDIRECT(X15&$V$3) -> Enter name | Y17: Enter name | Z17: Enter name | AA17: Enter name | AB17: Enter name | AC17: Enter name | AF17: Job4 | AG17: App1 | AH17: App2 | AI17: App3 | AJ17: App4 | AK17: App5 | AL17: App6
W18: Gross Base | X18: =INDIRECT(X15&$V$4) -> Error | Y18: Error | Z18: Error | AA18: Error | AB18: Error | AC18: Error | AF18: Employer | AG18: =INDIRECT(AG16&$AE$3) -> Enter name | AH18: Enter name | AI18: Enter name | AJ18: Enter name | AK18: Enter name | AL18: Enter name
B19: Taxable | C19: =IF(C17-C13<0,0,C17-C13) -> 0 | F19: =IF(F17-F13<0,0,F17-F13) -> 0 | I19: =IF(I17-I13<0,0,I17-I13) -> 0 | L19: =IF(L17-L13<0,0,L17-L13) -> 0 | O19: =IF(O17-O13<0,0,O17-O13) -> 0 | R19: =IF(R17-R13<0,0,R17-R13) -> 0 | W19: Gross Non-Base | X19: =IF(INDIRECT(X15&$V$5)<X18,X18,INDIRECT(X15&$V$5)) -> Error | Y19: =IF(INDIRECT(Y15&$V$5)<Y18,Y18,INDIRECT(Y15&$V$5)) -> Error | Z19: Error | AA19: Error | AB19: Error | AC19: Error | AF19: Gross Base | AG19: =INDIRECT(AG16&$AE$4) -> 0 | AH19: 0 | AI19: 0 | AJ19: 0 | AK19: 0 | AL19: 0
W20: Gross Total | X20: =IF(INDIRECT(X15&$V$6)<X19,X19,INDIRECT(X15&$V$6)) -> Error | Y20: =IF(INDIRECT(Y15&$V$6)<Y19,Y19,INDIRECT(Y15&$V$6)) -> Error | Z20: Error | AA20: Error | AB20: Error | AC20: Error
B21: Tax | C21: =IF(C19<'Change Page'!$B$19,0,VLOOKUP(C19,'Change Page'!$A$19:$D$23,3)+(((C19)-(VLOOKUP(C19,'Change Page'!$A$19:$D$23,1)-1))*VLOOKUP(C19,'Change Page'!$A$19:$D$23,4))) -> 0 | F21: =IF(F19<'Change Page'!$B$19,0,VLOOKUP(F19,'Change Page'!$A$19:$D$23,3)+(((F19)-(VLOOKUP(F19,'Change Page'!$A$19:$D$23,1)-1))*VLOOKUP(F19,'Change Page'!$A$19:$D$23,4))) -> 0 | I21: =IF(I19<'Change Page'!$B$19,0,VLOOKUP(I19,'Change Page'!$A$19:$D$23,3)+(((I19)-(VLOOKUP(I19,'Change Page'!$A$19:$D$23,1)-1))*VLOOKUP(I19,'Change Page'!$A$19:$D$23,4))) -> 0 | L21: =IF(L19<'Change Page'!$B$19,0,VLOOKUP(L19,'Change Page'!$A$19:$D$23,3)+(((L19)-(VLOOKUP(L19,'Change Page'!$A$19:$D$23,1)-1))*VLOOKUP(L19,'Change Page'!$A$19:$D$23,4))) -> 0 | O21: =IF(O19<'Change Page'!$B$19,0,VLOOKUP(O19,'Change Page'!$A$19:$D$23,3)+(((O19)-(VLOOKUP(O19,'Change Page'!$A$19:$D$23,1)-1))*VLOOKUP(O19,'Change Page'!$A$19:$D$23,4))) -> 0 | R21: =IF(R19<'Change Page'!$B$19,0,VLOOKUP(R19,'Change Page'!$A$19:$D$23,3)+(((R19)-(VLOOKUP(R19,'Change Page'!$A$19:$D$23,1)-1))*VLOOKUP(R19,'Change Page'!$A$19:$D$23,4))) -> 0 | AG21: ="'"&$AF$1&" - "&AG22&" "&$AF$22&"'!" -> 'Casual Calc - App1 Job5'! | AH21: 'Casual Calc - App2 Job5'! | AI21: 'Casual Calc - App3 Job5'! | AJ21: 'Casual Calc - App4 Job5'! | AK21: 'Casual Calc - App5 Job5'! | AL21: 'Casual Calc - App6 Job5'!
B22: Medicare | C22: =IF(C19<'Change Page'!$B$29,0,IF(C19>'Change Page'!$A$31,(C19)*VLOOKUP(C19,'Change Page'!$A$29:$D$31,4),VLOOKUP(C19,'Change Page'!$A$29:$D$31,3)+(((C19)-(VLOOKUP(C19,'Change Page'!$A$29:$D$31,1)-1))*VLOOKUP(C19,'Change Page'!$A$29:$D$31,4)))) -> 0 | F22: =IF(F19<'Change Page'!$B$29,0,IF(F19>'Change Page'!$A$31,(F19)*VLOOKUP(F19,'Change Page'!$A$29:$D$31,4),VLOOKUP(F19,'Change Page'!$A$29:$D$31,3)+(((F19)-(VLOOKUP(F19,'Change Page'!$A$29:$D$31,1)-1))*VLOOKUP(F19,'Change Page'!$A$29:$D$31,4)))) -> 0 | I22: =IF(I19<'Change Page'!$B$29,0,IF(I19>'Change Page'!$A$31,(I19)*VLOOKUP(I19,'Change Page'!$A$29:$D$31,4),VLOOKUP(I19,'Change Page'!$A$29:$D$31,3)+(((I19)-(VLOOKUP(I19,'Change Page'!$A$29:$D$31,1)-1))*VLOOKUP(I19,'Change Page'!$A$29:$D$31,4)))) -> 0 | L22: =IF(L19<'Change Page'!$B$29,0,IF(L19>'Change Page'!$A$31,(L19)*VLOOKUP(L19,'Change Page'!$A$29:$D$31,4),VLOOKUP(L19,'Change Page'!$A$29:$D$31,3)+(((L19)-(VLOOKUP(L19,'Change Page'!$A$29:$D$31,1)-1))*VLOOKUP(L19,'Change Page'!$A$29:$D$31,4)))) -> 0 | O22: =IF(O19<'Change Page'!$B$29,0,IF(O19>'Change Page'!$A$31,(O19)*VLOOKUP(O19,'Change Page'!$A$29:$D$31,4),VLOOKUP(O19,'Change Page'!$A$29:$D$31,3)+(((O19)-(VLOOKUP(O19,'Change Page'!$A$29:$D$31,1)-1))*VLOOKUP(O19,'Change Page'!$A$29:$D$31,4)))) -> 0 | R22: =IF(R19<'Change Page'!$B$29,0,IF(R19>'Change Page'!$A$31,(R19)*VLOOKUP(R19,'Change Page'!$A$29:$D$31,4),VLOOKUP(R19,'Change Page'!$A$29:$D$31,3)+(((R19)-(VLOOKUP(R19,'Change Page'!$A$29:$D$31,1)-1))*VLOOKUP(R19,'Change Page'!$A$29:$D$31,4)))) -> 0 | X22: ="'"&$W$1&" - "&X23&" "&$W$23&"'!" -> 'PAYG YTD Calc - App1 Job4'! | Y22: 'PAYG YTD Calc - App2 Job4'! | Z22: 'PAYG YTD Calc - App3 Job4'! | AA22: 'PAYG YTD Calc - App4 Job4'! | AB22: 'PAYG YTD Calc - App5 Job4'! | AC22: 'PAYG YTD Calc - App6 Job4'! | AF22: Job5 | AG22: App1 | AH22: App2 | AI22: App3 | AJ22: App4 | AK22: App5 | AL22: App6
B23: Total Net | C23: =C17-C21-C22 -> 0 | F23: =F17-F21-F22 -> 0 | I23: =I17-I21-I22 -> 0 | L23: =L17-L21-L22 -> 0 | O23: =O17-O21-O22 -> 0 | R23: =R17-R21-R22 -> 0 | W23: Job4 | X23: App1 | Y23: App2 | Z23: App3 | AA23: App4 | AB23: App5 | AC23: App6 | AF23: Employer | AG23: =INDIRECT(AG21&$AE$3) -> Enter name | AH23: Enter name | AI23: Enter name | AJ23: Enter name | AK23: Enter name | AL23: Enter name
W24: Employer | X24: =INDIRECT(X22&$V$3) -> Enter name | Y24: Enter name | Z24: Enter name | AA24: Enter name | AB24: Enter name | AC24: Enter name | AF24: Gross Base | AG24: =INDIRECT(AG21&$AE$4) -> 0 | AH24: 0 | AI24: 0 | AJ24: 0 | AK24: 0 | AL24: 0
B25: Untaxed Income | C25: =SUM('Serviceability Calculator'!Assess_App1NetINvestment,'Serviceability Calculator'!Assess_App1SocialSecurity,'Serviceability Calculator'!Assess_App1OtherUntaxed*OtherShade)*12 -> 0 | D25: =(('Serviceability Calculator'!Assess_App1OtherUntaxed-('Serviceability Calculator'!Assess_App1OtherUntaxed*OtherShade))*12) -> 0 | F25: =SUM('Serviceability Calculator'!Assess_App2NetInvestment,'Serviceability Calculator'!Assess_App2SocialSecurity,'Serviceability Calculator'!Assess_App2OtherUntaxed*OtherShade)*12 -> 0 | G25: =(('Serviceability Calculator'!Assess_App2OtherUntaxed-('Serviceability Calculator'!Assess_App2OtherUntaxed*OtherShade))*12) -> 0 | I25: =SUM('Serviceability Calculator'!Assess_App3NetInvestment,'Serviceability Calculator'!Assess_App3SocialSecurity,'Serviceability Calculator'!Assess_App3OtherUntaxed*OtherShade)*12 -> 0 | J25: =(('Serviceability Calculator'!Assess_App3OtherUntaxed-('Serviceability Calculator'!Assess_App3OtherUntaxed*OtherShade))*12) -> 0 | L25: =SUM('Serviceability Calculator'!Assess_App4NetInvestment,'Serviceability Calculator'!Assess_App4SocialSecurity,'Serviceability Calculator'!Assess_App4OtherUntaxed*OtherShade)*12 -> 0 | M25: =(('Serviceability Calculator'!Assess_App4OtherUntaxed-('Serviceability Calculator'!Assess_App4OtherUntaxed*OtherShade))*12) -> 0 | O25: =SUM('Serviceability Calculator'!Assess_App5NetInvestment,'Serviceability Calculator'!Assess_App5SocialSecurity,'Serviceability Calculator'!Assess_App5OtherUntaxed*OtherShade)*12 -> 0 | P25: =(('Serviceability Calculator'!Assess_App5OtherUntaxed-('Serviceability Calculator'!Assess_App5OtherUntaxed*OtherShade))*12) -> 0 | R25: =SUM('Serviceability Calculator'!Assess_App6NetInvestment,'Serviceability Calculator'!Assess_App6SocialSecurity,'Serviceability Calculator'!Assess_App6OtherUntaxed*OtherShade)*12 -> 0 | S25: =(('Serviceability Calculator'!Assess_App6OtherUntaxed-('Serviceability Calculator'!Assess_App6OtherUntaxed*OtherShade))*12) -> 0 | W25: Gross Base | X25: =INDIRECT(X22&$V$4) -> Error | Y25: Error | Z25: Error | AA25: Error | AB25: Error | AC25: Error
W26: Gross Non-Base | X26: =IF(INDIRECT(X22&$V$5)<X25,X25,INDIRECT(X22&$V$5)) -> Error | Y26: =IF(INDIRECT(Y22&$V$5)<Y25,Y25,INDIRECT(Y22&$V$5)) -> Error | Z26: Error | AA26: Error | AB26: Error | AC26: Error | AG26: =SUM(AG4,AG9,AG14,AG19,AG24) -> 0 | AH26: =SUM(AH4,AH9,AH14,AH19,AH24) -> 0 | AI26: 0 | AJ26: 0 | AK26: 0 | AL26: 0
B27: Gross Income for HEM | C27: =IFERROR(IF(C15>0,D27,SUM(C7:C11)+C25+AP4+D25-C15),0) -> 0 | D27: =MAX(SUM(C7:C11)+C25+AP4+D25-C15,1) -> 1 | F27: =IFERROR(IF(F15>0,G27,SUM(F7:F11)+F25+AS4+G25-F15),0) -> 0 | G27: =MAX(SUM(F7:F11)+F25+AP4+G25-F15,1) -> 1 | I27: =IFERROR(IF(I15>0,J27,SUM(I7:I11)+I25+AV4+J25-I15),0) -> 0 | J27: =MAX(SUM(I7:I11)+I25+AS4+J25-I15,1) -> 1 | L27: =IFERROR(IF(L15>0,M27,SUM(L7:L11)+L25+AY4+M25-L15),0) -> 0 | M27: =MAX(SUM(L7:L11)+L25+AV4+M25-L15,1) -> 1 | O27: =IFERROR(IF(O15>0,P27,SUM(O7:O11)+O25+BB4+P25-O15),0) -> 0 | P27: =MAX(SUM(O7:O11)+O25+AY4+P25-O15,1) -> 1 | R27: =IFERROR(IF(R15>0,S27,SUM(R7:R11)+R25+BE4+S25-R15),0) -> 0 | S27: =MAX(SUM(R7:R11)+R25+BB4+S25-R15,1) -> 1 | W27: Gross Total | X27: =IF(INDIRECT(X22&$V$6)<X26,X26,INDIRECT(X22&$V$6)) -> Error | Y27: =IF(INDIRECT(Y22&$V$6)<Y26,Y26,INDIRECT(Y22&$V$6)) -> Error | Z27: Error | AA27: Error | AB27: Error | AC27: Error
B29: Net Rent | C29: =C23*E11 -> 0 | F29: =F23*H11 -> 0 | I29: =I23*K11 -> 0 | L29: =L23*N11 -> 0 | O29: =O23*Q11 -> 0 | R29: =R23*T11 -> 0 | X29: ="'"&$W$1&" - "&X30&" "&$W$30&"'!" -> 'PAYG YTD Calc - App1 Job5'! | Y29: 'PAYG YTD Calc - App2 Job5'! | Z29: 'PAYG YTD Calc - App3 Job5'! | AA29: 'PAYG YTD Calc - App4 Job5'! | AB29: 'PAYG YTD Calc - App5 Job5'! | AC29: 'PAYG YTD Calc - App6 Job5'!
W30: Job5 | X30: App1 | Y30: App2 | Z30: App3 | AA30: App4 | AB30: App5 | AC30: App6
B31: Basic Net Income | C31: =IF(C23=0,0,(C23-C29))+C25+AP4 -> 0 | F31: =IF(F23=0,0,(F23-F29))+F25+AQ4 -> 0 | I31: =IF(I23=0,0,(I23-I29))+I25+AR4 -> 0 | L31: =IF(L23=0,0,(L23-L29))+L25+AS4 -> 0 | O31: =IF(O23=0,0,(O23-O29))+O25+AT4 -> 0 | R31: =IF(R23=0,0,(R23-R29))+R25+AU4 -> 0 | W31: Employer | X31: =INDIRECT(X29&$V$3) -> Enter name | Y31: Enter name | Z31: Enter name | AA31: Enter name | AB31: Enter name | AC31: Enter name
W32: Gross Base | X32: =INDIRECT(X29&$V$4) -> Error | Y32: Error | Z32: Error | AA32: Error | AB32: Error | AC32: Error
B33: Net Bonus | C33: =CALCS_App1Net*E6/BonusShade -> 0 | D33: =IF(C33>30000,TRUE,FALSE) -> FALSE | F33: =CALCS_App2Net*H6/BonusShade -> 0 | G33: =IF(F33>30000,TRUE,FALSE) -> FALSE | I33: =CALCS_App3Net*K6/BonusShade -> 0 | J33: =IF(I33>30000,TRUE,FALSE) -> FALSE | L33: =CALCS_App4Net*N6/BonusShade -> 0 | M33: =IF(L33>30000,TRUE,FALSE) -> FALSE | O33: =CALCS_App5Net*Q6/BonusShade -> 0 | P33: =IF(O33>30000,TRUE,FALSE) -> FALSE | R33: =CALCS_App6Net*T6/BonusShade -> 0 | S33: =IF(R33>30000,TRUE,FALSE) -> FALSE | W33: Gross Non-Base | X33: =IF(INDIRECT(X29&$V$5)<X32,X32,INDIRECT(X29&$V$5)) -> Error | Y33: =IF(INDIRECT(Y29&$V$5)<Y32,Y32,INDIRECT(Y29&$V$5)) -> Error | Z33: Error | AA33: Error | AB33: Error | AC33: Error
W34: Gross Total | X34: =IF(INDIRECT(X29&$V$6)<X33,X33,INDIRECT(X29&$V$6)) -> Error | Y34: =IF(INDIRECT(Y29&$V$6)<Y33,Y33,INDIRECT(Y29&$V$6)) -> Error | Z34: Error | AA34: Error | AB34: Error | AC34: Error
C35: =CALCS_App1BasicNet-CALCS_App1NetBonus*0.8 -> 0 | F35: =CALCS_App1BasicNet-CALCS_App1NetBonus*0.8 -> 0 | I35: =CALCS_App1BasicNet-CALCS_App1NetBonus*0.8 -> 0 | L35: =CALCS_App1BasicNet-CALCS_App1NetBonus*0.8 -> 0 | O35: =CALCS_App1BasicNet-CALCS_App1NetBonus*0.8 -> 0 | R35: =CALCS_App1BasicNet-CALCS_App1NetBonus*0.8 -> 0
C36: =C35/12 -> 0 | F36: =F35/12 -> 0 | I36: =I35/12 -> 0 | L36: =L35/12 -> 0 | O36: =O35/12 -> 0 | R36: =R35/12 -> 0 | X36: =SUM(X4,X11,X18,X25,X32) -> 0 | Y36: =SUM(Y4,Y11,Y18,Y25,Y32) -> 0 | Z36: 0 | AA36: 0 | AB36: 0 | AC36: 0
X37: =SUM(X5,X12,X19,X26,X33) -> 0 | Y37: 0 | Z37: 0 | AA37: 0 | AB37: 0 | AC37: 0
X38: 0 | Y38: 0 | Z38: 0 | AA38: 0 | AB38: 0 | AC38: 0

Sheet HEM Working (hidden)
A1: Effective Date | B1: 2019-08-17 | AE1: midpoint 2nd highest | AF1: midpoint highest
D2: 1 | E2: 2 | F2: 3 | G2: 4 | H2: 5 | I2: 6 | J2: 7 | K2: 8 | L2: 9 | M2: 10 | N2: 11 | O2: 12 | P2: 13 | Q2: 14 | R2: 15 | S2: 16 | T2: 17 | U2: 18 | V2: 19 | W2: 20 | X2: 21 | Y2: 22 | Z2: 23 | AA2: 24 | AE2: =(INT(MID(R$4,2,FIND(" ",R$4)-2)) + INT(MID(R$4,FIND("to ",R$4)+3, LEN(R$4) - FIND("to ",R$4) - 2))) /2 -> 237500.5 | AF2: =(INT(MID(T$4,2,FIND(" ",T$4)-2)) + INT(MID(Z$4,FIND("to ",Z$4)+3, LEN(Z$4) - FIND("to ",Z$4) - 2))) /2 -> 422500.5
A3: SM Code Heading | B3: SM Value | E3: Table 1 (Single) | G3: Annual Income | AB3: Bad Difference | AC3: Mid Point | AE3: =R6 -> 3768 | AF3: =S6 -> 4348
A4: Remote_Single_0_A | B4: 1237 | E4: Location, Dependents | F4: Gross Income | G4: $21000 or less | H4: $21001 to $32000 | I4: $32001 to $42000 | J4: $42001 to $53000 | K4: $53001 to $63000 | L4: $63001 to $85000 | M4: $85001 to $106000 | N4: $106001 to $127000 | O4: $127001 to $148000 | P4: $148001 to $169000 | Q4: $169001 to $211000 | R4: $211001 to $264000 | S4: $264001 to $317000 | T4: $317001 to $347000 | U4: $347001 to $377000 | V4: $377001 to $407000 | W4: $407001 to $437000 | X4: $437001 to $467000 | Y4: $467001 to $497000 | Z4: $497001 to $528000 | AA4: $528001 or more | AC4: 422500 | AE4: Income Bands
A5: Remote_Single_0_B | B5: 1314 | D5: ROA_Single_0 | E5: Rest of Australia 0 | G5: 1076 | H5: 1143 | I5: 1205 | J5: 1294 | K5: 1457 | L5: 1668 | M5: 1979 | N5: 2206 | O5: 2614 | P5: 2775 | Q5: 2922 | R5: 3354 | S5: 3930 | T5: 4090 | U5: 4090 | V5: 4090 | W5: 4090 | X5: 4090 | Y5: 4090 | Z5: 4090 | AA5: Apply new dynamic calculation | AB5: =Z5-S5 -> 160 | AE5: Income | AF5: Band
A6: Remote_Single_0_C | B6: 1386 | D6: ROA_Single_1 | E6: Rest of Australia 1 | G6: 1543 | H6: 1543 | I6: 1606 | J6: 1696 | K6: 1860 | L6: 2072 | M6: 2384 | N6: 2613 | O6: 3024 | P6: 3185 | Q6: 3334 | R6: 3768 | S6: 4348 | T6: 4509 | U6: 4509 | V6: 4509 | W6: 4509 | X6: 4509 | Y6: 4509 | Z6: 4509 | AB6: =Z6-S6 -> 161 | AE6: 0 | AF6: A
A7: Remote_Single_0_D | B7: 1488 | D7: ROA_Single_2 | E7: Rest of Australia 2 | G7: 1926 | H7: 1926 | I7: 1988 | J7: 2078 | K7: 2241 | L7: 2452 | M7: 2764 | N7: 2991 | O7: 3401 | P7: 3562 | Q7: 3709 | R7: 4143 | S7: 4719 | T7: 4880 | U7: 4880 | V7: 4880 | W7: 4880 | X7: 4880 | Y7: 4880 | Z7: 4880 | AB7: 161 | AE7: =INT(MID(H4,2,FIND(" ",H4)-2)) -> 21001 | AF7: B
A8: Remote_Single_0_E | B8: 1676 | D8: ROA_Single_3 | E8: Rest of Australia 3 | G8: 2374 | H8: 2374 | I8: 2374 | J8: 2464 | K8: 2627 | L8: 2838 | M8: 3149 | N8: 3376 | O8: 3785 | P8: 3946 | Q8: 4093 | R8: 4526 | S8: 5102 | T8: 5262 | U8: 5262 | V8: 5262 | W8: 5262 | X8: 5262 | Y8: 5262 | Z8: 5262 | AB8: 160 | AE8: =INT(MID(I4,2,FIND(" ",I4)-2)) -> 32001 | AF8: C
A9: Remote_Single_0_F | B9: 1918 | D9: ROA_Single_4 | E9: Rest of Australia 4 | G9: 2822 | H9: 2822 | I9: 2760 | J9: 2850 | K9: 3013 | L9: 3224 | M9: 3534 | N9: 3761 | O9: 4169 | P9: 4330 | Q9: 4477 | R9: 4909 | S9: 5485 | T9: 5644 | U9: 5644 | V9: 5644 | W9: 5644 | X9: 5644 | Y9: 5644 | Z9: 5644 | AB9: 159 | AE9: =INT(MID(J4,2,FIND(" ",J4)-2)) -> 42001 | AF9: D
A10: Remote_Single_0_G | B10: 2276 | D10: ROA_Single_5 | E10: Rest of Australia 5 | G10: 3270 | H10: 3270 | I10: 3146 | J10: 3236 | K10: 3399 | L10: 3610 | M10: 3919 | N10: 4146 | O10: 4553 | P10: 4714 | Q10: 4861 | R10: 5292 | S10: 5868 | T10: 6026 | U10: 6026 | V10: 6026 | W10: 6026 | X10: 6026 | Y10: 6026 | Z10: 6026 | AB10: 158 | AE10: =INT(MID(K4,2,FIND(" ",K4)-2)) -> 53001 | AF10: E
A11: Remote_Single_0_H | B11: 2537 | D11: ROA_Single_6 | E11: Rest of Australia 6 | G11: 3718 | H11: 3718 | I11: 3532 | J11: 3622 | K11: 3785 | L11: 3996 | M11: 4304 | N11: 4531 | O11: 4937 | P11: 5098 | Q11: 5245 | R11: 5675 | S11: 6251 | T11: 6408 | U11: 6408 | V11: 6408 | W11: 6408 | X11: 6408 | Y11: 6408 | Z11: 6408 | AB11: 157 | AE11: =INT(MID(L4,2,FIND(" ",L4)-2)) -> 63001 | AF11: F
A12: Remote_Single_0_I | B12: 3006 | D12: ROA_Single_7 | E12: Rest of Australia 7 | G12: 4166 | H12: 4166 | I12: 3918 | J12: 4008 | K12: 4171 | L12: 4382 | M12: 4689 | N12: 4916 | O12: 5321 | P12: 5482 | Q12: 5629 | R12: 6058 | S12: 6634 | T12: 6790 | U12: 6790 | V12: 6790 | W12: 6790 | X12: 6790 | Y12: 6790 | Z12: 6790 | AB12: 156 | AE12: =INT(MID(M4,2,FIND(" ",M4)-2)) -> 85001 | AF12: G
A13: Remote_Single_0_J | B13: 3191 | D13: ROA_Single_8 | E13: Rest of Australia 8 | G13: 4614 | H13: 4614 | I13: 4304 | J13: 4394 | K13: 4557 | L13: 4768 | M13: 5074 | N13: 5301 | O13: 5705 | P13: 5866 | Q13: 6013 | R13: 6441 | S13: 7017 | T13: 7172 | U13: 7172 | V13: 7172 | W13: 7172 | X13: 7172 | Y13: 7172 | Z13: 7172 | AB13: 155 | AE13: =INT(MID(N4,2,FIND(" ",N4)-2)) -> 106001 | AF13: H
A14: Remote_Single_0_K | B14: 3360 | D14: ROA_Single_9 | E14: Rest of Australia 9 | G14: 5062 | H14: 5062 | I14: 4690 | J14: 4780 | K14: 4943 | L14: 5154 | M14: 5459 | N14: 5686 | O14: 6089 | P14: 6250 | Q14: 6397 | R14: 6824 | S14: 7400 | T14: 7554 | U14: 7554 | V14: 7554 | W14: 7554 | X14: 7554 | Y14: 7554 | Z14: 7554 | AB14: 154 | AE14: =INT(MID(O4,2,FIND(" ",O4)-2)) -> 127001 | AF14: I
A15: Remote_Single_0_L | B15: 3857 | D15: ROA_Single_10+ | E15: Rest of Australia 10+ | G15: 5510 | H15: 5510 | I15: 5076 | J15: 5166 | K15: 5329 | L15: 5540 | M15: 5844 | N15: 6071 | O15: 6473 | P15: 6634 | Q15: 6781 | R15: 7207 | S15: 7783 | T15: 7936 | U15: 7936 | V15: 7936 | W15: 7936 | X15: 7936 | Y15: 7936 | Z15: 7936 | AB15: 153 | AE15: =INT(MID(P4,2,FIND(" ",P4)-2)) -> 148001 | AF15: J
A16: Remote_Single_0_M | B16: 4520 | D16: Remote_Single_0 | E16: Remote Locations 0 | G16: 1237 | H16: 1314 | I16: 1386 | J16: 1488 | K16: 1676 | L16: 1918 | M16: 2276 | N16: 2537 | O16: 3006 | P16: 3191 | Q16: 3360 | R16: 3857 | S16: 4520 | T16: 4704 | U16: 4704 | V16: 4704 | W16: 4704 | X16: 4704 | Y16: 4704 | Z16: 4704 | AA16: Apply new dynamic calculation | AB16: 184 | AE16: =INT(MID(Q4,2,FIND(" ",Q4)-2)) -> 169001 | AF16: K
A17: Remote_Single_0_N | B17: 4704 | D17: Remote_Single_1 | E17: Remote Locations 1 | G17: 1774 | H17: 1774 | I17: 1847 | J17: 1950 | K17: 2139 | L17: 2383 | M17: 2742 | N17: 3005 | O17: 3478 | P17: 3663 | Q17: 3834 | R17: 4333 | S17: 5000 | T17: 5185 | U17: 5185 | V17: 5185 | W17: 5185 | X17: 5185 | Y17: 5185 | Z17: 5185 | AB17: 185 | AE17: =INT(MID(R4,2,FIND(" ",R4)-2)) -> 211001 | AF17: L
A18: Remote_Single_0_O | B18: 4704 | D18: Remote_Single_2 | E18: Remote Locations 2 | G18: 2215 | H18: 2215 | I18: 2286 | J18: 2390 | K18: 2577 | L18: 2820 | M18: 3179 | N18: 3440 | O18: 3911 | P18: 4096 | Q18: 4265 | R18: 4764 | S18: 5427 | T18: 5612 | U18: 5612 | V18: 5612 | W18: 5612 | X18: 5612 | Y18: 5612 | Z18: 5612 | AB18: 185 | AE18: =INT(MID(S4,2,FIND(" ",S4)-2)) -> 264001 | AF18: M
A19: Remote_Single_0_P | B19: 4704 | D19: Remote_Single_3 | E19: Remote Locations 3 | G19: 2730 | H19: 2730 | I19: 2730 | J19: 2834 | K19: 3021 | L19: 3264 | M19: 3621 | N19: 3882 | O19: 4353 | P19: 4538 | Q19: 4707 | R19: 5205 | S19: 5867 | T19: 6051 | U19: 6051 | V19: 6051 | W19: 6051 | X19: 6051 | Y19: 6051 | Z19: 6051 | AB19: 184 | AE19: =INT(MID(T4,2,FIND(" ",T4)-2)) -> 317001 | AF19: N
A20: Remote_Single_0_Q | B20: 4704 | D20: Remote_Single_4 | E20: Remote Locations 4 | G20: 3245 | H20: 3245 | I20: 3174 | J20: 3278 | K20: 3465 | L20: 3708 | M20: 4064 | N20: 4325 | O20: 4794 | P20: 4980 | Q20: 5149 | R20: 5645 | S20: 6308 | T20: 6491 | U20: 6491 | V20: 6491 | W20: 6491 | X20: 6491 | Y20: 6491 | Z20: 6491 | AB20: 183 | AE20: =INT(MID(U4,2,FIND(" ",U4)-2)) -> 347001 | AF20: O
A21: Remote_Single_0_R | B21: 4704 | D21: Remote_Single_5 | E21: Remote Locations 5 | G21: 3761 | H21: 3761 | I21: 3618 | J21: 3721 | K21: 3909 | L21: 4152 | M21: 4507 | N21: 4768 | O21: 5236 | P21: 5421 | Q21: 5590 | R21: 6086 | S21: 6748 | T21: 6930 | U21: 6930 | V21: 6930 | W21: 6930 | X21: 6930 | Y21: 6930 | Z21: 6930 | AB21: 182 | AE21: =INT(MID(V4,2,FIND(" ",V4)-2)) -> 377001 | AF21: P
A22: Remote_Single_0_S | B22: 4704 | D22: Remote_Single_6 | E22: Remote Locations 6 | G22: 4276 | H22: 4276 | I22: 4062 | J22: 4165 | K22: 4353 | L22: 4595 | M22: 4950 | N22: 5211 | O22: 5678 | P22: 5863 | Q22: 6032 | R22: 6526 | S22: 7189 | T22: 7369 | U22: 7369 | V22: 7369 | W22: 7369 | X22: 7369 | Y22: 7369 | Z22: 7369 | AB22: 180 | AE22: =INT(MID(W4,2,FIND(" ",W4)-2)) -> 407001 | AF22: Q
A23: Remote_Single_0_T | B23: 4704 | D23: Remote_Single_7 | E23: Remote Locations 7 | G23: 4791 | H23: 4791 | I23: 4506 | J23: 4609 | K23: 4797 | L23: 5039 | M23: 5392 | N23: 5653 | O23: 6119 | P23: 6304 | Q23: 6473 | R23: 6967 | S23: 7629 | T23: 7809 | U23: 7809 | V23: 7809 | W23: 7809 | X23: 7809 | Y23: 7809 | Z23: 7809 | AB23: 180 | AE23: =INT(MID(X4,2,FIND(" ",X4)-2)) -> 437001 | AF23: R
A24: Remote_Single_1_A | B24: 1774 | D24: Remote_Single_8 | E24: Remote Locations 8 | G24: 5306 | H24: 5306 | I24: 4950 | J24: 5053 | K24: 5241 | L24: 5483 | M24: 5835 | N24: 6096 | O24: 6561 | P24: 6746 | Q24: 6915 | R24: 7407 | S24: 8070 | T24: 8248 | U24: 8248 | V24: 8248 | W24: 8248 | X24: 8248 | Y24: 8248 | Z24: 8248 | AB24: 178 | AE24: =INT(MID(Y4,2,FIND(" ",Y4)-2)) -> 467001 | AF24: S
A25: Remote_Single_1_B | B25: 1774 | D25: Remote_Single_9 | E25: Remote Locations 9 | G25: 5821 | H25: 5821 | I25: 5394 | J25: 5497 | K25: 5684 | L25: 5927 | M25: 6278 | N25: 6539 | O25: 7002 | P25: 7188 | Q25: 7357 | R25: 7848 | S25: 8510 | T25: 8687 | U25: 8687 | V25: 8687 | W25: 8687 | X25: 8687 | Y25: 8687 | Z25: 8687 | AB25: 177 | AE25: =INT(MID(Z4,2,FIND(" ",Z4)-2)) -> 497001 | AF25: T
A26: Remote_Single_1_C | B26: 1847 | D26: Remote_Single_10+ | E26: Remote Locations 10+ | G26: 6337 | H26: 6337 | I26: 5837 | J26: 5941 | K26: 6128 | L26: 6371 | M26: 6721 | N26: 6982 | O26: 7444 | P26: 7629 | Q26: 7798 | R26: 8288 | S26: 8950 | T26: 9126 | U26: 9126 | V26: 9126 | W26: 9126 | X26: 9126 | Y26: 9126 | Z26: 9126 | AB26: 176 | AE26: =INT(MID(AA4,2,FIND(" ",AA4)-2)) -> 528001 | AF26: U
A27: Remote_Single_1_D | B27: 1950
A28: Remote_Single_1_E | B28: 2139 | E28: Table 2 (Joint) | G28: Annual Income | AB28: Bad Difference
A29: Remote_Single_1_F | B29: 2383 | E29: Location, Dependents | F29: Gross Income | G29: $21000 or less | H29: $21001 to $32000 | I29: $32001 to $42000 | J29: $42001 to $53000 | K29: $53001 to $63000 | L29: $63001 to $85000 | M29: $85001 to $106000 | N29: $106001 to $127000 | O29: $127001 to $148000 | P29: $148001 to $169000 | Q29: $169001 to $211000 | R29: $211001 to $264000 | S29: $264001 to $317000 | T29: $317001 to $347000 | U29: $347001 to $377000 | V29: $377001 to $407000 | W29: $407001 to $437000 | X29: $437001 to $467000 | Y29: $467001 to $497000 | Z29: $497001 to $528000 | AA29: $528001 or more
A30: Remote_Single_1_G | B30: 2742 | D30: ROA_JointOthers_0 | E30: Rest of Australia 0 | G30: 2095 | H30: 2095 | I30: 2157 | J30: 2247 | K30: 2410 | L30: 2620 | M30: 2931 | N30: 3158 | O30: 3567 | P30: 3727 | Q30: 3874 | R30: 4307 | S30: 4882 | T30: 5043 | U30: 5043 | V30: 5043 | W30: 5043 | X30: 5043 | Y30: 5043 | Z30: 5043 | AA30: Apply new dynamic calculation | AB30: =Z30-S30 -> 161
A31: Remote_Single_1_H | B31: 3005 | D31: ROA_JointOthers_1 | E31: Rest of Australia 1 | G31: 2479 | H31: 2479 | I31: 2479 | J31: 2568 | K31: 2731 | L31: 2942 | M31: 3252 | N31: 3479 | O31: 3888 | P31: 4048 | Q31: 4196 | R31: 4628 | S31: 5203 | T31: 5364 | U31: 5364 | V31: 5364 | W31: 5364 | X31: 5364 | Y31: 5364 | Z31: 5364 | AB31: =Z31-S31 -> 161
A32: Remote_Single_1_I | B32: 3478 | D32: ROA_JointOthers_2 | E32: Rest of Australia 2 | G32: 2723 | H32: 2723 | I32: 2723 | J32: 2812 | K32: 2974 | L32: 3183 | M32: 3492 | N32: 3717 | O32: 4123 | P32: 4282 | Q32: 4429 | R32: 4858 | S32: 5430 | T32: 5589 | U32: 5589 | V32: 5589 | W32: 5589 | X32: 5589 | Y32: 5589 | Z32: 5589 | AB32: 159
A33: Remote_Single_1_J | B33: 3663 | D33: ROA_JointOthers_3 | E33: Rest of Australia 3 | G33: 3088 | H33: 3088 | I33: 3088 | J33: 3088 | K33: 3251 | L33: 3462 | M33: 3773 | N33: 4000 | O33: 4409 | P33: 4570 | Q33: 4717 | R33: 5150 | S33: 5726 | T33: 5886 | U33: 5886 | V33: 5886 | W33: 5886 | X33: 5886 | Y33: 5886 | Z33: 5886 | AB33: 160
A34: Remote_Single_1_K | B34: 3834 | D34: ROA_JointOthers_4 | E34: Rest of Australia 4 | G34: 3453 | H34: 3453 | I34: 3453 | J34: 3364 | K34: 3528 | L34: 3741 | M34: 4054 | N34: 4283 | O34: 4695 | P34: 4858 | Q34: 5005 | R34: 5442 | S34: 6022 | T34: 6183 | U34: 6183 | V34: 6183 | W34: 6183 | X34: 6183 | Y34: 6183 | Z34: 6183 | AB34: 161
A35: Remote_Single_1_L | B35: 4333 | D35: ROA_JointOthers_5 | E35: Rest of Australia 5 | G35: 3818 | H35: 3818 | I35: 3818 | J35: 3640 | K35: 3805 | L35: 4020 | M35: 4335 | N35: 4566 | O35: 4981 | P35: 5146 | Q35: 5293 | R35: 5734 | S35: 6318 | T35: 6480 | U35: 6480 | V35: 6480 | W35: 6480 | X35: 6480 | Y35: 6480 | Z35: 6480 | AB35: 162
A36: Remote_Single_1_M | B36: 5000 | D36: ROA_JointOthers_6 | E36: Rest of Australia 6 | G36: 4183 | H36: 4183 | I36: 4183 | J36: 3916 | K36: 4082 | L36: 4299 | M36: 4616 | N36: 4849 | O36: 5267 | P36: 5434 | Q36: 5581 | R36: 6026 | S36: 6614 | T36: 6777 | U36: 6777 | V36: 6777 | W36: 6777 | X36: 6777 | Y36: 6777 | Z36: 6777 | AB36: 163
A37: Remote_Single_1_N | B37: 5185 | D37: ROA_JointOthers_7 | E37: Rest of Australia 7 | G37: 4548 | H37: 4548 | I37: 4548 | J37: 4192 | K37: 4359 | L37: 4578 | M37: 4897 | N37: 5132 | O37: 5553 | P37: 5722 | Q37: 5869 | R37: 6318 | S37: 6910 | T37: 7074 | U37: 7074 | V37: 7074 | W37: 7074 | X37: 7074 | Y37: 7074 | Z37: 7074 | AB37: 164
A38: Remote_Single_1_O | B38: 5185 | D38: ROA_JointOthers_8 | E38: Rest of Australia 8 | G38: 4913 | H38: 4913 | I38: 4913 | J38: 4468 | K38: 4636 | L38: 4857 | M38: 5178 | N38: 5415 | O38: 5839 | P38: 6010 | Q38: 6157 | R38: 6610 | S38: 7206 | T38: 7371 | U38: 7371 | V38: 7371 | W38: 7371 | X38: 7371 | Y38: 7371 | Z38: 7371 | AB38: 165
A39: Remote_Single_1_P | B39: 5185 | D39: ROA_JointOthers_9 | E39: Rest of Australia 9 | G39: 5278 | H39: 5278 | I39: 5278 | J39: 4744 | K39: 4913 | L39: 5136 | M39: 5459 | N39: 5698 | O39: 6125 | P39: 6298 | Q39: 6445 | R39: 6902 | S39: 7502 | T39: 7668 | U39: 7668 | V39: 7668 | W39: 7668 | X39: 7668 | Y39: 7668 | Z39: 7668 | AB39: 166
A40: Remote_Single_1_Q | B40: 5185 | D40: ROA_JointOthers_10+ | E40: Rest of Australia 10+ | G40: 5643 | H40: 5643 | I40: 5643 | J40: 5020 | K40: 5190 | L40: 5415 | M40: 5740 | N40: 5981 | O40: 6411 | P40: 6586 | Q40: 6733 | R40: 7194 | S40: 7798 | T40: 7965 | U40: 7965 | V40: 7965 | W40: 7965 | X40: 7965 | Y40: 7965 | Z40: 7965 | AB40: 167
A41: Remote_Single_1_R | B41: 5185 | D41: Remote_JointOthers_0 | E41: Remote Locations 0 | G41: 2409 | H41: 2409 | I41: 2481 | J41: 2584 | K41: 2772 | L41: 3013 | M41: 3371 | N41: 3632 | O41: 4102 | P41: 4286 | Q41: 4455 | R41: 4953 | S41: 5614 | T41: 5799 | U41: 5799 | V41: 5799 | W41: 5799 | X41: 5799 | Y41: 5799 | Z41: 5799 | AA41: Apply new dynamic calculation | AB41: 185
A42: Remote_Single_1_S | B42: 5185 | D42: Remote_JointOthers_1 | E42: Remote Locations 1 | G42: 2851 | H42: 2851 | I42: 2851 | J42: 2953 | K42: 3141 | L42: 3383 | M42: 3740 | N42: 4001 | O42: 4471 | P42: 4655 | Q42: 4825 | R42: 5322 | S42: 5983 | T42: 6169 | U42: 6169 | V42: 6169 | W42: 6169 | X42: 6169 | Y42: 6169 | Z42: 6169 | AB42: 186
A43: Remote_Single_1_T | B43: 5185 | D43: Remote_JointOthers_2 | E43: Remote Locations 2 | G43: 3131 | H43: 3131 | I43: 3131 | J43: 3234 | K43: 3420 | L43: 3660 | M43: 4016 | N43: 4275 | O43: 4741 | P43: 4924 | Q43: 5093 | R43: 5587 | S43: 6245 | T43: 6427 | U43: 6427 | V43: 6427 | W43: 6427 | X43: 6427 | Y43: 6427 | Z43: 6427 | AB43: 182
A44: Remote_Single_2_A | B44: 2215 | D44: Remote_JointOthers_3 | E44: Remote Locations 3 | G44: 3551 | H44: 3551 | I44: 3551 | J44: 3551 | K44: 3739 | L44: 3981 | M44: 4339 | N44: 4600 | O44: 5070 | P44: 5256 | Q44: 5425 | R44: 5923 | S44: 6585 | T44: 6769 | U44: 6769 | V44: 6769 | W44: 6769 | X44: 6769 | Y44: 6769 | Z44: 6769 | AB44: 184
A45: Remote_Single_2_B | B45: 2215 | D45: Remote_JointOthers_4 | E45: Remote Locations 4 | G45: 3971 | H45: 3971 | I45: 3971 | J45: 3869 | K45: 4057 | L45: 4302 | M45: 4662 | N45: 4925 | O45: 5399 | P45: 5587 | Q45: 5756 | R45: 6258 | S45: 6925 | T45: 7110 | U45: 7110 | V45: 7110 | W45: 7110 | X45: 7110 | Y45: 7110 | Z45: 7110 | AB45: 185
A46: Remote_Single_2_C | B46: 2286 | D46: Remote_JointOthers_5 | E46: Remote Locations 5 | G46: 4391 | H46: 4391 | I46: 4391 | J46: 4186 | K46: 4376 | L46: 4623 | M46: 4985 | N46: 5251 | O46: 5728 | P46: 5918 | Q46: 6087 | R46: 6594 | S46: 7266 | T46: 7452 | U46: 7452 | V46: 7452 | W46: 7452 | X46: 7452 | Y46: 7452 | Z46: 7452 | AB46: 186
A47: Remote_Single_2_D | B47: 2390 | D47: Remote_JointOthers_6 | E47: Remote Locations 6 | G47: 4810 | H47: 4810 | I47: 4810 | J47: 4503 | K47: 4694 | L47: 4944 | M47: 5308 | N47: 5576 | O47: 6057 | P47: 6249 | Q47: 6418 | R47: 6930 | S47: 7606 | T47: 7794 | U47: 7794 | V47: 7794 | W47: 7794 | X47: 7794 | Y47: 7794 | Z47: 7794 | AB47: 188
A48: Remote_Single_2_E | B48: 2577 | D48: Remote_JointOthers_7 | E48: Remote Locations 7 | G48: 5230 | H48: 5230 | I48: 5230 | J48: 4821 | K48: 5013 | L48: 5265 | M48: 5632 | N48: 5902 | O48: 6386 | P48: 6580 | Q48: 6749 | R48: 7266 | S48: 7947 | T48: 8135 | U48: 8135 | V48: 8135 | W48: 8135 | X48: 8135 | Y48: 8135 | Z48: 8135 | AB48: 188
A49: Remote_Single_2_F | B49: 2820 | D49: Remote_JointOthers_8 | E49: Remote Locations 8 | G49: 5650 | H49: 5650 | I49: 5650 | J49: 5138 | K49: 5331 | L49: 5586 | M49: 5955 | N49: 6227 | O49: 6715 | P49: 6912 | Q49: 7081 | R49: 7602 | S49: 8287 | T49: 8477 | U49: 8477 | V49: 8477 | W49: 8477 | X49: 8477 | Y49: 8477 | Z49: 8477 | AB49: 190
A50: Remote_Single_2_G | B50: 3179 | D50: Remote_JointOthers_9 | E50: Remote Locations 9 | G50: 6070 | H50: 6070 | I50: 6070 | J50: 5456 | K50: 5650 | L50: 5906 | M50: 6278 | N50: 6553 | O50: 7044 | P50: 7243 | Q50: 7412 | R50: 7937 | S50: 8627 | T50: 8818 | U50: 8818 | V50: 8818 | W50: 8818 | X50: 8818 | Y50: 8818 | Z50: 8818 | AB50: 191
A51: Remote_Single_2_H | B51: 3440 | D51: Remote_JointOthers_10+ | E51: Remote Locations 10+ | G51: 6489 | H51: 6489 | I51: 6489 | J51: 5773 | K51: 5969 | L51: 6227 | M51: 6601 | N51: 6878 | O51: 7373 | P51: 7574 | Q51: 7743 | R51: 8273 | S51: 8968 | T51: 9160 | U51: 9160 | V51: 9160 | W51: 9160 | X51: 9160 | Y51: 9160 | Z51: 9160 | AB51: 192
A52: Remote_Single_2_I | B52: 3911
A53: Remote_Single_2_J | B53: 4096 | E53: Table 3 (Joint with Spouse) | G53: Annual Income | AB53: Bad Difference
A54: Remote_Single_2_K | B54: 4265 | E54: Location, Dependents | F54: Gross Income | G54: $21000 or less | H54: $21001 to $32000 | I54: $32001 to $42000 | J54: $42001 to $53000 | K54: $53001 to $63000 | L54: $63001 to $85000 | M54: $85001 to $106000 | N54: $106001 to $127000 | O54: $127001 to $148000 | P54: $148001 to $169000 | Q54: $169001 to $211000 | R54: $211001 to $264000 | S54: $264001 to $317000 | T54: $317001 to $347000 | U54: $347001 to $377000 | V54: $377001 to $407000 | W54: $407001 to $437000 | X54: $437001 to $467000 | Y54: $467001 to $497000 | Z54: $497001 to $528000 | AA54: $528001 or more
A55: Remote_Single_2_L | B55: 4764 | D55: ROA_JointSpouse_0 | E55: Rest of Australia 0 | G55: 1048 | H55: 1048 | I55: 1079 | J55: 1124 | K55: 1205 | L55: 1310 | M55: 1466 | N55: 1579 | O55: 1784 | P55: 1864 | Q55: 1937 | R55: 2154 | S55: 2441 | T55: 2522 | U55: 2522 | V55: 2522 | W55: 2522 | X55: 2522 | Y55: 2522 | Z55: 2522 | AA55: Apply new dynamic calculation | AB55: =Z55-S55 -> 81
A56: Remote_Single_2_M | B56: 5427 | D56: ROA_JointSpouse_1 | E56: Rest of Australia 1 | G56: 1240 | H56: 1240 | I56: 1240 | J56: 1284 | K56: 1366 | L56: 1471 | M56: 1626 | N56: 1740 | O56: 1944 | P56: 2024 | Q56: 2098 | R56: 2314 | S56: 2602 | T56: 2682 | U56: 2682 | V56: 2682 | W56: 2682 | X56: 2682 | Y56: 2682 | Z56: 2682 | AB56: =Z56-S56 -> 80
A57: Remote_Single_2_N | B57: 5612 | D57: ROA_JointSpouse_2 | E57: Rest of Australia 2 | G57: 1362 | H57: 1362 | I57: 1362 | J57: 1406 | K57: 1487 | L57: 1592 | M57: 1746 | N57: 1859 | O57: 2062 | P57: 2141 | Q57: 2215 | R57: 2429 | S57: 2715 | T57: 2795 | U57: 2795 | V57: 2795 | W57: 2795 | X57: 2795 | Y57: 2795 | Z57: 2795 | AB57: 80
A58: Remote_Single_2_O | B58: 5612 | D58: ROA_JointSpouse_3 | E58: Rest of Australia 3 | G58: 1544 | H58: 1544 | I58: 1544 | J58: 1544 | K58: 1626 | L58: 1731 | M58: 1887 | N58: 2000 | O58: 2205 | P58: 2285 | Q58: 2359 | R58: 2575 | S58: 2863 | T58: 2943 | U58: 2943 | V58: 2943 | W58: 2943 | X58: 2943 | Y58: 2943 | Z58: 2943 | AB58: 80
A59: Remote_Single_2_P | B59: 5612 | D59: ROA_JointSpouse_4 | E59: Rest of Australia 4 | G59: 1727 | H59: 1727 | I59: 1727 | J59: 1682 | K59: 1764 | L59: 1871 | M59: 2027 | N59: 2142 | O59: 2348 | P59: 2429 | Q59: 2503 | R59: 2721 | S59: 3011 | T59: 3092 | U59: 3092 | V59: 3092 | W59: 3092 | X59: 3092 | Y59: 3092 | Z59: 3092 | AB59: 81
A60: Remote_Single_2_Q | B60: 5612 | D60: ROA_JointSpouse_5 | E60: Rest of Australia 5 | G60: 1909 | H60: 1909 | I60: 1909 | J60: 1820 | K60: 1903 | L60: 2010 | M60: 2168 | N60: 2283 | O60: 2491 | P60: 2573 | Q60: 2647 | R60: 2867 | S60: 3159 | T60: 3240 | U60: 3240 | V60: 3240 | W60: 3240 | X60: 3240 | Y60: 3240 | Z60: 3240 | AB60: 81
A61: Remote_Single_2_R | B61: 5612 | D61: ROA_JointSpouse_6 | E61: Rest of Australia 6 | G61: 2092 | H61: 2092 | I61: 2092 | J61: 1958 | K61: 2041 | L61: 2150 | M61: 2308 | N61: 2425 | O61: 2634 | P61: 2717 | Q61: 2791 | R61: 3013 | S61: 3307 | T61: 3389 | U61: 3389 | V61: 3389 | W61: 3389 | X61: 3389 | Y61: 3389 | Z61: 3389 | AB61: 82
A62: Remote_Single_2_S | B62: 5612 | D62: ROA_JointSpouse_7 | E62: Rest of Australia 7 | G62: 2274 | H62: 2274 | I62: 2274 | J62: 2096 | K62: 2180 | L62: 2289 | M62: 2449 | N62: 2566 | O62: 2777 | P62: 2861 | Q62: 2935 | R62: 3159 | S62: 3455 | T62: 3537 | U62: 3537 | V62: 3537 | W62: 3537 | X62: 3537 | Y62: 3537 | Z62: 3537 | AB62: 82
A63: Remote_Single_2_T | B63: 5612 | D63: ROA_JointSpouse_8 | E63: Rest of Australia 8 | G63: 2457 | H63: 2457 | I63: 2457 | J63: 2234 | K63: 2318 | L63: 2429 | M63: 2589 | N63: 2708 | O63: 2920 | P63: 3005 | Q63: 3079 | R63: 3305 | S63: 3603 | T63: 3686 | U63: 3686 | V63: 3686 | W63: 3686 | X63: 3686 | Y63: 3686 | Z63: 3686 | AB63: 83
A64: Remote_Single_3_A | B64: 2730 | D64: ROA_JointSpouse_9 | E64: Rest of Australia 9 | G64: 2639 | H64: 2639 | I64: 2639 | J64: 2372 | K64: 2457 | L64: 2568 | M64: 2730 | N64: 2849 | O64: 3063 | P64: 3149 | Q64: 3223 | R64: 3451 | S64: 3751 | T64: 3834 | U64: 3834 | V64: 3834 | W64: 3834 | X64: 3834 | Y64: 3834 | Z64: 3834 | AB64: 83
A65: Remote_Single_3_B | B65: 2730 | D65: ROA_JointSpouse_10+ | E65: Rest of Australia 10+ | G65: 2822 | H65: 2822 | I65: 2822 | J65: 2510 | K65: 2595 | L65: 2708 | M65: 2870 | N65: 2991 | O65: 3206 | P65: 3293 | Q65: 3367 | R65: 3597 | S65: 3899 | T65: 3983 | U65: 3983 | V65: 3983 | W65: 3983 | X65: 3983 | Y65: 3983 | Z65: 3983 | AB65: 84
A66: Remote_Single_3_C | B66: 2730 | D66: Remote_JointSpouse_0 | E66: Remote Locations 0 | G66: 1205 | H66: 1205 | I66: 1240 | J66: 1292 | K66: 1386 | L66: 1507 | M66: 1685 | N66: 1816 | O66: 2051 | P66: 2143 | Q66: 2228 | R66: 2477 | S66: 2807 | T66: 2900 | U66: 2900 | V66: 2900 | W66: 2900 | X66: 2900 | Y66: 2900 | Z66: 2900 | AA66: Apply new dynamic calculation | AB66: 93
A67: Remote_Single_3_D | B67: 2834 | D67: Remote_JointSpouse_1 | E67: Remote Locations 1 | G67: 1425 | H67: 1425 | I67: 1425 | J67: 1477 | K67: 1570 | L67: 1692 | M67: 1870 | N67: 2000 | O67: 2236 | P67: 2328 | Q67: 2413 | R67: 2661 | S67: 2992 | T67: 3084 | U67: 3084 | V67: 3084 | W67: 3084 | X67: 3084 | Y67: 3084 | Z67: 3084 | AB67: 92
A68: Remote_Single_3_E | B68: 3021 | D68: Remote_JointSpouse_2 | E68: Remote Locations 2 | G68: 1566 | H68: 1566 | I68: 1566 | J68: 1617 | K68: 1710 | L68: 1830 | M68: 2008 | N68: 2137 | O68: 2371 | P68: 2462 | Q68: 2547 | R68: 2793 | S68: 3122 | T68: 3214 | U68: 3214 | V68: 3214 | W68: 3214 | X68: 3214 | Y68: 3214 | Z68: 3214 | AB68: 92
A69: Remote_Single_3_F | B69: 3264 | D69: Remote_JointSpouse_3 | E69: Remote Locations 3 | G69: 1776 | H69: 1776 | I69: 1776 | J69: 1776 | K69: 1869 | L69: 1991 | M69: 2169 | N69: 2300 | O69: 2535 | P69: 2628 | Q69: 2712 | R69: 2961 | S69: 3292 | T69: 3384 | U69: 3384 | V69: 3384 | W69: 3384 | X69: 3384 | Y69: 3384 | Z69: 3384 | AB69: 92
A70: Remote_Single_3_G | B70: 3621 | D70: Remote_JointSpouse_4 | E70: Remote Locations 4 | G70: 1985 | H70: 1985 | I70: 1985 | J70: 1934 | K70: 2029 | L70: 2151 | M70: 2331 | N70: 2463 | O70: 2700 | P70: 2793 | Q70: 2878 | R70: 3129 | S70: 3463 | T70: 3555 | U70: 3555 | V70: 3555 | W70: 3555 | X70: 3555 | Y70: 3555 | Z70: 3555 | AB70: 92
A71: Remote_Single_3_H | B71: 3882 | D71: Remote_JointSpouse_5 | E71: Remote Locations 5 | G71: 2195 | H71: 2195 | I71: 2195 | J71: 2093 | K71: 2188 | L71: 2312 | M71: 2493 | N71: 2625 | O71: 2864 | P71: 2959 | Q71: 3043 | R71: 3297 | S71: 3633 | T71: 3726 | U71: 3726 | V71: 3726 | W71: 3726 | X71: 3726 | Y71: 3726 | Z71: 3726 | AB71: 93
A72: Remote_Single_3_I | B72: 4353 | D72: Remote_JointSpouse_6 | E72: Remote Locations 6 | G72: 2405 | H72: 2405 | I72: 2405 | J72: 2252 | K72: 2347 | L72: 2472 | M72: 2654 | N72: 2788 | O72: 3029 | P72: 3125 | Q72: 3209 | R72: 3465 | S72: 3803 | T72: 3897 | U72: 3897 | V72: 3897 | W72: 3897 | X72: 3897 | Y72: 3897 | Z72: 3897 | AB72: 94
A73: Remote_Single_3_J | B73: 4538 | D73: Remote_JointSpouse_7 | E73: Remote Locations 7 | G73: 2615 | H73: 2615 | I73: 2615 | J73: 2410 | K73: 2506 | L73: 2632 | M73: 2816 | N73: 2951 | O73: 3193 | P73: 3290 | Q73: 3375 | R73: 3633 | S73: 3973 | T73: 4068 | U73: 4068 | V73: 4068 | W73: 4068 | X73: 4068 | Y73: 4068 | Z73: 4068 | AB73: 95
A74: Remote_Single_3_K | B74: 4707 | D74: Remote_JointSpouse_8 | E74: Remote Locations 8 | G74: 2825 | H74: 2825 | I74: 2825 | J74: 2569 | K74: 2666 | L74: 2793 | M74: 2977 | N74: 3114 | O74: 3357 | P74: 3456 | Q74: 3540 | R74: 3801 | S74: 4143 | T74: 4238 | U74: 4238 | V74: 4238 | W74: 4238 | X74: 4238 | Y74: 4238 | Z74: 4238 | AB74: 95
A75: Remote_Single_3_L | B75: 5205 | D75: Remote_JointSpouse_9 | E75: Remote Locations 9 | G75: 3035 | H75: 3035 | I75: 3035 | J75: 2728 | K75: 2825 | L75: 2953 | M75: 3139 | N75: 3276 | O75: 3522 | P75: 3621 | Q75: 3706 | R75: 3969 | S75: 4314 | T75: 4409 | U75: 4409 | V75: 4409 | W75: 4409 | X75: 4409 | Y75: 4409 | Z75: 4409 | AB75: 95
A76: Remote_Single_3_M | B76: 5867 | D76: Remote_JointSpouse_10+ | E76: Remote Locations 10+ | G76: 3245 | H76: 3245 | I76: 3245 | J76: 2887 | K76: 2984 | L76: 3114 | M76: 3301 | N76: 3439 | O76: 3686 | P76: 3787 | Q76: 3871 | R76: 4137 | S76: 4484 | T76: 4580 | U76: 4580 | V76: 4580 | W76: 4580 | X76: 4580 | Y76: 4580 | Z76: 4580 | AB76: 96
A77: Remote_Single_3_N | B77: 6051
A78: Remote_Single_3_O | B78: 6051
A79: Remote_Single_3_P | B79: 6051
A80: Remote_Single_3_Q | B80: 6051
A81: Remote_Single_3_R | B81: 6051
A82: Remote_Single_3_S | B82: 6051
A83: Remote_Single_3_T | B83: 6051
A84: Remote_Single_4_A | B84: 3245
A85: Remote_Single_4_B | B85: 3245
A86: Remote_Single_4_C | B86: 3174
A87: Remote_Single_4_D | B87: 3278
A88: Remote_Single_4_E | B88: 3465
A89: Remote_Single_4_F | B89: 3708
A90: Remote_Single_4_G | B90: 4064
A91: Remote_Single_4_H | B91: 4325
A92: Remote_Single_4_I | B92: 4794
A93: Remote_Single_4_J | B93: 4980
A94: Remote_Single_4_K | B94: 5149
A95: Remote_Single_4_L | B95: 5645
A96: Remote_Single_4_M | B96: 6308
A97: Remote_Single_4_N | B97: 6491
A98: Remote_Single_4_O | B98: 6491
A99: Remote_Single_4_P | B99: 6491
A100: Remote_Single_4_Q | B100: 6491
A101: Remote_Single_4_R | B101: 6491
A102: Remote_Single_4_S | B102: 6491
A103: Remote_Single_4_T | B103: 6491
A104: Remote_Single_5_A | B104: 3761
A105: Remote_Single_5_B | B105: 3761
A106: Remote_Single_5_C | B106: 3618
A107: Remote_Single_5_D | B107: 3721
A108: Remote_Single_5_E | B108: 3909
A109: Remote_Single_5_F | B109: 4152
A110: Remote_Single_5_G | B110: 4507
A111: Remote_Single_5_H | B111: 4768
A112: Remote_Single_5_I | B112: 5236
A113: Remote_Single_5_J | B113: 5421
A114: Remote_Single_5_K | B114: 5590
A115: Remote_Single_5_L | B115: 6086
A116: Remote_Single_5_M | B116: 6748
A117: Remote_Single_5_N | B117: 6930
A118: Remote_Single_5_O | B118: 6930
A119: Remote_Single_5_P | B119: 6930
A120: Remote_Single_5_Q | B120: 6930
A121: Remote_Single_5_R | B121: 6930
A122: Remote_Single_5_S | B122: 6930
A123: Remote_Single_5_T | B123: 6930
A124: Remote_Single_6_A | B124: 4276
A125: Remote_Single_6_B | B125: 4276
A126: Remote_Single_6_C | B126: 4062
A127: Remote_Single_6_D | B127: 4165
A128: Remote_Single_6_E | B128: 4353
A129: Remote_Single_6_F | B129: 4595
A130: Remote_Single_6_G | B130: 4950
A131: Remote_Single_6_H | B131: 5211
A132: Remote_Single_6_I | B132: 5678
A133: Remote_Single_6_J | B133: 5863
A134: Remote_Single_6_K | B134: 6032
A135: Remote_Single_6_L | B135: 6526
A136: Remote_Single_6_M | B136: 7189
A137: Remote_Single_6_N | B137: 7369
A138: Remote_Single_6_O | B138: 7369
A139: Remote_Single_6_P | B139: 7369
A140: Remote_Single_6_Q | B140: 7369
A141: Remote_Single_6_R | B141: 7369
A142: Remote_Single_6_S | B142: 7369
A143: Remote_Single_6_T | B143: 7369
A144: Remote_Single_7_A | B144: 4791
A145: Remote_Single_7_B | B145: 4791
A146: Remote_Single_7_C | B146: 4506
A147: Remote_Single_7_D | B147: 4609
A148: Remote_Single_7_E | B148: 4797
A149: Remote_Single_7_F | B149: 5039
A150: Remote_Single_7_G | B150: 5392
A151: Remote_Single_7_H | B151: 5653
A152: Remote_Single_7_I | B152: 6119
A153: Remote_Single_7_J | B153: 6304
A154: Remote_Single_7_K | B154: 6473
A155: Remote_Single_7_L | B155: 6967
A156: Remote_Single_7_M | B156: 7629
A157: Remote_Single_7_N | B157: 7809
A158: Remote_Single_7_O | B158: 7809
A159: Remote_Single_7_P | B159: 7809
A160: Remote_Single_7_Q | B160: 7809
A161: Remote_Single_7_R | B161: 7809
A162: Remote_Single_7_S | B162: 7809
A163: Remote_Single_7_T | B163: 7809
A164: Remote_Single_8_A | B164: 5306
A165: Remote_Single_8_B | B165: 5306
A166: Remote_Single_8_C | B166: 4950
A167: Remote_Single_8_D | B167: 5053
A168: Remote_Single_8_E | B168: 5241
A169: Remote_Single_8_F | B169: 5483
A170: Remote_Single_8_G | B170: 5835
A171: Remote_Single_8_H | B171: 6096
A172: Remote_Single_8_I | B172: 6561
A173: Remote_Single_8_J | B173: 6746
A174: Remote_Single_8_K | B174: 6915
A175: Remote_Single_8_L | B175: 7407
A176: Remote_Single_8_M | B176: 8070
A177: Remote_Single_8_N | B177: 8248
A178: Remote_Single_8_O | B178: 8248
A179: Remote_Single_8_P | B179: 8248
A180: Remote_Single_8_Q | B180: 8248
A181: Remote_Single_8_R | B181: 8248
A182: Remote_Single_8_S | B182: 8248
A183: Remote_Single_8_T | B183: 8248
A184: Remote_Single_9_A | B184: 5821
A185: Remote_Single_9_B | B185: 5821
A186: Remote_Single_9_C | B186: 5394
A187: Remote_Single_9_D | B187: 5497
A188: Remote_Single_9_E | B188: 5684
A189: Remote_Single_9_F | B189: 5927
A190: Remote_Single_9_G | B190: 6278
A191: Remote_Single_9_H | B191: 6539
A192: Remote_Single_9_I | B192: 7002
A193: Remote_Single_9_J | B193: 7188
A194: Remote_Single_9_K | B194: 7357
A195: Remote_Single_9_L | B195: 7848
A196: Remote_Single_9_M | B196: 8510
A197: Remote_Single_9_N | B197: 8687
A198: Remote_Single_9_O | B198: 8687
A199: Remote_Single_9_P | B199: 8687
A200: Remote_Single_9_Q | B200: 8687
... 10198 more rows

Sheet PAYG YTD Calc - App1 Job1 (hidden)
G1: Serviceability Assesment Calculator | AI1: Other Calculators
B7: PAYG Income Calculator
B10: Version | N10: Applicant name | AK10: Application number | AW10: Assessment date | BI10: User ID
B12: =Assess_Version -> 19 | N12: ='Serviceability Calculator'!Assess_App1Name -> 0 | AK12: ='Serviceability Calculator'!Assess_AppNum -> Enter Number | AW12: =TODAY() -> 2019-11-19 | BI12: ='Serviceability Calculator'!BK12 -> M025250
CK14: Avg Pay Lookup | CR14: =CF16&"/"&CF17&"/"&CF18&"/"&CF20 -> 0/0/No/No
BY15: 3 months | CF15: =IFERROR(IF(AND(PAYG_YTDPays>=3,PAYG_YTDCycle="Monthly"),"Yes",IF(DATEDIF(PAYG_YTDStartDate,PAYG_YTDEndDate,"m")<3,"No","Yes")),"No") -> No | CK15: Avg Pay Result | CR15: =VLOOKUP(CR14,PAYG_AvgPayLookup,28,FALSE) -> 
B16: Select employment* PAYG / Family | Z16: Enter employer name* | AL16: Enter name | BY16: YTD Figure | CF16: =IF(PAYG_EmployType="Family","Family",PAYG_YTDConfirm) -> 0 | CK16: Base Pay Lookup | CR16: =CF16&"/"&CF18 -> 0/No
BY17: Taxable | CF17: =PAYG_YTD_YTDType -> 0 | CK17: Base Pay Result | CR17: =IFERROR(VLOOKUP(CR16,PAYG_BasePayLookup,28,FALSE),"Error") -> Error
BY18: SS Required | CF18: =IF(PAYG_EmployType="Family","No",IF(PAYG_AdditPreTaxReq="","No",PAYG_AdditPreTaxReq)) -> No | CK18: Total Pay Lookup | CR18: =CF15&"/"&CF16&"/"&CF18 -> No/0/No
BY19: Bonus | CF19: =IF(PAYG_AdditProjectedBonus>0,"Unpaid",IF(PAYG_AdditPaidBonus>0,"Paid","No")) -> No | CK19: Total Pay Result | CR19: =IFERROR(VLOOKUP(CR18,PAYG_TotalPayLookup,28,FALSE),"Error") -> Error
BY20: Paid Bonus | CF20: =IF(PAYG_AdditPaidBonus>0,"Yes","No") -> No | CK20: Bonus Pay Lookup | CR20: =CF15&"/"&CF16&"/"&CF19&"/"&CF18 -> No/0/No/No
B21: Can you confirm base income* | Z21: Do you have a YTD figure* | CK21: Bonus Pay Result | CR21: =IFERROR(VLOOKUP(CR20,PAYG_BonusPayLookup,28,FALSE),0) -> 0
BY24: Lookup | CF24: Usage | CO24: Description | CZ24: Value
B25: Group 1 documents | CF25: YTD Reference | CO25: Pays in Cycle | CZ25: =VLOOKUP(PAYG_YTDCycle,Reference!$K$6:$M$13,3,FALSE) -> 
CF26: YTD Reference | CO26: Days Elapsed | CZ26: =PAYG_YTDEndDate-PAYG_YTDStartDate -> -43647
CF27: YTD Reference | CO27: Months Elapsed | CZ27: =(YEAR(PAYG_YTDEndDate)-YEAR(PAYG_YTDStartDate))*12+(MONTH(PAYG_YTDEndDate)-MONTH(PAYG_YTDStartDate))+(DAY(PAYG_YTDEndDate)-DAY(PAYG_YTDStartDate))/31 -> -1434.032258
CF28: YTD Reference | CO28: Pays in Year | CZ28: =VLOOKUP(PAYG_YTDCycle,Reference!K6:L13,2,FALSE) -> 
B29: Year-to-date payslips
BY30: Yes/Gross/Yes/No | CF30: YTD Avg | CO30: Avg Gross YTD w SS | CZ30: =PAYG_YTD_YTDValue/PAYG_YTDPays -> 
BY31: Yes/Gross/No/No | CF31: YTD Avg | CO31: avg Gross YTD w/o SS | CZ31: =CZ30-PAYG_AdditPreTax -> 
B32: Select your pay cycle | BY32: Yes/Gross/Yes/Yes | CF32: YTD Avg | CO32: Avg Gross YTD w SS & bonus | CZ32: =(PAYG_YTD_YTDValue-PAYG_AdditPaidBonus)/PAYG_YTDPays -> 
BY33: Yes/Gross/No/Yes | CF33: YTD Avg | CO33: avg Gross YTD w/o SS & bonus | CZ33: =(PAYG_YTD_YTDValue-PAYG_AdditPaidBonus-PAYG_AdditPreTax)/PAYG_YTDPays -> 
BY34: Yes/Taxable/Yes/No | CF34: YTD Avg | CO34: avg tax YTD w SS | CZ34: =(PAYG_YTD_YTDValue/PAYG_YTDPays)+PAYG_AdditPreTax -> 
B35: First day of financial year | N35: 2019-07-01 | Z35: =PAYG_YTDCycle&" base pay" -> base pay | AX35: Number of pays | BJ35: =IFERROR(IF(PAYG_YTDCycle=Reference!K13,1,IF(PAYG_YTDCycle=Reference!K10,ROUNDDOWN(CZ27,0)+1,ROUNDDOWN(CZ26/CZ25,0)+1)),"") ->  | BY35: Yes/Taxable/No/No | CF35: YTD Avg | CO35: avg tax YTD w/o SS | CZ35: =PAYG_YTD_YTDValue/PAYG_YTDPays -> 
BY36: Yes/Taxable/Yes/Yes | CF36: YTD Avg | CO36: avg tax YTD w SS & bonus | CZ36: =(PAYG_YTD_YTDValue-PAYG_AdditPaidBonus)/PAYG_YTDPays+PAYG_AdditPreTax -> 
BY37: Yes/Taxable/No/Yes | CF37: YTD Avg | CO37: avg tax YTD w/o SS & bonus | CZ37: =(PAYG_YTD_YTDValue-PAYG_AdditPaidBonus)/PAYG_YTDPays -> 
B38: Most recent pay date | Z38: Is the YTD amount Gross or Taxable? | AX38: Average pay | BJ38: =PAYG_YTDAvgPayResult -> 
CF39: No YTD Reference | CO39: Number of Pays | CZ39: =VLOOKUP(PAYG_NoYTDCycle,Reference!$K$6:$L$13,2,FALSE) -> 
Z41: =AL38 &" YTD amount" -> YTD amount | AX41: Annualised average pay | BJ41: =IFERROR(PAYG_YTDAveragePay*CZ28,"") ->  | CF41: Group 2 | CO41: Group 2 Doc | CZ41: =IF(AND(PAYG_PaySumAmount>0,PAYG_NOAAmount>0),MIN(PAYG_PaySumAmount,PAYG_NOAAmount),MAX(PAYG_PaySumAmount,PAYG_NOAAmount)) -> 0
BY43: Yes/Yes | CF43: Summary Income - Annual Base | CO43: YTD Annual Base w SS | CZ43: =PAYG_YTDBase*CZ28 -> 
B44: Group 1 documents | BY44: Yes/No | CF44: Summary Income - Annual Base | CO44: YTD Annual Base w/o SS | CZ44: =(PAYG_YTDBase-PAYG_AdditPreTax)*CZ28 -> 
BY45: No/Yes | CF45: Summary Income - Annual Base | CO45: No YTD Annual Base w SS | CZ45: =PAYG_NoYTDAnnualBase -> 0
BY46: Family/No | CF46: Summary Income - Annual Base | CO46: No YTD Annual Base w SS | CZ46: =MIN(PAYG_NoYTDAnnualBase,CZ41) -> 0
BY47: No/No | CF47: Summary Income - Annual Base | CO47: No YTD Annual Base w/o SS | CZ47: =PAYG_NoYTDAnnualBase-(PAYG_AdditPreTax*CZ39) -> 
B48: No year-to-date payslips
BY49: Yes/Yes/Yes | CF49: Summary Income - Annual Total | CO49: YTD => 3mths w or w/o SS | CZ49: =MAX(PAYG_ServAnnualBase,PAYG_YTDAnnualised) -> 0
BY50: Yes/Yes/No | CZ50: =MAX(PAYG_ServAnnualBase,PAYG_YTDAnnualised) -> 0
B51: Select your pay cycle | BY51: No/Yes/Yes | CF51: Summary Income - Annual Total | CO51: YTD < 3mths w or w/o SS | CZ51: =MIN(CZ41,CZ49) -> 0
BY52: No/Yes/No | CZ52: =MIN(CZ41,CZ49) -> 0
BY53: No/Family/Yes | CF53: Summary Income - Annual Total | CO53: No YTD w SS | CZ53: =MIN(MAX(PAYG_ServAnnualBase,PAYG_NoYTDAnnualTotal),CZ41) -> 0
B54: Pay date: 1st payslip | Z54: Pay date: 2nd payslip | BY54: No/Family/No | CF54: Summary Income - Annual Total | CO54: No YTD w/o SS | CZ54: =MIN(MAX(PAYG_ServAnnualBase,PAYG_NoYTDAnnualTotal-(PAYG_AdditPreTax*CZ39)),CZ41) -> 
BY55: No/No/Yes | CF55: Summary Income - Annual Total | CO55: No YTD w SS | CZ55: =MIN(MAX(PAYG_ServAnnualBase,PAYG_NoYTDAnnualTotal),CZ41) -> 0
BY56: No/No/No | CF56: Summary Income - Annual Total | CO56: No YTD w/o SS | CZ56: =MIN(MAX(PAYG_ServAnnualBase,PAYG_NoYTDAnnualTotal-(PAYG_AdditPreTax*CZ39)),CZ41) -> 
B57: Base pay | Z57: Base pay
BY58: Yes/Yes/Paid/Yes | CF58: Summary Income - Annual Bonus | CO58: YTD => 3mths Paid w or w/o SS | CZ58: =CZ49+PAYG_AdditPaidBonus -> 0
BY59: Yes/Yes/Paid/No | CZ59: =CZ49+PAYG_AdditPaidBonus -> 0
B60: Total Pay | Z60: Total Pay | BY60: Yes/Yes/Unpaid/Yes | CF60: Summary Income - Annual Bonus | CO60: YTD => 3mths unpaid w or w/o SS | CZ60: =MIN(CZ58+PAYG_AdditProjectedBonus,CZ41) -> 0
BY61: Yes/Yes/Unpaid/No | CZ61: =MIN(CZ58+PAYG_AdditProjectedBonus,CZ41) -> 0
BY62: No/Yes/Paid/Yes | CF62: Summary Income - Annual Bonus | CO62: YTD < 3mths unpaid w SS | CZ62: =MIN(CZ51+PAYG_AdditProjectedBonus+PAYG_AdditPaidBonus,CZ41) -> 0
B63: Annual base | N63: =IFERROR(PAYG_NoYTDBasePay1*$CZ$39,"") ->  | Z63: Annual base | AL63: =IFERROR(PAYG_NoYTDBasePay2*$CZ$39,"") ->  | BY63: No/Yes/Unpaid/Yes | CZ63: =MIN(CZ51+PAYG_AdditProjectedBonus+PAYG_AdditPaidBonus,CZ41) -> 0
BY64: No/Yes/Paid/No | CF64: Summary Income - Annual Bonus | CO64: YTD < 3mths unpaid w/o SS | CZ64: =MIN(CZ51+PAYG_AdditProjectedBonus+PAYG_AdditPaidBonus,CZ41) -> 0
BY65: No/Yes/Unpaid/No | CZ65: =MIN(CZ51+PAYG_AdditProjectedBonus+PAYG_AdditPaidBonus,CZ41) -> 0
B66: Annual total | N66: =IFERROR(PAYG_NoYTDTotalPay1*$CZ$39,"") ->  | Z66: Annual total | AL66: =IFERROR(PAYG_NoYTDTotalPay2*$CZ$39,"") ->  | BY66: No/No/Paid/Yes | CF66: Summary Income - Annual Bonus | CO66: No YTD bonus w SS | CZ66: =MIN(CZ55+PAYG_AdditPaidBonus+PAYG_AdditProjectedBonus,CZ41) -> 0
BY67: No/No/Unpaid/Yes | CZ67: =MIN(CZ55+PAYG_AdditPaidBonus+PAYG_AdditProjectedBonus,CZ41) -> 0
BY68: No/No/Paid/No | CF68: Summary Income - Annual Bonus | CO68: No YTD bonus w/o SS | CZ68: =MIN(CZ56+PAYG_AdditPaidBonus+PAYG_AdditProjectedBonus,CZ41) -> 
B69: Assessed base | N69: =IF(MIN(PAYG_NoYTDAnnualBase1,PAYG_NoYTDAnnualBase2)=0,0,MIN(PAYG_NoYTDAnnualBase1,PAYG_NoYTDAnnualBase2)) -> 0 | BY69: No/No/Unpaid/No | CZ69: =MIN(CZ56+PAYG_AdditPaidBonus+PAYG_AdditProjectedBonus,CZ41) -> 
B72: Assessed total | N72: =IF(MIN(PAYG_NoYTDAnnualTotal1,PAYG_NoYTDAnnualTotal2)=0,0,MIN(PAYG_NoYTDAnnualTotal1,PAYG_NoYTDAnnualTotal2)) -> 0
B76: Additional income | Z76: Notes
B78: Pre-tax deductions | Z78: If required for servicing, ensure pre-tax deductions are confirmed to policy
B81: Pre-tax deductions required for servicing?
B84: Bonus already received | Z84: If required for servicing, ensure bonus income is verified to policy
B87: Projected bonus
B93: Group 2 documents
B97: Payment Summary
B100: Date | Z100: Gross payment
B103: OR
B106: Tax Return & NoA
B109: Date | Z109: PAYG income
B114: Income for servicing
Y115: Annual Base
Y118: =CR17 -> Error
Y122: Annual Total
Y125: =CR19 -> Error
Y129: Annual including bonus
Y132: =CR21 -> 0
B141: Casual and No Base policy applies. Click continue and load income as Casual.

Sheet PAYG YTD Calc - App1 Job2 (hidden)
G1: Serviceability Assesment Calculator | AI1: Other Calculators
B7: PAYG Income Calculator
B10: Version | N10: Applicant name | AK10: Application number | AW10: Assessment date | BI10: User ID
B12: =Assess_Version -> 19 | N12: ='Serviceability Calculator'!Assess_App1Name -> 0 | AK12: ='Serviceability Calculator'!Assess_AppNum -> Enter Number | AW12: =TODAY() -> 2019-11-19 | BI12: ='Serviceability Calculator'!BK12 -> M025250
CK14: Avg Pay Lookup | CR14: =CF16&"/"&CF17&"/"&CF18&"/"&CF20 -> 0/0/No/No
BY15: 3 months | CF15: =IFERROR(IF(AND(PAYG_YTDPays>=3,PAYG_YTDCycle="Monthly"),"Yes",IF(DATEDIF(PAYG_YTDStartDate,PAYG_YTDEndDate,"m")<3,"No","Yes")),"No") -> No | CK15: Avg Pay Result | CR15: =VLOOKUP(CR14,PAYG_AvgPayLookup,28,FALSE) -> 
B16: Select employment* PAYG / Family | Z16: Enter employer name* | AL16: Enter name | BY16: YTD Figure | CF16: =IF(PAYG_EmployType="Family","Family",PAYG_YTDConfirm) -> 0 | CK16: Base Pay Lookup | CR16: =CF16&"/"&CF18 -> 0/No
BY17: Taxable | CF17: =PAYG_YTD_YTDType -> 0 | CK17: Base Pay Result | CR17: =IFERROR(VLOOKUP(CR16,PAYG_BasePayLookup,28,FALSE),"Error") -> Error
BY18: SS Required | CF18: =IF(PAYG_EmployType="Family","No",IF(PAYG_AdditPreTaxReq="","No",PAYG_AdditPreTaxReq)) -> No | CK18: Total Pay Lookup | CR18: =CF15&"/"&CF16&"/"&CF18 -> No/0/No
BY19: Bonus | CF19: =IF(PAYG_AdditProjectedBonus>0,"Unpaid",IF(PAYG_AdditPaidBonus>0,"Paid","No")) -> No | CK19: Total Pay Result | CR19: =IFERROR(VLOOKUP(CR18,PAYG_TotalPayLookup,28,FALSE),"Error") -> Error
BY20: Paid Bonus | CF20: =IF(PAYG_AdditPaidBonus>0,"Yes","No") -> No | CK20: Bonus Pay Lookup | CR20: =CF15&"/"&CF16&"/"&CF19&"/"&CF18 -> No/0/No/No
B21: Can you confirm base income* | Z21: Do you have a YTD figure* | CK21: Bonus Pay Result | CR21: =IFERROR(VLOOKUP(CR20,PAYG_BonusPayLookup,28,FALSE),0) -> 0
BY24: Lookup | CF24: Usage | CO24: Description | CZ24: Value
B25: Group 1 documents | CF25: YTD Reference | CO25: Pays in Cycle | CZ25: =VLOOKUP(PAYG_YTDCycle,Reference!$K$6:$M$13,3,FALSE) -> 
CF26: YTD Reference | CO26: Days Elapsed | CZ26: =PAYG_YTDEndDate-PAYG_YTDStartDate -> -43647
CF27: YTD Reference | CO27: Months Elapsed | CZ27: =(YEAR(PAYG_YTDEndDate)-YEAR(PAYG_YTDStartDate))*12+(MONTH(PAYG_YTDEndDate)-MONTH(PAYG_YTDStartDate))+(DAY(PAYG_YTDEndDate)-DAY(PAYG_YTDStartDate))/31 -> -1434.032258
CF28: YTD Reference | CO28: Pays in Year | CZ28: =VLOOKUP(PAYG_YTDCycle,Reference!K6:L13,2,FALSE) -> 
B29: Year-to-date payslips
BY30: Yes/Gross/Yes/No | CF30: YTD Avg | CO30: Avg Gross YTD w SS | CZ30: =PAYG_YTD_YTDValue/PAYG_YTDPays -> 
BY31: Yes/Gross/No/No | CF31: YTD Avg | CO31: avg Gross YTD w/o SS | CZ31: =CZ30-PAYG_AdditPreTax -> 
B32: Select your pay cycle | BY32: Yes/Gross/Yes/Yes | CF32: YTD Avg | CO32: Avg Gross YTD w SS & bonus | CZ32: =(PAYG_YTD_YTDValue-PAYG_AdditPaidBonus)/PAYG_YTDPays -> 
BY33: Yes/Gross/No/Yes | CF33: YTD Avg | CO33: avg Gross YTD w/o SS & bonus | CZ33: =(PAYG_YTD_YTDValue-PAYG_AdditPaidBonus-PAYG_AdditPreTax)/PAYG_YTDPays -> 
BY34: Yes/Taxable/Yes/No | CF34: YTD Avg | CO34: avg tax YTD w SS | CZ34: =(PAYG_YTD_YTDValue/PAYG_YTDPays)+PAYG_AdditPreTax -> 
B35: First day of financial year | N35: 2019-07-01 | Z35: =PAYG_YTDCycle&" base pay" -> base pay | AX35: Number of pays | BJ35: =IFERROR(IF(PAYG_YTDCycle=Reference!K13,1,IF(PAYG_YTDCycle=Reference!K10,ROUNDDOWN(CZ27,0)+1,ROUNDDOWN(CZ26/CZ25,0)+1)),"") ->  | BY35: Yes/Taxable/No/No | CF35: YTD Avg | CO35: avg tax YTD w/o SS | CZ35: =PAYG_YTD_YTDValue/PAYG_YTDPays -> 
BY36: Yes/Taxable/Yes/Yes | CF36: YTD Avg | CO36: avg tax YTD w SS & bonus | CZ36: =(PAYG_YTD_YTDValue-PAYG_AdditPaidBonus)/PAYG_YTDPays+PAYG_AdditPreTax -> 
BY37: Yes/Taxable/No/Yes | CF37: YTD Avg | CO37: avg tax YTD w/o SS & bonus | CZ37: =(PAYG_YTD_YTDValue-PAYG_AdditPaidBonus)/PAYG_YTDPays -> 
B38: Most recent pay date | Z38: Is the YTD amount Gross or Taxable? | AX38: Average pay | BJ38: =PAYG_YTDAvgPayResult -> 
CF39: No YTD Reference | CO39: Number of Pays | CZ39: =VLOOKUP(PAYG_NoYTDCycle,Reference!$K$6:$L$13,2,FALSE) -> 
Z41: =AL38 &" YTD amount" -> YTD amount | AX41: Annualised average pay | BJ41: =IFERROR(PAYG_YTDAveragePay*CZ28,"") ->  | CF41: Group 2 | CO41: Group 2 Doc | CZ41: =IF(AND(PAYG_PaySumAmount>0,PAYG_NOAAmount>0),MIN(PAYG_PaySumAmount,PAYG_NOAAmount),MAX(PAYG_PaySumAmount,PAYG_NOAAmount)) -> 0
BY43: Yes/Yes | CF43: Summary Income - Annual Base | CO43: YTD Annual Base w SS | CZ43: =PAYG_YTDBase*CZ28 -> 
B44: Group 1 documents | BY44: Yes/No | CF44: Summary Income - Annual Base | CO44: YTD Annual Base w/o SS | CZ44: =(PAYG_YTDBase-PAYG_AdditPreTax)*CZ28 -> 
BY45: No/Yes | CF45: Summary Income - Annual Base | CO45: No YTD Annual Base w SS | CZ45: =PAYG_NoYTDAnnualBase -> 0
BY46: Family/No | CF46: Summary Income - Annual Base | CO46: No YTD Annual Base w SS | CZ46: =MIN(PAYG_NoYTDAnnualBase,CZ41) -> 0
BY47: No/No | CF47: Summary Income - Annual Base | CO47: No YTD Annual Base w/o SS | CZ47: =PAYG_NoYTDAnnualBase-(PAYG_AdditPreTax*CZ39) -> 
B48: No year-to-date payslips
BY49: Yes/Yes/Yes | CF49: Summary Income - Annual Total | CO49: YTD => 3mths w or w/o SS | CZ49: =MAX(PAYG_ServAnnualBase,PAYG_YTDAnnualised) -> 0
BY50: Yes/Yes/No | CZ50: =MAX(PAYG_ServAnnualBase,PAYG_YTDAnnualised) -> 0
B51: Select your pay cycle | BY51: No/Yes/Yes | CF51: Summary Income - Annual Total | CO51: YTD < 3mths w or w/o SS | CZ51: =MIN(CZ41,CZ49) -> 0
BY52: No/Yes/No | CZ52: =MIN(CZ41,CZ49) -> 0
BY53: No/No/Yes | CF53: Summary Income - Annual Total | CO53: No YTD w SS | CZ53: =MIN(MAX(PAYG_ServAnnualBase,PAYG_NoYTDAnnualTotal),CZ41) -> 0
B54: Pay date: 1st payslip | Z54: Pay date: 2nd payslip | BY54: No/No/No | CF54: Summary Income - Annual Total | CO54: No YTD w/o SS | CZ54: =MIN(MAX(PAYG_ServAnnualBase,PAYG_NoYTDAnnualTotal-(PAYG_AdditPreTax*CZ39)),CZ41) -> 
BY56: Yes/Yes/Paid/Yes | CF56: Summary Income - Annual Bonus | CO56: YTD => 3mths Paid w or w/o SS | CZ56: =CZ49+PAYG_AdditPaidBonus -> 0
B57: Base pay | Z57: Base pay | BY57: Yes/Yes/Paid/No | CZ57: =CZ49+PAYG_AdditPaidBonus -> 0
BY58: Yes/Yes/Unpaid/Yes | CF58: Summary Income - Annual Bonus | CO58: YTD => 3mths unpaid w or w/o SS | CZ58: =MIN(CZ56+PAYG_AdditProjectedBonus,CZ41) -> 0
BY59: Yes/Yes/Unpaid/No | CZ59: =MIN(CZ56+PAYG_AdditProjectedBonus,CZ41) -> 0
B60: Total Pay | Z60: Total Pay | BY60: No/Yes/Paid/Yes | CF60: Summary Income - Annual Bonus | CO60: YTD < 3mths unpaid w SS | CZ60: =MIN(CZ51+PAYG_AdditProjectedBonus+PAYG_AdditPaidBonus,CZ41) -> 0
BY61: No/Yes/Unpaid/Yes | CZ61: =MIN(CZ51+PAYG_AdditProjectedBonus+PAYG_AdditPaidBonus,CZ41) -> 0
BY62: No/Yes/Paid/No | CF62: Summary Income - Annual Bonus | CO62: YTD < 3mths unpaid w/o SS | CZ62: =MIN(CZ51+PAYG_AdditProjectedBonus+PAYG_AdditPaidBonus,CZ41) -> 0
B63: Annual base | N63: =IFERROR(PAYG_NoYTDBasePay1*$CZ$39,"") ->  | Z63: Annual base | AL63: =IFERROR(PAYG_NoYTDBasePay2*$CZ$39,"") ->  | BY63: No/Yes/Unpaid/No | CZ63: =MIN(CZ51+PAYG_AdditProjectedBonus+PAYG_AdditPaidBonus,CZ41) -> 0
BY64: No/No/Paid/Yes | CF64: Summary Income - Annual Bonus | CO64: No YTD bonus w SS | CZ64: =MIN(CZ53+PAYG_AdditPaidBonus+PAYG_AdditProjectedBonus,CZ41) -> 0
BY65: No/No/Unpaid/Yes | CZ65: =MIN(CZ53+PAYG_AdditPaidBonus+PAYG_AdditProjectedBonus,CZ41) -> 0
B66: Annual total | N66: =IFERROR(PAYG_NoYTDTotalPay1*$CZ$39,"") ->  | Z66: Annual total | AL66: =IFERROR(PAYG_NoYTDTotalPay2*$CZ$39,"") ->  | BY66: No/No/Paid/No | CF66: Summary Income - Annual Bonus | CO66: No YTD bonus w/o SS | CZ66: =MIN(CZ54+PAYG_AdditPaidBonus+PAYG_AdditProjectedBonus,CZ41) -> 
BY67: No/No/Unpaid/No | CZ67: =MIN(CZ54+PAYG_AdditPaidBonus+PAYG_AdditProjectedBonus,CZ41) -> 
B69: Assessed base | N69: =IF(MIN(PAYG_NoYTDAnnualBase1,PAYG_NoYTDAnnualBase2)=0,0,MIN(PAYG_NoYTDAnnualBase1,PAYG_NoYTDAnnualBase2)) -> 0
B72: Assessed total | N72: =IF(MIN(PAYG_NoYTDAnnualTotal1,PAYG_NoYTDAnnualTotal2)=0,0,MIN(PAYG_NoYTDAnnualTotal1,PAYG_NoYTDAnnualTotal2)) -> 0
B76: Additional income | Z76: Notes
B78: Pre-tax deductions | Z78: If required for servicing, ensure pre-tax deductions are confirmed to policy
B81: Pre-tax deductions required for servicing?
B84: Bonus already received | Z84: If required for servicing, ensure bonus income is verified to policy
B87: Projected bonus
B93: Group 2 documents
B97: Payment Summary
B100: Date | Z100: Gross payment
B103: OR
B106: Tax Return & NoA
B109: Date | Z109: PAYG income
B114: Income for servicing
Y115: Annual Base
Y118: =CR17 -> Error
Y122: Annual Total
Y125: =CR19 -> Error
Y129: Annual including bonus
Y132: =CR21 -> 0
B141: Casual and No Base policy applies. Click continue and load income as Casual.

Sheet PAYG YTD Calc - App1 Job3 (hidden)
G1: Serviceability Assesment Calculator | AI1: Other Calculators
B7: PAYG Income Calculator
B10: Version | N10: Applicant name | AK10: Application number | AW10: Assessment date | BI10: User ID
B12: =Assess_Version -> 19 | N12: ='Serviceability Calculator'!Assess_App1Name -> 0 | AK12: ='Serviceability Calculator'!Assess_AppNum -> Enter Number | AW12: =TODAY() -> 2019-11-19 | BI12: ='Serviceability Calculator'!BK12 -> M025250
CK14: Avg Pay Lookup | CR14: =CF16&"/"&CF17&"/"&CF18&"/"&CF20 -> 0/0/No/No
BY15: 3 months | CF15: =IFERROR(IF(AND(PAYG_YTDPays>=3,PAYG_YTDCycle="Monthly"),"Yes",IF(DATEDIF(PAYG_YTDStartDate,PAYG_YTDEndDate,"m")<3,"No","Yes")),"No") -> No | CK15: Avg Pay Result | CR15: =VLOOKUP(CR14,PAYG_AvgPayLookup,28,FALSE) -> 
B16: Select employment* PAYG / Family | Z16: Enter employer name* | AL16: Enter name | BY16: YTD Figure | CF16: =IF(PAYG_EmployType="Family","Family",PAYG_YTDConfirm) -> 0 | CK16: Base Pay Lookup | CR16: =CF16&"/"&CF18 -> 0/No
BY17: Taxable | CF17: =PAYG_YTD_YTDType -> 0 | CK17: Base Pay Result | CR17: =IFERROR(VLOOKUP(CR16,PAYG_BasePayLookup,28,FALSE),"Error") -> Error
BY18: SS Required | CF18: =IF(PAYG_EmployType="Family","No",IF(PAYG_AdditPreTaxReq="","No",PAYG_AdditPreTaxReq)) -> No | CK18: Total Pay Lookup | CR18: =CF15&"/"&CF16&"/"&CF18 -> No/0/No
BY19: Bonus | CF19: =IF(PAYG_AdditProjectedBonus>0,"Unpaid",IF(PAYG_AdditPaidBonus>0,"Paid","No")) -> No | CK19: Total Pay Result | CR19: =IFERROR(VLOOKUP(CR18,PAYG_TotalPayLookup,28,FALSE),"Error") -> Error
BY20: Paid Bonus | CF20: =IF(PAYG_AdditPaidBonus>0,"Yes","No") -> No | CK20: Bonus Pay Lookup | CR20: =CF15&"/"&CF16&"/"&CF19&"/"&CF18 -> No/0/No/No
B21: Can you confirm base income* | Z21: Do you have a YTD figure* | CK21: Bonus Pay Result | CR21: =IFERROR(VLOOKUP(CR20,PAYG_BonusPayLookup,28,FALSE),0) -> 0
BY24: Lookup | CF24: Usage | CO24: Description | CZ24: Value
B25: Group 1 documents | CF25: YTD Reference | CO25: Pays in Cycle | CZ25: =VLOOKUP(PAYG_YTDCycle,Reference!$K$6:$M$13,3,FALSE) -> 
CF26: YTD Reference | CO26: Days Elapsed | CZ26: =PAYG_YTDEndDate-PAYG_YTDStartDate -> -43647
CF27: YTD Reference | CO27: Months Elapsed | CZ27: =(YEAR(PAYG_YTDEndDate)-YEAR(PAYG_YTDStartDate))*12+(MONTH(PAYG_YTDEndDate)-MONTH(PAYG_YTDStartDate))+(DAY(PAYG_YTDEndDate)-DAY(PAYG_YTDStartDate))/31 -> -1434.032258
CF28: YTD Reference | CO28: Pays in Year | CZ28: =VLOOKUP(PAYG_YTDCycle,Reference!K6:L13,2,FALSE) -> 
B29: Year-to-date payslips
BY30: Yes/Gross/Yes/No | CF30: YTD Avg | CO30: Avg Gross YTD w SS | CZ30: =PAYG_YTD_YTDValue/PAYG_YTDPays -> 
BY31: Yes/Gross/No/No | CF31: YTD Avg | CO31: avg Gross YTD w/o SS | CZ31: =CZ30-PAYG_AdditPreTax -> 
B32: Select your pay cycle | BY32: Yes/Gross/Yes/Yes | CF32: YTD Avg | CO32: Avg Gross YTD w SS & bonus | CZ32: =(PAYG_YTD_YTDValue-PAYG_AdditPaidBonus)/PAYG_YTDPays -> 
BY33: Yes/Gross/No/Yes | CF33: YTD Avg | CO33: avg Gross YTD w/o SS & bonus | CZ33: =(PAYG_YTD_YTDValue-PAYG_AdditPaidBonus-PAYG_AdditPreTax)/PAYG_YTDPays -> 
BY34: Yes/Taxable/Yes/No | CF34: YTD Avg | CO34: avg tax YTD w SS | CZ34: =(PAYG_YTD_YTDValue/PAYG_YTDPays)+PAYG_AdditPreTax -> 
B35: First day of financial year | N35: 2019-07-01 | Z35: =PAYG_YTDCycle&" base pay" -> base pay | AX35: Number of pays | BJ35: =IFERROR(IF(PAYG_YTDCycle=Reference!K13,1,IF(PAYG_YTDCycle=Reference!K10,ROUNDDOWN(CZ27,0)+1,ROUNDDOWN(CZ26/CZ25,0)+1)),"") ->  | BY35: Yes/Taxable/No/No | CF35: YTD Avg | CO35: avg tax YTD w/o SS | CZ35: =PAYG_YTD_YTDValue/PAYG_YTDPays -> 
BY36: Yes/Taxable/Yes/Yes | CF36: YTD Avg | CO36: avg tax YTD w SS & bonus | CZ36: =(PAYG_YTD_YTDValue-PAYG_AdditPaidBonus)/PAYG_YTDPays+PAYG_AdditPreTax -> 
BY37: Yes/Taxable/No/Yes | CF37: YTD Avg | CO37: avg tax YTD w/o SS & bonus | CZ37: =(PAYG_YTD_YTDValue-PAYG_AdditPaidBonus)/PAYG_YTDPays -> 
B38: Most recent pay date | Z38: Is the YTD amount Gross or Taxable? | AX38: Average pay | BJ38: =PAYG_YTDAvgPayResult -> 
CF39: No YTD Reference | CO39: Number of Pays | CZ39: =VLOOKUP(PAYG_NoYTDCycle,Reference!$K$6:$L$13,2,FALSE) -> 
Z41: =AL38 &" YTD amount" -> YTD amount | AX41: Annualised average pay | BJ41: =IFERROR(PAYG_YTDAveragePay*CZ28,"") ->  | CF41: Group 2 | CO41: Group 2 Doc | CZ41: =IF(AND(PAYG_PaySumAmount>0,PAYG_NOAAmount>0),MIN(PAYG_PaySumAmount,PAYG_NOAAmount),MAX(PAYG_PaySumAmount,PAYG_NOAAmount)) -> 0
BY43: Yes/Yes | CF43: Summary Income - Annual Base | CO43: YTD Annual Base w SS | CZ43: =PAYG_YTDBase*CZ28 -> 
B44: Group 1 documents | BY44: Yes/No | CF44: Summary Income - Annual Base | CO44: YTD Annual Base w/o SS | CZ44: =(PAYG_YTDBase-PAYG_AdditPreTax)*CZ28 -> 
BY45: No/Yes | CF45: Summary Income - Annual Base | CO45: No YTD Annual Base w SS | CZ45: =PAYG_NoYTDAnnualBase -> 0
BY46: Family/No | CF46: Summary Income - Annual Base | CO46: No YTD Annual Base w SS | CZ46: =MIN(PAYG_NoYTDAnnualBase,CZ41) -> 0
BY47: No/No | CF47: Summary Income - Annual Base | CO47: No YTD Annual Base w/o SS | CZ47: =PAYG_NoYTDAnnualBase-(PAYG_AdditPreTax*CZ39) -> 
B48: No year-to-date payslips
BY49: Yes/Yes/Yes | CF49: Summary Income - Annual Total | CO49: YTD => 3mths w or w/o SS | CZ49: =MAX(PAYG_ServAnnualBase,PAYG_YTDAnnualised) -> 0
BY50: Yes/Yes/No | CZ50: =MAX(PAYG_ServAnnualBase,PAYG_YTDAnnualised) -> 0
B51: Select your pay cycle | BY51: No/Yes/Yes | CF51: Summary Income - Annual Total | CO51: YTD < 3mths w or w/o SS | CZ51: =MIN(CZ41,CZ49) -> 0
BY52: No/Yes/No | CZ52: =MIN(CZ41,CZ49) -> 0
BY53: No/No/Yes | CF53: Summary Income - Annual Total | CO53: No YTD w SS | CZ53: =MIN(MAX(PAYG_ServAnnualBase,PAYG_NoYTDAnnualTotal),CZ41) -> 0
B54: Pay date: 1st payslip | Z54: Pay date: 2nd payslip | BY54: No/No/No | CF54: Summary Income - Annual Total | CO54: No YTD w/o SS | CZ54: =MIN(MAX(PAYG_ServAnnualBase,PAYG_NoYTDAnnualTotal-(PAYG_AdditPreTax*CZ39)),CZ41) -> 
BY56: Yes/Yes/Paid/Yes | CF56: Summary Income - Annual Bonus | CO56: YTD => 3mths Paid w or w/o SS | CZ56: =CZ49+PAYG_AdditPaidBonus -> 0
B57: Base pay | Z57: Base pay | BY57: Yes/Yes/Paid/No | CZ57: =CZ49+PAYG_AdditPaidBonus -> 0
BY58: Yes/Yes/Unpaid/Yes | CF58: Summary Income - Annual Bonus | CO58: YTD => 3mths unpaid w or w/o SS | CZ58: =MIN(CZ56+PAYG_AdditProjectedBonus,CZ41) -> 0
BY59: Yes/Yes/Unpaid/No | CZ59: =MIN(CZ56+PAYG_AdditProjectedBonus,CZ41) -> 0
B60: Total Pay | Z60: Total Pay | BY60: No/Yes/Paid/Yes | CF60: Summary Income - Annual Bonus | CO60: YTD < 3mths unpaid w SS | CZ60: =MIN(CZ51+PAYG_AdditProjectedBonus+PAYG_AdditPaidBonus,CZ41) -> 0
BY61: No/Yes/Unpaid/Yes | CZ61: =MIN(CZ51+PAYG_AdditProjectedBonus+PAYG_AdditPaidBonus,CZ41) -> 0
BY62: No/Yes/Paid/No | CF62: Summary Income - Annual Bonus | CO62: YTD < 3mths unpaid w/o SS | CZ62: =MIN(CZ51+PAYG_AdditProjectedBonus+PAYG_AdditPaidBonus,CZ41) -> 0
B63: Annual base | N63: =IFERROR(PAYG_NoYTDBasePay1*$CZ$39,"") ->  | Z63: Annual base | AL63: =IFERROR(PAYG_NoYTDBasePay2*$CZ$39,"") ->  | BY63: No/Yes/Unpaid/No | CZ63: =MIN(CZ51+PAYG_AdditProjectedBonus+PAYG_AdditPaidBonus,CZ41) -> 0
BY64: No/No/Paid/Yes | CF64: Summary Income - Annual Bonus | CO64: No YTD bonus w SS | CZ64: =MIN(CZ53+PAYG_AdditPaidBonus+PAYG_AdditProjectedBonus,CZ41) -> 0
BY65: No/No/Unpaid/Yes | CZ65: =MIN(CZ53+PAYG_AdditPaidBonus+PAYG_AdditProjectedBonus,CZ41) -> 0
B66: Annual total | N66: =IFERROR(PAYG_NoYTDTotalPay1*$CZ$39,"") ->  | Z66: Annual total | AL66: =IFERROR(PAYG_NoYTDTotalPay2*$CZ$39,"") ->  | BY66: No/No/Paid/No | CF66: Summary Income - Annual Bonus | CO66: No YTD bonus w/o SS | CZ66: =MIN(CZ54+PAYG_AdditPaidBonus+PAYG_AdditProjectedBonus,CZ41) -> 
BY67: No/No/Unpaid/No | CZ67: =MIN(CZ54+PAYG_AdditPaidBonus+PAYG_AdditProjectedBonus,CZ41) -> 
B69: Assessed base | N69: =IF(MIN(PAYG_NoYTDAnnualBase1,PAYG_NoYTDAnnualBase2)=0,0,MIN(PAYG_NoYTDAnnualBase1,PAYG_NoYTDAnnualBase2)) -> 0
B72: Assessed total | N72: =IF(MIN(PAYG_NoYTDAnnualTotal1,PAYG_NoYTDAnnualTotal2)=0,0,MIN(PAYG_NoYTDAnnualTotal1,PAYG_NoYTDAnnualTotal2)) -> 0
B76: Additional income | Z76: Notes
B78: Pre-tax deductions | Z78: If required for servicing, ensure pre-tax deductions are confirmed to policy
B81: Pre-tax deductions required for servicing?
B84: Bonus already received | Z84: If required for servicing, ensure bonus income is verified to policy
B87: Projected bonus
B93: Group 2 documents
B97: Payment Summary
B100: Date | Z100: Gross payment
B103: OR
B106: Tax Return & NoA
B109: Date | Z109: PAYG income
B114: Income for servicing
Y115: Annual Base
Y118: =CR17 -> Error
Y122: Annual Total
Y125: =CR19 -> Error
Y129: Annual including bonus
Y132: =CR21 -> 0
B141: Casual and No Base policy applies. Click continue and load income as Casual.

Sheet PAYG YTD Calc - App1 Job4 (hidden)
G1: Serviceability Assesment Calculator | AI1: Other Calculators
B7: PAYG Income Calculator
B10: Version | N10: Applicant name | AK10: Application number | AW10: Assessment date | BI10: User ID
B12: =Assess_Version -> 19 | N12: ='Serviceability Calculator'!Assess_App1Name -> 0 | AK12: ='Serviceability Calculator'!Assess_AppNum -> Enter Number | AW12: =TODAY() -> 2019-11-19 | BI12: ='Serviceability Calculator'!BK12 -> M025250
CK14: Avg Pay Lookup | CR14: =CF16&"/"&CF17&"/"&CF18&"/"&CF20 -> 0/0/No/No
BY15: 3 months | CF15: =IFERROR(IF(AND(PAYG_YTDPays>=3,PAYG_YTDCycle="Monthly"),"Yes",IF(DATEDIF(PAYG_YTDStartDate,PAYG_YTDEndDate,"m")<3,"No","Yes")),"No") -> No | CK15: Avg Pay Result | CR15: =VLOOKUP(CR14,PAYG_AvgPayLookup,28,FALSE) -> 
B16: Select employment* PAYG / Family | Z16: Enter employer name* | AL16: Enter name | BY16: YTD Figure | CF16: =IF(PAYG_EmployType="Family","Family",PAYG_YTDConfirm) -> 0 | CK16: Base Pay Lookup | CR16: =CF16&"/"&CF18 -> 0/No
BY17: Taxable | CF17: =PAYG_YTD_YTDType -> 0 | CK17: Base Pay Result | CR17: =IFERROR(VLOOKUP(CR16,PAYG_BasePayLookup,28,FALSE),"Error") -> Error
BY18: SS Required | CF18: =IF(PAYG_EmployType="Family","No",IF(PAYG_AdditPreTaxReq="","No",PAYG_AdditPreTaxReq)) -> No | CK18: Total Pay Lookup | CR18: =CF15&"/"&CF16&"/"&CF18 -> No/0/No
BY19: Bonus | CF19: =IF(PAYG_AdditProjectedBonus>0,"Unpaid",IF(PAYG_AdditPaidBonus>0,"Paid","No")) -> No | CK19: Total Pay Result | CR19: =IFERROR(VLOOKUP(CR18,PAYG_TotalPayLookup,28,FALSE),"Error") -> Error
BY20: Paid Bonus | CF20: =IF(PAYG_AdditPaidBonus>0,"Yes","No") -> No | CK20: Bonus Pay Lookup | CR20: =CF15&"/"&CF16&"/"&CF19&"/"&CF18 -> No/0/No/No
B21: Can you confirm base income* | Z21: Do you have a YTD figure* | CK21: Bonus Pay Result | CR21: =IFERROR(VLOOKUP(CR20,PAYG_BonusPayLookup,28,FALSE),0) -> 0
BY24: Lookup | CF24: Usage | CO24: Description | CZ24: Value
B25: Group 1 documents | CF25: YTD Reference | CO25: Pays in Cycle | CZ25: =VLOOKUP(PAYG_YTDCycle,Reference!$K$6:$M$13,3,FALSE) -> 
CF26: YTD Reference | CO26: Days Elapsed | CZ26: =PAYG_YTDEndDate-PAYG_YTDStartDate -> -43647
CF27: YTD Reference | CO27: Months Elapsed | CZ27: =(YEAR(PAYG_YTDEndDate)-YEAR(PAYG_YTDStartDate))*12+(MONTH(PAYG_YTDEndDate)-MONTH(PAYG_YTDStartDate))+(DAY(PAYG_YTDEndDate)-DAY(PAYG_YTDStartDate))/31 -> -1434.032258
CF28: YTD Reference | CO28: Pays in Year | CZ28: =VLOOKUP(PAYG_YTDCycle,Reference!K6:L13,2,FALSE) -> 
B29: Year-to-date payslips
BY30: Yes/Gross/Yes/No | CF30: YTD Avg | CO30: Avg Gross YTD w SS | CZ30: =PAYG_YTD_YTDValue/PAYG_YTDPays -> 
BY31: Yes/Gross/No/No | CF31: YTD Avg | CO31: avg Gross YTD w/o SS | CZ31: =CZ30-PAYG_AdditPreTax -> 
B32: Select your pay cycle | BY32: Yes/Gross/Yes/Yes | CF32: YTD Avg | CO32: Avg Gross YTD w SS & bonus | CZ32: =(PAYG_YTD_YTDValue-PAYG_AdditPaidBonus)/PAYG_YTDPays -> 
BY33: Yes/Gross/No/Yes | CF33: YTD Avg | CO33: avg Gross YTD w/o SS & bonus | CZ33: =(PAYG_YTD_YTDValue-PAYG_AdditPaidBonus-PAYG_AdditPreTax)/PAYG_YTDPays -> 
BY34: Yes/Taxable/Yes/No | CF34: YTD Avg | CO34: avg tax YTD w SS | CZ34: =(PAYG_YTD_YTDValue/PAYG_YTDPays)+PAYG_AdditPreTax -> 
B35: First day of financial year | N35: 2019-07-01 | Z35: =PAYG_YTDCycle&" base pay" -> base pay | AX35: Number of pays | BJ35: =IFERROR(IF(PAYG_YTDCycle=Reference!K13,1,IF(PAYG_YTDCycle=Reference!K10,ROUNDDOWN(CZ27,0)+1,ROUNDDOWN(CZ26/CZ25,0)+1)),"") ->  | BY35: Yes/Taxable/No/No | CF35: YTD Avg | CO35: avg tax YTD w/o SS | CZ35: =PAYG_YTD_YTDValue/PAYG_YTDPays -> 
BY36: Yes/Taxable/Yes/Yes | CF36: YTD Avg | CO36: avg tax YTD w SS & bonus | CZ36: =(PAYG_YTD_YTDValue-PAYG_AdditPaidBonus)/PAYG_YTDPays+PAYG_AdditPreTax -> 
BY37: Yes/Taxable/No/Yes | CF37: YTD Avg | CO37: avg tax YTD w/o SS & bonus | CZ37: =(PAYG_YTD_YTDValue-PAYG_AdditPaidBonus)/PAYG_YTDPays -> 
B38: Most recent pay date | Z38: Is the YTD amount Gross or Taxable? | AX38: Average pay | BJ38: =PAYG_YTDAvgPayResult -> 
CF39: No YTD Reference | CO39: Number of Pays | CZ39: =VLOOKUP(PAYG_NoYTDCycle,Reference!$K$6:$L$13,2,FALSE) -> 
Z41: =AL38 &" YTD amount" -> YTD amount | AX41: Annualised average pay | BJ41: =IFERROR(PAYG_YTDAveragePay*CZ28,"") ->  | CF41: Group 2 | CO41: Group 2 Doc | CZ41: =IF(AND(PAYG_PaySumAmount>0,PAYG_NOAAmount>0),MIN(PAYG_PaySumAmount,PAYG_NOAAmount),MAX(PAYG_PaySumAmount,PAYG_NOAAmount)) -> 0
BY43: Yes/Yes | CF43: Summary Income - Annual Base | CO43: YTD Annual Base w SS | CZ43: =PAYG_YTDBase*CZ28 -> 
B44: Group 1 documents | BY44: Yes/No | CF44: Summary Income - Annual Base | CO44: YTD Annual Base w/o SS | CZ44: =(PAYG_YTDBase-PAYG_AdditPreTax)*CZ28 -> 
BY45: No/Yes | CF45: Summary Income - Annual Base | CO45: No YTD Annual Base w SS | CZ45: =PAYG_NoYTDAnnualBase -> 0
BY46: Family/No | CF46: Summary Income - Annual Base | CO46: No YTD Annual Base w SS | CZ46: =MIN(PAYG_NoYTDAnnualBase,CZ41) -> 0
BY47: No/No | CF47: Summary Income - Annual Base | CO47: No YTD Annual Base w/o SS | CZ47: =PAYG_NoYTDAnnualBase-(PAYG_AdditPreTax*CZ39) -> 
B48: No year-to-date payslips
BY49: Yes/Yes/Yes | CF49: Summary Income - Annual Total | CO49: YTD => 3mths w or w/o SS | CZ49: =MAX(PAYG_ServAnnualBase,PAYG_YTDAnnualised) -> 0
BY50: Yes/Yes/No | CZ50: =MAX(PAYG_ServAnnualBase,PAYG_YTDAnnualised) -> 0
B51: Select your pay cycle | BY51: No/Yes/Yes | CF51: Summary Income - Annual Total | CO51: YTD < 3mths w or w/o SS | CZ51: =MIN(CZ41,CZ49) -> 0
BY52: No/Yes/No | CZ52: =MIN(CZ41,CZ49) -> 0
BY53: No/No/Yes | CF53: Summary Income - Annual Total | CO53: No YTD w SS | CZ53: =MIN(MAX(PAYG_ServAnnualBase,PAYG_NoYTDAnnualTotal),CZ41) -> 0
B54: Pay date: 1st payslip | Z54: Pay date: 2nd payslip | BY54: No/No/No | CF54: Summary Income - Annual Total | CO54: No YTD w/o SS | CZ54: =MIN(MAX(PAYG_ServAnnualBase,PAYG_NoYTDAnnualTotal-(PAYG_AdditPreTax*CZ39)),CZ41) -> 
BY56: Yes/Yes/Paid/Yes | CF56: Summary Income - Annual Bonus | CO56: YTD => 3mths Paid w or w/o SS | CZ56: =CZ49+PAYG_AdditPaidBonus -> 0
B57: Base pay | Z57: Base pay | BY57: Yes/Yes/Paid/No | CZ57: =CZ49+PAYG_AdditPaidBonus -> 0
BY58: Yes/Yes/Unpaid/Yes | CF58: Summary Income - Annual Bonus | CO58: YTD => 3mths unpaid w or w/o SS | CZ58: =MIN(CZ56+PAYG_AdditProjectedBonus,CZ41) -> 0
BY59: Yes/Yes/Unpaid/No | CZ59: =MIN(CZ56+PAYG_AdditProjectedBonus,CZ41) -> 0
B60: Total Pay | Z60: Total Pay | BY60: No/Yes/Paid/Yes | CF60: Summary Income - Annual Bonus | CO60: YTD < 3mths unpaid w SS | CZ60: =MIN(CZ51+PAYG_AdditProjectedBonus+PAYG_AdditPaidBonus,CZ41) -> 0
BY61: No/Yes/Unpaid/Yes | CZ61: =MIN(CZ51+PAYG_AdditProjectedBonus+PAYG_AdditPaidBonus,CZ41) -> 0
BY62: No/Yes/Paid/No | CF62: Summary Income - Annual Bonus | CO62: YTD < 3mths unpaid w/o SS | CZ62: =MIN(CZ51+PAYG_AdditProjectedBonus+PAYG_AdditPaidBonus,CZ41) -> 0
B63: Annual base | N63: =IFERROR(PAYG_NoYTDBasePay1*$CZ$39,"") ->  | Z63: Annual base | AL63: =IFERROR(PAYG_NoYTDBasePay2*$CZ$39,"") ->  | BY63: No/Yes/Unpaid/No | CZ63: =MIN(CZ51+PAYG_AdditProjectedBonus+PAYG_AdditPaidBonus,CZ41) -> 0
BY64: No/No/Paid/Yes | CF64: Summary Income - Annual Bonus | CO64: No YTD bonus w SS | CZ64: =MIN(CZ53+PAYG_AdditPaidBonus+PAYG_AdditProjectedBonus,CZ41) -> 0
BY65: No/No/Unpaid/Yes | CZ65: =MIN(CZ53+PAYG_AdditPaidBonus+PAYG_AdditProjectedBonus,CZ41) -> 0
B66: Annual total | N66: =IFERROR(PAYG_NoYTDTotalPay1*$CZ$39,"") ->  | Z66: Annual total | AL66: =IFERROR(PAYG_NoYTDTotalPay2*$CZ$39,"") ->  | BY66: No/No/Paid/No | CF66: Summary Income - Annual Bonus | CO66: No YTD bonus w/o SS | CZ66: =MIN(CZ54+PAYG_AdditPaidBonus+PAYG_AdditProjectedBonus,CZ41) -> 
BY67: No/No/Unpaid/No | CZ67: =MIN(CZ54+PAYG_AdditPaidBonus+PAYG_AdditProjectedBonus,CZ41) -> 
B69: Assessed base | N69: =IF(MIN(PAYG_NoYTDAnnualBase1,PAYG_NoYTDAnnualBase2)=0,0,MIN(PAYG_NoYTDAnnualBase1,PAYG_NoYTDAnnualBase2)) -> 0
B72: Assessed total | N72: =IF(MIN(PAYG_NoYTDAnnualTotal1,PAYG_NoYTDAnnualTotal2)=0,0,MIN(PAYG_NoYTDAnnualTotal1,PAYG_NoYTDAnnualTotal2)) -> 0
B76: Additional income | Z76: Notes
B78: Pre-tax deductions | Z78: If required for servicing, ensure pre-tax deductions are confirmed to policy
B81: Pre-tax deductions required for servicing?
B84: Bonus already received | Z84: If required for servicing, ensure bonus income is verified to policy
B87: Projected bonus
B93: Group 2 documents
B97: Payment Summary
B100: Date | Z100: Gross payment
B103: OR
B106: Tax Return & NoA
B109: Date | Z109: PAYG income
B114: Income for servicing
Y115: Annual Base
Y118: =CR17 -> Error
Y122: Annual Total
Y125: =CR19 -> Error
Y129: Annual including bonus
Y132: =CR21 -> 0
B141: Casual and No Base policy applies. Click continue and load income as Casual.

Sheet PAYG YTD Calc - App1 Job5 (hidden)
G1: Serviceability Assesment Calculator | AI1: Other Calculators
B7: PAYG Income Calculator
B10: Version | N10: Applicant name | AK10: Application number | AW10: Assessment date | BI10: User ID
B12: =Assess_Version -> 19 | N12: ='Serviceability Calculator'!Assess_App1Name -> 0 | AK12: ='Serviceability Calculator'!Assess_AppNum -> Enter Number | AW12: =TODAY() -> 2019-11-19 | BI12: ='Serviceability Calculator'!BK12 -> M025250
CK14: Avg Pay Lookup | CR14: =CF16&"/"&CF17&"/"&CF18&"/"&CF20 -> 0/0/No/No
BY15: 3 months | CF15: =IFERROR(IF(AND(PAYG_YTDPays>=3,PAYG_YTDCycle="Monthly"),"Yes",IF(DATEDIF(PAYG_YTDStartDate,PAYG_YTDEndDate,"m")<3,"No","Yes")),"No") -> No | CK15: Avg Pay Result | CR15: =VLOOKUP(CR14,PAYG_AvgPayLookup,28,FALSE) -> 
B16: Select employment* PAYG / Family | Z16: Enter employer name* | AL16: Enter name | BY16: YTD Figure | CF16: =IF(PAYG_EmployType="Family","Family",PAYG_YTDConfirm) -> 0 | CK16: Base Pay Lookup | CR16: =CF16&"/"&CF18 -> 0/No
BY17: Taxable | CF17: =PAYG_YTD_YTDType -> 0 | CK17: Base Pay Result | CR17: =IFERROR(VLOOKUP(CR16,PAYG_BasePayLookup,28,FALSE),"Error") -> Error
BY18: SS Required | CF18: =IF(PAYG_EmployType="Family","No",IF(PAYG_AdditPreTaxReq="","No",PAYG_AdditPreTaxReq)) -> No | CK18: Total Pay Lookup | CR18: =CF15&"/"&CF16&"/"&CF18 -> No/0/No
BY19: Bonus | CF19: =IF(PAYG_AdditProjectedBonus>0,"Unpaid",IF(PAYG_AdditPaidBonus>0,"Paid","No")) -> No | CK19: Total Pay Result | CR19: =IFERROR(VLOOKUP(CR18,PAYG_TotalPayLookup,28,FALSE),"Error") -> Error
BY20: Paid Bonus | CF20: =IF(PAYG_AdditPaidBonus>0,"Yes","No") -> No | CK20: Bonus Pay Lookup | CR20: =CF15&"/"&CF16&"/"&CF19&"/"&CF18 -> No/0/No/No
B21: Can you confirm base income* | Z21: Do you have a YTD figure* | CK21: Bonus Pay Result | CR21: =IFERROR(VLOOKUP(CR20,PAYG_BonusPayLookup,28,FALSE),0) -> 0
BY24: Lookup | CF24: Usage | CO24: Description | CZ24: Value
B25: Group 1 documents | CF25: YTD Reference | CO25: Pays in Cycle | CZ25: =VLOOKUP(PAYG_YTDCycle,Reference!$K$6:$M$13,3,FALSE) -> 
CF26: YTD Reference | CO26: Days Elapsed | CZ26: =PAYG_YTDEndDate-PAYG_YTDStartDate -> -43647
CF27: YTD Reference | CO27: Months Elapsed | CZ27: =(YEAR(PAYG_YTDEndDate)-YEAR(PAYG_YTDStartDate))*12+(MONTH(PAYG_YTDEndDate)-MONTH(PAYG_YTDStartDate))+(DAY(PAYG_YTDEndDate)-DAY(PAYG_YTDStartDate))/31 -> -1434.032258
CF28: YTD Reference | CO28: Pays in Year | CZ28: =VLOOKUP(PAYG_YTDCycle,Reference!K6:L13,2,FALSE) -> 
B29: Year-to-date payslips
BY30: Yes/Gross/Yes/No | CF30: YTD Avg | CO30: Avg Gross YTD w SS | CZ30: =PAYG_YTD_YTDValue/PAYG_YTDPays -> 
BY31: Yes/Gross/No/No | CF31: YTD Avg | CO31: avg Gross YTD w/o SS | CZ31: =CZ30-PAYG_AdditPreTax -> 
B32: Select your pay cycle | BY32: Yes/Gross/Yes/Yes | CF32: YTD Avg | CO32: Avg Gross YTD w SS & bonus | CZ32: =(PAYG_YTD_YTDValue-PAYG_AdditPaidBonus)/PAYG_YTDPays -> 
BY33: Yes/Gross/No/Yes | CF33: YTD Avg | CO33: avg Gross YTD w/o SS & bonus | CZ33: =(PAYG_YTD_YTDValue-PAYG_AdditPaidBonus-PAYG_AdditPreTax)/PAYG_YTDPays -> 
BY34: Yes/Taxable/Yes/No | CF34: YTD Avg | CO34: avg tax YTD w SS | CZ34: =(PAYG_YTD_YTDValue/PAYG_YTDPays)+PAYG_AdditPreTax -> 
B35: First day of financial year | N35: 2019-07-01 | Z35: =PAYG_YTDCycle&" base pay" -> base pay | AX35: Number of pays | BJ35: =IFERROR(IF(PAYG_YTDCycle=Reference!K13,1,IF(PAYG_YTDCycle=Reference!K10,ROUNDDOWN(CZ27,0)+1,ROUNDDOWN(CZ26/CZ25,0)+1)),"") ->  | BY35: Yes/Taxable/No/No | CF35: YTD Avg | CO35: avg tax YTD w/o SS | CZ35: =PAYG_YTD_YTDValue/PAYG_YTDPays -> 
BY36: Yes/Taxable/Yes/Yes | CF36: YTD Avg | CO36: avg tax YTD w SS & bonus | CZ36: =(PAYG_YTD_YTDValue-PAYG_AdditPaidBonus)/PAYG_YTDPays+PAYG_AdditPreTax -> 
BY37: Yes/Taxable/No/Yes | CF37: YTD Avg | CO37: avg tax YTD w/o SS & bonus | CZ37: =(PAYG_YTD_YTDValue-PAYG_AdditPaidBonus)/PAYG_YTDPays -> 
B38: Most recent pay date | Z38: Is the YTD amount Gross or Taxable? | AX38: Average pay | BJ38: =PAYG_YTDAvgPayResult -> 
CF39: No YTD Reference | CO39: Number of Pays | CZ39: =VLOOKUP(PAYG_NoYTDCycle,Reference!$K$6:$L$13,2,FALSE) -> 
Z41: =AL38 &" YTD amount" -> YTD amount | AX41: Annualised average pay | BJ41: =IFERROR(PAYG_YTDAveragePay*CZ28,"") ->  | CF41: Group 2 | CO41: Group 2 Doc | CZ41: =IF(AND(PAYG_PaySumAmount>0,PAYG_NOAAmount>0),MIN(PAYG_PaySumAmount,PAYG_NOAAmount),MAX(PAYG_PaySumAmount,PAYG_NOAAmount)) -> 0
BY43: Yes/Yes | CF43: Summary Income - Annual Base | CO43: YTD Annual Base w SS | CZ43: =PAYG_YTDBase*CZ28 -> 
B44: Group 1 documents | BY44: Yes/No | CF44: Summary Income - Annual Base | CO44: YTD Annual Base w/o SS | CZ44: =(PAYG_YTDBase-PAYG_AdditPreTax)*CZ28 -> 
BY45: No/Yes | CF45: Summary Income - Annual Base | CO45: No YTD Annual Base w SS | CZ45: =PAYG_NoYTDAnnualBase -> 0
BY46: Family/No | CF46: Summary Income - Annual Base | CO46: No YTD Annual Base w SS | CZ46: =MIN(PAYG_NoYTDAnnualBase,CZ41) -> 0
BY47: No/No | CF47: Summary Income - Annual Base | CO47: No YTD Annual Base w/o SS | CZ47: =PAYG_NoYTDAnnualBase-(PAYG_AdditPreTax*CZ39) -> 
B48: No year-to-date payslips
BY49: Yes/Yes/Yes | CF49: Summary Income - Annual Total | CO49: YTD => 3mths w or w/o SS | CZ49: =MAX(PAYG_ServAnnualBase,PAYG_YTDAnnualised) -> 0
BY50: Yes/Yes/No | CZ50: =MAX(PAYG_ServAnnualBase,PAYG_YTDAnnualised) -> 0
B51: Select your pay cycle | BY51: No/Yes/Yes | CF51: Summary Income - Annual Total | CO51: YTD < 3mths w or w/o SS | CZ51: =MIN(CZ41,CZ49) -> 0
BY52: No/Yes/No | CZ52: =MIN(CZ41,CZ49) -> 0
BY53: No/No/Yes | CF53: Summary Income - Annual Total | CO53: No YTD w SS | CZ53: =MIN(MAX(PAYG_ServAnnualBase,PAYG_NoYTDAnnualTotal),CZ41) -> 0
B54: Pay date: 1st payslip | Z54: Pay date: 2nd payslip | BY54: No/No/No | CF54: Summary Income - Annual Total | CO54: No YTD w/o SS | CZ54: =MIN(MAX(PAYG_ServAnnualBase,PAYG_NoYTDAnnualTotal-(PAYG_AdditPreTax*CZ39)),CZ41) -> 
BY56: Yes/Yes/Paid/Yes | CF56: Summary Income - Annual Bonus | CO56: YTD => 3mths Paid w or w/o SS | CZ56: =CZ49+PAYG_AdditPaidBonus -> 0
B57: Base pay | Z57: Base pay | BY57: Yes/Yes/Paid/No | CZ57: =CZ49+PAYG_AdditPaidBonus -> 0
BY58: Yes/Yes/Unpaid/Yes | CF58: Summary Income - Annual Bonus | CO58: YTD => 3mths unpaid w or w/o SS | CZ58: =MIN(CZ56+PAYG_AdditProjectedBonus,CZ41) -> 0
BY59: Yes/Yes/Unpaid/No | CZ59: =MIN(CZ56+PAYG_AdditProjectedBonus,CZ41) -> 0
B60: Total Pay | Z60: Total Pay | BY60: No/Yes/Paid/Yes | CF60: Summary Income - Annual Bonus | CO60: YTD < 3mths unpaid w SS | CZ60: =MIN(CZ51+PAYG_AdditProjectedBonus+PAYG_AdditPaidBonus,CZ41) -> 0
BY61: No/Yes/Unpaid/Yes | CZ61: =MIN(CZ51+PAYG_AdditProjectedBonus+PAYG_AdditPaidBonus,CZ41) -> 0
BY62: No/Yes/Paid/No | CF62: Summary Income - Annual Bonus | CO62: YTD < 3mths unpaid w/o SS | CZ62: =MIN(CZ51+PAYG_AdditProjectedBonus+PAYG_AdditPaidBonus,CZ41) -> 0
B63: Annual base | N63: =IFERROR(PAYG_NoYTDBasePay1*$CZ$39,"") ->  | Z63: Annual base | AL63: =IFERROR(PAYG_NoYTDBasePay2*$CZ$39,"") ->  | BY63: No/Yes/Unpaid/No | CZ63: =MIN(CZ51+PAYG_AdditProjectedBonus+PAYG_AdditPaidBonus,CZ41) -> 0
BY64: No/No/Paid/Yes | CF64: Summary Income - Annual Bonus | CO64: No YTD bonus w SS | CZ64: =MIN(CZ53+PAYG_AdditPaidBonus+PAYG_AdditProjectedBonus,CZ41) -> 0
BY65: No/No/Unpaid/Yes | CZ65: =MIN(CZ53+PAYG_AdditPaidBonus+PAYG_AdditProjectedBonus,CZ41) -> 0
B66: Annual total | N66: =IFERROR(PAYG_NoYTDTotalPay1*$CZ$39,"") ->  | Z66: Annual total | AL66: =IFERROR(PAYG_NoYTDTotalPay2*$CZ$39,"") ->  | BY66: No/No/Paid/No | CF66: Summary Income - Annual Bonus | CO66: No YTD bonus w/o SS | CZ66: =MIN(CZ54+PAYG_AdditPaidBonus+PAYG_AdditProjectedBonus,CZ41) -> 
BY67: No/No/Unpaid/No | CZ67: =MIN(CZ54+PAYG_AdditPaidBonus+PAYG_AdditProjectedBonus,CZ41) -> 
B69: Assessed base | N69: =IF(MIN(PAYG_NoYTDAnnualBase1,PAYG_NoYTDAnnualBase2)=0,0,MIN(PAYG_NoYTDAnnualBase1,PAYG_NoYTDAnnualBase2)) -> 0
B72: Assessed total | N72: =IF(MIN(PAYG_NoYTDAnnualTotal1,PAYG_NoYTDAnnualTotal2)=0,0,MIN(PAYG_NoYTDAnnualTotal1,PAYG_NoYTDAnnualTotal2)) -> 0
B76: Additional income | Z76: Notes
B78: Pre-tax deductions | Z78: If required for servicing, ensure pre-tax deductions are confirmed to policy
B81: Pre-tax deductions required for servicing?
B84: Bonus already received | Z84: If required for servicing, ensure bonus income is verified to policy
B87: Projected bonus
B93: Group 2 documents
B97: Payment Summary
B100: Date | Z100: Gross payment
B103: OR
B106: Tax Return & NoA
B109: Date | Z109: PAYG income
B114: Income for servicing
Y115: Annual Base
Y118: =CR17 -> Error
Y122: Annual Total
Y125: =CR19 -> Error
Y129: Annual including bonus
Y132: =CR21 -> 0
B141: Casual and No Base policy applies. Click continue and load income as Casual.

Sheet PAYG YTD Calc - App2 Job1 (hidden)
G1: Serviceability Assesment Calculator | AI1: Other Calculators
B7: PAYG Income Calculator
B10: Version | N10: Applicant name | AK10: Application number | AW10: Assessment date | BI10: User ID
B12: =Assess_Version -> 19 | N12: ='Serviceability Calculator'!Assess_App2Name -> 0 | AK12: ='Serviceability Calculator'!Assess_AppNum -> Enter Number | AW12: =TODAY() -> 2019-11-19 | BI12: =username() -> M025250
CK14: Avg Pay Lookup | CR14: =CF16&"/"&CF17&"/"&CF18&"/"&CF20 -> 0/0/No/No
BY15: 3 months | CF15: =IFERROR(IF(AND(PAYG_YTDPays>=3,PAYG_YTDCycle="Monthly"),"Yes",IF(DATEDIF(PAYG_YTDStartDate,PAYG_YTDEndDate,"m")<3,"No","Yes")),"No") -> No | CK15: Avg Pay Result | CR15: =VLOOKUP(CR14,PAYG_AvgPayLookup,28,FALSE) -> 
B16: Select employment* PAYG / Family | Z16: Enter employer name* | AL16: Enter name | BY16: YTD Figure | CF16: =IF(PAYG_EmployType="Family","Family",PAYG_YTDConfirm) -> 0 | CK16: Base Pay Lookup | CR16: =CF16&"/"&CF18 -> 0/No
BY17: Taxable | CF17: =PAYG_YTD_YTDType -> 0 | CK17: Base Pay Result | CR17: =IFERROR(VLOOKUP(CR16,PAYG_BasePayLookup,28,FALSE),"Error") -> Error
BY18: SS Required | CF18: =IF(PAYG_EmployType="Family","No",IF(PAYG_AdditPreTaxReq="","No",PAYG_AdditPreTaxReq)) -> No | CK18: Total Pay Lookup | CR18: =CF15&"/"&CF16&"/"&CF18 -> No/0/No
BY19: Bonus | CF19: =IF(PAYG_AdditProjectedBonus>0,"Unpaid",IF(PAYG_AdditPaidBonus>0,"Paid","No")) -> No | CK19: Total Pay Result | CR19: =IFERROR(VLOOKUP(CR18,PAYG_TotalPayLookup,28,FALSE),"Error") -> Error
BY20: Paid Bonus | CF20: =IF(PAYG_AdditPaidBonus>0,"Yes","No") -> No | CK20: Bonus Pay Lookup | CR20: =CF15&"/"&CF16&"/"&CF19&"/"&CF18 -> No/0/No/No
B21: Can you confirm base income* | Z21: Do you have a YTD figure* | CK21: Bonus Pay Result | CR21: =IFERROR(VLOOKUP(CR20,PAYG_BonusPayLookup,28,FALSE),0) -> 0
BY24: Lookup | CF24: Usage | CO24: Description | CZ24: Value
B25: Group 1 documents | CF25: YTD Reference | CO25: Pays in Cycle | CZ25: =VLOOKUP(PAYG_YTDCycle,Reference!$K$6:$M$13,3,FALSE) -> 
CF26: YTD Reference | CO26: Days Elapsed | CZ26: =PAYG_YTDEndDate-PAYG_YTDStartDate -> -43647
CF27: YTD Reference | CO27: Months Elapsed | CZ27: =(YEAR(PAYG_YTDEndDate)-YEAR(PAYG_YTDStartDate))*12+(MONTH(PAYG_YTDEndDate)-MONTH(PAYG_YTDStartDate))+(DAY(PAYG_YTDEndDate)-DAY(PAYG_YTDStartDate))/31 -> -1434.032258
CF28: YTD Reference | CO28: Pays in Year | CZ28: =VLOOKUP(PAYG_YTDCycle,Reference!K6:L13,2,FALSE) -> 
B29: Year-to-date payslips
BY30: Yes/Gross/Yes/No | CF30: YTD Avg | CO30: Avg Gross YTD w SS | CZ30: =PAYG_YTD_YTDValue/PAYG_YTDPays -> 
BY31: Yes/Gross/No/No | CF31: YTD Avg | CO31: avg Gross YTD w/o SS | CZ31: =CZ30-PAYG_AdditPreTax -> 
B32: Select your pay cycle | BY32: Yes/Gross/Yes/Yes | CF32: YTD Avg | CO32: Avg Gross YTD w SS & bonus | CZ32: =(PAYG_YTD_YTDValue-PAYG_AdditPaidBonus)/PAYG_YTDPays -> 
BY33: Yes/Gross/No/Yes | CF33: YTD Avg | CO33: avg Gross YTD w/o SS & bonus | CZ33: =(PAYG_YTD_YTDValue-PAYG_AdditPaidBonus-PAYG_AdditPreTax)/PAYG_YTDPays -> 
BY34: Yes/Taxable/Yes/No | CF34: YTD Avg | CO34: avg tax YTD w SS | CZ34: =(PAYG_YTD_YTDValue/PAYG_YTDPays)+PAYG_AdditPreTax -> 
B35: First day of financial year | N35: 2019-07-01 | Z35: =PAYG_YTDCycle&" base pay" -> base pay | AX35: Number of pays | BJ35: =IFERROR(IF(PAYG_YTDCycle=Reference!K13,1,IF(PAYG_YTDCycle=Reference!K10,ROUNDDOWN(CZ27,0)+1,ROUNDDOWN(CZ26/CZ25,0)+1)),"") ->  | BY35: Yes/Taxable/No/No | CF35: YTD Avg | CO35: avg tax YTD w/o SS | CZ35: =PAYG_YTD_YTDValue/PAYG_YTDPays -> 
BY36: Yes/Taxable/Yes/Yes | CF36: YTD Avg | CO36: avg tax YTD w SS & bonus | CZ36: =(PAYG_YTD_YTDValue-PAYG_AdditPaidBonus)/PAYG_YTDPays+PAYG_AdditPreTax -> 
BY37: Yes/Taxable/No/Yes | CF37: YTD Avg | CO37: avg tax YTD w/o SS & bonus | CZ37: =(PAYG_YTD_YTDValue-PAYG_AdditPaidBonus)/PAYG_YTDPays -> 
B38: Most recent pay date | Z38: Is the YTD amount Gross or Taxable? | AX38: Average pay | BJ38: =PAYG_YTDAvgPayResult -> 
CF39: No YTD Reference | CO39: Number of Pays | CZ39: =VLOOKUP(PAYG_NoYTDCycle,Reference!$K$6:$L$13,2,FALSE) -> 
Z41: =AL38 &" YTD amount" -> YTD amount | AX41: Annualised average pay | BJ41: =IFERROR(PAYG_YTDAveragePay*CZ28,"") ->  | CF41: Group 2 | CO41: Group 2 Doc | CZ41: =IF(AND(PAYG_PaySumAmount>0,PAYG_NOAAmount>0),MIN(PAYG_PaySumAmount,PAYG_NOAAmount),MAX(PAYG_PaySumAmount,PAYG_NOAAmount)) -> 0
BY43: Yes/Yes | CF43: Summary Income - Annual Base | CO43: YTD Annual Base w SS | CZ43: =PAYG_YTDBase*CZ28 -> 
B44: Group 1 documents | BY44: Yes/No | CF44: Summary Income - Annual Base | CO44: YTD Annual Base w/o SS | CZ44: =(PAYG_YTDBase-PAYG_AdditPreTax)*CZ28 -> 
BY45: No/Yes | CF45: Summary Income - Annual Base | CO45: No YTD Annual Base w SS | CZ45: =PAYG_NoYTDAnnualBase -> 0
BY46: Family/No | CF46: Summary Income - Annual Base | CO46: No YTD Annual Base w SS | CZ46: =MIN(PAYG_NoYTDAnnualBase,CZ41) -> 0
BY47: No/No | CF47: Summary Income - Annual Base | CO47: No YTD Annual Base w/o SS | CZ47: =PAYG_NoYTDAnnualBase-(PAYG_AdditPreTax*CZ39) -> 
B48: No year-to-date payslips
BY49: Yes/Yes/Yes | CF49: Summary Income - Annual Total | CO49: YTD => 3mths w or w/o SS | CZ49: =MAX(PAYG_ServAnnualBase,PAYG_YTDAnnualised) -> 0
BY50: Yes/Yes/No | CZ50: =MAX(PAYG_ServAnnualBase,PAYG_YTDAnnualised) -> 0
B51: Select your pay cycle | BY51: No/Yes/Yes | CF51: Summary Income - Annual Total | CO51: YTD < 3mths w or w/o SS | CZ51: =MIN(CZ41,CZ49) -> 0
BY52: No/Yes/No | CZ52: =MIN(CZ41,CZ49) -> 0
BY53: No/No/Yes | CF53: Summary Income - Annual Total | CO53: No YTD w SS | CZ53: =MIN(MAX(PAYG_ServAnnualBase,PAYG_NoYTDAnnualTotal),CZ41) -> 0
B54: Pay date: 1st payslip | Z54: Pay date: 2nd payslip | BY54: No/No/No | CF54: Summary Income - Annual Total | CO54: No YTD w/o SS | CZ54: =MIN(MAX(PAYG_ServAnnualBase,PAYG_NoYTDAnnualTotal-(PAYG_AdditPreTax*CZ39)),CZ41) -> 
BY56: Yes/Yes/Paid/Yes | CF56: Summary Income - Annual Bonus | CO56: YTD => 3mths Paid w or w/o SS | CZ56: =CZ49+PAYG_AdditPaidBonus -> 0
B57: Base pay | Z57: Base pay | BY57: Yes/Yes/Paid/No | CZ57: =CZ49+PAYG_AdditPaidBonus -> 0
BY58: Yes/Yes/Unpaid/Yes | CF58: Summary Income - Annual Bonus | CO58: YTD => 3mths unpaid w or w/o SS | CZ58: =MIN(CZ56+PAYG_AdditProjectedBonus,CZ41) -> 0
BY59: Yes/Yes/Unpaid/No | CZ59: =MIN(CZ56+PAYG_AdditProjectedBonus,CZ41) -> 0
B60: Total Pay | Z60: Total Pay | BY60: No/Yes/Paid/Yes | CF60: Summary Income - Annual Bonus | CO60: YTD < 3mths unpaid w SS | CZ60: =MIN(CZ51+PAYG_AdditProjectedBonus+PAYG_AdditPaidBonus,CZ41) -> 0
BY61: No/Yes/Unpaid/Yes | CZ61: =MIN(CZ51+PAYG_AdditProjectedBonus+PAYG_AdditPaidBonus,CZ41) -> 0
BY62: No/Yes/Paid/No | CF62: Summary Income - Annual Bonus | CO62: YTD < 3mths unpaid w/o SS | CZ62: =MIN(CZ51+PAYG_AdditProjectedBonus+PAYG_AdditPaidBonus,CZ41) -> 0
B63: Annual base | N63: =IFERROR(PAYG_NoYTDBasePay1*$CZ$39,"") ->  | Z63: Annual base | AL63: =IFERROR(PAYG_NoYTDBasePay2*$CZ$39,"") ->  | BY63: No/Yes/Unpaid/No | CZ63: =MIN(CZ51+PAYG_AdditProjectedBonus+PAYG_AdditPaidBonus,CZ41) -> 0
BY64: No/No/Paid/Yes | CF64: Summary Income - Annual Bonus | CO64: No YTD bonus w SS | CZ64: =MIN(CZ53+PAYG_AdditPaidBonus+PAYG_AdditProjectedBonus,CZ41) -> 0
BY65: No/No/Unpaid/Yes | CZ65: =MIN(CZ53+PAYG_AdditPaidBonus+PAYG_AdditProjectedBonus,CZ41) -> 0
B66: Annual total | N66: =IFERROR(PAYG_NoYTDTotalPay1*$CZ$39,"") ->  | Z66: Annual total | AL66: =IFERROR(PAYG_NoYTDTotalPay2*$CZ$39,"") ->  | BY66: No/No/Paid/No | CF66: Summary Income - Annual Bonus | CO66: No YTD bonus w/o SS | CZ66: =MIN(CZ54+PAYG_AdditPaidBonus+PAYG_AdditProjectedBonus,CZ41) -> 
BY67: No/No/Unpaid/No | CZ67: =MIN(CZ54+PAYG_AdditPaidBonus+PAYG_AdditProjectedBonus,CZ41) -> 
B69: Assessed base | N69: =IF(MIN(PAYG_NoYTDAnnualBase1,PAYG_NoYTDAnnualBase2)=0,0,MIN(PAYG_NoYTDAnnualBase1,PAYG_NoYTDAnnualBase2)) -> 0
B72: Assessed total | N72: =IF(MIN(PAYG_NoYTDAnnualTotal1,PAYG_NoYTDAnnualTotal2)=0,0,MIN(PAYG_NoYTDAnnualTotal1,PAYG_NoYTDAnnualTotal2)) -> 0
B76: Additional income | Z76: Notes
B78: Pre-tax deductions | Z78: If required for servicing, ensure pre-tax deductions are confirmed to policy
B81: Pre-tax deductions required for servicing?
B84: Bonus already received | Z84: If required for servicing, ensure bonus income is verified to policy
B87: Projected bonus
B93: Group 2 documents
B97: Payment Summary
B100: Date | Z100: Gross payment
B103: OR
B106: Tax Return & NoA
B109: Date | Z109: PAYG income
B114: Income for servicing
Y115: Annual Base
Y118: =CR17 -> Error
Y122: Annual Total
Y125: =CR19 -> Error
Y129: Annual including bonus
Y132: =CR21 -> 0
B141: Casual and No Base policy applies. Click continue and load income as Casual.

Sheet PAYG YTD Calc - App2 Job2 (hidden)
G1: Serviceability Assesment Calculator | AI1: Other Calculators
B7: PAYG Income Calculator
B10: Version | N10: Applicant name | AK10: Application number | AW10: Assessment date | BI10: User ID
B12: =Assess_Version -> 19 | N12: ='Serviceability Calculator'!Assess_App2Name -> 0 | AK12: ='Serviceability Calculator'!Assess_AppNum -> Enter Number | AW12: =TODAY() -> 2019-11-19 | BI12: =username() -> M025250
CK14: Avg Pay Lookup | CR14: =CF16&"/"&CF17&"/"&CF18&"/"&CF20 -> 0/0/No/No
BY15: 3 months | CF15: =IFERROR(IF(AND(PAYG_YTDPays>=3,PAYG_YTDCycle="Monthly"),"Yes",IF(DATEDIF(PAYG_YTDStartDate,PAYG_YTDEndDate,"m")<3,"No","Yes")),"No") -> No | CK15: Avg Pay Result | CR15: =VLOOKUP(CR14,PAYG_AvgPayLookup,28,FALSE) -> 
B16: Select employment* PAYG / Family | Z16: Enter employer name* | AL16: Enter name | BY16: YTD Figure | CF16: =IF(PAYG_EmployType="Family","Family",PAYG_YTDConfirm) -> 0 | CK16: Base Pay Lookup | CR16: =CF16&"/"&CF18 -> 0/No
BY17: Taxable | CF17: =PAYG_YTD_YTDType -> 0 | CK17: Base Pay Result | CR17: =IFERROR(VLOOKUP(CR16,PAYG_BasePayLookup,28,FALSE),"Error") -> Error
BY18: SS Required | CF18: =IF(PAYG_EmployType="Family","No",IF(PAYG_AdditPreTaxReq="","No",PAYG_AdditPreTaxReq)) -> No | CK18: Total Pay Lookup | CR18: =CF15&"/"&CF16&"/"&CF18 -> No/0/No
BY19: Bonus | CF19: =IF(PAYG_AdditProjectedBonus>0,"Unpaid",IF(PAYG_AdditPaidBonus>0,"Paid","No")) -> No | CK19: Total Pay Result | CR19: =IFERROR(VLOOKUP(CR18,PAYG_TotalPayLookup,28,FALSE),"Error") -> Error
BY20: Paid Bonus | CF20: =IF(PAYG_AdditPaidBonus>0,"Yes","No") -> No | CK20: Bonus Pay Lookup | CR20: =CF15&"/"&CF16&"/"&CF19&"/"&CF18 -> No/0/No/No
B21: Can you confirm base income* | Z21: Do you have a YTD figure* | CK21: Bonus Pay Result | CR21: =IFERROR(VLOOKUP(CR20,PAYG_BonusPayLookup,28,FALSE),0) -> 0
BY24: Lookup | CF24: Usage | CO24: Description | CZ24: Value
B25: Group 1 documents | CF25: YTD Reference | CO25: Pays in Cycle | CZ25: =VLOOKUP(PAYG_YTDCycle,Reference!$K$6:$M$13,3,FALSE) -> 
CF26: YTD Reference | CO26: Days Elapsed | CZ26: =PAYG_YTDEndDate-PAYG_YTDStartDate -> -43647
CF27: YTD Reference | CO27: Months Elapsed | CZ27: =(YEAR(PAYG_YTDEndDate)-YEAR(PAYG_YTDStartDate))*12+(MONTH(PAYG_YTDEndDate)-MONTH(PAYG_YTDStartDate))+(DAY(PAYG_YTDEndDate)-DAY(PAYG_YTDStartDate))/31 -> -1434.032258
CF28: YTD Reference | CO28: Pays in Year | CZ28: =VLOOKUP(PAYG_YTDCycle,Reference!K6:L13,2,FALSE) -> 
B29: Year-to-date payslips
BY30: Yes/Gross/Yes/No | CF30: YTD Avg | CO30: Avg Gross YTD w SS | CZ30: =PAYG_YTD_YTDValue/PAYG_YTDPays -> 
BY31: Yes/Gross/No/No | CF31: YTD Avg | CO31: avg Gross YTD w/o SS | CZ31: =CZ30-PAYG_AdditPreTax -> 
B32: Select your pay cycle | BY32: Yes/Gross/Yes/Yes | CF32: YTD Avg | CO32: Avg Gross YTD w SS & bonus | CZ32: =(PAYG_YTD_YTDValue-PAYG_AdditPaidBonus)/PAYG_YTDPays -> 
BY33: Yes/Gross/No/Yes | CF33: YTD Avg | CO33: avg Gross YTD w/o SS & bonus | CZ33: =(PAYG_YTD_YTDValue-PAYG_AdditPaidBonus-PAYG_AdditPreTax)/PAYG_YTDPays -> 
BY34: Yes/Taxable/Yes/No | CF34: YTD Avg | CO34: avg tax YTD w SS | CZ34: =(PAYG_YTD_YTDValue/PAYG_YTDPays)+PAYG_AdditPreTax -> 
B35: First day of financial year | N35: 2019-07-01 | Z35: =PAYG_YTDCycle&" base pay" -> base pay | AX35: Number of pays | BJ35: =IFERROR(IF(PAYG_YTDCycle=Reference!K13,1,IF(PAYG_YTDCycle=Reference!K10,ROUNDDOWN(CZ27,0)+1,ROUNDDOWN(CZ26/CZ25,0)+1)),"") ->  | BY35: Yes/Taxable/No/No | CF35: YTD Avg | CO35: avg tax YTD w/o SS | CZ35: =PAYG_YTD_YTDValue/PAYG_YTDPays -> 
BY36: Yes/Taxable/Yes/Yes | CF36: YTD Avg | CO36: avg tax YTD w SS & bonus | CZ36: =(PAYG_YTD_YTDValue-PAYG_AdditPaidBonus)/PAYG_YTDPays+PAYG_AdditPreTax -> 
BY37: Yes/Taxable/No/Yes | CF37: YTD Avg | CO37: avg tax YTD w/o SS & bonus | CZ37: =(PAYG_YTD_YTDValue-PAYG_AdditPaidBonus)/PAYG_YTDPays -> 
B38: Most recent pay date | Z38: Is the YTD amount Gross or Taxable? | AX38: Average pay | BJ38: =PAYG_YTDAvgPayResult -> 
CF39: No YTD Reference | CO39: Number of Pays | CZ39: =VLOOKUP(PAYG_NoYTDCycle,Reference!$K$6:$L$13,2,FALSE) -> 
Z41: =AL38 &" YTD amount" -> YTD amount | AX41: Annualised average pay | BJ41: =IFERROR(PAYG_YTDAveragePay*CZ28,"") ->  | CF41: Group 2 | CO41: Group 2 Doc | CZ41: =IF(AND(PAYG_PaySumAmount>0,PAYG_NOAAmount>0),MIN(PAYG_PaySumAmount,PAYG_NOAAmount),MAX(PAYG_PaySumAmount,PAYG_NOAAmount)) -> 0
BY43: Yes/Yes | CF43: Summary Income - Annual Base | CO43: YTD Annual Base w SS | CZ43: =PAYG_YTDBase*CZ28 -> 
B44: Group 1 documents | BY44: Yes/No | CF44: Summary Income - Annual Base | CO44: YTD Annual Base w/o SS | CZ44: =(PAYG_YTDBase-PAYG_AdditPreTax)*CZ28 -> 
BY45: No/Yes | CF45: Summary Income - Annual Base | CO45: No YTD Annual Base w SS | CZ45: =PAYG_NoYTDAnnualBase -> 0
BY46: Family/No | CF46: Summary Income - Annual Base | CO46: No YTD Annual Base w SS | CZ46: =MIN(PAYG_NoYTDAnnualBase,CZ41) -> 0
BY47: No/No | CF47: Summary Income - Annual Base | CO47: No YTD Annual Base w/o SS | CZ47: =PAYG_NoYTDAnnualBase-(PAYG_AdditPreTax*CZ39) -> 
B48: No year-to-date payslips
BY49: Yes/Yes/Yes | CF49: Summary Income - Annual Total | CO49: YTD => 3mths w or w/o SS | CZ49: =MAX(PAYG_ServAnnualBase,PAYG_YTDAnnualised) -> 0
BY50: Yes/Yes/No | CZ50: =MAX(PAYG_ServAnnualBase,PAYG_YTDAnnualised) -> 0
B51: Select your pay cycle | BY51: No/Yes/Yes | CF51: Summary Income - Annual Total | CO51: YTD < 3mths w or w/o SS | CZ51: =MIN(CZ41,CZ49) -> 0
BY52: No/Yes/No | CZ52: =MIN(CZ41,CZ49) -> 0
BY53: No/No/Yes | CF53: Summary Income - Annual Total | CO53: No YTD w SS | CZ53: =MIN(MAX(PAYG_ServAnnualBase,PAYG_NoYTDAnnualTotal),CZ41) -> 0
B54: Pay date: 1st payslip | Z54: Pay date: 2nd payslip | BY54: No/No/No | CF54: Summary Income - Annual Total | CO54: No YTD w/o SS | CZ54: =MIN(MAX(PAYG_ServAnnualBase,PAYG_NoYTDAnnualTotal-(PAYG_AdditPreTax*CZ39)),CZ41) -> 
BY56: Yes/Yes/Paid/Yes | CF56: Summary Income - Annual Bonus | CO56: YTD => 3mths Paid w or w/o SS | CZ56: =CZ49+PAYG_AdditPaidBonus -> 0
B57: Base pay | Z57: Base pay | BY57: Yes/Yes/Paid/No | CZ57: =CZ49+PAYG_AdditPaidBonus -> 0
BY58: Yes/Yes/Unpaid/Yes | CF58: Summary Income - Annual Bonus | CO58: YTD => 3mths unpaid w or w/o SS | CZ58: =MIN(CZ56+PAYG_AdditProjectedBonus,CZ41) -> 0
BY59: Yes/Yes/Unpaid/No | CZ59: =MIN(CZ56+PAYG_AdditProjectedBonus,CZ41) -> 0
B60: Total Pay | Z60: Total Pay | BY60: No/Yes/Paid/Yes | CF60: Summary Income - Annual Bonus | CO60: YTD < 3mths unpaid w SS | CZ60: =MIN(CZ51+PAYG_AdditProjectedBonus+PAYG_AdditPaidBonus,CZ41) -> 0
BY61: No/Yes/Unpaid/Yes | CZ61: =MIN(CZ51+PAYG_AdditProjectedBonus+PAYG_AdditPaidBonus,CZ41) -> 0
BY62: No/Yes/Paid/No | CF62: Summary Income - Annual Bonus | CO62: YTD < 3mths unpaid w/o SS | CZ62: =MIN(CZ51+PAYG_AdditProjectedBonus+PAYG_AdditPaidBonus,CZ41) -> 0
B63: Annual base | N63: =IFERROR(PAYG_NoYTDBasePay1*$CZ$39,"") ->  | Z63: Annual base | AL63: =IFERROR(PAYG_NoYTDBasePay2*$CZ$39,"") ->  | BY63: No/Yes/Unpaid/No | CZ63: =MIN(CZ51+PAYG_AdditProjectedBonus+PAYG_AdditPaidBonus,CZ41) -> 0
BY64: No/No/Paid/Yes | CF64: Summary Income - Annual Bonus | CO64: No YTD bonus w SS | CZ64: =MIN(CZ53+PAYG_AdditPaidBonus+PAYG_AdditProjectedBonus,CZ41) -> 0
BY65: No/No/Unpaid/Yes | CZ65: =MIN(CZ53+PAYG_AdditPaidBonus+PAYG_AdditProjectedBonus,CZ41) -> 0
B66: Annual total | N66: =IFERROR(PAYG_NoYTDTotalPay1*$CZ$39,"") ->  | Z66: Annual total | AL66: =IFERROR(PAYG_NoYTDTotalPay2*$CZ$39,"") ->  | BY66: No/No/Paid/No | CF66: Summary Income - Annual Bonus | CO66: No YTD bonus w/o SS | CZ66: =MIN(CZ54+PAYG_AdditPaidBonus+PAYG_AdditProjectedBonus,CZ41) -> 
BY67: No/No/Unpaid/No | CZ67: =MIN(CZ54+PAYG_AdditPaidBonus+PAYG_AdditProjectedBonus,CZ41) -> 
B69: Assessed base | N69: =IF(MIN(PAYG_NoYTDAnnualBase1,PAYG_NoYTDAnnualBase2)=0,0,MIN(PAYG_NoYTDAnnualBase1,PAYG_NoYTDAnnualBase2)) -> 0
B72: Assessed total | N72: =IF(MIN(PAYG_NoYTDAnnualTotal1,PAYG_NoYTDAnnualTotal2)=0,0,MIN(PAYG_NoYTDAnnualTotal1,PAYG_NoYTDAnnualTotal2)) -> 0
B76: Additional income | Z76: Notes
B78: Pre-tax deductions | Z78: If required for servicing, ensure pre-tax deductions are confirmed to policy
B81: Pre-tax deductions required for servicing?
B84: Bonus already received | Z84: If required for servicing, ensure bonus income is verified to policy
B87: Projected bonus
B93: Group 2 documents
B97: Payment Summary
B100: Date | Z100: Gross payment
B103: OR
B106: Tax Return & NoA
B109: Date | Z109: PAYG income
B114: Income for servicing
Y115: Annual Base
Y118: =CR17 -> Error
Y122: Annual Total
Y125: =CR19 -> Error
Y129: Annual including bonus
Y132: =CR21 -> 0
B141: Casual and No Base policy applies. Click continue and load income as Casual.

Sheet PAYG YTD Calc - App2 Job3 (hidden)
G1: Serviceability Assesment Calculator | AI1: Other Calculators
B7: PAYG Income Calculator
B10: Version | N10: Applicant name | AK10: Application number | AW10: Assessment date | BI10: User ID
B12: =Assess_Version -> 19 | N12: ='Serviceability Calculator'!Assess_App2Name -> 0 | AK12: ='Serviceability Calculator'!Assess_AppNum -> Enter Number | AW12: =TODAY() -> 2019-11-19 | BI12: =username() -> M025250
CK14: Avg Pay Lookup | CR14: =CF16&"/"&CF17&"/"&CF18&"/"&CF20 -> 0/0/No/No
BY15: 3 months | CF15: =IFERROR(IF(AND(PAYG_YTDPays>=3,PAYG_YTDCycle="Monthly"),"Yes",IF(DATEDIF(PAYG_YTDStartDate,PAYG_YTDEndDate,"m")<3,"No","Yes")),"No") -> No | CK15: Avg Pay Result | CR15: =VLOOKUP(CR14,PAYG_AvgPayLookup,28,FALSE) -> 
B16: Select employment* PAYG / Family | Z16: Enter employer name* | AL16: Enter name | BY16: YTD Figure | CF16: =IF(PAYG_EmployType="Family","Family",PAYG_YTDConfirm) -> 0 | CK16: Base Pay Lookup | CR16: =CF16&"/"&CF18 -> 0/No
BY17: Taxable | CF17: =PAYG_YTD_YTDType -> 0 | CK17: Base Pay Result | CR17: =IFERROR(VLOOKUP(CR16,PAYG_BasePayLookup,28,FALSE),"Error") -> Error
BY18: SS Required | CF18: =IF(PAYG_EmployType="Family","No",IF(PAYG_AdditPreTaxReq="","No",PAYG_AdditPreTaxReq)) -> No | CK18: Total Pay Lookup | CR18: =CF15&"/"&CF16&"/"&CF18 -> No/0/No
BY19: Bonus | CF19: =IF(PAYG_AdditProjectedBonus>0,"Unpaid",IF(PAYG_AdditPaidBonus>0,"Paid","No")) -> No | CK19: Total Pay Result | CR19: =IFERROR(VLOOKUP(CR18,PAYG_TotalPayLookup,28,FALSE),"Error") -> Error
BY20: Paid Bonus | CF20: =IF(PAYG_AdditPaidBonus>0,"Yes","No") -> No | CK20: Bonus Pay Lookup | CR20: =CF15&"/"&CF16&"/"&CF19&"/"&CF18 -> No/0/No/No
B21: Can you confirm base income* | Z21: Do you have a YTD figure* | CK21: Bonus Pay Result | CR21: =IFERROR(VLOOKUP(CR20,PAYG_BonusPayLookup,28,FALSE),0) -> 0
BY24: Lookup | CF24: Usage | CO24: Description | CZ24: Value
B25: Group 1 documents | CF25: YTD Reference | CO25: Pays in Cycle | CZ25: =VLOOKUP(PAYG_YTDCycle,Reference!$K$6:$M$13,3,FALSE) -> 
CF26: YTD Reference | CO26: Days Elapsed | CZ26: =PAYG_YTDEndDate-PAYG_YTDStartDate -> -43647
CF27: YTD Reference | CO27: Months Elapsed | CZ27: =(YEAR(PAYG_YTDEndDate)-YEAR(PAYG_YTDStartDate))*12+(MONTH(PAYG_YTDEndDate)-MONTH(PAYG_YTDStartDate))+(DAY(PAYG_YTDEndDate)-DAY(PAYG_YTDStartDate))/31 -> -1434.032258
CF28: YTD Reference | CO28: Pays in Year | CZ28: =VLOOKUP(PAYG_YTDCycle,Reference!K6:L13,2,FALSE) -> 
B29: Year-to-date payslips
BY30: Yes/Gross/Yes/No | CF30: YTD Avg | CO30: Avg Gross YTD w SS | CZ30: =PAYG_YTD_YTDValue/PAYG_YTDPays -> 
BY31: Yes/Gross/No/No | CF31: YTD Avg | CO31: avg Gross YTD w/o SS | CZ31: =CZ30-PAYG_AdditPreTax -> 
B32: Select your pay cycle | BY32: Yes/Gross/Yes/Yes | CF32: YTD Avg | CO32: Avg Gross YTD w SS & bonus | CZ32: =(PAYG_YTD_YTDValue-PAYG_AdditPaidBonus)/PAYG_YTDPays -> 
BY33: Yes/Gross/No/Yes | CF33: YTD Avg | CO33: avg Gross YTD w/o SS & bonus | CZ33: =(PAYG_YTD_YTDValue-PAYG_AdditPaidBonus-PAYG_AdditPreTax)/PAYG_YTDPays -> 
BY34: Yes/Taxable/Yes/No | CF34: YTD Avg | CO34: avg tax YTD w SS | CZ34: =(PAYG_YTD_YTDValue/PAYG_YTDPays)+PAYG_AdditPreTax -> 
B35: First day of financial year | N35: 2019-07-01 | Z35: =PAYG_YTDCycle&" base pay" -> base pay | AX35: Number of pays | BJ35: =IFERROR(IF(PAYG_YTDCycle=Reference!K13,1,IF(PAYG_YTDCycle=Reference!K10,ROUNDDOWN(CZ27,0)+1,ROUNDDOWN(CZ26/CZ25,0)+1)),"") ->  | BY35: Yes/Taxable/No/No | CF35: YTD Avg | CO35: avg tax YTD w/o SS | CZ35: =PAYG_YTD_YTDValue/PAYG_YTDPays -> 
BY36: Yes/Taxable/Yes/Yes | CF36: YTD Avg | CO36: avg tax YTD w SS & bonus | CZ36: =(PAYG_YTD_YTDValue-PAYG_AdditPaidBonus)/PAYG_YTDPays+PAYG_AdditPreTax -> 
BY37: Yes/Taxable/No/Yes | CF37: YTD Avg | CO37: avg tax YTD w/o SS & bonus | CZ37: =(PAYG_YTD_YTDValue-PAYG_AdditPaidBonus)/PAYG_YTDPays -> 
B38: Most recent pay date | Z38: Is the YTD amount Gross or Taxable? | AX38: Average pay | BJ38: =PAYG_YTDAvgPayResult -> 
CF39: No YTD Reference | CO39: Number of Pays | CZ39: =VLOOKUP(PAYG_NoYTDCycle,Reference!$K$6:$L$13,2,FALSE) -> 
Z41: =AL38 &" YTD amount" -> YTD amount | AX41: Annualised average pay | BJ41: =IFERROR(PAYG_YTDAveragePay*CZ28,"") ->  | CF41: Group 2 | CO41: Group 2 Doc | CZ41: =IF(AND(PAYG_PaySumAmount>0,PAYG_NOAAmount>0),MIN(PAYG_PaySumAmount,PAYG_NOAAmount),MAX(PAYG_PaySumAmount,PAYG_NOAAmount)) -> 0
BY43: Yes/Yes | CF43: Summary Income - Annual Base | CO43: YTD Annual Base w SS | CZ43: =PAYG_YTDBase*CZ28 -> 
B44: Group 1 documents | BY44: Yes/No | CF44: Summary Income - Annual Base | CO44: YTD Annual Base w/o SS | CZ44: =(PAYG_YTDBase-PAYG_AdditPreTax)*CZ28 -> 
BY45: No/Yes | CF45: Summary Income - Annual Base | CO45: No YTD Annual Base w SS | CZ45: =PAYG_NoYTDAnnualBase -> 0
BY46: Family/No | CF46: Summary Income - Annual Base | CO46: No YTD Annual Base w SS | CZ46: =MIN(PAYG_NoYTDAnnualBase,CZ41) -> 0
BY47: No/No | CF47: Summary Income - Annual Base | CO47: No YTD Annual Base w/o SS | CZ47: =PAYG_NoYTDAnnualBase-(PAYG_AdditPreTax*CZ39) -> 
B48: No year-to-date payslips
BY49: Yes/Yes/Yes | CF49: Summary Income - Annual Total | CO49: YTD => 3mths w or w/o SS | CZ49: =MAX(PAYG_ServAnnualBase,PAYG_YTDAnnualised) -> 0
BY50: Yes/Yes/No | CZ50: =MAX(PAYG_ServAnnualBase,PAYG_YTDAnnualised) -> 0
B51: Select your pay cycle | BY51: No/Yes/Yes | CF51: Summary Income - Annual Total | CO51: YTD < 3mths w or w/o SS | CZ51: =MIN(CZ41,CZ49) -> 0
BY52: No/Yes/No | CZ52: =MIN(CZ41,CZ49) -> 0
BY53: No/No/Yes | CF53: Summary Income - Annual Total | CO53: No YTD w SS | CZ53: =MIN(MAX(PAYG_ServAnnualBase,PAYG_NoYTDAnnualTotal),CZ41) -> 0
B54: Pay date: 1st payslip | Z54: Pay date: 2nd payslip | BY54: No/No/No | CF54: Summary Income - Annual Total | CO54: No YTD w/o SS | CZ54: =MIN(MAX(PAYG_ServAnnualBase,PAYG_NoYTDAnnualTotal-(PAYG_AdditPreTax*CZ39)),CZ41) -> 
BY56: Yes/Yes/Paid/Yes | CF56: Summary Income - Annual Bonus | CO56: YTD => 3mths Paid w or w/o SS | CZ56: =CZ49+PAYG_AdditPaidBonus -> 0
B57: Base pay | Z57: Base pay | BY57: Yes/Yes/Paid/No | CZ57: =CZ49+PAYG_AdditPaidBonus -> 0
BY58: Yes/Yes/Unpaid/Yes | CF58: Summary Income - Annual Bonus | CO58: YTD => 3mths unpaid w or w/o SS | CZ58: =MIN(CZ56+PAYG_AdditProjectedBonus,CZ41) -> 0
BY59: Yes/Yes/Unpaid/No | CZ59: =MIN(CZ56+PAYG_AdditProjectedBonus,CZ41) -> 0
B60: Total Pay | Z60: Total Pay | BY60: No/Yes/Paid/Yes | CF60: Summary Income - Annual Bonus | CO60: YTD < 3mths unpaid w SS | CZ60: =MIN(CZ51+PAYG_AdditProjectedBonus+PAYG_AdditPaidBonus,CZ41) -> 0
BY61: No/Yes/Unpaid/Yes | CZ61: =MIN(CZ51+PAYG_AdditProjectedBonus+PAYG_AdditPaidBonus,CZ41) -> 0
BY62: No/Yes/Paid/No | CF62: Summary Income - Annual Bonus | CO62: YTD < 3mths unpaid w/o SS | CZ62: =MIN(CZ51+PAYG_AdditProjectedBonus+PAYG_AdditPaidBonus,CZ41) -> 0
B63: Annual base | N63: =IFERROR(PAYG_NoYTDBasePay1*$CZ$39,"") ->  | Z63: Annual base | AL63: =IFERROR(PAYG_NoYTDBasePay2*$CZ$39,"") ->  | BY63: No/Yes/Unpaid/No | CZ63: =MIN(CZ51+PAYG_AdditProjectedBonus+PAYG_AdditPaidBonus,CZ41) -> 0
BY64: No/No/Paid/Yes | CF64: Summary Income - Annual Bonus | CO64: No YTD bonus w SS | CZ64: =MIN(CZ53+PAYG_AdditPaidBonus+PAYG_AdditProjectedBonus,CZ41) -> 0
BY65: No/No/Unpaid/Yes | CZ65: =MIN(CZ53+PAYG_AdditPaidBonus+PAYG_AdditProjectedBonus,CZ41) -> 0
B66: Annual total | N66: =IFERROR(PAYG_NoYTDTotalPay1*$CZ$39,"") ->  | Z66: Annual total | AL66: =IFERROR(PAYG_NoYTDTotalPay2*$CZ$39,"") ->  | BY66: No/No/Paid/No | CF66: Summary Income - Annual Bonus | CO66: No YTD bonus w/o SS | CZ66: =MIN(CZ54+PAYG_AdditPaidBonus+PAYG_AdditProjectedBonus,CZ41) -> 
BY67: No/No/Unpaid/No | CZ67: =MIN(CZ54+PAYG_AdditPaidBonus+PAYG_AdditProjectedBonus,CZ41) -> 
B69: Assessed base | N69: =IF(MIN(PAYG_NoYTDAnnualBase1,PAYG_NoYTDAnnualBase2)=0,0,MIN(PAYG_NoYTDAnnualBase1,PAYG_NoYTDAnnualBase2)) -> 0
B72: Assessed total | N72: =IF(MIN(PAYG_NoYTDAnnualTotal1,PAYG_NoYTDAnnualTotal2)=0,0,MIN(PAYG_NoYTDAnnualTotal1,PAYG_NoYTDAnnualTotal2)) -> 0
B76: Additional income | Z76: Notes
B78: Pre-tax deductions | Z78: If required for servicing, ensure pre-tax deductions are confirmed to policy
B81: Pre-tax deductions required for servicing?
B84: Bonus already received | Z84: If required for servicing, ensure bonus income is verified to policy
B87: Projected bonus
B93: Group 2 documents
B97: Payment Summary
B100: Date | Z100: Gross payment
B103: OR
B106: Tax Return & NoA
B109: Date | Z109: PAYG income
B114: Income for servicing
Y115: Annual Base
Y118: =CR17 -> Error
Y122: Annual Total
Y125: =CR19 -> Error
Y129: Annual including bonus
Y132: =CR21 -> 0
B141: Casual and No Base policy applies. Click continue and load income as Casual.

Sheet PAYG YTD Calc - App2 Job4 (hidden)
G1: Serviceability Assesment Calculator | AI1: Other Calculators
B7: PAYG Income Calculator
B10: Version | N10: Applicant name | AK10: Application number | AW10: Assessment date | BI10: User ID
B12: =Assess_Version -> 19 | N12: ='Serviceability Calculator'!Assess_App2Name -> 0 | AK12: ='Serviceability Calculator'!Assess_AppNum -> Enter Number | AW12: =TODAY() -> 2019-11-19 | BI12: =username() -> M025250
CK14: Avg Pay Lookup | CR14: =CF16&"/"&CF17&"/"&CF18&"/"&CF20 -> 0/0/No/No
BY15: 3 months | CF15: =IFERROR(IF(AND(PAYG_YTDPays>=3,PAYG_YTDCycle="Monthly"),"Yes",IF(DATEDIF(PAYG_YTDStartDate,PAYG_YTDEndDate,"m")<3,"No","Yes")),"No") -> No | CK15: Avg Pay Result | CR15: =VLOOKUP(CR14,PAYG_AvgPayLookup,28,FALSE) -> 
B16: Select employment* PAYG / Family | Z16: Enter employer name* | AL16: Enter name | BY16: YTD Figure | CF16: =IF(PAYG_EmployType="Family","Family",PAYG_YTDConfirm) -> 0 | CK16: Base Pay Lookup | CR16: =CF16&"/"&CF18 -> 0/No
BY17: Taxable | CF17: =PAYG_YTD_YTDType -> 0 | CK17: Base Pay Result | CR17: =IFERROR(VLOOKUP(CR16,PAYG_BasePayLookup,28,FALSE),"Error") -> Error
BY18: SS Required | CF18: =IF(PAYG_EmployType="Family","No",IF(PAYG_AdditPreTaxReq="","No",PAYG_AdditPreTaxReq)) -> No | CK18: Total Pay Lookup | CR18: =CF15&"/"&CF16&"/"&CF18 -> No/0/No
BY19: Bonus | CF19: =IF(PAYG_AdditProjectedBonus>0,"Unpaid",IF(PAYG_AdditPaidBonus>0,"Paid","No")) -> No | CK19: Total Pay Result | CR19: =IFERROR(VLOOKUP(CR18,PAYG_TotalPayLookup,28,FALSE),"Error") -> Error
BY20: Paid Bonus | CF20: =IF(PAYG_AdditPaidBonus>0,"Yes","No") -> No | CK20: Bonus Pay Lookup | CR20: =CF15&"/"&CF16&"/"&CF19&"/"&CF18 -> No/0/No/No
B21: Can you confirm base income* | Z21: Do you have a YTD figure* | CK21: Bonus Pay Result | CR21: =IFERROR(VLOOKUP(CR20,PAYG_BonusPayLookup,28,FALSE),0) -> 0
BY24: Lookup | CF24: Usage | CO24: Description | CZ24: Value
B25: Group 1 documents | CF25: YTD Reference | CO25: Pays in Cycle | CZ25: =VLOOKUP(PAYG_YTDCycle,Reference!$K$6:$M$13,3,FALSE) -> 
CF26: YTD Reference | CO26: Days Elapsed | CZ26: =PAYG_YTDEndDate-PAYG_YTDStartDate -> -43647
CF27: YTD Reference | CO27: Months Elapsed | CZ27: =(YEAR(PAYG_YTDEndDate)-YEAR(PAYG_YTDStartDate))*12+(MONTH(PAYG_YTDEndDate)-MONTH(PAYG_YTDStartDate))+(DAY(PAYG_YTDEndDate)-DAY(PAYG_YTDStartDate))/31 -> -1434.032258
CF28: YTD Reference | CO28: Pays in Year | CZ28: =VLOOKUP(PAYG_YTDCycle,Reference!K6:L13,2,FALSE) -> 
B29: Year-to-date payslips
BY30: Yes/Gross/Yes/No | CF30: YTD Avg | CO30: Avg Gross YTD w SS | CZ30: =PAYG_YTD_YTDValue/PAYG_YTDPays -> 
BY31: Yes/Gross/No/No | CF31: YTD Avg | CO31: avg Gross YTD w/o SS | CZ31: =CZ30-PAYG_AdditPreTax -> 
B32: Select your pay cycle | BY32: Yes/Gross/Yes/Yes | CF32: YTD Avg | CO32: Avg Gross YTD w SS & bonus | CZ32: =(PAYG_YTD_YTDValue-PAYG_AdditPaidBonus)/PAYG_YTDPays -> 
BY33: Yes/Gross/No/Yes | CF33: YTD Avg | CO33: avg Gross YTD w/o SS & bonus | CZ33: =(PAYG_YTD_YTDValue-PAYG_AdditPaidBonus-PAYG_AdditPreTax)/PAYG_YTDPays -> 
BY34: Yes/Taxable/Yes/No | CF34: YTD Avg | CO34: avg tax YTD w SS | CZ34: =(PAYG_YTD_YTDValue/PAYG_YTDPays)+PAYG_AdditPreTax -> 
B35: First day of financial year | N35: 2019-07-01 | Z35: =PAYG_YTDCycle&" base pay" -> base pay | AX35: Number of pays | BJ35: =IFERROR(IF(PAYG_YTDCycle=Reference!K13,1,IF(PAYG_YTDCycle=Reference!K10,ROUNDDOWN(CZ27,0)+1,ROUNDDOWN(CZ26/CZ25,0)+1)),"") ->  | BY35: Yes/Taxable/No/No | CF35: YTD Avg | CO35: avg tax YTD w/o SS | CZ35: =PAYG_YTD_YTDValue/PAYG_YTDPays -> 
BY36: Yes/Taxable/Yes/Yes | CF36: YTD Avg | CO36: avg tax YTD w SS & bonus | CZ36: =(PAYG_YTD_YTDValue-PAYG_AdditPaidBonus)/PAYG_YTDPays+PAYG_AdditPreTax -> 
BY37: Yes/Taxable/No/Yes | CF37: YTD Avg | CO37: avg tax YTD w/o SS & bonus | CZ37: =(PAYG_YTD_YTDValue-PAYG_AdditPaidBonus)/PAYG_YTDPays -> 
B38: Most recent pay date | Z38: Is the YTD amount Gross or Taxable? | AX38: Average pay | BJ38: =PAYG_YTDAvgPayResult -> 
CF39: No YTD Reference | CO39: Number of Pays | CZ39: =VLOOKUP(PAYG_NoYTDCycle,Reference!$K$6:$L$13,2,FALSE) -> 
Z41: =AL38 &" YTD amount" -> YTD amount | AX41: Annualised average pay | BJ41: =IFERROR(PAYG_YTDAveragePay*CZ28,"") ->  | CF41: Group 2 | CO41: Group 2 Doc | CZ41: =IF(AND(PAYG_PaySumAmount>0,PAYG_NOAAmount>0),MIN(PAYG_PaySumAmount,PAYG_NOAAmount),MAX(PAYG_PaySumAmount,PAYG_NOAAmount)) -> 0
BY43: Yes/Yes | CF43: Summary Income - Annual Base | CO43: YTD Annual Base w SS | CZ43: =PAYG_YTDBase*CZ28 -> 
B44: Group 1 documents | BY44: Yes/No | CF44: Summary Income - Annual Base | CO44: YTD Annual Base w/o SS | CZ44: =(PAYG_YTDBase-PAYG_AdditPreTax)*CZ28 -> 
BY45: No/Yes | CF45: Summary Income - Annual Base | CO45: No YTD Annual Base w SS | CZ45: =PAYG_NoYTDAnnualBase -> 0
BY46: Family/No | CF46: Summary Income - Annual Base | CO46: No YTD Annual Base w SS | CZ46: =MIN(PAYG_NoYTDAnnualBase,CZ41) -> 0
BY47: No/No | CF47: Summary Income - Annual Base | CO47: No YTD Annual Base w/o SS | CZ47: =PAYG_NoYTDAnnualBase-(PAYG_AdditPreTax*CZ39) -> 
B48: No year-to-date payslips
BY49: Yes/Yes/Yes | CF49: Summary Income - Annual Total | CO49: YTD => 3mths w or w/o SS | CZ49: =MAX(PAYG_ServAnnualBase,PAYG_YTDAnnualised) -> 0
BY50: Yes/Yes/No | CZ50: =MAX(PAYG_ServAnnualBase,PAYG_YTDAnnualised) -> 0
B51: Select your pay cycle | BY51: No/Yes/Yes | CF51: Summary Income - Annual Total | CO51: YTD < 3mths w or w/o SS | CZ51: =MIN(CZ41,CZ49) -> 0
BY52: No/Yes/No | CZ52: =MIN(CZ41,CZ49) -> 0
BY53: No/No/Yes | CF53: Summary Income - Annual Total | CO53: No YTD w SS | CZ53: =MIN(MAX(PAYG_ServAnnualBase,PAYG_NoYTDAnnualTotal),CZ41) -> 0
B54: Pay date: 1st payslip | Z54: Pay date: 2nd payslip | BY54: No/No/No | CF54: Summary Income - Annual Total | CO54: No YTD w/o SS | CZ54: =MIN(MAX(PAYG_ServAnnualBase,PAYG_NoYTDAnnualTotal-(PAYG_AdditPreTax*CZ39)),CZ41) -> 
BY56: Yes/Yes/Paid/Yes | CF56: Summary Income - Annual Bonus | CO56: YTD => 3mths Paid w or w/o SS | CZ56: =CZ49+PAYG_AdditPaidBonus -> 0
B57: Base pay | Z57: Base pay | BY57: Yes/Yes/Paid/No | CZ57: =CZ49+PAYG_AdditPaidBonus -> 0
BY58: Yes/Yes/Unpaid/Yes | CF58: Summary Income - Annual Bonus | CO58: YTD => 3mths unpaid w or w/o SS | CZ58: =MIN(CZ56+PAYG_AdditProjectedBonus,CZ41) -> 0
BY59: Yes/Yes/Unpaid/No | CZ59: =MIN(CZ56+PAYG_AdditProjectedBonus,CZ41) -> 0
B60: Total Pay | Z60: Total Pay | BY60: No/Yes/Paid/Yes | CF60: Summary Income - Annual Bonus | CO60: YTD < 3mths unpaid w SS | CZ60: =MIN(CZ51+PAYG_AdditProjectedBonus+PAYG_AdditPaidBonus,CZ41) -> 0
BY61: No/Yes/Unpaid/Yes | CZ61: =MIN(CZ51+PAYG_AdditProjectedBonus+PAYG_AdditPaidBonus,CZ41) -> 0
BY62: No/Yes/Paid/No | CF62: Summary Income - Annual Bonus | CO62: YTD < 3mths unpaid w/o SS | CZ62: =MIN(CZ51+PAYG_AdditProjectedBonus+PAYG_AdditPaidBonus,CZ41) -> 0
B63: Annual base | N63: =IFERROR(PAYG_NoYTDBasePay1*$CZ$39,"") ->  | Z63: Annual base | AL63: =IFERROR(PAYG_NoYTDBasePay2*$CZ$39,"") ->  | BY63: No/Yes/Unpaid/No | CZ63: =MIN(CZ51+PAYG_AdditProjectedBonus+PAYG_AdditPaidBonus,CZ41) -> 0
BY64: No/No/Paid/Yes | CF64: Summary Income - Annual Bonus | CO64: No YTD bonus w SS | CZ64: =MIN(CZ53+PAYG_AdditPaidBonus+PAYG_AdditProjectedBonus,CZ41) -> 0
BY65: No/No/Unpaid/Yes | CZ65: =MIN(CZ53+PAYG_AdditPaidBonus+PAYG_AdditProjectedBonus,CZ41) -> 0
B66: Annual total | N66: =IFERROR(PAYG_NoYTDTotalPay1*$CZ$39,"") ->  | Z66: Annual total | AL66: =IFERROR(PAYG_NoYTDTotalPay2*$CZ$39,"") ->  | BY66: No/No/Paid/No | CF66: Summary Income - Annual Bonus | CO66: No YTD bonus w/o SS | CZ66: =MIN(CZ54+PAYG_AdditPaidBonus+PAYG_AdditProjectedBonus,CZ41) -> 
BY67: No/No/Unpaid/No | CZ67: =MIN(CZ54+PAYG_AdditPaidBonus+PAYG_AdditProjectedBonus,CZ41) -> 
B69: Assessed base | N69: =IF(MIN(PAYG_NoYTDAnnualBase1,PAYG_NoYTDAnnualBase2)=0,0,MIN(PAYG_NoYTDAnnualBase1,PAYG_NoYTDAnnualBase2)) -> 0
B72: Assessed total | N72: =IF(MIN(PAYG_NoYTDAnnualTotal1,PAYG_NoYTDAnnualTotal2)=0,0,MIN(PAYG_NoYTDAnnualTotal1,PAYG_NoYTDAnnualTotal2)) -> 0
B76: Additional income | Z76: Notes
B78: Pre-tax deductions | Z78: If required for servicing, ensure pre-tax deductions are confirmed to policy
B81: Pre-tax deductions required for servicing?
B84: Bonus already received | Z84: If required for servicing, ensure bonus income is verified to policy
B87: Projected bonus
B93: Group 2 documents
B97: Payment Summary
B100: Date | Z100: Gross payment
B103: OR
B106: Tax Return & NoA
B109: Date | Z109: PAYG income
B114: Income for servicing
Y115: Annual Base
Y118: =CR17 -> Error
Y122: Annual Total
Y125: =CR19 -> Error
Y129: Annual including bonus
Y132: =CR21 -> 0
B141: Casual and No Base policy applies. Click continue and load income as Casual.

Sheet PAYG YTD Calc - App2 Job5 (hidden)
G1: Serviceability Assesment Calculator | AI1: Other Calculators
B7: PAYG Income Calculator
B10: Version | N10: Applicant name | AK10: Application number | AW10: Assessment date | BI10: User ID
B12: =Assess_Version -> 19 | N12: ='Serviceability Calculator'!Assess_App2Name -> 0 | AK12: ='Serviceability Calculator'!Assess_AppNum -> Enter Number | AW12: =TODAY() -> 2019-11-19 | BI12: =username() -> M025250
CK14: Avg Pay Lookup | CR14: =CF16&"/"&CF17&"/"&CF18&"/"&CF20 -> 0/0/No/No
BY15: 3 months | CF15: =IFERROR(IF(AND(PAYG_YTDPays>=3,PAYG_YTDCycle="Monthly"),"Yes",IF(DATEDIF(PAYG_YTDStartDate,PAYG_YTDEndDate,"m")<3,"No","Yes")),"No") -> No | CK15: Avg Pay Result | CR15: =VLOOKUP(CR14,PAYG_AvgPayLookup,28,FALSE) -> 
B16: Select employment* PAYG / Family | Z16: Enter employer name* | AL16: Enter name | BY16: YTD Figure | CF16: =IF(PAYG_EmployType="Family","Family",PAYG_YTDConfirm) -> 0 | CK16: Base Pay Lookup | CR16: =CF16&"/"&CF18 -> 0/No
BY17: Taxable | CF17: =PAYG_YTD_YTDType -> 0 | CK17: Base Pay Result | CR17: =IFERROR(VLOOKUP(CR16,PAYG_BasePayLookup,28,FALSE),"Error") -> Error
BY18: SS Required | CF18: =IF(PAYG_EmployType="Family","No",IF(PAYG_AdditPreTaxReq="","No",PAYG_AdditPreTaxReq)) -> No | CK18: Total Pay Lookup | CR18: =CF15&"/"&CF16&"/"&CF18 -> No/0/No
BY19: Bonus | CF19: =IF(PAYG_AdditProjectedBonus>0,"Unpaid",IF(PAYG_AdditPaidBonus>0,"Paid","No")) -> No | CK19: Total Pay Result | CR19: =IFERROR(VLOOKUP(CR18,PAYG_TotalPayLookup,28,FALSE),"Error") -> Error
BY20: Paid Bonus | CF20: =IF(PAYG_AdditPaidBonus>0,"Yes","No") -> No | CK20: Bonus Pay Lookup | CR20: =CF15&"/"&CF16&"/"&CF19&"/"&CF18 -> No/0/No/No
B21: Can you confirm base income* | Z21: Do you have a YTD figure* | CK21: Bonus Pay Result | CR21: =IFERROR(VLOOKUP(CR20,PAYG_BonusPayLookup,28,FALSE),0) -> 0
BY24: Lookup | CF24: Usage | CO24: Description | CZ24: Value
B25: Group 1 documents | CF25: YTD Reference | CO25: Pays in Cycle | CZ25: =VLOOKUP(PAYG_YTDCycle,Reference!$K$6:$M$13,3,FALSE) -> 
CF26: YTD Reference | CO26: Days Elapsed | CZ26: =PAYG_YTDEndDate-PAYG_YTDStartDate -> -43647
CF27: YTD Reference | CO27: Months Elapsed | CZ27: =(YEAR(PAYG_YTDEndDate)-YEAR(PAYG_YTDStartDate))*12+(MONTH(PAYG_YTDEndDate)-MONTH(PAYG_YTDStartDate))+(DAY(PAYG_YTDEndDate)-DAY(PAYG_YTDStartDate))/31 -> -1434.032258
CF28: YTD Reference | CO28: Pays in Year | CZ28: =VLOOKUP(PAYG_YTDCycle,Reference!K6:L13,2,FALSE) -> 
B29: Year-to-date payslips
BY30: Yes/Gross/Yes/No | CF30: YTD Avg | CO30: Avg Gross YTD w SS | CZ30: =PAYG_YTD_YTDValue/PAYG_YTDPays -> 
BY31: Yes/Gross/No/No | CF31: YTD Avg | CO31: avg Gross YTD w/o SS | CZ31: =CZ30-PAYG_AdditPreTax -> 
B32: Select your pay cycle | BY32: Yes/Gross/Yes/Yes | CF32: YTD Avg | CO32: Avg Gross YTD w SS & bonus | CZ32: =(PAYG_YTD_YTDValue-PAYG_AdditPaidBonus)/PAYG_YTDPays -> 
BY33: Yes/Gross/No/Yes | CF33: YTD Avg | CO33: avg Gross YTD w/o SS & bonus | CZ33: =(PAYG_YTD_YTDValue-PAYG_AdditPaidBonus-PAYG_AdditPreTax)/PAYG_YTDPays -> 
BY34: Yes/Taxable/Yes/No | CF34: YTD Avg | CO34: avg tax YTD w SS | CZ34: =(PAYG_YTD_YTDValue/PAYG_YTDPays)+PAYG_AdditPreTax -> 
B35: First day of financial year | N35: 2019-07-01 | Z35: =PAYG_YTDCycle&" base pay" -> base pay | AX35: Number of pays | BJ35: =IFERROR(IF(PAYG_YTDCycle=Reference!K13,1,IF(PAYG_YTDCycle=Reference!K10,ROUNDDOWN(CZ27,0)+1,ROUNDDOWN(CZ26/CZ25,0)+1)),"") ->  | BY35: Yes/Taxable/No/No | CF35: YTD Avg | CO35: avg tax YTD w/o SS | CZ35: =PAYG_YTD_YTDValue/PAYG_YTDPays -> 
BY36: Yes/Taxable/Yes/Yes | CF36: YTD Avg | CO36: avg tax YTD w SS & bonus | CZ36: =(PAYG_YTD_YTDValue-PAYG_AdditPaidBonus)/PAYG_YTDPays+PAYG_AdditPreTax -> 
BY37: Yes/Taxable/No/Yes | CF37: YTD Avg | CO37: avg tax YTD w/o SS & bonus | CZ37: =(PAYG_YTD_YTDValue-PAYG_AdditPaidBonus)/PAYG_YTDPays -> 
B38: Most recent pay date | Z38: Is the YTD amount Gross or Taxable? | AX38: Average pay | BJ38: =PAYG_YTDAvgPayResult -> 
CF39: No YTD Reference | CO39: Number of Pays | CZ39: =VLOOKUP(PAYG_NoYTDCycle,Reference!$K$6:$L$13,2,FALSE) -> 
Z41: =AL38 &" YTD amount" -> YTD amount | AX41: Annualised average pay | BJ41: =IFERROR(PAYG_YTDAveragePay*CZ28,"") ->  | CF41: Group 2 | CO41: Group 2 Doc | CZ41: =IF(AND(PAYG_PaySumAmount>0,PAYG_NOAAmount>0),MIN(PAYG_PaySumAmount,PAYG_NOAAmount),MAX(PAYG_PaySumAmount,PAYG_NOAAmount)) -> 0
BY43: Yes/Yes | CF43: Summary Income - Annual Base | CO43: YTD Annual Base w SS | CZ43: =PAYG_YTDBase*CZ28 -> 
B44: Group 1 documents | BY44: Yes/No | CF44: Summary Income - Annual Base | CO44: YTD Annual Base w/o SS | CZ44: =(PAYG_YTDBase-PAYG_AdditPreTax)*CZ28 -> 
BY45: No/Yes | CF45: Summary Income - Annual Base | CO45: No YTD Annual Base w SS | CZ45: =PAYG_NoYTDAnnualBase -> 0
BY46: Family/No | CF46: Summary Income - Annual Base | CO46: No YTD Annual Base w SS | CZ46: =MIN(PAYG_NoYTDAnnualBase,CZ41) -> 0
BY47: No/No | CF47: Summary Income - Annual Base | CO47: No YTD Annual Base w/o SS | CZ47: =PAYG_NoYTDAnnualBase-(PAYG_AdditPreTax*CZ39) -> 
B48: No year-to-date payslips
BY49: Yes/Yes/Yes | CF49: Summary Income - Annual Total | CO49: YTD => 3mths w or w/o SS | CZ49: =MAX(PAYG_ServAnnualBase,PAYG_YTDAnnualised) -> 0
BY50: Yes/Yes/No | CZ50: =MAX(PAYG_ServAnnualBase,PAYG_YTDAnnualised) -> 0
B51: Select your pay cycle | BY51: No/Yes/Yes | CF51: Summary Income - Annual Total | CO51: YTD < 3mths w or w/o SS | CZ51: =MIN(CZ41,CZ49) -> 0
BY52: No/Yes/No | CZ52: =MIN(CZ41,CZ49) -> 0
BY53: No/No/Yes | CF53: Summary Income - Annual Total | CO53: No YTD w SS | CZ53: =MIN(MAX(PAYG_ServAnnualBase,PAYG_NoYTDAnnualTotal),CZ41) -> 0
B54: Pay date: 1st payslip | Z54: Pay date: 2nd payslip | BY54: No/No/No | CF54: Summary Income - Annual Total | CO54: No YTD w/o SS | CZ54: =MIN(MAX(PAYG_ServAnnualBase,PAYG_NoYTDAnnualTotal-(PAYG_AdditPreTax*CZ39)),CZ41) -> 
BY56: Yes/Yes/Paid/Yes | CF56: Summary Income - Annual Bonus | CO56: YTD => 3mths Paid w or w/o SS | CZ56: =CZ49+PAYG_AdditPaidBonus -> 0
B57: Base pay | Z57: Base pay | BY57: Yes/Yes/Paid/No | CZ57: =CZ49+PAYG_AdditPaidBonus -> 0
BY58: Yes/Yes/Unpaid/Yes | CF58: Summary Income - Annual Bonus | CO58: YTD => 3mths unpaid w or w/o SS | CZ58: =MIN(CZ56+PAYG_AdditProjectedBonus,CZ41) -> 0
BY59: Yes/Yes/Unpaid/No | CZ59: =MIN(CZ56+PAYG_AdditProjectedBonus,CZ41) -> 0
B60: Total Pay | Z60: Total Pay | BY60: No/Yes/Paid/Yes | CF60: Summary Income - Annual Bonus | CO60: YTD < 3mths unpaid w SS | CZ60: =MIN(CZ51+PAYG_AdditProjectedBonus+PAYG_AdditPaidBonus,CZ41) -> 0
BY61: No/Yes/Unpaid/Yes | CZ61: =MIN(CZ51+PAYG_AdditProjectedBonus+PAYG_AdditPaidBonus,CZ41) -> 0
BY62: No/Yes/Paid/No | CF62: Summary Income - Annual Bonus | CO62: YTD < 3mths unpaid w/o SS | CZ62: =MIN(CZ51+PAYG_AdditProjectedBonus+PAYG_AdditPaidBonus,CZ41) -> 0
B63: Annual base | N63: =IFERROR(PAYG_NoYTDBasePay1*$CZ$39,"") ->  | Z63: Annual base | AL63: =IFERROR(PAYG_NoYTDBasePay2*$CZ$39,"") ->  | BY63: No/Yes/Unpaid/No | CZ63: =MIN(CZ51+PAYG_AdditProjectedBonus+PAYG_AdditPaidBonus,CZ41) -> 0
BY64: No/No/Paid/Yes | CF64: Summary Income - Annual Bonus | CO64: No YTD bonus w SS | CZ64: =MIN(CZ53+PAYG_AdditPaidBonus+PAYG_AdditProjectedBonus,CZ41) -> 0
BY65: No/No/Unpaid/Yes | CZ65: =MIN(CZ53+PAYG_AdditPaidBonus+PAYG_AdditProjectedBonus,CZ41) -> 0
B66: Annual total | N66: =IFERROR(PAYG_NoYTDTotalPay1*$CZ$39,"") ->  | Z66: Annual total | AL66: =IFERROR(PAYG_NoYTDTotalPay2*$CZ$39,"") ->  | BY66: No/No/Paid/No | CF66: Summary Income - Annual Bonus | CO66: No YTD bonus w/o SS | CZ66: =MIN(CZ54+PAYG_AdditPaidBonus+PAYG_AdditProjectedBonus,CZ41) -> 
BY67: No/No/Unpaid/No | CZ67: =MIN(CZ54+PAYG_AdditPaidBonus+PAYG_AdditProjectedBonus,CZ41) -> 
B69: Assessed base | N69: =IF(MIN(PAYG_NoYTDAnnualBase1,PAYG_NoYTDAnnualBase2)=0,0,MIN(PAYG_NoYTDAnnualBase1,PAYG_NoYTDAnnualBase2)) -> 0
B72: Assessed total | N72: =IF(MIN(PAYG_NoYTDAnnualTotal1,PAYG_NoYTDAnnualTotal2)=0,0,MIN(PAYG_NoYTDAnnualTotal1,PAYG_NoYTDAnnualTotal2)) -> 0
B76: Additional income | Z76: Notes
B78: Pre-tax deductions | Z78: If required for servicing, ensure pre-tax deductions are confirmed to policy
B81: Pre-tax deductions required for servicing?
B84: Bonus already received | Z84: If required for servicing, ensure bonus income is verified to policy
B87: Projected bonus
B93: Group 2 documents
B97: Payment Summary
B100: Date | Z100: Gross payment
B103: OR
B106: Tax Return & NoA
B109: Date | Z109: PAYG income
B114: Income for servicing
Y115: Annual Base
Y118: =CR17 -> Error
Y122: Annual Total
Y125: =CR19 -> Error
Y129: Annual including bonus
Y132: =CR21 -> 0
B141: Casual and No Base policy applies. Click continue and load income as Casual.

Sheet PAYG YTD Calc - App3 Job1 (hidden)
G1: Serviceability Assesment Calculator | AI1: Other Calculators
B7: PAYG Income Calculator
B10: Version | N10: Applicant name | AK10: Application number | AW10: Assessment date | BI10: User ID
B12: =Assess_Version -> 19 | N12: ='Serviceability Calculator'!Assess_App3Name -> 0 | AK12: ='Serviceability Calculator'!Assess_AppNum -> Enter Number | AW12: =TODAY() -> 2019-11-19 | BI12: =username() -> M025250
CK14: Avg Pay Lookup | CR14: =CF16&"/"&CF17&"/"&CF18&"/"&CF20 -> 0/0/No/No
BY15: 3 months | CF15: =IFERROR(IF(AND(PAYG_YTDPays>=3,PAYG_YTDCycle="Monthly"),"Yes",IF(DATEDIF(PAYG_YTDStartDate,PAYG_YTDEndDate,"m")<3,"No","Yes")),"No") -> No | CK15: Avg Pay Result | CR15: =VLOOKUP(CR14,PAYG_AvgPayLookup,28,FALSE) -> 
B16: Select employment* PAYG / Family | Z16: Enter employer name* | AL16: Enter name | BY16: YTD Figure | CF16: =IF(PAYG_EmployType="Family","Family",PAYG_YTDConfirm) -> 0 | CK16: Base Pay Lookup | CR16: =CF16&"/"&CF18 -> 0/No
BY17: Taxable | CF17: =PAYG_YTD_YTDType -> 0 | CK17: Base Pay Result | CR17: =IFERROR(VLOOKUP(CR16,PAYG_BasePayLookup,28,FALSE),"Error") -> Error
BY18: SS Required | CF18: =IF(PAYG_EmployType="Family","No",IF(PAYG_AdditPreTaxReq="","No",PAYG_AdditPreTaxReq)) -> No | CK18: Total Pay Lookup | CR18: =CF15&"/"&CF16&"/"&CF18 -> No/0/No
BY19: Bonus | CF19: =IF(PAYG_AdditProjectedBonus>0,"Unpaid",IF(PAYG_AdditPaidBonus>0,"Paid","No")) -> No | CK19: Total Pay Result | CR19: =IFERROR(VLOOKUP(CR18,PAYG_TotalPayLookup,28,FALSE),"Error") -> Error
BY20: Paid Bonus | CF20: =IF(PAYG_AdditPaidBonus>0,"Yes","No") -> No | CK20: Bonus Pay Lookup | CR20: =CF15&"/"&CF16&"/"&CF19&"/"&CF18 -> No/0/No/No
B21: Can you confirm base income* | Z21: Do you have a YTD figure* | CK21: Bonus Pay Result | CR21: =IFERROR(VLOOKUP(CR20,PAYG_BonusPayLookup,28,FALSE),0) -> 0
BY24: Lookup | CF24: Usage | CO24: Description | CZ24: Value
B25: Group 1 documents | CF25: YTD Reference | CO25: Pays in Cycle | CZ25: =VLOOKUP(PAYG_YTDCycle,Reference!$K$6:$M$13,3,FALSE) -> 
CF26: YTD Reference | CO26: Days Elapsed | CZ26: =PAYG_YTDEndDate-PAYG_YTDStartDate -> -43647
CF27: YTD Reference | CO27: Months Elapsed | CZ27: =(YEAR(PAYG_YTDEndDate)-YEAR(PAYG_YTDStartDate))*12+(MONTH(PAYG_YTDEndDate)-MONTH(PAYG_YTDStartDate))+(DAY(PAYG_YTDEndDate)-DAY(PAYG_YTDStartDate))/31 -> -1434.032258
CF28: YTD Reference | CO28: Pays in Year | CZ28: =VLOOKUP(PAYG_YTDCycle,Reference!K6:L13,2,FALSE) -> 
B29: Year-to-date payslips
BY30: Yes/Gross/Yes/No | CF30: YTD Avg | CO30: Avg Gross YTD w SS | CZ30: =PAYG_YTD_YTDValue/PAYG_YTDPays -> 
BY31: Yes/Gross/No/No | CF31: YTD Avg | CO31: avg Gross YTD w/o SS | CZ31: =CZ30-PAYG_AdditPreTax -> 
B32: Select your pay cycle | BY32: Yes/Gross/Yes/Yes | CF32: YTD Avg | CO32: Avg Gross YTD w SS & bonus | CZ32: =(PAYG_YTD_YTDValue-PAYG_AdditPaidBonus)/PAYG_YTDPays -> 
BY33: Yes/Gross/No/Yes | CF33: YTD Avg | CO33: avg Gross YTD w/o SS & bonus | CZ33: =(PAYG_YTD_YTDValue-PAYG_AdditPaidBonus-PAYG_AdditPreTax)/PAYG_YTDPays -> 
BY34: Yes/Taxable/Yes/No | CF34: YTD Avg | CO34: avg tax YTD w SS | CZ34: =(PAYG_YTD_YTDValue/PAYG_YTDPays)+PAYG_AdditPreTax -> 
B35: First day of financial year | N35: 2019-07-01 | Z35: =PAYG_YTDCycle&" base pay" -> base pay | AX35: Number of pays | BJ35: =IFERROR(IF(PAYG_YTDCycle=Reference!K13,1,IF(PAYG_YTDCycle=Reference!K10,ROUNDDOWN(CZ27,0)+1,ROUNDDOWN(CZ26/CZ25,0)+1)),"") ->  | BY35: Yes/Taxable/No/No | CF35: YTD Avg | CO35: avg tax YTD w/o SS | CZ35: =PAYG_YTD_YTDValue/PAYG_YTDPays -> 
BY36: Yes/Taxable/Yes/Yes | CF36: YTD Avg | CO36: avg tax YTD w SS & bonus | CZ36: =(PAYG_YTD_YTDValue-PAYG_AdditPaidBonus)/PAYG_YTDPays+PAYG_AdditPreTax -> 
BY37: Yes/Taxable/No/Yes | CF37: YTD Avg | CO37: avg tax YTD w/o SS & bonus | CZ37: =(PAYG_YTD_YTDValue-PAYG_AdditPaidBonus)/PAYG_YTDPays -> 
B38: Most recent pay date | Z38: Is the YTD amount Gross or Taxable? | AX38: Average pay | BJ38: =PAYG_YTDAvgPayResult -> 
CF39: No YTD Reference | CO39: Number of Pays | CZ39: =VLOOKUP(PAYG_NoYTDCycle,Reference!$K$6:$L$13,2,FALSE) -> 
Z41: =AL38 &" YTD amount" -> YTD amount | AX41: Annualised average pay | BJ41: =IFERROR(PAYG_YTDAveragePay*CZ28,"") ->  | CF41: Group 2 | CO41: Group 2 Doc | CZ41: =IF(AND(PAYG_PaySumAmount>0,PAYG_NOAAmount>0),MIN(PAYG_PaySumAmount,PAYG_NOAAmount),MAX(PAYG_PaySumAmount,PAYG_NOAAmount)) -> 0
BY43: Yes/Yes | CF43: Summary Income - Annual Base | CO43: YTD Annual Base w SS | CZ43: =PAYG_YTDBase*CZ28 -> 
B44: Group 1 documents | BY44: Yes/No | CF44: Summary Income - Annual Base | CO44: YTD Annual Base w/o SS | CZ44: =(PAYG_YTDBase-PAYG_AdditPreTax)*CZ28 -> 
BY45: No/Yes | CF45: Summary Income - Annual Base | CO45: No YTD Annual Base w SS | CZ45: =PAYG_NoYTDAnnualBase -> 0
BY46: Family/No | CF46: Summary Income - Annual Base | CO46: No YTD Annual Base w SS | CZ46: =MIN(PAYG_NoYTDAnnualBase,CZ41) -> 0
BY47: No/No | CF47: Summary Income - Annual Base | CO47: No YTD Annual Base w/o SS | CZ47: =PAYG_NoYTDAnnualBase-(PAYG_AdditPreTax*CZ39) -> 
B48: No year-to-date payslips
BY49: Yes/Yes/Yes | CF49: Summary Income - Annual Total | CO49: YTD => 3mths w or w/o SS | CZ49: =MAX(PAYG_ServAnnualBase,PAYG_YTDAnnualised) -> 0
BY50: Yes/Yes/No | CZ50: =MAX(PAYG_ServAnnualBase,PAYG_YTDAnnualised) -> 0
B51: Select your pay cycle | BY51: No/Yes/Yes | CF51: Summary Income - Annual Total | CO51: YTD < 3mths w or w/o SS | CZ51: =MIN(CZ41,CZ49) -> 0
BY52: No/Yes/No | CZ52: =MIN(CZ41,CZ49) -> 0
BY53: No/No/Yes | CF53: Summary Income - Annual Total | CO53: No YTD w SS | CZ53: =MIN(MAX(PAYG_ServAnnualBase,PAYG_NoYTDAnnualTotal),CZ41) -> 0
B54: Pay date: 1st payslip | Z54: Pay date: 2nd payslip | BY54: No/No/No | CF54: Summary Income - Annual Total | CO54: No YTD w/o SS | CZ54: =MIN(MAX(PAYG_ServAnnualBase,PAYG_NoYTDAnnualTotal-(PAYG_AdditPreTax*CZ39)),CZ41) -> 
BY56: Yes/Yes/Paid/Yes | CF56: Summary Income - Annual Bonus | CO56: YTD => 3mths Paid w or w/o SS | CZ56: =CZ49+PAYG_AdditPaidBonus -> 0
B57: Base pay | Z57: Base pay | BY57: Yes/Yes/Paid/No | CZ57: =CZ49+PAYG_AdditPaidBonus -> 0
BY58: Yes/Yes/Unpaid/Yes | CF58: Summary Income - Annual Bonus | CO58: YTD => 3mths unpaid w or w/o SS | CZ58: =MIN(CZ56+PAYG_AdditProjectedBonus,CZ41) -> 0
BY59: Yes/Yes/Unpaid/No | CZ59: =MIN(CZ56+PAYG_AdditProjectedBonus,CZ41) -> 0
B60: Total Pay | Z60: Total Pay | BY60: No/Yes/Paid/Yes | CF60: Summary Income - Annual Bonus | CO60: YTD < 3mths unpaid w SS | CZ60: =MIN(CZ51+PAYG_AdditProjectedBonus+PAYG_AdditPaidBonus,CZ41) -> 0
BY61: No/Yes/Unpaid/Yes | CZ61: =MIN(CZ51+PAYG_AdditProjectedBonus+PAYG_AdditPaidBonus,CZ41) -> 0
BY62: No/Yes/Paid/No | CF62: Summary Income - Annual Bonus | CO62: YTD < 3mths unpaid w/o SS | CZ62: =MIN(CZ51+PAYG_AdditProjectedBonus+PAYG_AdditPaidBonus,CZ41) -> 0
B63: Annual base | N63: =IFERROR(PAYG_NoYTDBasePay1*$CZ$39,"") ->  | Z63: Annual base | AL63: =IFERROR(PAYG_NoYTDBasePay2*$CZ$39,"") ->  | BY63: No/Yes/Unpaid/No | CZ63: =MIN(CZ51+PAYG_AdditProjectedBonus+PAYG_AdditPaidBonus,CZ41) -> 0
BY64: No/No/Paid/Yes | CF64: Summary Income - Annual Bonus | CO64: No YTD bonus w SS | CZ64: =MIN(CZ53+PAYG_AdditPaidBonus+PAYG_AdditProjectedBonus,CZ41) -> 0
BY65: No/No/Unpaid/Yes | CZ65: =MIN(CZ53+PAYG_AdditPaidBonus+PAYG_AdditProjectedBonus,CZ41) -> 0
B66: Annual total | N66: =IFERROR(PAYG_NoYTDTotalPay1*$CZ$39,"") ->  | Z66: Annual total | AL66: =IFERROR(PAYG_NoYTDTotalPay2*$CZ$39,"") ->  | BY66: No/No/Paid/No | CF66: Summary Income - Annual Bonus | CO66: No YTD bonus w/o SS | CZ66: =MIN(CZ54+PAYG_AdditPaidBonus+PAYG_AdditProjectedBonus,CZ41) -> 
BY67: No/No/Unpaid/No | CZ67: =MIN(CZ54+PAYG_AdditPaidBonus+PAYG_AdditProjectedBonus,CZ41) -> 
B69: Assessed base | N69: =IF(MIN(PAYG_NoYTDAnnualBase1,PAYG_NoYTDAnnualBase2)=0,0,MIN(PAYG_NoYTDAnnualBase1,PAYG_NoYTDAnnualBase2)) -> 0
B72: Assessed total | N72: =IF(MIN(PAYG_NoYTDAnnualTotal1,PAYG_NoYTDAnnualTotal2)=0,0,MIN(PAYG_NoYTDAnnualTotal1,PAYG_NoYTDAnnualTotal2)) -> 0
B76: Additional income | Z76: Notes
B78: Pre-tax deductions | Z78: If required for servicing, ensure pre-tax deductions are confirmed to policy
B81: Pre-tax deductions required for servicing?
B84: Bonus already received | Z84: If required for servicing, ensure bonus income is verified to policy
B87: Projected bonus
B93: Group 2 documents
B97: Payment Summary
B100: Date | Z100: Gross payment
B103: OR
B106: Tax Return & NoA
B109: Date | Z109: PAYG income
B114: Income for servicing
Y115: Annual Base
Y118: =CR17 -> Error
Y122: Annual Total
Y125: =CR19 -> Error
Y129: Annual including bonus
Y132: =CR21 -> 0
B141: Casual and No Base policy applies. Click continue and load income as Casual.

Sheet PAYG YTD Calc - App3 Job2 (hidden)
G1: Serviceability Assesment Calculator | AI1: Other Calculators
B7: PAYG Income Calculator
B10: Version | N10: Applicant name | AK10: Application number | AW10: Assessment date | BI10: User ID
B12: =Assess_Version -> 19 | N12: ='Serviceability Calculator'!Assess_App3Name -> 0 | AK12: ='Serviceability Calculator'!Assess_AppNum -> Enter Number | AW12: =TODAY() -> 2019-11-19 | BI12: =username() -> M025250
CK14: Avg Pay Lookup | CR14: =CF16&"/"&CF17&"/"&CF18&"/"&CF20 -> 0/0/No/No
BY15: 3 months | CF15: =IFERROR(IF(AND(PAYG_YTDPays>=3,PAYG_YTDCycle="Monthly"),"Yes",IF(DATEDIF(PAYG_YTDStartDate,PAYG_YTDEndDate,"m")<3,"No","Yes")),"No") -> No | CK15: Avg Pay Result | CR15: =VLOOKUP(CR14,PAYG_AvgPayLookup,28,FALSE) -> 
B16: Select employment* PAYG / Family | Z16: Enter employer name* | AL16: Enter name | BY16: YTD Figure | CF16: =IF(PAYG_EmployType="Family","Family",PAYG_YTDConfirm) -> 0 | CK16: Base Pay Lookup | CR16: =CF16&"/"&CF18 -> 0/No
BY17: Taxable | CF17: =PAYG_YTD_YTDType -> 0 | CK17: Base Pay Result | CR17: =IFERROR(VLOOKUP(CR16,PAYG_BasePayLookup,28,FALSE),"Error") -> Error
BY18: SS Required | CF18: =IF(PAYG_EmployType="Family","No",IF(PAYG_AdditPreTaxReq="","No",PAYG_AdditPreTaxReq)) -> No | CK18: Total Pay Lookup | CR18: =CF15&"/"&CF16&"/"&CF18 -> No/0/No
BY19: Bonus | CF19: =IF(PAYG_AdditProjectedBonus>0,"Unpaid",IF(PAYG_AdditPaidBonus>0,"Paid","No")) -> No | CK19: Total Pay Result | CR19: =IFERROR(VLOOKUP(CR18,PAYG_TotalPayLookup,28,FALSE),"Error") -> Error
BY20: Paid Bonus | CF20: =IF(PAYG_AdditPaidBonus>0,"Yes","No") -> No | CK20: Bonus Pay Lookup | CR20: =CF15&"/"&CF16&"/"&CF19&"/"&CF18 -> No/0/No/No
B21: Can you confirm base income* | Z21: Do you have a YTD figure* | CK21: Bonus Pay Result | CR21: =IFERROR(VLOOKUP(CR20,PAYG_BonusPayLookup,28,FALSE),0) -> 0
BY24: Lookup | CF24: Usage | CO24: Description | CZ24: Value
B25: Group 1 documents | CF25: YTD Reference | CO25: Pays in Cycle | CZ25: =VLOOKUP(PAYG_YTDCycle,Reference!$K$6:$M$13,3,FALSE) -> 
CF26: YTD Reference | CO26: Days Elapsed | CZ26: =PAYG_YTDEndDate-PAYG_YTDStartDate -> -43647
CF27: YTD Reference | CO27: Months Elapsed | CZ27: =(YEAR(PAYG_YTDEndDate)-YEAR(PAYG_YTDStartDate))*12+(MONTH(PAYG_YTDEndDate)-MONTH(PAYG_YTDStartDate))+(DAY(PAYG_YTDEndDate)-DAY(PAYG_YTDStartDate))/31 -> -1434.032258
CF28: YTD Reference | CO28: Pays in Year | CZ28: =VLOOKUP(PAYG_YTDCycle,Reference!K6:L13,2,FALSE) -> 
B29: Year-to-date payslips
BY30: Yes/Gross/Yes/No | CF30: YTD Avg | CO30: Avg Gross YTD w SS | CZ30: =PAYG_YTD_YTDValue/PAYG_YTDPays -> 
BY31: Yes/Gross/No/No | CF31: YTD Avg | CO31: avg Gross YTD w/o SS | CZ31: =CZ30-PAYG_AdditPreTax -> 
B32: Select your pay cycle | BY32: Yes/Gross/Yes/Yes | CF32: YTD Avg | CO32: Avg Gross YTD w SS & bonus | CZ32: =(PAYG_YTD_YTDValue-PAYG_AdditPaidBonus)/PAYG_YTDPays -> 
BY33: Yes/Gross/No/Yes | CF33: YTD Avg | CO33: avg Gross YTD w/o SS & bonus | CZ33: =(PAYG_YTD_YTDValue-PAYG_AdditPaidBonus-PAYG_AdditPreTax)/PAYG_YTDPays -> 
BY34: Yes/Taxable/Yes/No | CF34: YTD Avg | CO34: avg tax YTD w SS | CZ34: =(PAYG_YTD_YTDValue/PAYG_YTDPays)+PAYG_AdditPreTax -> 
B35: First day of financial year | N35: 2019-07-01 | Z35: =PAYG_YTDCycle&" base pay" -> base pay | AX35: Number of pays | BJ35: =IFERROR(IF(PAYG_YTDCycle=Reference!K13,1,IF(PAYG_YTDCycle=Reference!K10,ROUNDDOWN(CZ27,0)+1,ROUNDDOWN(CZ26/CZ25,0)+1)),"") ->  | BY35: Yes/Taxable/No/No | CF35: YTD Avg | CO35: avg tax YTD w/o SS | CZ35: =PAYG_YTD_YTDValue/PAYG_YTDPays -> 
BY36: Yes/Taxable/Yes/Yes | CF36: YTD Avg | CO36: avg tax YTD w SS & bonus | CZ36: =(PAYG_YTD_YTDValue-PAYG_AdditPaidBonus)/PAYG_YTDPays+PAYG_AdditPreTax -> 
BY37: Yes/Taxable/No/Yes | CF37: YTD Avg | CO37: avg tax YTD w/o SS & bonus | CZ37: =(PAYG_YTD_YTDValue-PAYG_AdditPaidBonus)/PAYG_YTDPays -> 
B38: Most recent pay date | Z38: Is the YTD amount Gross or Taxable? | AX38: Average pay | BJ38: =PAYG_YTDAvgPayResult -> 
CF39: No YTD Reference | CO39: Number of Pays | CZ39: =VLOOKUP(PAYG_NoYTDCycle,Reference!$K$6:$L$13,2,FALSE) -> 
Z41: =AL38 &" YTD amount" -> YTD amount | AX41: Annualised average pay | BJ41: =IFERROR(PAYG_YTDAveragePay*CZ28,"") ->  | CF41: Group 2 | CO41: Group 2 Doc | CZ41: =IF(AND(PAYG_PaySumAmount>0,PAYG_NOAAmount>0),MIN(PAYG_PaySumAmount,PAYG_NOAAmount),MAX(PAYG_PaySumAmount,PAYG_NOAAmount)) -> 0
BY43: Yes/Yes | CF43: Summary Income - Annual Base | CO43: YTD Annual Base w SS | CZ43: =PAYG_YTDBase*CZ28 -> 
B44: Group 1 documents | BY44: Yes/No | CF44: Summary Income - Annual Base | CO44: YTD Annual Base w/o SS | CZ44: =(PAYG_YTDBase-PAYG_AdditPreTax)*CZ28 -> 
BY45: No/Yes | CF45: Summary Income - Annual Base | CO45: No YTD Annual Base w SS | CZ45: =PAYG_NoYTDAnnualBase -> 0
BY46: Family/No | CF46: Summary Income - Annual Base | CO46: No YTD Annual Base w SS | CZ46: =MIN(PAYG_NoYTDAnnualBase,CZ41) -> 0
BY47: No/No | CF47: Summary Income - Annual Base | CO47: No YTD Annual Base w/o SS | CZ47: =PAYG_NoYTDAnnualBase-(PAYG_AdditPreTax*CZ39) -> 
B48: No year-to-date payslips
BY49: Yes/Yes/Yes | CF49: Summary Income - Annual Total | CO49: YTD => 3mths w or w/o SS | CZ49: =MAX(PAYG_ServAnnualBase,PAYG_YTDAnnualised) -> 0
BY50: Yes/Yes/No | CZ50: =MAX(PAYG_ServAnnualBase,PAYG_YTDAnnualised) -> 0
B51: Select your pay cycle | BY51: No/Yes/Yes | CF51: Summary Income - Annual Total | CO51: YTD < 3mths w or w/o SS | CZ51: =MIN(CZ41,CZ49) -> 0
BY52: No/Yes/No | CZ52: =MIN(CZ41,CZ49) -> 0
BY53: No/No/Yes | CF53: Summary Income - Annual Total | CO53: No YTD w SS | CZ53: =MIN(MAX(PAYG_ServAnnualBase,PAYG_NoYTDAnnualTotal),CZ41) -> 0
B54: Pay date: 1st payslip | Z54: Pay date: 2nd payslip | BY54: No/No/No | CF54: Summary Income - Annual Total | CO54: No YTD w/o SS | CZ54: =MIN(MAX(PAYG_ServAnnualBase,PAYG_NoYTDAnnualTotal-(PAYG_AdditPreTax*CZ39)),CZ41) -> 
BY56: Yes/Yes/Paid/Yes | CF56: Summary Income - Annual Bonus | CO56: YTD => 3mths Paid w or w/o SS | CZ56: =CZ49+PAYG_AdditPaidBonus -> 0
B57: Base pay | Z57: Base pay | BY57: Yes/Yes/Paid/No | CZ57: =CZ49+PAYG_AdditPaidBonus -> 0
BY58: Yes/Yes/Unpaid/Yes | CF58: Summary Income - Annual Bonus | CO58: YTD => 3mths unpaid w or w/o SS | CZ58: =MIN(CZ56+PAYG_AdditProjectedBonus,CZ41) -> 0
BY59: Yes/Yes/Unpaid/No | CZ59: =MIN(CZ56+PAYG_AdditProjectedBonus,CZ41) -> 0
B60: Total Pay | Z60: Total Pay | BY60: No/Yes/Paid/Yes | CF60: Summary Income - Annual Bonus | CO60: YTD < 3mths unpaid w SS | CZ60: =MIN(CZ51+PAYG_AdditProjectedBonus+PAYG_AdditPaidBonus,CZ41) -> 0
BY61: No/Yes/Unpaid/Yes | CZ61: =MIN(CZ51+PAYG_AdditProjectedBonus+PAYG_AdditPaidBonus,CZ41) -> 0
BY62: No/Yes/Paid/No | CF62: Summary Income - Annual Bonus | CO62: YTD < 3mths unpaid w/o SS | CZ62: =MIN(CZ51+PAYG_AdditProjectedBonus+PAYG_AdditPaidBonus,CZ41) -> 0
B63: Annual base | N63: =IFERROR(PAYG_NoYTDBasePay1*$CZ$39,"") ->  | Z63: Annual base | AL63: =IFERROR(PAYG_NoYTDBasePay2*$CZ$39,"") ->  | BY63: No/Yes/Unpaid/No | CZ63: =MIN(CZ51+PAYG_AdditProjectedBonus+PAYG_AdditPaidBonus,CZ41) -> 0
BY64: No/No/Paid/Yes | CF64: Summary Income - Annual Bonus | CO64: No YTD bonus w SS | CZ64: =MIN(CZ53+PAYG_AdditPaidBonus+PAYG_AdditProjectedBonus,CZ41) -> 0
BY65: No/No/Unpaid/Yes | CZ65: =MIN(CZ53+PAYG_AdditPaidBonus+PAYG_AdditProjectedBonus,CZ41) -> 0
B66: Annual total | N66: =IFERROR(PAYG_NoYTDTotalPay1*$CZ$39,"") ->  | Z66: Annual total | AL66: =IFERROR(PAYG_NoYTDTotalPay2*$CZ$39,"") ->  | BY66: No/No/Paid/No | CF66: Summary Income - Annual Bonus | CO66: No YTD bonus w/o SS | CZ66: =MIN(CZ54+PAYG_AdditPaidBonus+PAYG_AdditProjectedBonus,CZ41) -> 
BY67: No/No/Unpaid/No | CZ67: =MIN(CZ54+PAYG_AdditPaidBonus+PAYG_AdditProjectedBonus,CZ41) -> 
B69: Assessed base | N69: =IF(MIN(PAYG_NoYTDAnnualBase1,PAYG_NoYTDAnnualBase2)=0,0,MIN(PAYG_NoYTDAnnualBase1,PAYG_NoYTDAnnualBase2)) -> 0
B72: Assessed total | N72: =IF(MIN(PAYG_NoYTDAnnualTotal1,PAYG_NoYTDAnnualTotal2)=0,0,MIN(PAYG_NoYTDAnnualTotal1,PAYG_NoYTDAnnualTotal2)) -> 0
B76: Additional income | Z76: Notes
B78: Pre-tax deductions | Z78: If required for servicing, ensure pre-tax deductions are confirmed to policy
B81: Pre-tax deductions required for servicing?
B84: Bonus already received | Z84: If required for servicing, ensure bonus income is verified to policy
B87: Projected bonus
B93: Group 2 documents
B97: Payment Summary
B100: Date | Z100: Gross payment
B103: OR
B106: Tax Return & NoA
B109: Date | Z109: PAYG income
B114: Income for servicing
Y115: Annual Base
Y118: =CR17 -> Error
Y122: Annual Total
Y125: =CR19 -> Error
Y129: Annual including bonus
Y132: =CR21 -> 0
B141: Casual and No Base policy applies. Click continue and load income as Casual.

Sheet PAYG YTD Calc - App3 Job3 (hidden)
G1: Serviceability Assesment Calculator | AI1: Other Calculators
B7: PAYG Income Calculator
B10: Version | N10: Applicant name | AK10: Application number | AW10: Assessment date | BI10: User ID
B12: =Assess_Version -> 19 | N12: ='Serviceability Calculator'!Assess_App3Name -> 0 | AK12: ='Serviceability Calculator'!Assess_AppNum -> Enter Number | AW12: =TODAY() -> 2019-11-19 | BI12: =username() -> M025250
CK14: Avg Pay Lookup | CR14: =CF16&"/"&CF17&"/"&CF18&"/"&CF20 -> 0/0/No/No
BY15: 3 months | CF15: =IFERROR(IF(AND(PAYG_YTDPays>=3,PAYG_YTDCycle="Monthly"),"Yes",IF(DATEDIF(PAYG_YTDStartDate,PAYG_YTDEndDate,"m")<3,"No","Yes")),"No") -> No | CK15: Avg Pay Result | CR15: =VLOOKUP(CR14,PAYG_AvgPayLookup,28,FALSE) -> 
B16: Select employment* PAYG / Family | Z16: Enter employer name* | AL16: Enter name | BY16: YTD Figure | CF16: =IF(PAYG_EmployType="Family","Family",PAYG_YTDConfirm) -> 0 | CK16: Base Pay Lookup | CR16: =CF16&"/"&CF18 -> 0/No
BY17: Taxable | CF17: =PAYG_YTD_YTDType -> 0 | CK17: Base Pay Result | CR17: =IFERROR(VLOOKUP(CR16,PAYG_BasePayLookup,28,FALSE),"Error") -> Error
BY18: SS Required | CF18: =IF(PAYG_EmployType="Family","No",IF(PAYG_AdditPreTaxReq="","No",PAYG_AdditPreTaxReq)) -> No | CK18: Total Pay Lookup | CR18: =CF15&"/"&CF16&"/"&CF18 -> No/0/No
BY19: Bonus | CF19: =IF(PAYG_AdditProjectedBonus>0,"Unpaid",IF(PAYG_AdditPaidBonus>0,"Paid","No")) -> No | CK19: Total Pay Result | CR19: =IFERROR(VLOOKUP(CR18,PAYG_TotalPayLookup,28,FALSE),"Error") -> Error
BY20: Paid Bonus | CF20: =IF(PAYG_AdditPaidBonus>0,"Yes","No") -> No | CK20: Bonus Pay Lookup | CR20: =CF15&"/"&CF16&"/"&CF19&"/"&CF18 -> No/0/No/No
B21: Can you confirm base income* | Z21: Do you have a YTD figure* | CK21: Bonus Pay Result | CR21: =IFERROR(VLOOKUP(CR20,PAYG_BonusPayLookup,28,FALSE),0) -> 0
BY24: Lookup | CF24: Usage | CO24: Description | CZ24: Value
B25: Group 1 documents | CF25: YTD Reference | CO25: Pays in Cycle | CZ25: =VLOOKUP(PAYG_YTDCycle,Reference!$K$6:$M$13,3,FALSE) -> 
CF26: YTD Reference | CO26: Days Elapsed | CZ26: =PAYG_YTDEndDate-PAYG_YTDStartDate -> -43647
CF27: YTD Reference | CO27: Months Elapsed | CZ27: =(YEAR(PAYG_YTDEndDate)-YEAR(PAYG_YTDStartDate))*12+(MONTH(PAYG_YTDEndDate)-MONTH(PAYG_YTDStartDate))+(DAY(PAYG_YTDEndDate)-DAY(PAYG_YTDStartDate))/31 -> -1434.032258
CF28: YTD Reference | CO28: Pays in Year | CZ28: =VLOOKUP(PAYG_YTDCycle,Reference!K6:L13,2,FALSE) -> 
B29: Year-to-date payslips
BY30: Yes/Gross/Yes/No | CF30: YTD Avg | CO30: Avg Gross YTD w SS | CZ30: =PAYG_YTD_YTDValue/PAYG_YTDPays -> 
BY31: Yes/Gross/No/No | CF31: YTD Avg | CO31: avg Gross YTD w/o SS | CZ31: =CZ30-PAYG_AdditPreTax -> 
B32: Select your pay cycle | BY32: Yes/Gross/Yes/Yes | CF32: YTD Avg | CO32: Avg Gross YTD w SS & bonus | CZ32: =(PAYG_YTD_YTDValue-PAYG_AdditPaidBonus)/PAYG_YTDPays -> 
BY33: Yes/Gross/No/Yes | CF33: YTD Avg | CO33: avg Gross YTD w/o SS & bonus | CZ33: =(PAYG_YTD_YTDValue-PAYG_AdditPaidBonus-PAYG_AdditPreTax)/PAYG_YTDPays -> 
BY34: Yes/Taxable/Yes/No | CF34: YTD Avg | CO34: avg tax YTD w SS | CZ34: =(PAYG_YTD_YTDValue/PAYG_YTDPays)+PAYG_AdditPreTax -> 
B35: First day of financial year | N35: 2019-07-01 | Z35: =PAYG_YTDCycle&" base pay" -> base pay | AX35: Number of pays | BJ35: =IFERROR(IF(PAYG_YTDCycle=Reference!K13,1,IF(PAYG_YTDCycle=Reference!K10,ROUNDDOWN(CZ27,0)+1,ROUNDDOWN(CZ26/CZ25,0)+1)),"") ->  | BY35: Yes/Taxable/No/No | CF35: YTD Avg | CO35: avg tax YTD w/o SS | CZ35: =PAYG_YTD_YTDValue/PAYG_YTDPays -> 
BY36: Yes/Taxable/Yes/Yes | CF36: YTD Avg | CO36: avg tax YTD w SS & bonus | CZ36: =(PAYG_YTD_YTDValue-PAYG_AdditPaidBonus)/PAYG_YTDPays+PAYG_AdditPreTax -> 
BY37: Yes/Taxable/No/Yes | CF37: YTD Avg | CO37: avg tax YTD w/o SS & bonus | CZ37: =(PAYG_YTD_YTDValue-PAYG_AdditPaidBonus)/PAYG_YTDPays -> 
B38: Most recent pay date | Z38: Is the YTD amount Gross or Taxable? | AX38: Average pay | BJ38: =PAYG_YTDAvgPayResult -> 
CF39: No YTD Reference | CO39: Number of Pays | CZ39: =VLOOKUP(PAYG_NoYTDCycle,Reference!$K$6:$L$13,2,FALSE) -> 
Z41: =AL38 &" YTD amount" -> YTD amount | AX41: Annualised average pay | BJ41: =IFERROR(PAYG_YTDAveragePay*CZ28,"") ->  | CF41: Group 2 | CO41: Group 2 Doc | CZ41: =IF(AND(PAYG_PaySumAmount>0,PAYG_NOAAmount>0),MIN(PAYG_PaySumAmount,PAYG_NOAAmount),MAX(PAYG_PaySumAmount,PAYG_NOAAmount)) -> 0
BY43: Yes/Yes | CF43: Summary Income - Annual Base | CO43: YTD Annual Base w SS | CZ43: =PAYG_YTDBase*CZ28 -> 
B44: Group 1 documents | BY44: Yes/No | CF44: Summary Income - Annual Base | CO44: YTD Annual Base w/o SS | CZ44: =(PAYG_YTDBase-PAYG_AdditPreTax)*CZ28 -> 
BY45: No/Yes | CF45: Summary Income - Annual Base | CO45: No YTD Annual Base w SS | CZ45: =PAYG_NoYTDAnnualBase -> 0
BY46: Family/No | CF46: Summary Income - Annual Base | CO46: No YTD Annual Base w SS | CZ46: =MIN(PAYG_NoYTDAnnualBase,CZ41) -> 0
BY47: No/No | CF47: Summary Income - Annual Base | CO47: No YTD Annual Base w/o SS | CZ47: =PAYG_NoYTDAnnualBase-(PAYG_AdditPreTax*CZ39) -> 
B48: No year-to-date payslips
BY49: Yes/Yes/Yes | CF49: Summary Income - Annual Total | CO49: YTD => 3mths w or w/o SS | CZ49: =MAX(PAYG_ServAnnualBase,PAYG_YTDAnnualised) -> 0
BY50: Yes/Yes/No | CZ50: =MAX(PAYG_ServAnnualBase,PAYG_YTDAnnualised) -> 0
B51: Select your pay cycle | BY51: No/Yes/Yes | CF51: Summary Income - Annual Total | CO51: YTD < 3mths w or w/o SS | CZ51: =MIN(CZ41,CZ49) -> 0
